Workbook

Sheet START

Sheet Instructions
D2: 2020
X4: Yes
X5: No
W7: Type of Entities Range: | X7: Parent Municipality
X8: Consolidated Information
W17: MTREF Range: | X17: 2008
X18: 2009
X19: 2010
X20: 2011
X21: 2012
X22: 2013
X23: 2014
X24: 2015
X25: 2016
X26: 2017
X27: 2018
X28: 2019
X29: 2020
X30: 2021
X31: 2022
W33: MTREF Linked: | X33: 7
W34: MTREF: | X34: =INDEX(X17:X31,X33,1) -> 2014
W36: Fin Year: | X36: =MTREF&"/"&RIGHT(MTREF,2)+1 -> 2014/15

Sheet Template names (hidden)
A1: Common sheet headings
A2: Head1 | B2: =HLOOKUP(MTREF,Headings,2) -> 2012/13 | C2: Prior year -1
A3: Head1A | B3: =HLOOKUP(MTREF,Headings,3) -> 2011/12 | C3: Prior year -2
A4: Head1B | B4: =HLOOKUP(MTREF,Headings,4) -> 2010/11 | C4: Prior year -3
A5: Head2 | B5: =HLOOKUP(MTREF,Headings,5) -> Current Year 2013/14 | C5: Year in which budget is being prepared
A6: Head2A | B6: =HLOOKUP(MTREF,Headings,6) -> 2013/14 | C6: Year in which budget is being prepared
A7: Head3 | B7: =HLOOKUP(MTREF,Headings,7) -> 2014/15 Medium Term Revenue & Expenditure Framework | C7: MTREF name
A8: Head4 | B8: LTFS | C8: Long term financial strategy
A9: Head5 | B9: Audited Outcome
A10: Head5A | B10: Outcome
A11: Head5B | B11: Pre-audit outcome
A12: Head6 | B12: Original Budget
A13: Head7 | B13: Adjusted Budget
A14: Head8 | B14: Full Year Forecast
A15: Head9 | B15: =HLOOKUP(MTREF,Headings,8) -> Budget Year 2014/15 | C15: 1st year of MTREF | D15: Year1
A16: Head10 | B16: =HLOOKUP(MTREF,Headings,9) -> Budget Year +1 2015/16 | C16: 2nd year of MTREF | D16: Year2
A17: Head11 | B17: =HLOOKUP(MTREF,Headings,10) -> Budget Year +2 2016/17 | C17: 3rd year of MTREF | D17: Year3
A18: Head12 | B18: =HLOOKUP(MTREF,Headings,11) -> Forecast 2017/18 | C18: 1st yr of long term forecast | D18: Year4
A19: Head13 | B19: =HLOOKUP(MTREF,Headings,12) -> Forecast 2018/19 | C19: Next yr of long term forecast | D19: Year5
A20: Head14 | B20: =HLOOKUP(MTREF,Headings,13) -> Forecast 2019/20 | C20: Next yr of long term forecast | D20: Year6
A21: Head15 | B21: =HLOOKUP(MTREF,Headings,14) -> Forecast 2020/21 | C21: Next yr of long term forecast | D21: Year7
A22: Head16 | B22: =HLOOKUP(MTREF,Headings,15) -> Forecast 2021/22 | C22: Next yr of long term forecast | D22: Year8
A23: Head17 | B23: =HLOOKUP(MTREF,Headings,16) -> Forecast 2022/23 | C23: Next yr of long term forecast | D23: Year9
A24: Head18 | B24: =HLOOKUP(MTREF,Headings,17) -> Forecast 2023/24 | C24: Next yr of long term forecast | D24: Year10
A25: Head19 | B25: =HLOOKUP(MTREF,Headings,18) -> Forecast 2024/25 | C25: Next yr of long term forecast | D25: Year11
A26: Head20 | B26: =HLOOKUP(MTREF,Headings,19) -> Forecast 2025/26 | C26: Next yr of long term forecast | D26: Year12
A27: Head21 | B27: =HLOOKUP(MTREF,Headings,20) -> Forecast 2026/27 | C27: Next yr of long term forecast | D27: Year13
A28: Head22 | B28: =HLOOKUP(MTREF,Headings,21) -> Forecast 2027/28 | C28: Next yr of long term forecast | D28: Year14
A29: Head23 | B29: =HLOOKUP(MTREF,Headings,22) -> Forecast 2028/29 | C29: Next yr of long term forecast | D29: Year15
A30: Head24 | B30: Description
A31: Head25
A32: Head26 | B32: Vote Description
A33: Head27 | B33: Ref
A34: Head27a | B34: References
A35: Head28 | B35: Surplus/(Deficit) for the year | D35: Result
A36: Head29 | B36: =HLOOKUP(MTREF,Headings,23) -> Annual target 2014/15
A37: Head30 | B37: =HLOOKUP(MTREF,Headings,24) -> Revised target 2014/15
A38: Head31 | B38: Quarter ended 30 September
A39: Head32 | B39: Quarter ended 31 December
A40: Head33 | B40: Quarter ended 31 March
A41: Head34 | B41: Quarter ended 30 June
A42: Head35 | B42: Variance explanation
A43: Head36 | B43: YTD Actual 31 Dec
A44: Head37 | B44: YTD Budget 31 Dec
A45: Head38 | B45: Monthly actual
A46: Head39 | B46: YTD actual
A47: Head40 | B47: YTD budget
A48: Head41 | B48: YTD variance
A49: Head42 | B49: Surplus/ (Deficit) for the yr/period
A50: Head43 | B50: =Head3&" Summary" -> 2014/15 Medium Term Revenue & Expenditure Framework Summary
A51: Head44 | B51: 2001 Census
A52: Head45 | B52: 2011 Census
A53: Head46 | B53: - Adjustments Budget - January 2007
A54: Head47 | B54: Previous target year to complete
A55: Head48 | B55: Present value
A56: Head49
A57: Head50 | B57: Other Adjusts.
A58: Head51 | B58: Accum. Funds
A59: Head52 | B59: Multi-year capital
A60: Head53 | B60: Unfore. Unavoid.
A61: Head54 | B61: Prior Adjusted
A62: Head55 | B62: Nat. or Prov. Govt
A63: Head56 | B63: Total Adjusts.
A64: SFPerf1 | B64: Budgeted Financial Performance
A65: SFPerf2 | B65: Forecast Financial Performance
A66: SFPos1 | B66: Budgeted Financial Position
A67: SFPos2 | B67: Forecast Financial Position
A68: Cash1 | B68: Budget Cash Flow
A69: Cash2 | B69: Forecast Cash Flow
A70: RandM | B70: Expenditure includes repairs & maintenance of R'000
A71: Depart1 | B71: Department 1 - | D71: DEP1
A72: Depart2 | B72: Department 2 - | D72: DEP2
A73: Depart3 | B73: Department 3 - | D73: DEP3
A74: Depart4 | B74: Department 4 - | D74: DEP4
A75: Depart5 | B75: Department 5 - | D75: DEP5
A76: Depart6 | B76: Department 6 - | D76: DEP6
A77: Depart7 | B77: Department 7 - | D77: DEP7
A78: Depart8 | B78: Department 8 - | D78: DEP8
A79: Depart9 | B79: Department 9 - | D79: DEP9
A80: Depart10 | B80: Department 10 - | D80: DEP10
A81: Depart11 | B81: Department 11 - | D81: DEP11
A82: Depart12 | B82: Department 12 - | D82: DEP12
A83: Depart13 | B83: Department 13 - | D83: DEP13
A84: Depart14 | B84: Department 14 - | D84: DEP14
A87: Base year of forecast column selection names
A88: Choose | B88: ACT
B89: APP
B90: ADJ
A92: Standard nomenclature
A93: Muni | B93: ='Lookup and lists'!B28 -> DC42 Sedibeng
A94: Municipal Entities | B94: 2 | C94: Type of report: | D94: 3
A95: =IF((MuniEntities=1)*(MuniType=2),"YES","NO") -> NO | B95: Does this municipality have entities (consolidated budget and entity budgets required)? YES/NO
A96: Entity 1 | B96: (Pty) Ltd Example 1 - Municipal entity - | D96: Ent1
A97: Entity 2 | B97: (Pty) Ltd Example 2 - Municipal entity - | D97: Ent2
A98: Entity 3 | B98: Municipal Entity Example 3 | D98: Ent3
A99: Budget approval tables | C99: Chart x-ref | D99: Sch/Tab/Ch | E99: Alternative for municipalities without entities | F99: Alternative for municipalities without entities
B100: =IF(Consolques="YES",E100,F100) -> Table A1 Budget Summary | D100: Table A1 | E100: =D100&"Consolidated Budget Summary" -> Table A1 Consolidated Budget Summary | F100: =D100&"Budget Summary" -> Table A1 Budget Summary
B101: Table A2 Budgeted Financial Performance (revenue and expenditure by standard classification) | C101: Charts 5, 6 | D101: Table A2 | E101: =D101&"Consolidated Budgeted Financial Performance (revenue and expenditure by standard classification)" -> Table A2 Consolidated Budgeted Financial Performance (revenue and expenditure by standard classification) | F101: =D101&"Budgeted Financial Performance (revenue and expenditure by standard classification)" -> Table A2 Budgeted Financial Performance (revenue and expenditure by standard classification)
B102: Table A3 Budgeted Financial Performance (revenue and expenditure by municipal vote) | D102: Table A3 | E102: =D102&"Consolidated Budgeted Financial Performance (revenue and expenditure by municipal vote)" -> Table A3 Consolidated Budgeted Financial Performance (revenue and expenditure by municipal vote) | F102: =D102&"Budgeted Financial Performance (revenue and expenditure by municipal vote)" -> Table A3 Budgeted Financial Performance (revenue and expenditure by municipal vote)
B103: Table A4 Budgeted Financial Performance (revenue and expenditure) | C103: Charts 1, 2, 3, 4 | D103: Table A4 | E103: =D103&"Consolidated Budgeted Financial Performance (revenue and expenditure)" -> Table A4 Consolidated Budgeted Financial Performance (revenue and expenditure) | F103: =D103&"Budgeted Financial Performance (revenue and expenditure)" -> Table A4 Budgeted Financial Performance (revenue and expenditure)
B104: Table A5 Budgeted Capital Expenditure by vote, standard classification and funding | C104: Charts 7, 8, 9, 10, 20 | D104: Table A5 | E104: =D104&"Consolidated Budgeted Capital Expenditure by vote, standard classification and funding" -> Table A5 Consolidated Budgeted Capital Expenditure by vote, standard classification and funding | F104: =D104&"Budgeted Capital Expenditure by vote, standard classification and funding" -> Table A5 Budgeted Capital Expenditure by vote, standard classification and funding
B105: Table A6 Budgeted Financial Position | D105: Table A6 | E105: =D105&"Consolidated Budgeted Financial Position" -> Table A6 Consolidated Budgeted Financial Position | F105: =D105&"Budgeted Financial Position" -> Table A6 Budgeted Financial Position
B106: Table A7 Budgeted Cash Flows | D106: Table A7 | E106: =D106&"Consolidated Budgeted Cash Flows" -> Table A7 Consolidated Budgeted Cash Flows | F106: =D106&"Budgeted Cash Flows" -> Table A7 Budgeted Cash Flows
B107: Table A8 Cash backed reserves/accumulated surplus reconciliation | D107: Table A8 | E107: =D107&"Consolidated Cash backed reserves/accumulated surplus reconciliation" -> Table A8 Consolidated Cash backed reserves/accumulated surplus reconciliation | F107: =D107&"Cash backed reserves/accumulated surplus reconciliation" -> Table A8 Cash backed reserves/accumulated surplus reconciliation
B108: Table A9 Asset Management | D108: Table A9 | E108: =D108&"Consolidated Asset Management" -> Table A9 Consolidated Asset Management | F108: =D108&"Asset Management" -> Table A9 Asset Management
B109: Table A10 Basic service delivery measurement | D109: Table A10 | E109: =D109&"Consolidated basic service delivery measurement" -> Table A10 Consolidated basic service delivery measurement | F109: =D109&"Basic service delivery measurement" -> Table A10 Basic service delivery measurement
A110: Supportinging Tables to the Budget Approval Tables | C110: =$C$99 -> Chart x-ref | D110: =$D$99 -> Sch/Tab/Ch
A111: Supporting Table SA1 | B111: =A111&" Supportinging detail to 'Budgeted Financial Performance'" -> Supporting Table SA1 Supportinging detail to 'Budgeted Financial Performance'
A112: Supporting Table SA2 | B112: =IF(Consolques="YES",E112,F112) -> Supporting Table SA2 Matrix Financial Performance Budget (revenue source/expenditure type and dept.) | E112: =A112&"Consolidated Matrix Financial Performance Budget (revenue source/expenditure type & dept.)" -> Supporting Table SA2 Consolidated Matrix Financial Performance Budget (revenue source/expenditure type & dept.) | F112: =A112&"Matrix Financial Performance Budget (revenue source/expenditure type and dept.)" -> Supporting Table SA2 Matrix Financial Performance Budget (revenue source/expenditure type and dept.)
A113: Supporting Table SA3 | B113: =A113&"Supportinging detail to 'Budgeted Financial Position'" -> Supporting Table SA3 Supportinging detail to 'Budgeted Financial Position'
A114: Supporting Table SA4 | B114: =A114&"Reconciliation of IDP strategic objectives and budget (revenue)" -> Supporting Table SA4 Reconciliation of IDP strategic objectives and budget (revenue) | C114: Chart 11
A115: Supporting Table SA5 | B115: =A115&"Reconciliation of IDP strategic objectives and budget (operating expenditure)" -> Supporting Table SA5 Reconciliation of IDP strategic objectives and budget (operating expenditure) | C115: Chart 12
A116: Supporting Table SA6 | B116: =A116&"Reconciliation of IDP strategic objectives and budget (capital expenditure)" -> Supporting Table SA6 Reconciliation of IDP strategic objectives and budget (capital expenditure) | C116: Chart 13
A117: Supporting Table SA7 | B117: =A117&" Measureable performance objectives" -> Supporting Table SA7 Measureable performance objectives
A118: Supporting Table SA8 | B118: =A118&" Performance indicators and benchmarks" -> Supporting Table SA8 Performance indicators and benchmarks | C118: Chts 15-19
A119: Supporting Table SA9 | B119: =A119&" Social, economic and demographic statistics and assumptions" -> Supporting Table SA9 Social, economic and demographic statistics and assumptions
A120: Supporting Table SA10 | B120: =A120&" Funding measurement" -> Supporting Table SA10 Funding measurement | C120: Chart 14
A121: Supporting Table SA11 | B121: =A121&" Property rates summary" -> Supporting Table SA11 Property rates summary
A122: Supporting Table SA12a | B122: =A122&" Property rates by category (current year)" -> Supporting Table SA12a Property rates by category (current year)
A123: Supporting Table SA12b | B123: =A123&" Property rates by category (budget year)" -> Supporting Table SA12b Property rates by category (budget year)
A124: Supporting Table SA13a | B124: =A124&" Service Tariffs by category" -> Supporting Table SA13a Service Tariffs by category
A125: Supporting Table SA13b | B125: =A125&" Service Tariffs by category - explanatory" -> Supporting Table SA13b Service Tariffs by category - explanatory
A126: Supporting Table SA14 | B126: =A126&" Household bills" -> Supporting Table SA14 Household bills
A127: Supporting Table SA15 | B127: =A127&" Investment particulars by type" -> Supporting Table SA15 Investment particulars by type
A128: Supporting Table SA16 | B128: =A128&" Investment particulars by maturity" -> Supporting Table SA16 Investment particulars by maturity
A129: Supporting Table SA17 | B129: =A129&" Borrowing" -> Supporting Table SA17 Borrowing
A130: Supporting Table SA18 | B130: =A130&" Transfers and grant receipts" -> Supporting Table SA18 Transfers and grant receipts
A131: Supporting Table SA19 | B131: =A131&" Expenditure on transfers and grant programme" -> Supporting Table SA19 Expenditure on transfers and grant programme
A132: Supporting Table SA20 | B132: =A132&" Reconciliation of transfers, grant receipts and unspent funds" -> Supporting Table SA20 Reconciliation of transfers, grant receipts and unspent funds
A133: Supporting Table SA21 | B133: =A133&" Transfers and grants made by the municipality" -> Supporting Table SA21 Transfers and grants made by the municipality
A134: Supporting Table SA22 | B134: =A134&" Summary councillor and staff benefits" -> Supporting Table SA22 Summary councillor and staff benefits
A135: Supporting Table SA23 | B135: =A135&" Salaries, allowances & benefits (political office bearers/councillors/senior managers)" -> Supporting Table SA23 Salaries, allowances & benefits (political office bearers/councillors/senior managers)
A136: Supporting Table SA24 | B136: =A136&" Summary of personnel numbers" -> Supporting Table SA24 Summary of personnel numbers
A137: Supporting Table SA25 | B137: =IF(Consolques="YES",E137,F137) -> Supporting Table SA25 Budgeted monthly revenue and expenditure | E137: =A137&" Consolidated budgeted monthly revenue and expenditure" -> Supporting Table SA25 Consolidated budgeted monthly revenue and expenditure | F137: =A137&" Budgeted monthly revenue and expenditure" -> Supporting Table SA25 Budgeted monthly revenue and expenditure
A138: Supporting Table SA26 | B138: Supporting Table SA26 Budgeted monthly revenue and expenditure (municipal vote) | E138: =A138&" Consolidated budgeted monthly revenue and expenditure (municipal vote)" -> Supporting Table SA26 Consolidated budgeted monthly revenue and expenditure (municipal vote) | F138: =A138&" Budgeted monthly revenue and expenditure (municipal vote)" -> Supporting Table SA26 Budgeted monthly revenue and expenditure (municipal vote)
A139: Supporting Table SA27 | B139: Supporting Table SA27 Budgeted monthly revenue and expenditure (standard classification) | E139: =A139&" Consolidated budgeted monthly revenue and expenditure (standard classification)" -> Supporting Table SA27 Consolidated budgeted monthly revenue and expenditure (standard classification) | F139: =A139&" Budgeted monthly revenue and expenditure (standard classification)" -> Supporting Table SA27 Budgeted monthly revenue and expenditure (standard classification)
A140: Supporting Table SA28 | B140: Supporting Table SA28 Budgeted monthly capital expenditure (municipal vote) | E140: =A140&" Consolidated budgeted monthly capital expenditure (municipal vote)" -> Supporting Table SA28 Consolidated budgeted monthly capital expenditure (municipal vote) | F140: =A140&" Budgeted monthly capital expenditure (municipal vote)" -> Supporting Table SA28 Budgeted monthly capital expenditure (municipal vote)
A141: Supporting Table SA29 | B141: Supporting Table SA29 Budgeted monthly capital expenditure (standard classification) | E141: =A141&" Consolidated budgeted monthly capital expenditure (standard classification)" -> Supporting Table SA29 Consolidated budgeted monthly capital expenditure (standard classification) | F141: =A141&" Budgeted monthly capital expenditure (standard classification)" -> Supporting Table SA29 Budgeted monthly capital expenditure (standard classification)
A142: Supporting Table SA30 | B142: Supporting Table SA30 Budgeted monthly cash flow | E142: =A142&" Consolidated budgeted monthly cash flow" -> Supporting Table SA30 Consolidated budgeted monthly cash flow | F142: =A142&" Budgeted monthly cash flow" -> Supporting Table SA30 Budgeted monthly cash flow
A143: Supporting Table SA31 | B143: NOT REQUIRED - municipality does not have entities | E143: =A143&" Aggregated entity budget" -> Supporting Table SA31 Aggregated entity budget | F143: NOT REQUIRED - municipality does not have entities
A144: Supporting Table SA32 | B144: =A144&" List of external mechanisms" -> Supporting Table SA32 List of external mechanisms
A145: Supporting Table SA33 | B145: =A145&" Contracts having future budgetary implications" -> Supporting Table SA33 Contracts having future budgetary implications
A146: Supporting Table SA34a | B146: =IF(Consolques="YES",E146,F146) -> Supporting Table SA34a Capital expenditure on new assets by asset class | E146: =A146&" Consolidated capital expenditure on new assets by asset class" -> Supporting Table SA34a Consolidated capital expenditure on new assets by asset class | F146: =A146&" Capital expenditure on new assets by asset class" -> Supporting Table SA34a Capital expenditure on new assets by asset class
A147: Supporting Table SA34b | B147: Supporting Table SA34b Capital expenditure on the renewal of existing assets by asset class | E147: =A147&" Consolidated capital expenditure on existing assets by asset class" -> Supporting Table SA34b Consolidated capital expenditure on existing assets by asset class | F147: =A147&" Capital expenditure on the renewal of existing assets by asset class" -> Supporting Table SA34b Capital expenditure on the renewal of existing assets by asset class
A148: Supporting Table SA34c | B148: Supporting Table SA34c Repairs and maintenance expenditure by asset class | E148: =A148&" Consolidated repairs and maintenance by asset class" -> Supporting Table SA34c Consolidated repairs and maintenance by asset class | F148: =A148&" Repairs and maintenance expenditure by asset class" -> Supporting Table SA34c Repairs and maintenance expenditure by asset class
A149: Supporting Table SA34d | B149: =IF(Consolques="YES",E149,F149) -> Supporting Table SA34d Depreciation by asset class | E149: =A149&" Consolidated Depreciation by asset class" -> Supporting Table SA34d Consolidated Depreciation by asset class | F149: =A149&" Depreciation by asset class" -> Supporting Table SA34d Depreciation by asset class
A150: Supporting Table SA35 | B150: Supporting Table SA35 Future financial implications of the capital budget | E150: =A150&" Consolidated future financial implications of the capital budget" -> Supporting Table SA35 Consolidated future financial implications of the capital budget | F150: =A150& " Future financial implications of the capital budget" -> Supporting Table SA35 Future financial implications of the capital budget
A151: Supporting Table SA36 | B151: Supporting Table SA36 Detailed capital budget | E151: =A151&" Consolidated detailed capital budget" -> Supporting Table SA36 Consolidated detailed capital budget | F151: =A151& " Detailed capital budget" -> Supporting Table SA36 Detailed capital budget
A152: Supporting Table SA37 | B152: Supporting Table SA37 Projects delayed from previous financial year/s | E152: =A152&" Consolidated projects delayed from previous financial year/s" -> Supporting Table SA37 Consolidated projects delayed from previous financial year/s | F152: =A152& " Projects delayed from previous financial year/s" -> Supporting Table SA37 Projects delayed from previous financial year/s
A154: Budget Charts | B154: Charts | C154: Cross reference
A155: Chart A1 | B155: =A155&"Revenue by Municipal Vote" -> Chart A1 Revenue by Municipal Vote
A156: Chart A2 | B156: =A156&"Expenditure by Municipal Vote" -> Chart A2 Expenditure by Municipal Vote
A157: Chart A3 | B157: =A157&"Revenue by Standard Classification" -> Chart A3 Revenue by Standard Classification | C157: A2
A158: Chart A4 | B158: =A158&"Expenditure by Standard Classification" -> Chart A4 Expenditure by Standard Classification | C158: A2
A159: Chart A5 | B159: =A159&"Revenue by Major Source (refer 'Minor' source for 'Other Revenue' allocation" -> Chart A5 Revenue by Major Source (refer 'Minor' source for 'Other Revenue' allocation | C159: A3
A160: Chart A6 | B160: =A160&"Revenue by Minor Source (Other)" -> Chart A6 Revenue by Minor Source (Other) | C160: A3
A161: Chart A7 | B161: =A161&"Expenditure by Major Type" -> Chart A7 Expenditure by Major Type | C161: A3
A162: Chart A8 | B162: =A162&"Expenditure by Minor Type (Other)" -> Chart A8 Expenditure by Minor Type (Other) | C162: A3
A163: Chart A9 | B163: =A163&"Capital Expenditure by Municipal Vote/Appropriation (Major)" -> Chart A9 Capital Expenditure by Municipal Vote/Appropriation (Major) | C163: A5
A164: Chart A10 | B164: =A164&"Capital Expenditure by Municipal Vote/Appropriation (Minor)" -> Chart A10 Capital Expenditure by Municipal Vote/Appropriation (Minor) | C164: A5
A165: Chart A11 | B165: =A164&"Capital Expenditure by Standard Classification" -> Chart A10 Capital Expenditure by Standard Classification | C165: A5
A166: Chart A12 | B166: =A166&"Capital expenditure performance trend" -> Chart A12 Capital expenditure performance trend | C166: A5
A167: Chart A13 | B167: =A167&"Capital funding by Source" -> Chart A13 Capital funding by Source | C167: A5
A168: Chart A14 | B168: =A168&"Cash flow trend" -> Chart A14 Cash flow trend | C168: A7
A169: Chart A15 | B169: =A169&"IDP Strategic Objective - Revenue" -> Chart A15 IDP Strategic Objective - Revenue | C169: Table A4
A170: Chart A16 | B170: =A170&"IDP Strategic Objective - Expenditure" -> Chart A16 IDP Strategic Objective - Expenditure | C170: Table A5
A171: Chart A17 | B171: =A171&"IDP Strategic Objective - Capital Expenditure" -> Chart A17 IDP Strategic Objective - Capital Expenditure | C171: Table A6
A172: Chart A18 | B172: =A172&"Debt (borrowing to Total Revenue)" -> Chart A18 Debt (borrowing to Total Revenue) | C172: Table A8
A173: Chart A19 | B173: =A173&"Debtors' trend analysis" -> Chart A19 Debtors' trend analysis | C173: Table A8
A174: Chart A20 | B174: =A174&"Distribution losses" -> Chart A20 Distribution losses | C174: Table A8
A175: Chart A21 | B175: =A175&"Borrowed funding of capital expenditure" -> Chart A21 Borrowed funding of capital expenditure | C175: Table A8
A176: Chart A22 | B176: =A176&"Expenditure analysis (% of Revenue)" -> Chart A22 Expenditure analysis (% of Revenue) | C176: Table A8
A177: Chart A23 | B177: =A177&"Increases in service charges" -> Chart A23 Increases in service charges | C177: Table A10

Sheet Lookup and lists (hidden)
A1: Description | B1: 2007 | C1: 2008 | D1: 2009 | E1: 2010 | F1: 2011 | G1: 2012 | H1: 2013 | I1: 2014 | J1: 2015 | K1: 2016 | L1: 2017 | M1: 2018 | N1: 2019 | O1: 2020 | Q1: Lists | Y1: Grants: | Z1: National - opex | AA1: Provincial - opex | AB1: National - capex | AC1: Provincial - capex
A2: ='Template names'!C2 -> Prior year -1 | B2: 2005/06 | C2: 2006/07 | D2: 2007/08 | E2: =E1-2&"/"&RIGHT(E1,2)-1 -> 2008/9 | F2: 2009/10 | G2: 2010/11 | H2: 2011/12 | I2: 2012/13 | J2: 2013/14 | K2: 2014/15 | L2: 2015/16 | M2: 2016/17 | N2: 2017/18 | O2: 2018/19 | Q2: Yes | R2: <1 | S2: <4 | T2: Market | U2: Land & impr. | V2: Yes | W2: Uniform | X2: Yrs | Z2: Local Government Equitable Share | AA2: Health subsidy | AB2: Municipal Infrastructure Grant (MIG) | AC2: Agriculture
A3: ='Template names'!C3 -> Prior year -2 | B3: 2004/05 | C3: 2005/06 | D3: 2006/07 | E3: =E1-3&"/"&RIGHT(E1,2)-2 -> 2007/8 | F3: 2008/9 | G3: 2009/10 | H3: 2010/11 | I3: 2011/12 | J3: 2012/13 | K3: 2013/14 | L3: 2014/15 | M3: 2015/16 | N3: 2016/17 | O3: 2017/18 | Q3: No | R3: 1 | S3: 4 | T3: Dep.Replace | U3: Land only | V3: No | W3: Variable | X3: Mths | Z3: RSC Levy Replacement | AA3: Ambulance subsidy | AB3: Public Transport and Systems | AC3: Education
A4: ='Template names'!C4 -> Prior year -3 | B4: 2003/04 | C4: 2004/05 | D4: 2005/06 | E4: =E1-4&"/"&RIGHT(E1,2)-3 -> 2006/7 | F4: 2007/8 | G4: 2008/9 | H4: 2009/10 | I4: 2010/11 | J4: 2011/12 | K4: 2012/13 | L4: 2013/14 | M4: 2014/15 | N4: 2015/16 | O4: 2016/17 | R4: 2 | S4: 5 | T4: Other | U4: Other | Z4: Finance Management | AA4: Housing | AB4: Rural Transport Services and Infrastructure | AC4: Health
A5: ='Template names'!C5 -> Year in which budget is being prepared | B5: Current Year 2006/07 | C5: Current Year 2007/08 | D5: Current Year 2008/09 | E5: ="Current Year "& E1-1&"/"&RIGHT(E1,2) -> Current Year 2009/10 | F5: Current Year 2010/11 | G5: Current Year 2011/12 | H5: Current Year 2012/13 | I5: Current Year 2013/14 | J5: Current Year 2014/15 | K5: Current Year 2015/16 | L5: Current Year 2016/17 | M5: Current Year 2017/18 | N5: Current Year 2018/19 | O5: Current Year 2019/20 | R5: 3 | S5: 6 | Z5: Municipal Systems Improvement | AA5: Sport and Recreation | AB5: Regional Bulk Infrastructure | AC5: Housing and Local Government
A6: ='Template names'!C6 -> Year in which budget is being prepared | B6: 2006/07 | C6: 2007/08 | D6: 2008/09 | E6: =E1-1&"/"&RIGHT(E1,2) -> 2009/10 | F6: 2010/11 | G6: 2011/12 | H6: 2012/13 | I6: 2013/14 | J6: 2014/15 | K6: 2015/16 | L6: 2016/17 | M6: 2017/18 | N6: 2018/19 | O6: 2019/20 | R6: 4 | S6: 6-10 | Z6: Water Services Operating Subsidy | AB6: Rural Households Infrastructure | AC6: Other Departments
A7: ='Template names'!C7 -> MTREF name | B7: 2007/08 Medium Term Revenue & Expenditure Framework | C7: 2008/09 Medium Term Revenue & Expenditure Framework | D7: 2009/10 Medium Term Revenue & Expenditure Framework | E7: =E1&"/"&RIGHT(E1,2)+1&" Medium Term Revenue & Expenditure Framework" -> 2010/11 Medium Term Revenue & Expenditure Framework | F7: 2011/12 Medium Term Revenue & Expenditure Framework | G7: 2012/13 Medium Term Revenue & Expenditure Framework | H7: 2013/14 Medium Term Revenue & Expenditure Framework | I7: 2014/15 Medium Term Revenue & Expenditure Framework | J7: 2015/16 Medium Term Revenue & Expenditure Framework | K7: 2016/17 Medium Term Revenue & Expenditure Framework | L7: 2017/18 Medium Term Revenue & Expenditure Framework | M7: 2018/19 Medium Term Revenue & Expenditure Framework | N7: 2019/20 Medium Term Revenue & Expenditure Framework | O7: 2020/21 Medium Term Revenue & Expenditure Framework | R7: 5 | S7: >10 | Z7: Energy Efficiency and Demand Management | AB7: Neighbourhood Development Partnership | AC7: Public Works, Roads, Transport
A8: ='Template names'!C15 -> 1st year of MTREF | B8: Budget Year 2007/08 | C8: Budget Year 2008/09 | D8: Budget Year 2009/10 | E8: ="Budget Year "&E1&"/"&RIGHT(E1,2)+1 -> Budget Year 2010/11 | F8: Budget Year 2011/12 | G8: Budget Year 2012/13 | H8: Budget Year 2013/14 | I8: Budget Year 2014/15 | J8: Budget Year 2015/16 | K8: Budget Year 2016/17 | L8: Budget Year 2017/18 | M8: Budget Year 2018/19 | N8: Budget Year 2019/20 | O8: Budget Year 2020/21 | R8: >5 | Z8: Integrated National Electrification Programme | AB8: 2010 FIFA World Cup Stadiums Development | AC8: Sport and Recreation
A9: ='Template names'!C16 -> 2nd year of MTREF | B9: Budget Year +1 2008/09 | C9: Budget Year +1 2009/10 | D9: Budget Year +1 2010/11 | E9: ="Budget Year +1 "&E1+1&"/"&RIGHT(E1,2)+2 -> Budget Year +1 2011/12 | F9: Budget Year +1 2012/13 | G9: Budget Year +1 2013/14 | H9: Budget Year +1 2014/15 | I9: Budget Year +1 2015/16 | J9: Budget Year +1 2016/17 | K9: Budget Year +1 2017/18 | L9: Budget Year +1 2018/19 | M9: Budget Year +1 2019/20 | N9: Budget Year +1 2020/21 | O9: Budget Year +1 2021/22 | Z9: Municipal Drought Relief
A10: ='Template names'!C17 -> 3rd year of MTREF | B10: Budget Year +2 2009/10 | C10: Budget Year +2 2010/11 | D10: Budget Year +2 2011/12 | E10: ="Budget Year +2 "&E1+2&"/"&RIGHT(E1,2)+3 -> Budget Year +2 2012/13 | F10: Budget Year +2 2013/14 | G10: Budget Year +2 2014/15 | H10: Budget Year +2 2015/16 | I10: Budget Year +2 2016/17 | J10: Budget Year +2 2017/18 | K10: Budget Year +2 2018/19 | L10: Budget Year +2 2019/20 | M10: Budget Year +2 2020/21 | N10: Budget Year +2 2021/22 | O10: Budget Year +2 2022/23 | Z10: 2010 FIFA World Cup Operating
A11: ='Template names'!C18 -> 1st yr of long term forecast | B11: Forecast 2010/11 | C11: Forecast 2011/12 | D11: Forecast 2012/13 | E11: ="Forecast "&E1+3&"/"&RIGHT(E1,2)+4 -> Forecast 2013/14 | F11: Forecast 2014/15 | G11: Forecast 2015/16 | H11: Forecast 2016/17 | I11: Forecast 2017/18 | J11: Forecast 2018/19 | K11: Forecast 2019/20 | L11: Forecast 2020/21 | M11: Forecast 2021/22 | N11: Forecast 2022/23 | O11: Forecast 2023/24 | Z11: Electricity Demand Side Management
A12: ='Template names'!C19 -> Next yr of long term forecast | B12: Forecast 2011/12 | C12: Forecast 2012/13 | D12: Forecast 2013/14 | E12: ="Forecast "&E1+4&"/"&RIGHT(E1,2)+5 -> Forecast 2014/15 | F12: Forecast 2015/16 | G12: Forecast 2016/17 | H12: Forecast 2017/18 | I12: Forecast 2018/19 | J12: Forecast 2019/20 | K12: Forecast 2020/21 | L12: Forecast 2021/22 | M12: Forecast 2022/23 | N12: Forecast 2023/24 | O12: Forecast 2024/25 | Z12: EPWP Incentive
A13: ='Template names'!C20 -> Next yr of long term forecast | B13: Forecast 2012/13 | C13: Forecast 2013/14 | D13: Forecast 2014/15 | E13: ="Forecast "&E1+5&"/"&RIGHT(E1,2)+6 -> Forecast 2015/16 | F13: Forecast 2016/17 | G13: Forecast 2017/18 | H13: Forecast 2018/19 | I13: Forecast 2019/20 | J13: Forecast 2020/21 | K13: Forecast 2021/22 | L13: Forecast 2022/23 | M13: Forecast 2023/24 | N13: Forecast 2024/25 | O13: Forecast 2025/26
A14: ='Template names'!C21 -> Next yr of long term forecast | B14: Forecast 2013/14 | C14: Forecast 2014/15 | D14: Forecast 2015/16 | E14: ="Forecast "&E1+6&"/"&RIGHT(E1,2)+7 -> Forecast 2016/17 | F14: Forecast 2017/18 | G14: Forecast 2018/19 | H14: Forecast 2019/20 | I14: Forecast 2020/21 | J14: Forecast 2021/22 | K14: Forecast 2022/23 | L14: Forecast 2023/24 | M14: Forecast 2024/25 | N14: Forecast 2025/26 | O14: Forecast 2026/27 | Z14: Asset Class | AA14: Asset sub-class
A15: ='Template names'!C22 -> Next yr of long term forecast | B15: Forecast 2014/15 | C15: Forecast 2015/16 | D15: Forecast 2016/17 | E15: ="Forecast "&E1+7&"/"&RIGHT(E1,2)+8 -> Forecast 2017/18 | F15: Forecast 2018/19 | G15: Forecast 2019/20 | H15: Forecast 2020/21 | I15: Forecast 2021/22 | J15: Forecast 2022/23 | K15: Forecast 2023/24 | L15: Forecast 2024/25 | M15: Forecast 2025/26 | N15: Forecast 2026/27 | O15: Forecast 2027/28
A16: ='Template names'!C23 -> Next yr of long term forecast | B16: Forecast 2015/16 | C16: Forecast 2016/17 | D16: Forecast 2017/18 | E16: ="Forecast "&E1+8&"/"&RIGHT(E1,2)+9 -> Forecast 2018/19 | F16: Forecast 2019/20 | G16: Forecast 2020/21 | H16: Forecast 2021/22 | I16: Forecast 2022/23 | J16: Forecast 2023/24 | K16: Forecast 2024/25 | L16: Forecast 2025/26 | M16: Forecast 2026/27 | N16: Forecast 2027/28 | O16: Forecast 2028/29 | Z16: Infrastructure - Road transport | AA16: Roads, Pavements & Bridges
A17: ='Template names'!C24 -> Next yr of long term forecast | B17: Forecast 2016/17 | C17: Forecast 2017/18 | D17: Forecast 2018/19 | E17: ="Forecast "&E1+9&"/"&RIGHT(E1,2)+10 -> Forecast 2019/20 | F17: Forecast 2020/21 | G17: Forecast 2021/22 | H17: Forecast 2022/23 | I17: Forecast 2023/24 | J17: Forecast 2024/25 | K17: Forecast 2025/26 | L17: Forecast 2026/27 | M17: Forecast 2027/28 | N17: Forecast 2028/29 | O17: Forecast 2029/30 | Z17: Infrastructure - Electricity | AA17: Storm water
A18: ='Template names'!C25 -> Next yr of long term forecast | B18: Forecast 2017/18 | C18: Forecast 2018/19 | D18: Forecast 2019/20 | E18: ="Forecast "&E1+10&"/"&RIGHT(E1,2)+11 -> Forecast 2020/21 | F18: Forecast 2021/22 | G18: Forecast 2022/23 | H18: Forecast 2023/24 | I18: Forecast 2024/25 | J18: Forecast 2025/26 | K18: Forecast 2026/27 | L18: Forecast 2027/28 | M18: Forecast 2028/29 | N18: Forecast 2029/30 | O18: Forecast 2030/31 | Z18: Infrastructure - Water | AA18: Generation
A19: ='Template names'!C26 -> Next yr of long term forecast | B19: Forecast 2018/19 | C19: Forecast 2019/20 | D19: Forecast 2020/21 | E19: ="Forecast "&E1+11&"/"&RIGHT(E1,2)+12 -> Forecast 2021/22 | F19: Forecast 2022/23 | G19: Forecast 2023/24 | H19: Forecast 2024/25 | I19: Forecast 2025/26 | J19: Forecast 2026/27 | K19: Forecast 2027/28 | L19: Forecast 2028/29 | M19: Forecast 2029/30 | N19: Forecast 2030/31 | O19: Forecast 2031/32 | Z19: Infrastructure - Sanitation | AA19: Transmission & Reticulation
A20: ='Template names'!C27 -> Next yr of long term forecast | B20: Forecast 2019/20 | C20: Forecast 2020/21 | D20: Forecast 2021/22 | E20: ="Forecast "&E1+12&"/"&RIGHT(E1,2)+13 -> Forecast 2022/23 | F20: Forecast 2023/24 | G20: Forecast 2024/25 | H20: Forecast 2025/26 | I20: Forecast 2026/27 | J20: Forecast 2027/28 | K20: Forecast 2028/29 | L20: Forecast 2029/30 | M20: Forecast 2030/31 | N20: Forecast 2031/32 | O20: Forecast 2032/33 | Z20: Infrastructure - Other | AA20: Street Lighting
A21: ='Template names'!C28 -> Next yr of long term forecast | B21: Forecast 2020/21 | C21: Forecast 2021/22 | D21: Forecast 2022/23 | E21: ="Forecast "&E1+13&"/"&RIGHT(E1,2)+14 -> Forecast 2023/24 | F21: Forecast 2024/25 | G21: Forecast 2025/26 | H21: Forecast 2026/27 | I21: Forecast 2027/28 | J21: Forecast 2028/29 | K21: Forecast 2029/30 | L21: Forecast 2030/31 | M21: Forecast 2031/32 | N21: Forecast 2032/33 | O21: Forecast 2033/34 | Z21: Community | AA21: Dams & Reservoirs
A22: ='Template names'!C29 -> Next yr of long term forecast | B22: Forecast 2021/22 | C22: Forecast 2022/23 | D22: Forecast 2023/24 | E22: ="Forecast "&E1+14&"/"&RIGHT(E1,2)+15 -> Forecast 2024/25 | F22: Forecast 2025/26 | G22: Forecast 2026/27 | H22: Forecast 2027/28 | I22: Forecast 2028/29 | J22: Forecast 2029/30 | K22: Forecast 2030/31 | L22: Forecast 2031/32 | M22: Forecast 2032/33 | N22: Forecast 2033/34 | O22: Forecast 2034/35 | Z22: Heritage Assets | AA22: Water purification
A23: Adjustments Budget | B23: Annual target 2007/08 | C23: Annual target 2008/09 | D23: Annual target 2009/10 | E23: ="Annual target " & E1&"/"&RIGHT(E1,2)+1 -> Annual target 2010/11 | F23: Annual target 2011/12 | G23: Annual target 2012/13 | H23: Annual target 2013/14 | I23: Annual target 2014/15 | J23: Annual target 2015/16 | K23: Annual target 2016/17 | L23: Annual target 2017/18 | M23: Annual target 2018/19 | N23: Annual target 2019/20 | O23: Annual target 2020/21 | Z23: Investment Properties | AA23: Reticulation
A24: =A23 -> Adjustments Budget | B24: Revised target 2007/08 | C24: Revised target 2008/09 | D24: Revised target 2009/10 | E24: ="Revised target "& E1&"/"&RIGHT(E1,2)+1 -> Revised target 2010/11 | F24: Revised target 2011/12 | G24: Revised target 2012/13 | H24: Revised target 2013/14 | I24: Revised target 2014/15 | J24: Revised target 2015/16 | K24: Revised target 2016/17 | L24: Revised target 2017/18 | M24: Revised target 2018/19 | N24: Revised target 2019/20 | O24: Revised target 2020/21 | Z24: Other Assets | AA24: Sewerage purification
A25: NOTE: This sheet should not be directly amended - select headings from sheet 'S' | Z25: Agricultural assets | AA25: Waste Management
Z26: Biological assets | AA26: Transportation
A27: Name link | B27: 77 | Z27: Intangibles | AA27: Gas
A28: Name of Muni | B28: =INDEX(B29:B307,B27,1) -> DC42 Sedibeng | Z28: Other | AA28: Parks & gardens
B29: Choose name from list | C29: Set name on 'Instructions' sheet | AA29: Sportsfields & stadia
B30: BUF Buffalo City | C30: EC EASTERN CAPE | AA30: Swimming pools
B31: NMA Nelson Mandela Bay | C31: EC EASTERN CAPE | AA31: Community halls
B32: EC101 Camdeboo | C32: EC EASTERN CAPE | AA32: Libraries
B33: EC102 Blue Crane Route | C33: EC EASTERN CAPE | AA33: Recreational facilities
B34: EC103 Ikwezi | C34: EC EASTERN CAPE | AA34: Fire, safety & emergency
B35: EC104 Makana | C35: EC EASTERN CAPE | AA35: Security and policing
B36: EC105 Ndlambe | C36: EC EASTERN CAPE | AA36: Buses
B37: EC106 Sundays River Valley | C37: EC EASTERN CAPE | AA37: Clinics
B38: EC107 Baviaans | C38: EC EASTERN CAPE | AA38: Museums & Art Galleries
B39: EC108 Kouga | C39: EC EASTERN CAPE | AA39: Cemeteries
B40: EC109 Kou-Kamma | C40: EC EASTERN CAPE | AA40: Social rental housing
B41: DC10 Cacadu | C41: EC EASTERN CAPE | AA41: Buildings
B42: EC121 Mbhashe | C42: EC EASTERN CAPE | AA42: Housing development
B43: EC122 Mnquma | C43: EC EASTERN CAPE | AA43: General vehicles
B44: EC123 Great Kei | C44: EC EASTERN CAPE | AA44: Specialised vehicles - Refuse
B45: EC124 Amahlathi | C45: EC EASTERN CAPE | AA45: Specialised vehicles - Fire
B46: EC126 Ngqushwa | C46: EC EASTERN CAPE | AA46: Specialised vehicles - Conservancy
B47: EC127 Nkonkobe | C47: EC EASTERN CAPE | AA47: Specialised vehicles - Ambulances
B48: EC128 Nxuba | C48: EC EASTERN CAPE | AA48: Plant & equipment
B49: DC12 Amathole | C49: EC EASTERN CAPE | AA49: Computers - hardware/equipment
B50: EC131 Inxuba Yethemba | C50: EC EASTERN CAPE | AA50: Furniture and other office equipment
B51: EC132 Tsolwana | C51: EC EASTERN CAPE | AA51: Abattoirs
B52: EC133 Inkwanca | C52: EC EASTERN CAPE | AA52: Markets
B53: EC134 Lukhanji | C53: EC EASTERN CAPE | AA53: Civic Land and Buildings
B54: EC135 Intsika Yethu | C54: EC EASTERN CAPE | AA54: Other Buildings
B55: EC136 Emalahleni (EC) | C55: EC EASTERN CAPE | AA55: Other Land
B56: EC137 Engcobo | C56: EC EASTERN CAPE | AA56: Surplus Assets - (Investment or Inventory)
B57: EC138 Sakhisizwe | C57: EC EASTERN CAPE | AA57: Computers - software & programming
B58: DC13 Chris Hani | C58: EC EASTERN CAPE | AA58: Other
B59: EC141 Elundini | C59: EC EASTERN CAPE
B60: EC142 Senqu | C60: EC EASTERN CAPE | Z60: SA16 - Investments
B61: EC143 Maletswai | C61: EC EASTERN CAPE | Z61: Security | AA61: Interest rate
B62: EC144 Gariep | C62: EC EASTERN CAPE | Z62: Yes | AA62: Fixed
B63: DC14 Joe Gqabi | C63: EC EASTERN CAPE | Z63: No | AA63: Variable
B64: EC153 Ngquza Hills | C64: EC EASTERN CAPE
B65: EC154 Port St Johns | C65: EC EASTERN CAPE
B66: EC155 Nyandeni | C66: EC EASTERN CAPE | Z66: SA36, SA37 - Capital projects
B67: EC156 Mhlontlo | C67: EC EASTERN CAPE | Z67: Yes
B68: EC157 King Sabata Dalindyebo | C68: EC EASTERN CAPE | Z68: No
B69: DC15 O .R. Tambo | C69: EC EASTERN CAPE
B70: EC441 Matatiele | C70: EC EASTERN CAPE
B71: EC442 Umzimvubu | C71: EC EASTERN CAPE
B72: EC443 Mbizana | C72: EC EASTERN CAPE
B73: EC444 Ntabankulu | C73: EC EASTERN CAPE
B74: DC44 Alfred Nzo | C74: EC EASTERN CAPE
B75: MAN Mangaung | C75: FS FREE STATE
B76: FS161 Letsemeng | C76: FS FREE STATE
B77: FS162 Kopanong | C77: FS FREE STATE
B78: FS163 Mohokare | C78: FS FREE STATE
B79: FS164 Naledi (Fs) | C79: FS FREE STATE
B80: DC16 Xhariep | C80: FS FREE STATE
B81: FS181 Masilonyana | C81: FS FREE STATE
B82: FS182 Tokologo | C82: FS FREE STATE
B83: FS183 Tswelopele | C83: FS FREE STATE
B84: FS184 Matjhabeng | C84: FS FREE STATE
B85: FS185 Nala | C85: FS FREE STATE
B86: DC18 Lejweleputswa | C86: FS FREE STATE
B87: FS191 Setsoto | C87: FS FREE STATE
B88: FS192 Dihlabeng | C88: FS FREE STATE
B89: FS193 Nketoana | C89: FS FREE STATE
B90: FS194 Maluti-a-Phofung | C90: FS FREE STATE
B91: FS195 Phumelela | C91: FS FREE STATE
B92: FS196 Mantsopa | C92: FS FREE STATE
B93: DC19 Thabo Mofutsanyana | C93: FS FREE STATE
B94: FS201 Moqhaka | C94: FS FREE STATE
B95: FS203 Ngwathe | C95: FS FREE STATE
B96: FS204 Metsimaholo | C96: FS FREE STATE
B97: FS205 Mafube | C97: FS FREE STATE
B98: DC20 Fezile Dabi | C98: FS FREE STATE
B99: EKU Ekurhuleni Metro | C99: GT GAUTENG
B100: JHB City Of Johannesburg | C100: GT GAUTENG
B101: TSH City Of Tshwane | C101: GT GAUTENG
B102: GT421 Emfuleni | C102: GT GAUTENG
B103: GT422 Midvaal | C103: GT GAUTENG
B104: GT423 Lesedi | C104: GT GAUTENG
B105: DC42 Sedibeng | C105: GT GAUTENG
B106: GT481 Mogale City | C106: GT GAUTENG
B107: GT482 Randfontein | C107: GT GAUTENG
B108: GT483 Westonaria | C108: GT GAUTENG
B109: GT484 Merafong City | C109: GT GAUTENG
B110: DC48 West Rand | C110: GT GAUTENG
B111: ETH eThekwini | C111: KZN KWAZULU-NATAL
B112: KZN211 Vulamehlo | C112: KZN KWAZULU-NATAL
B113: KZN212 Umdoni | C113: KZN KWAZULU-NATAL
B114: KZN213 Umzumbe | C114: KZN KWAZULU-NATAL
B115: KZN214 uMuziwabantu | C115: KZN KWAZULU-NATAL
B116: KZN215 Ezinqoleni | C116: KZN KWAZULU-NATAL
B117: KZN216 Hibiscus Coast | C117: KZN KWAZULU-NATAL
B118: DC21 Ugu | C118: KZN KWAZULU-NATAL
B119: KZN221 uMshwathi | C119: KZN KWAZULU-NATAL
B120: KZN222 uMngeni | C120: KZN KWAZULU-NATAL
B121: KZN223 Mpofana | C121: KZN KWAZULU-NATAL
B122: KZN224 Impendle | C122: KZN KWAZULU-NATAL
B123: KZN225 Msunduzi | C123: KZN KWAZULU-NATAL
B124: KZN226 Mkhambathini | C124: KZN KWAZULU-NATAL
B125: KZN227 Richmond | C125: KZN KWAZULU-NATAL
B126: DC22 uMgungundlovu | C126: KZN KWAZULU-NATAL
B127: KZN232 Emnambithi/Ladysmith | C127: KZN KWAZULU-NATAL
B128: KZN233 Indaka | C128: KZN KWAZULU-NATAL
B129: KZN234 Umtshezi | C129: KZN KWAZULU-NATAL
B130: KZN235 Okhahlamba | C130: KZN KWAZULU-NATAL
B131: KZN236 Imbabazane | C131: KZN KWAZULU-NATAL
B132: DC23 Uthukela | C132: KZN KWAZULU-NATAL
B133: KZN241 Endumeni | C133: KZN KWAZULU-NATAL
B134: KZN242 Nquthu | C134: KZN KWAZULU-NATAL
B135: KZN244 Msinga | C135: KZN KWAZULU-NATAL
B136: KZN245 Umvoti | C136: KZN KWAZULU-NATAL
B137: DC24 Umzinyathi | C137: KZN KWAZULU-NATAL
B138: KZN252 Newcastle | C138: KZN KWAZULU-NATAL
B139: KZN253 eMadlangeni | C139: KZN KWAZULU-NATAL
B140: KZN254 Dannhauser | C140: KZN KWAZULU-NATAL
B141: DC25 Amajuba | C141: KZN KWAZULU-NATAL
B142: KZN261 eDumbe | C142: KZN KWAZULU-NATAL
B143: KZN262 uPhongolo | C143: KZN KWAZULU-NATAL
B144: KZN263 Abaqulusi | C144: KZN KWAZULU-NATAL
B145: KZN265 Nongoma | C145: KZN KWAZULU-NATAL
B146: KZN266 Ulundi | C146: KZN KWAZULU-NATAL
B147: DC26 Zululand | C147: KZN KWAZULU-NATAL
B148: KZN271 Umhlabuyalingana | C148: KZN KWAZULU-NATAL
B149: KZN272 Jozini | C149: KZN KWAZULU-NATAL
B150: KZN273 The Big 5 False Bay | C150: KZN KWAZULU-NATAL
B151: KZN274 Hlabisa | C151: KZN KWAZULU-NATAL
B152: KZN275 Mtubatuba | C152: KZN KWAZULU-NATAL
B153: DC27 Umkhanyakude | C153: KZN KWAZULU-NATAL
B154: KZN281 Mfolozi | C154: KZN KWAZULU-NATAL
B155: KZN282 uMhlathuze | C155: KZN KWAZULU-NATAL
B156: KZN283 Ntambanana | C156: KZN KWAZULU-NATAL
B157: KZN284 uMlalazi | C157: KZN KWAZULU-NATAL
B158: KZN285 Mthonjaneni | C158: KZN KWAZULU-NATAL
B159: KZN286 Nkandla | C159: KZN KWAZULU-NATAL
B160: DC28 uThungulu | C160: KZN KWAZULU-NATAL
B161: KZN291 Mandeni | C161: KZN KWAZULU-NATAL
B162: KZN292 KwaDukuza | C162: KZN KWAZULU-NATAL
B163: KZN293 Ndwedwe | C163: KZN KWAZULU-NATAL
B164: KZN294 Maphumulo | C164: KZN KWAZULU-NATAL
B165: DC29 iLembe | C165: KZN KWAZULU-NATAL
B166: KZN431 Ingwe | C166: KZN KWAZULU-NATAL
B167: KZN432 Kwa Sani | C167: KZN KWAZULU-NATAL
B168: KZN433 Greater Kokstad | C168: KZN KWAZULU-NATAL
B169: KZN434 Ubuhlebezwe | C169: KZN KWAZULU-NATAL
B170: KZN435 Umzimkhulu | C170: KZN KWAZULU-NATAL
B171: DC43 Sisonke | C171: KZN KWAZULU-NATAL
B172: LIM331 Greater Giyani | C172: LIM LIMPOPO
B173: LIM332 Greater Letaba | C173: LIM LIMPOPO
B174: LIM333 Greater Tzaneen | C174: LIM LIMPOPO
B175: LIM334 Ba-Phalaborwa | C175: LIM LIMPOPO
B176: LIM335 Maruleng | C176: LIM LIMPOPO
B177: DC33 Mopani | C177: LIM LIMPOPO
B178: LIM341 Musina | C178: LIM LIMPOPO
B179: LIM342 Mutale | C179: LIM LIMPOPO
B180: LIM343 Thulamela | C180: LIM LIMPOPO
B181: LIM344 Makhado | C181: LIM LIMPOPO
B182: DC34 Vhembe | C182: LIM LIMPOPO
B183: LIM351 Blouberg | C183: LIM LIMPOPO
B184: LIM352 Aganang | C184: LIM LIMPOPO
B185: LIM353 Molemole | C185: LIM LIMPOPO
B186: LIM354 Polokwane | C186: LIM LIMPOPO
B187: LIM355 Lepelle-Nkumpi | C187: LIM LIMPOPO
B188: DC35 Capricorn | C188: LIM LIMPOPO
B189: LIM361 Thabazimbi | C189: LIM LIMPOPO
B190: LIM362 Lephalale | C190: LIM LIMPOPO
B191: LIM364 Mookgopong | C191: LIM LIMPOPO
B192: LIM365 Modimolle | C192: LIM LIMPOPO
B193: LIM366 Bela Bela | C193: LIM LIMPOPO
B194: LIM367 Mogalakwena | C194: LIM LIMPOPO
B195: DC36 Waterberg | C195: LIM LIMPOPO
B196: LIM471 Ephraim Mogale | C196: LIM LIMPOPO
B197: LIM472 Elias Motsoaledi | C197: LIM LIMPOPO
B198: LIM473 Makhuduthamaga | C198: LIM LIMPOPO
B199: LIM474 Fetakgomo | C199: LIM LIMPOPO
B200: LIM475 Greater Tubatse | C200: LIM LIMPOPO
... 108 more rows

Sheet Org structure
A1: Organisational Structure Votes | C1: Organisational Structure Sub-Votes | E1: Display Sub-Votes
A2: =B2&" - "&C2 -> Vote 1 - Executive and Council | B2: Vote 1 | C2: Executive and Council | F2: 410000
A3: =B13&" - "& C13 -> Vote 2 - Finance & Administration | B3: 1.1 | C3: Mayoral Administration | D3: 1.1 - Mayoral Administration | E3: 1.1 - Mayoral Administration | F3: 410101
A4: =B24&" - "&C24 -> Vote 3 - Transport, Infrastructure & Environment | B4: 1.2 | C4: Speaker's Office | D4: 1.2 - Speaker's Office | E4: 1.2 - Speaker's Office | F4: 410200
A5: =B35&" - "&C35 -> Vote 4 - Community & Social Services | B5: 1.3 | C5: Mayoral Committee | D5: 1.3 - Mayoral Committee | E5: 1.3 - Mayoral Committee | F5: 410300
A6: =B46&" - "&C46 -> Vote 5 - Planning & Development | B6: 1.4 | C6: Other Councillors | D6: 1.4 - Other Councillors | E6: 1.4 - Other Councillors | F6: 410402
A7: =B57&" - "&C57 -> Vote 6 - | B7: 1.5 | C7: Chief Whip's Office | D7: 1.5 - Chief Whip's Office | E7: 1.5 - Chief Whip's Office | F7: 410500
A8: =B68&" - "&C68 -> Vote 7 - | B8: 1.6 | F8: 0
A9: =B79&" - "&C79 -> Vote 8 - | B9: 1.7 | F9: 0
A10: =B90&" - "&C90 -> Vote 9 - | B10: 1.8 | F10: 0
A11: =B101&" - "&C101 -> Vote 10 - | B11: 1.9 | F11: 0
A12: =B112&" - "&C112 -> Vote 11 - | B12: 1.10 | F12: 0
A13: =B123&" - "&C123 -> Vote 12 - | B13: Vote 2 | C13: Finance & Administration | F13: 420000
A14: =B134&" - "&C134 -> Vote 13 - | B14: 2.1 | C14: MMs Office | D14: 2.1 - MMs Office | E14: 2.1 - MMs Office | F14: 420100
A15: =B145&" - "&C145 -> Vote 14 - | B15: 2.2 | C15: Budget & Treasury | D15: 2.2 - Budget & Treasury | E15: 2.2 - Budget & Treasury | F15: 430000
A16: =B156&" - "&C156 -> Vote 15 - | B16: 2.3 | C16: Corporate Services | D16: 2.3 - Corporate Services | E16: 2.3 - Corporate Services | F16: 440000
B17: 2.4 | F17: 0
B18: 2.5 | F18: 0
B19: 2.6 | F19: 0
B20: 2.7 | F20: 0
B21: 2.8 | F21: 0
B22: 2.9 | F22: 0
B23: 2.10 | F23: 0
B24: Vote 3 | C24: Transport, Infrastructure & Environment | F24: 450000
B25: 3.1 | C25: Road Transport | D25: 3.1 - Road Transport | E25: 3.1 - Road Transport | F25: 450100
B26: 3.2 | C26: Environment | D26: 3.2 - Environment | E26: 3.2 - Environment | F26: 450300
B27: 3.3 | F27: 0
B28: 3.4 | F28: 0
B29: 3.5 | F29: 0
B30: 3.6 | F30: 0
B31: 3.7 | F31: 0
B32: 3.8 | F32: 0
B33: 3.9 | F33: 0
B34: 3.10 | F34: 0
B35: Vote 4 | C35: Community & Social Services | F35: 480000
B36: 4.1 | C36: Sport Heritage & Public Safety | D36: 4.1 - Sport Heritage & Public Safety | E36: 4.1 - Sport Heritage & Public Safety | F36: 460000
B37: 4.2 | C37: Social Development | D37: 4.2 - Sosial Development | E37: 4.2 - Social Development | F37: 480600
B38: 4.3 | C38: Health | D38: 4.5 - Health | E38: 4.5 - Health | F38: 480400
B39: 4.4 | C39: Disaster Management | D39: 4.4 - Disaster Management | E39: 4.4 - Disaster Management | F39: 480500
B40: 4.5 | F40: 0
B41: 4.6 | F41: 0
B42: 4.7 | F42: 0
B43: 4.8 | F43: 0
B44: 4.9 | F44: 0
B45: 4.10 | F45: 0
B46: Vote 5 | C46: Planning & Development | F46: 470000
B47: 5.1 | C47: Planning & Development | D47: 5.1 - Planning & Development | E47: 5.1 - Planning & Development | F47: 470100
B48: 5.2 | C48: Housing | D48: 5.2 - Housing | E48: 5.2 - Housing | F48: 470105
B49: 5.3 | F49: 0
B50: 5.4 | F50: 0
B51: 5.5 | F51: 0
B52: 5.6 | F52: 0
B53: 5.7 | F53: 0
B54: 5.8 | F54: 0
B55: 5.9 | F55: 0
B56: 5.10 | F56: 0
B57: Vote 6 | F57: 0
B58: 6.1 | D58: 6.1 - [Name of sub-vote] | E58: 6.1 - [Name of sub-vote] | F58: 0
B59: 6.2 | F59: 0
B60: 6.3 | F60: 0
B61: 6.4 | F61: 0
B62: 6.5 | F62: 0
B63: 6.6 | F63: 0
B64: 6.7 | F64: 0
B65: 6.8 | F65: 0
B66: 6.9 | F66: 0
B67: 6.10 | F67: 0
B68: Vote 7 | F68: 0
B69: 7.1 | D69: 7.1 - [Name of sub-vote] | E69: 7.1 - [Name of sub-vote] | F69: 0
B70: 7.2 | F70: 0
B71: 7.3 | F71: 0
B72: 7.4 | F72: 0
B73: 7.5 | F73: 0
B74: 7.6 | F74: 0
B75: 7.7 | F75: 0
B76: 7.8 | F76: 0
B77: 7.9 | F77: 0
B78: 7.10 | F78: 0
B79: Vote 8 | F79: 0
B80: 8.1 | D80: 8.1 - [Name of sub-vote] | E80: 8.1 - [Name of sub-vote] | F80: 0
B81: 8.2 | F81: 0
B82: 8.3 | F82: 0
B83: 8.4 | F83: 0
B84: 8.5 | F84: 0
B85: 8.6 | F85: 0
B86: 8.7 | F86: 0
B87: 8.8 | F87: 0
B88: 8.9 | F88: 0
B89: 8.10 | F89: 0
B90: Vote 9 | F90: 0
B91: 9.1 | D91: 9.1 - [Name of sub-vote] | E91: 9.1 - [Name of sub-vote] | F91: 0
B92: 9.2 | F92: 0
B93: 9.3 | F93: 0
B94: 9.4 | F94: 0
B95: 9.5 | F95: 0
B96: 9.6 | F96: 0
B97: 9.7 | F97: 0
B98: 9.8 | F98: 0
B99: 9.9 | F99: 0
B100: 9.10 | F100: 0
B101: Vote 10 | F101: 0
B102: 10.1 | D102: 10.1 - [Name of sub-vote] | E102: 10.1 - [Name of sub-vote] | F102: 0
B103: 10.2 | F103: 0
B104: 10.3 | F104: 0
B105: 10.4 | F105: 0
B106: 10.5 | F106: 0
B107: 10.6 | F107: 0
B108: 10.7 | F108: 0
B109: 10.8 | F109: 0
B110: 10.9 | F110: 0
B111: 10.10 | F111: 0
B112: Vote 11 | F112: 0
B113: 11.1 | D113: 11.1 - [Name of sub-vote] | E113: 11.1 - [Name of sub-vote] | F113: 0
B114: 11.2 | F114: 0
B115: 11.3 | F115: 0
B116: 11.4 | F116: 0
B117: 11.5 | F117: 0
B118: 11.6 | F118: 0
B119: 11.7 | F119: 0
B120: 11.8 | F120: 0
B121: 11.9 | F121: 0
B122: 11.10 | F122: 0
B123: Vote 12 | F123: 0
B124: 12.1 | D124: 12.1 - [Name of sub-vote] | E124: 12.1 - [Name of sub-vote] | F124: 0
B125: 12.2 | F125: 0
B126: 12.3 | F126: 0
B127: 12.4 | F127: 0
B128: 12.5 | F128: 0
B129: 12.6 | F129: 0
B130: 12.7 | F130: 0
B131: 12.8 | F131: 0
B132: 12.9 | F132: 0
B133: 12.10 | F133: 0
B134: Vote 13 | F134: 0
B135: 13.1 | D135: 13.1 - [Name of sub-vote] | E135: 13.1 - [Name of sub-vote] | F135: 0
B136: 13.2 | F136: 0
B137: 13.3 | F137: 0
B138: 13.4 | F138: 0
B139: 13.5 | F139: 0
B140: 13.6 | F140: 0
B141: 13.7 | F141: 0
B142: 13.8 | F142: 0
B143: 13.9 | F143: 0
B144: 13.10 | F144: 0
B145: Vote 14 | F145: 0
B146: 14.1 | D146: 14.1 - [Name of sub-vote] | E146: 14.1 - [Name of sub-vote] | F146: 0
B147: 14.2 | F147: 0
B148: 14.3 | F148: 0
B149: 14.4 | F149: 0
B150: 14.5 | F150: 0
B151: 14.6 | F151: 0
B152: 14.7 | F152: 0
B153: 14.8 | F153: 0
B154: 14.9 | F154: 0
B155: 14.10 | F155: 0
B156: Vote 15 | F156: 0
B157: 15.1 | D157: 15.1 - [Name of sub-vote] | E157: 15.1 - [Name of sub-vote] | F157: 0
B158: 15.2 | F158: 0
B159: 15.3 | F159: 0
B160: 15.4 | F160: 0
B161: 15.5 | F161: 0
B162: 15.6 | F162: 0
B163: 15.7 | F163: 0
B164: 15.8 | F164: 0
B165: 15.9 | F165: 0
B166: 15.10 | F166: 0

Sheet Contacts
A1: =muni&" - "&" Contact Information" -> DC42 Sedibeng - Contact Information
A3: A. GENERAL INFORMATION
A4: Municipality | B4: =muni -> DC42 Sedibeng | C4: =IF(B4="Choose name from List","Set name on 'Instructions' sheet", "") -> 
A6: Grade | B6: 5 | C6: 1 Grade in terms of the Remuneration of Public Office Bearers Act.
A8: Province | B8: =IF(B4>" ",VLOOKUP(B4,'Lookup and lists'!B29:C307,2, FALSE)," ") -> GT GAUTENG
A10: Web Address | B10: www.sedibeng.gov.za
A12: e-mail Address | B12: charless@sedibeng.gov.za
A14: B. CONTACT INFORMATION
A15: Postal address:
A16: P.O. Box | B16: 471
A17: City / Town | B17: VEREENIGING
A18: Postal Code | B18: 1930
A20: Street address
A21: Building | B21: CIVIC CENTRE
A22: Street No. & Name | B22: CNR BEACONSFIELD & LESLIE
A23: City / Town | B23: VEREENIGING
A24: Postal Code | B24: 1930
A26: General Contacts
A27: Telephone number | B27: 016 450 3074 / 3056
A28: Fax number | B28: 016 422 1546
A30: C. POLITICAL LEADERSHIP
A31: Speaker: | C31: Secretary/PA to the Speaker:
A32: Name | B32: Busisiwe Modisakeng | C32: Name | D32: Mapuleng Mateane
A33: Telephone number | B33: 016 450 3091 | C33: Telephone number | D33: 016 450 3179
A34: Cell number | B34: 083 454 1588 | C34: Cell number | D34: 082 908 6162
A35: Fax number | B35: 016 422 2456 | C35: Fax number | D35: 016 422 2456
A36: E-mail address | B36: Mapulengm@sedibeng.gov.za | C36: E-mail address | D36: Mapulengm@sedibeng.gov.za
A38: Mayor/Executive Mayor: | C38: Secretary/PA to the Mayor/Executive Mayor:
A39: Name | B39: Simon Mahole Mofokeng | C39: Name | D39: Thandie Tshabalala
A40: Telephone number | B40: 016 450 3189 | C40: Telephone number | D40: 016 450 3017
A41: Cell number | B41: 082 784 6895 | C41: Cell number | D41: 082 677 8460
A42: Fax number | B42: 016 421 3182 | C42: Fax number | D42: 016 421 3182
A43: E-mail address | B43: maholem@sedibeng.gov.za | C43: E-mail address | D43: thandiet@sedibeng.gov.za
A45: Deputy Mayor/Executive Mayor: | C45: Secretary/PA to the Deputy Mayor/Executive Mayor:
A46: Name | C46: Name
A47: Telephone number | C47: Telephone number
A48: Cell number | C48: Cell number
A49: Fax number | C49: Fax number
A50: E-mail address | C50: E-mail address
A52: D. MANAGEMENT LEADERSHIP
A53: Municipal Manager: | C53: Secretary/PA to the Municipal Manager:
A54: Name | B54: Yunus Chamda | C54: Name | D54: Colette Esterhuizen
A55: Telephone number | B55: 016 450 3166 | C55: Telephone number | D55: 016 450 3165
A56: Cell number | B56: 082 773 3676 | C56: Cell number | D56: 082 673 0439
A57: Fax number | B57: 016 455 5264 | C57: Fax number | D57: 016 455 5264
A58: E-mail address | B58: YunusC@sedibeng.gov.za | C58: E-mail address | D58: ColetteE@sedibeng.gov.za
A60: Chief Financial Officer | C60: Secretary/PA to the Chief Financial Officer
A61: Name | B61: Brendon James Scholtz | C61: Name | D61: Nthabiseng Pitso
A62: Telephone number | B62: 016 450 3074 | C62: Telephone number | D62: 016 450 3074
A63: Cell number | B63: 082 889 7034 | C63: Cell number | D63: 082 745 9032
A64: Fax number | B64: 016 422 1546 | C64: Fax number | D64: 086 679 8157/016 422 1546
A65: E-mail address | B65: BrendonS@sedibeng.gov.za | C65: E-mail address | D65: NthabisengP@sedibeng.gov.za
A67: Official responsible for submitting financial information
A68: Name | B68: Charles Steyn
A69: Telephone number | B69: 016 450 3073
A70: Cell number | B70: 082 902 0626
A71: Fax number | B71: 086 682 9904
A72: E-mail address | B72: CharlesS@sedibeng.gov.za
A73: Official responsible for submitting financial information
A74: Name | B74: Masechaba Lebona
A75: Telephone number | B75: 016 450 3056 / 3156 / 3057
A76: Cell number
A77: Fax number
A78: E-mail address | B78: MasechabaL@sedibeng.gov.za
A79: Official responsible for submitting financial information
A80: Name
A81: Telephone number
A82: Cell number
A83: Fax number
A84: E-mail address

Sheet A1-Sum
A1: =muni&" - "&Approve1 -> DC42 Sedibeng - Table A1 Budget Summary
A2: =desc -> Description | B2: =head1b -> 2010/11 | C2: =head1A -> 2011/12 | D2: =Head1 -> 2012/13 | E2: =Head2 -> Current Year 2013/14 | I2: =Head3 -> 2014/15 Medium Term Revenue & Expenditure Framework
A3: R thousands | B3: =Head5 -> Audited Outcome | C3: =Head5 -> Audited Outcome | D3: =Head5 -> Audited Outcome | E3: =Head6 -> Original Budget | F3: =Head7 -> Adjusted Budget | G3: =Head8 -> Full Year Forecast | H3: =Head5b -> Pre-audit outcome | I3: =Head9 -> Budget Year 2014/15 | J3: =Head10 -> Budget Year +1 2015/16 | K3: =Head11 -> Budget Year +2 2016/17
A4: Financial Performance
A5: Property rates | B5: ='A4-FinPerf RE'!C5+'A4-FinPerf RE'!C6 -> 0 | C5: ='A4-FinPerf RE'!D5+'A4-FinPerf RE'!D6 -> 0 | D5: ='A4-FinPerf RE'!E5+'A4-FinPerf RE'!E6 -> 0 | E5: ='A4-FinPerf RE'!F5+'A4-FinPerf RE'!F6 -> 0 | F5: ='A4-FinPerf RE'!G5+'A4-FinPerf RE'!G6 -> 0 | G5: ='A4-FinPerf RE'!H5+'A4-FinPerf RE'!H6 -> 0 | H5: ='A4-FinPerf RE'!I5+'A4-FinPerf RE'!I6 -> 0 | I5: ='A4-FinPerf RE'!J5+'A4-FinPerf RE'!J6 -> 0 | J5: ='A4-FinPerf RE'!K5+'A4-FinPerf RE'!K6 -> 0 | K5: ='A4-FinPerf RE'!L5+'A4-FinPerf RE'!L6 -> 0
A6: Service charges | B6: =SUM('A4-FinPerf RE'!C7:C11) -> 0 | C6: =SUM('A4-FinPerf RE'!D7:D11) -> 0 | D6: =SUM('A4-FinPerf RE'!E7:E11) -> 0 | E6: =SUM('A4-FinPerf RE'!F7:F11) -> 0 | F6: =SUM('A4-FinPerf RE'!G7:G11) -> 0 | G6: =SUM('A4-FinPerf RE'!H7:H11) -> 0 | H6: =SUM('A4-FinPerf RE'!I7:I11) -> 0 | I6: =SUM('A4-FinPerf RE'!J7:J11) -> 0 | J6: =SUM('A4-FinPerf RE'!K7:K11) -> 0 | K6: =SUM('A4-FinPerf RE'!L7:L11) -> 0
A7: Investment revenue | B7: ='A4-FinPerf RE'!C13 -> 6237002.66 | C7: ='A4-FinPerf RE'!D13 -> 2221853.75 | D7: ='A4-FinPerf RE'!E13 -> 2115594.95 | E7: ='A4-FinPerf RE'!F13 -> 2060000 | F7: ='A4-FinPerf RE'!G13 -> 2100084 | G7: ='A4-FinPerf RE'!H13 -> 2059644 | H7: ='A4-FinPerf RE'!I13 -> 1571122.81 | I7: ='A4-FinPerf RE'!J13 -> 2199236 | J7: ='A4-FinPerf RE'!K13 -> 2317995 | K7: ='A4-FinPerf RE'!L13 -> 2443167
A8: Transfers recognised - operational | B8: ='A4-FinPerf RE'!C19 -> 290229182.8 | C8: ='A4-FinPerf RE'!D19 -> 292212987.3 | D8: ='A4-FinPerf RE'!E19 -> 259626687.8 | E8: ='A4-FinPerf RE'!F19 -> 260552000 | F8: ='A4-FinPerf RE'!G19 -> 260552000 | G8: ='A4-FinPerf RE'!H19 -> 273312566 | H8: ='A4-FinPerf RE'!I19 -> 188312021.7 | I8: ='A4-FinPerf RE'!J19 -> 251597000 | J8: ='A4-FinPerf RE'!K19 -> 265139066 | K8: ='A4-FinPerf RE'!L19 -> 278594404
A9: Other own revenue | B9: ='A4-FinPerf RE'!C12+'A4-FinPerf RE'!C14+'A4-FinPerf RE'!C15+'A4-FinPerf RE'!C16+'A4-FinPerf RE'!C17+'A4-FinPerf RE'!C18+'A4-FinPerf RE'!C20+'A4-FinPerf RE'!C21 -> 65094240.52 | C9: ='A4-FinPerf RE'!D12+'A4-FinPerf RE'!D14+'A4-FinPerf RE'!D15+'A4-FinPerf RE'!D16+'A4-FinPerf RE'!D17+'A4-FinPerf RE'!D18+'A4-FinPerf RE'!D20+'A4-FinPerf RE'!D21 -> 78128304.8 | D9: ='A4-FinPerf RE'!E12+'A4-FinPerf RE'!E14+'A4-FinPerf RE'!E15+'A4-FinPerf RE'!E16+'A4-FinPerf RE'!E17+'A4-FinPerf RE'!E18+'A4-FinPerf RE'!E20+'A4-FinPerf RE'!E21 -> 79443461.62 | E9: ='A4-FinPerf RE'!F12+'A4-FinPerf RE'!F14+'A4-FinPerf RE'!F15+'A4-FinPerf RE'!F16+'A4-FinPerf RE'!F17+'A4-FinPerf RE'!F18+'A4-FinPerf RE'!F20+'A4-FinPerf RE'!F21 -> 87955330.92 | F9: ='A4-FinPerf RE'!G12+'A4-FinPerf RE'!G14+'A4-FinPerf RE'!G15+'A4-FinPerf RE'!G16+'A4-FinPerf RE'!G17+'A4-FinPerf RE'!G18+'A4-FinPerf RE'!G20+'A4-FinPerf RE'!G21 -> 105578740.9 | G9: ='A4-FinPerf RE'!H12+'A4-FinPerf RE'!H14+'A4-FinPerf RE'!H15+'A4-FinPerf RE'!H16+'A4-FinPerf RE'!H17+'A4-FinPerf RE'!H18+'A4-FinPerf RE'!H20+'A4-FinPerf RE'!H21 -> 81020100 | H9: ='A4-FinPerf RE'!I12+'A4-FinPerf RE'!I14+'A4-FinPerf RE'!I15+'A4-FinPerf RE'!I16+'A4-FinPerf RE'!I17+'A4-FinPerf RE'!I18+'A4-FinPerf RE'!I20+'A4-FinPerf RE'!I21 -> 53313356.03 | I9: ='A4-FinPerf RE'!J12+'A4-FinPerf RE'!J14+'A4-FinPerf RE'!J15+'A4-FinPerf RE'!J16+'A4-FinPerf RE'!J17+'A4-FinPerf RE'!J18+'A4-FinPerf RE'!J20+'A4-FinPerf RE'!J21 -> 95049427 | J9: ='A4-FinPerf RE'!K12+'A4-FinPerf RE'!K14+'A4-FinPerf RE'!K15+'A4-FinPerf RE'!K16+'A4-FinPerf RE'!K17+'A4-FinPerf RE'!K18+'A4-FinPerf RE'!K20+'A4-FinPerf RE'!K21 -> 95059080 | K9: ='A4-FinPerf RE'!L12+'A4-FinPerf RE'!L14+'A4-FinPerf RE'!L15+'A4-FinPerf RE'!L16+'A4-FinPerf RE'!L17+'A4-FinPerf RE'!L18+'A4-FinPerf RE'!L20+'A4-FinPerf RE'!L21 -> 100192269
A10: ='A4-FinPerf RE'!A22 -> Total Revenue (excluding capital transfers and contributions) | B10: =SUM(B5:B9) -> 361560425.9 | C10: 372563145.9 | D10: 341185744.3 | E10: 350567330.9 | F10: 368230824.9 | G10: 356392310 | H10: 243196500.6 | I10: 348845663 | J10: 362516141 | K10: 381229840
A11: Employee costs | B11: ='A4-FinPerf RE'!C25 -> 232230972.2 | C11: ='A4-FinPerf RE'!D25 -> 228392385.2 | D11: ='A4-FinPerf RE'!E25 -> 202732800 | E11: ='A4-FinPerf RE'!F25 -> 195544243 | F11: ='A4-FinPerf RE'!G25 -> 200318025 | G11: ='A4-FinPerf RE'!H25 -> 200762723 | H11: ='A4-FinPerf RE'!I25 -> 151395750 | I11: ='A4-FinPerf RE'!J25 -> 207216301 | J11: ='A4-FinPerf RE'!K25 -> 220443580 | K11: ='A4-FinPerf RE'!L25 -> 234515554
A12: Remuneration of councillors | B12: ='A4-FinPerf RE'!C26 -> 8368653.98 | C12: ='A4-FinPerf RE'!D26 -> 9407075.2 | D12: ='A4-FinPerf RE'!E26 -> 10284043 | E12: ='A4-FinPerf RE'!F26 -> 10579993 | F12: ='A4-FinPerf RE'!G26 -> 10923348 | G12: ='A4-FinPerf RE'!H26 -> 10662893 | H12: ='A4-FinPerf RE'!I26 -> 7488781.74 | I12: ='A4-FinPerf RE'!J26 -> 11580705 | J12: ='A4-FinPerf RE'!K26 -> 12321876 | K12: ='A4-FinPerf RE'!L26 -> 13110479
A13: Depreciation & asset impairment | B13: ='A4-FinPerf RE'!C28 -> 17198677.76 | C13: ='A4-FinPerf RE'!D28 -> 23602041 | D13: ='A4-FinPerf RE'!E28 -> 26516627 | E13: ='A4-FinPerf RE'!F28 -> 23265556 | F13: ='A4-FinPerf RE'!G28 -> 23265556 | G13: ='A4-FinPerf RE'!H28 -> 25402041 | H13: ='A4-FinPerf RE'!I28 -> 25402041 | I13: ='A4-FinPerf RE'!J28 -> 26766440 | J13: ='A4-FinPerf RE'!K28 -> 28211828 | K13: ='A4-FinPerf RE'!L28 -> 29735267
A14: Finance charges | B14: ='A4-FinPerf RE'!C29 -> 0 | C14: ='A4-FinPerf RE'!D29 -> 0 | D14: ='A4-FinPerf RE'!E29 -> 0 | E14: ='A4-FinPerf RE'!F29 -> 0 | F14: ='A4-FinPerf RE'!G29 -> 0 | G14: ='A4-FinPerf RE'!H29 -> 0 | H14: ='A4-FinPerf RE'!I29 -> 0 | I14: ='A4-FinPerf RE'!J29 -> 0 | J14: ='A4-FinPerf RE'!K29 -> 0 | K14: ='A4-FinPerf RE'!L29 -> 0
A15: Materials and bulk purchases | B15: ='A4-FinPerf RE'!C30+'A4-FinPerf RE'!C31 -> 0 | C15: ='A4-FinPerf RE'!D30+'A4-FinPerf RE'!D31 -> 0 | D15: ='A4-FinPerf RE'!E30+'A4-FinPerf RE'!E31 -> 0 | E15: ='A4-FinPerf RE'!F30+'A4-FinPerf RE'!F31 -> 0 | F15: ='A4-FinPerf RE'!G30+'A4-FinPerf RE'!G31 -> 0 | G15: ='A4-FinPerf RE'!H30+'A4-FinPerf RE'!H31 -> 0 | H15: ='A4-FinPerf RE'!I30+'A4-FinPerf RE'!I31 -> 0 | I15: ='A4-FinPerf RE'!J30+'A4-FinPerf RE'!J31 -> 0 | J15: ='A4-FinPerf RE'!K30+'A4-FinPerf RE'!K31 -> 0 | K15: ='A4-FinPerf RE'!L30+'A4-FinPerf RE'!L31 -> 0
A16: Transfers and grants | B16: ='A4-FinPerf RE'!C33 -> 84710637.08 | C16: ='A4-FinPerf RE'!D33 -> 250000 | D16: ='A4-FinPerf RE'!E33 -> 5221646 | E16: ='A4-FinPerf RE'!F33 -> 16013158 | F16: ='A4-FinPerf RE'!G33 -> 16013158 | G16: ='A4-FinPerf RE'!H33 -> 11853401 | H16: ='A4-FinPerf RE'!I33 -> 0 | I16: ='A4-FinPerf RE'!J33 -> 1365000 | J16: ='A4-FinPerf RE'!K33 -> 1438710 | K16: ='A4-FinPerf RE'!L33 -> 1516400
A17: Other expenditure | B17: ='A4-FinPerf RE'!C27+'A4-FinPerf RE'!C32+'A4-FinPerf RE'!C34+'A4-FinPerf RE'!C35 -> 133396113.4 | C17: ='A4-FinPerf RE'!D27+'A4-FinPerf RE'!D32+'A4-FinPerf RE'!D34+'A4-FinPerf RE'!D35 -> 106486531.1 | D17: ='A4-FinPerf RE'!E27+'A4-FinPerf RE'!E32+'A4-FinPerf RE'!E34+'A4-FinPerf RE'!E35 -> 109551227 | E17: ='A4-FinPerf RE'!F27+'A4-FinPerf RE'!F32+'A4-FinPerf RE'!F34+'A4-FinPerf RE'!F35 -> 104984604 | F17: ='A4-FinPerf RE'!G27+'A4-FinPerf RE'!G32+'A4-FinPerf RE'!G34+'A4-FinPerf RE'!G35 -> 111319367 | G17: ='A4-FinPerf RE'!H27+'A4-FinPerf RE'!H32+'A4-FinPerf RE'!H34+'A4-FinPerf RE'!H35 -> 102424080 | H17: ='A4-FinPerf RE'!I27+'A4-FinPerf RE'!I32+'A4-FinPerf RE'!I34+'A4-FinPerf RE'!I35 -> 66677911.6 | I17: ='A4-FinPerf RE'!J27+'A4-FinPerf RE'!J32+'A4-FinPerf RE'!J34+'A4-FinPerf RE'!J35 -> 101876828.8 | J17: ='A4-FinPerf RE'!K27+'A4-FinPerf RE'!K32+'A4-FinPerf RE'!K34+'A4-FinPerf RE'!K35 -> 107334009 | K17: ='A4-FinPerf RE'!L27+'A4-FinPerf RE'!L32+'A4-FinPerf RE'!L34+'A4-FinPerf RE'!L35 -> 112267888
A18: ='A4-FinPerf RE'!A36 -> Total Expenditure | B18: =SUM(B11:B17) -> 475905054.4 | C18: =SUM(C11:C17) -> 368138032.5 | D18: 354306343 | E18: 350387554 | F18: 361839454 | G18: 351105138 | H18: 250964484.4 | I18: 348805274.8 | J18: 369750003 | K18: 391145588
A19: ='A4-FinPerf RE'!A38 -> Surplus/(Deficit) | B19: =B10-B18 -> -114344628.4 | C19: 4425113.43 | D19: -13120598.65 | E19: 179776.92 | F19: 6391370.92 | G19: 5287172 | H19: -7767983.81 | I19: 40388.22 | J19: -7233862 | K19: -9915748
A20: ='A4-FinPerf RE'!A39 -> Transfers recognised - capital | B20: ='A4-FinPerf RE'!C39 -> 0 | C20: ='A4-FinPerf RE'!D39 -> 0 | D20: ='A4-FinPerf RE'!E39 -> 0 | E20: ='A4-FinPerf RE'!F39 -> 0 | F20: ='A4-FinPerf RE'!G39 -> 0 | G20: ='A4-FinPerf RE'!H39 -> 0 | H20: ='A4-FinPerf RE'!I39 -> 0 | I20: ='A4-FinPerf RE'!J39 -> 0 | J20: ='A4-FinPerf RE'!K39 -> 0 | K20: ='A4-FinPerf RE'!L39 -> 0
A21: Contributions recognised - capital & contributed assets | B21: ='A4-FinPerf RE'!C40+'A4-FinPerf RE'!C41 -> 0 | C21: ='A4-FinPerf RE'!D40+'A4-FinPerf RE'!D41 -> 0 | D21: ='A4-FinPerf RE'!E40+'A4-FinPerf RE'!E41 -> 0 | E21: ='A4-FinPerf RE'!F40+'A4-FinPerf RE'!F41 -> 0 | F21: ='A4-FinPerf RE'!G40+'A4-FinPerf RE'!G41 -> 0 | G21: ='A4-FinPerf RE'!H40+'A4-FinPerf RE'!H41 -> 0 | H21: ='A4-FinPerf RE'!I40+'A4-FinPerf RE'!I41 -> 0 | I21: ='A4-FinPerf RE'!J40+'A4-FinPerf RE'!J41 -> 0 | J21: ='A4-FinPerf RE'!K40+'A4-FinPerf RE'!K41 -> 0 | K21: ='A4-FinPerf RE'!L40+'A4-FinPerf RE'!L41 -> 0
A22: ='A4-FinPerf RE'!A42 -> Surplus/(Deficit) after capital transfers & contributions | B22: =B19+SUM(B20:B21) -> -114344628.4 | C22: =C19+SUM(C20:C21) -> 4425113.43 | D22: -13120598.65 | E22: 179776.92 | F22: 6391370.92 | G22: 5287172 | H22: -7767983.81 | I22: 40388.22 | J22: -7233862 | K22: -9915748
A23: ='A4-FinPerf RE'!A47 -> Share of surplus/ (deficit) of associate | B23: ='A4-FinPerf RE'!C47 -> 0 | C23: ='A4-FinPerf RE'!D47 -> 0 | D23: ='A4-FinPerf RE'!E47 -> 0 | E23: ='A4-FinPerf RE'!F47 -> 0 | F23: ='A4-FinPerf RE'!G47 -> 0 | G23: ='A4-FinPerf RE'!H47 -> 0 | H23: ='A4-FinPerf RE'!I47 -> 0 | I23: ='A4-FinPerf RE'!J47 -> 0 | J23: ='A4-FinPerf RE'!K47 -> 0 | K23: ='A4-FinPerf RE'!L47 -> 0
A24: ='A4-FinPerf RE'!A48 -> Surplus/(Deficit) for the year | B24: =B22+B23 -> -114344628.4 | C24: =C22+C23 -> 4425113.43 | D24: -13120598.65 | E24: 179776.92 | F24: 6391370.92 | G24: 5287172 | H24: -7767983.81 | I24: 40388.22 | J24: -7233862 | K24: -9915748
A26: Capital expenditure & funds sources
A27: Capital expenditure | B27: ='A5-Capex'!C63 -> 35964608 | C27: ='A5-Capex'!D63 -> 15999499 | D27: ='A5-Capex'!E63 -> 13275079 | E27: ='A5-Capex'!F63 -> 17702113 | F27: ='A5-Capex'!G63 -> 22602113 | G27: ='A5-Capex'!H63 -> 14891996 | H27: ='A5-Capex'!I63 -> 19229996 | I27: ='A5-Capex'!J63 -> 17237736 | J27: ='A5-Capex'!K63 -> 12720314 | K27: ='A5-Capex'!L63 -> 7248478
A28: Transfers recognised - capital | B28: ='A5-Capex'!C70 -> 277086 | C28: ='A5-Capex'!D70 -> 356086 | D28: ='A5-Capex'!E70 -> 0 | E28: ='A5-Capex'!F70 -> 0 | F28: ='A5-Capex'!G70 -> 0 | G28: ='A5-Capex'!H70 -> 0 | H28: ='A5-Capex'!I70 -> 5638000 | I28: ='A5-Capex'!J70 -> 0 | J28: ='A5-Capex'!K70 -> 0 | K28: ='A5-Capex'!L70 -> 0
A29: ='A5-Capex'!A71 -> Public contributions & donations | B29: ='A5-Capex'!C71 -> 0 | C29: ='A5-Capex'!D71 -> 0 | D29: ='A5-Capex'!E71 -> 0 | E29: ='A5-Capex'!F71 -> 0 | F29: ='A5-Capex'!G71 -> 0 | G29: ='A5-Capex'!H71 -> 0 | H29: ='A5-Capex'!I71 -> 0 | I29: ='A5-Capex'!J71 -> 0 | J29: ='A5-Capex'!K71 -> 0 | K29: ='A5-Capex'!L71 -> 0
A30: ='A5-Capex'!A72 -> Borrowing | B30: ='A5-Capex'!C72 -> 0 | C30: ='A5-Capex'!D72 -> 0 | D30: ='A5-Capex'!E72 -> 0 | E30: ='A5-Capex'!F72 -> 0 | F30: ='A5-Capex'!G72 -> 0 | G30: ='A5-Capex'!H72 -> 0 | H30: ='A5-Capex'!I72 -> 0 | I30: ='A5-Capex'!J72 -> 0 | J30: ='A5-Capex'!K72 -> 0 | K30: ='A5-Capex'!L72 -> 0
A31: ='A5-Capex'!A73 -> Internally generated funds | B31: ='A5-Capex'!C73 -> 35687528 | C31: ='A5-Capex'!D73 -> 15643413 | D31: ='A5-Capex'!E73 -> 13275079 | E31: ='A5-Capex'!F73 -> 17702113 | F31: ='A5-Capex'!G73 -> 22602113 | G31: ='A5-Capex'!H73 -> 14891996 | H31: ='A5-Capex'!I73 -> 13591996 | I31: ='A5-Capex'!J73 -> 17237736 | J31: ='A5-Capex'!K73 -> 12720314 | K31: ='A5-Capex'!L73 -> 7248478
A32: Total sources of capital funds | B32: =SUM(B28:B31) -> 35964614 | C32: 15999499 | D32: 13275079 | E32: 17702113 | F32: 22602113 | G32: 14891996 | H32: 19229996 | I32: 17237736 | J32: 12720314 | K32: 7248478
A34: Financial position
A35: ='A6-FinPos'!A12 -> Total current assets | B35: ='A6-FinPos'!C12 -> 70279077.25 | C35: ='A6-FinPos'!D12 -> 51412713.13 | D35: ='A6-FinPos'!E12 -> 18616430 | E35: ='A6-FinPos'!F12 -> 77115203.48 | F35: ='A6-FinPos'!G12 -> 57960846.48 | G35: ='A6-FinPos'!H12 -> 44084556.13 | H35: ='A6-FinPos'!I12 -> 31029400.32 | I35: ='A6-FinPos'!J12 -> 77115203.48 | J35: ='A6-FinPos'!K12 -> 70840074.21 | K35: ='A6-FinPos'!L12 -> 68744436.34
A36: ='A6-FinPos'!A24 -> Total non current assets | B36: ='A6-FinPos'!C24 -> 194911413.1 | C36: ='A6-FinPos'!D24 -> 186156838.9 | D36: ='A6-FinPos'!E24 -> 178342769 | E36: ='A6-FinPos'!F24 -> 142726113 | F36: ='A6-FinPos'!G24 -> 147626113 | G36: ='A6-FinPos'!H24 -> 176823395 | H36: ='A6-FinPos'!I24 -> 176823395 | I36: ='A6-FinPos'!J24 -> 119460557 | J36: ='A6-FinPos'!K24 -> 101931397.1 | K36: ='A6-FinPos'!L24 -> 108066047.8
A37: ='A6-FinPos'!A34 -> Total current liabilities | B37: ='A6-FinPos'!C34 -> 93647800.04 | C37: ='A6-FinPos'!D34 -> 62217350.29 | D37: ='A6-FinPos'!E34 -> 58846525 | E37: ='A6-FinPos'!F34 -> 66510616.56 | F37: ='A6-FinPos'!G34 -> 45520207.88 | G37: ='A6-FinPos'!H34 -> 44752713.13 | H37: ='A6-FinPos'!I34 -> 44752713.13 | I37: ='A6-FinPos'!J34 -> 66510616.56 | J37: ='A6-FinPos'!K34 -> 47531969.77 | K37: ='A6-FinPos'!L34 -> 49861036.29
A38: ='A6-FinPos'!A39 -> Total non current liabilities | B38: ='A6-FinPos'!C39 -> 0 | C38: ='A6-FinPos'!D39 -> 0 | D38: ='A6-FinPos'!E39 -> 0 | E38: ='A6-FinPos'!F39 -> 0 | F38: ='A6-FinPos'!G39 -> 0 | G38: ='A6-FinPos'!H39 -> 0 | H38: ='A6-FinPos'!I39 -> 0 | I38: ='A6-FinPos'!J39 -> 0 | J38: ='A6-FinPos'!K39 -> 0 | K38: ='A6-FinPos'!L39 -> 0
A39: Community wealth/Equity | B39: ='A6-FinPos'!C48 -> 171542372.4 | C39: ='A6-FinPos'!D48 -> 175352201.8 | D39: ='A6-FinPos'!E48 -> 138112672.4 | E39: ='A6-FinPos'!F48 -> 153330699.9 | F39: ='A6-FinPos'!G48 -> 160066752 | G39: ='A6-FinPos'!H48 -> 176155238 | H39: ='A6-FinPos'!I48 -> 163100082.2 | I39: ='A6-FinPos'!J48 -> 153330699.9 | J39: ='A6-FinPos'!K48 -> 148505057.5 | K39: ='A6-FinPos'!L48 -> 150215003.5
A41: Cash flows
A42: Net cash from (used) operating | B42: ='A7-CFlow'!C15 -> -39852656 | C42: ='A7-CFlow'!D15 -> -15635373.53 | D42: ='A7-CFlow'!E15 -> 7617113.57 | E42: ='A7-CFlow'!F15 -> 39619332.92 | F42: ='A7-CFlow'!G15 -> 29587282.92 | G42: ='A7-CFlow'!H15 -> 35033208.04 | H42: ='A7-CFlow'!I15 -> -17935013.69 | I42: ='A7-CFlow'!J15 -> 39619332.92 | J42: ='A7-CFlow'!K15 -> 9175371.51 | K42: ='A7-CFlow'!L15 -> 9425002.03
A43: Net cash from (used) investing | B43: ='A7-CFlow'!C25 -> -35690953.45 | C43: ='A7-CFlow'!D25 -> -14301970.12 | D43: ='A7-CFlow'!E25 -> -13193281 | E43: ='A7-CFlow'!F25 -> -17652113 | F43: ='A7-CFlow'!G25 -> -22532113 | G43: ='A7-CFlow'!H25 -> -19274409 | H43: ='A7-CFlow'!I25 -> -9307504.36 | I43: ='A7-CFlow'!J25 -> -17652113 | J43: ='A7-CFlow'!K25 -> -7353403 | K43: ='A7-CFlow'!L25 -> -7713720.05
A44: Net cash from (used) financing | B44: ='A7-CFlow'!C34 -> 0 | C44: ='A7-CFlow'!D34 -> 0 | D44: ='A7-CFlow'!E34 -> 0 | E44: ='A7-CFlow'!F34 -> 0 | F44: ='A7-CFlow'!G34 -> 0 | G44: ='A7-CFlow'!H34 -> 0 | H44: ='A7-CFlow'!I34 -> 0 | I44: ='A7-CFlow'!J34 -> 0 | J44: ='A7-CFlow'!K34 -> 0 | K44: ='A7-CFlow'!L34 -> 0
A45: =LEFT('A7-CFlow'!A38,37) -> Cash/cash equivalents at the year end | B45: ='A7-CFlow'!C38 -> 42429340.01 | C45: ='A7-CFlow'!D38 -> 12491996.36 | D45: ='A7-CFlow'!E38 -> 6915828.93 | E45: ='A7-CFlow'!F38 -> 33125432.18 | F45: ='A7-CFlow'!G38 -> 13970999.18 | G45: ='A7-CFlow'!H38 -> 28250794.3 | H45: ='A7-CFlow'!I38 -> -20326688.79 | I45: ='A7-CFlow'!J38 -> 35938219.1 | J45: ='A7-CFlow'!K38 -> 37760187.61 | K45: ='A7-CFlow'!L38 -> 39471469.59
A47: Cash backing/surplus reconciliation
A48: ='A8-ResRecon'!A4 -> Cash and investments available | B48: ='A8-ResRecon'!C8 -> 42428705.78 | C48: ='A8-ResRecon'!D8 -> 12491995.26 | D48: ='A8-ResRecon'!E8 -> 6915829 | E48: ='A8-ResRecon'!F8 -> 33125000 | F48: ='A8-ResRecon'!G8 -> 13970643 | G48: ='A8-ResRecon'!H8 -> 11158146 | H48: ='A8-ResRecon'!I8 -> 28251309.59 | I48: ='A8-ResRecon'!J8 -> 33125000 | J48: ='A8-ResRecon'!K8 -> 34946890.78 | K48: ='A8-ResRecon'!L8 -> 36659288.43
A49: ='A8-ResRecon'!A10 -> Application of cash and investments | B49: ='A8-ResRecon'!C18 -> -37913150.67 | C49: ='A8-ResRecon'!D18 -> 28171599.58 | D49: ='A8-ResRecon'!E18 -> 45438825 | E49: ='A8-ResRecon'!F18 -> 20493000 | F49: ='A8-ResRecon'!G18 -> -497409 | G49: ='A8-ResRecon'!H18 -> -3606255.95 | H49: ='A8-ResRecon'!I18 -> 38855744.05 | I49: ='A8-ResRecon'!J18 -> 23785000 | J49: ='A8-ResRecon'!K18 -> 10506000 | K49: ='A8-ResRecon'!L18 -> 16581845
A50: Balance - surplus (shortfall) | B50: =B48-B49 -> 80341856.45 | C50: =C48-C49 -> -15679604.32 | D50: -38522996 | E50: 12632000 | F50: 14468052 | G50: 14764401.95 | H50: -10604434.46 | I50: 9340000 | J50: 24440890.78 | K50: 20077443.43
A52: Asset management
A53: Asset register summary (WDV) | B53: ='A9-Asset'!C65 -> 194911415.1 | C53: ='A9-Asset'!D65 -> 186156838.9 | D53: ='A9-Asset'!E65 -> 178342769 | E53: ='A9-Asset'!F65 -> 142726113 | F53: ='A9-Asset'!G65 -> 147626113 | G53: ='A9-Asset'!H65 -> 176823395 | H53: ='A9-Asset'!I65 -> 142726113 | I53: ='A9-Asset'!I65 -> 142726113 | J53: ='A9-Asset'!J65 -> 125196953 | K53: ='A9-Asset'!K65 -> 131331604
A54: ='A9-Asset'!A68 -> Depreciation & asset impairment | B54: ='A9-Asset'!C68 -> 17198677.76 | C54: ='A9-Asset'!D68 -> 23602041 | D54: ='A9-Asset'!E68 -> 26516627 | E54: ='A9-Asset'!F68 -> 23265556 | F54: ='A9-Asset'!G68 -> 23265556 | G54: ='A9-Asset'!H68 -> 25402041 | H54: ='A9-Asset'!I68 -> 26766440 | I54: ='A9-Asset'!I68 -> 26766440 | J54: ='A9-Asset'!J68 -> 28211828 | K54: ='A9-Asset'!K68 -> 29735267
A55: Renewal of Existing Assets | B55: ='A9-Asset'!C20 -> 0 | C55: ='A9-Asset'!D20 -> 0 | D55: ='A9-Asset'!E20 -> 0 | E55: ='A9-Asset'!F20 -> 0 | F55: ='A9-Asset'!G20 -> 0 | G55: ='A9-Asset'!H20 -> 0 | H55: ='A9-Asset'!H20 -> 0 | I55: ='A9-Asset'!I20 -> 0 | J55: ='A9-Asset'!J20 -> 0 | K55: ='A9-Asset'!K20 -> 0
A56: Repairs and Maintenance | B56: ='A9-Asset'!C69 -> 7864471 | C56: ='A9-Asset'!D69 -> 7877686 | D56: ='A9-Asset'!E69 -> 6077486 | E56: ='A9-Asset'!F69 -> 4729894 | F56: ='A9-Asset'!G69 -> 4177276 | G56: ='A9-Asset'!H69 -> 4177276 | H56: ='A9-Asset'!I69 -> 4495894 | I56: ='A9-Asset'!I69 -> 4495894 | J56: ='A9-Asset'!J69 -> 4620084.594 | K56: ='A9-Asset'!K69 -> 4846468.739
A58: Free services
A59: Cost of Free Basic Services provided | B59: ='A10-SerDel'!C59 -> 0 | C59: ='A10-SerDel'!D59 -> 0 | D59: ='A10-SerDel'!E59 -> 0 | E59: ='A10-SerDel'!F59 -> 0 | F59: ='A10-SerDel'!G59 -> 0 | G59: ='A10-SerDel'!H59 -> 0 | H59: ='A10-SerDel'!I59 -> 0 | I59: ='A10-SerDel'!I59 -> 0 | J59: ='A10-SerDel'!J59 -> 0 | K59: ='A10-SerDel'!K59 -> 0
A60: Revenue cost of free services provided | B60: ='A10-SerDel'!C78 -> 0 | C60: ='A10-SerDel'!D78 -> 0 | D60: ='A10-SerDel'!E78 -> 0 | E60: ='A10-SerDel'!F78 -> 0 | F60: ='A10-SerDel'!G78 -> 0 | G60: ='A10-SerDel'!H78 -> 0 | H60: ='A10-SerDel'!I78 -> 0 | I60: ='A10-SerDel'!I78 -> 0 | J60: ='A10-SerDel'!J78 -> 0 | K60: ='A10-SerDel'!K78 -> 0
A61: Households below minimum service level
A62: ='A10-SerDel'!A5 -> Water: | B62: ='A10-SerDel'!C14 -> 0 | C62: ='A10-SerDel'!D14 -> 0 | D62: ='A10-SerDel'!E14 -> 0 | E62: ='A10-SerDel'!F14 -> 0 | F62: ='A10-SerDel'!G14 -> 0 | G62: ='A10-SerDel'!H14 -> 0 | H62: ='A10-SerDel'!I14 -> 0 | I62: ='A10-SerDel'!I14 -> 0 | J62: ='A10-SerDel'!J14 -> 0 | K62: ='A10-SerDel'!K14 -> 0
A63: ='A10-SerDel'!A16 -> Sanitation/sewerage: | B63: ='A10-SerDel'!C26 -> 0 | C63: ='A10-SerDel'!D26 -> 0 | D63: ='A10-SerDel'!E26 -> 0 | E63: ='A10-SerDel'!F26 -> 0 | F63: ='A10-SerDel'!G26 -> 0 | G63: ='A10-SerDel'!H26 -> 0 | H63: ='A10-SerDel'!I26 -> 0 | I63: ='A10-SerDel'!I26 -> 0 | J63: ='A10-SerDel'!J26 -> 0 | K63: ='A10-SerDel'!K26 -> 0
A64: ='A10-SerDel'!A28 -> Energy: | B64: ='A10-SerDel'!C35 -> 0 | C64: ='A10-SerDel'!D35 -> 0 | D64: ='A10-SerDel'!E35 -> 0 | E64: ='A10-SerDel'!F35 -> 0 | F64: ='A10-SerDel'!G35 -> 0 | G64: ='A10-SerDel'!H35 -> 0 | H64: ='A10-SerDel'!I35 -> 0 | I64: ='A10-SerDel'!I35 -> 0 | J64: ='A10-SerDel'!J35 -> 0 | K64: ='A10-SerDel'!K35 -> 0
A65: ='A10-SerDel'!A37 -> Refuse: | B65: ='A10-SerDel'!C45 -> 0 | C65: ='A10-SerDel'!D45 -> 0 | D65: ='A10-SerDel'!E45 -> 0 | E65: ='A10-SerDel'!F45 -> 0 | F65: ='A10-SerDel'!G45 -> 0 | G65: ='A10-SerDel'!H45 -> 0 | H65: ='A10-SerDel'!I45 -> 0 | I65: ='A10-SerDel'!I45 -> 0 | J65: ='A10-SerDel'!J45 -> 0 | K65: ='A10-SerDel'!K45 -> 0

Sheet A2-FinPerf SC
A1: =muni&" - "&Approve3 -> DC42 Sedibeng - Table A2 Budgeted Financial Performance (revenue and expenditure by standard classification)
A2: ="Standard Classification "&desc -> Standard Classification Description | B2: =head27 -> Ref | C2: =head1b -> 2010/11 | D2: =head1A -> 2011/12 | E2: =Head1 -> 2012/13 | F2: =Head2 -> Current Year 2013/14 | I2: =Head3 -> 2014/15 Medium Term Revenue & Expenditure Framework
A3: R thousand | B3: 1 | C3: =Head5 -> Audited Outcome | D3: =Head5 -> Audited Outcome | E3: =Head5 -> Audited Outcome | F3: =Head6 -> Original Budget | G3: =Head7 -> Adjusted Budget | H3: =Head8 -> Full Year Forecast | I3: =Head9 -> Budget Year 2014/15 | J3: =Head10 -> Budget Year +1 2015/16 | K3: =Head11 -> Budget Year +2 2016/17
A4: Revenue - Standard
A5: Governance and administration | C5: =SUM(C6:C8) -> 277669776.5 | D5: =SUM(D6:D8) -> 250082051.4 | E5: 247895629.6 | F5: 259746489 | G5: 278335641 | H5: 264404559 | I5: 270523482 | J5: 280008738 | K5: 295129211
A6: Executive and council | C6: =A2A!C6 -> 9958.71 | D6: =A2A!D6 -> 22641.32 | E6: =A2A!E6 -> 13239.44 | F6: =A2A!F6 -> 24970 | G6: =A2A!G6 -> 29010 | H6: =A2A!H6 -> 24947 | I6: =A2A!I6 -> 26219 | J6: =A2A!J6 -> 27636 | K6: =A2A!K6 -> 29129
A7: Budget and treasury office | C7: =A2A!C9 -> 263037381 | D7: =A2A!D9 -> 234101181.3 | E7: =A2A!E9 -> 231078510.6 | F7: =A2A!F9 -> 238418376 | G7: =A2A!G9 -> 257809767 | H7: =A2A!H9 -> 246261125 | I7: =A2A!I9 -> 250267952 | J7: =A2A!J9 -> 258659410 | K7: =A2A!K9 -> 272627019
A8: Corporate services | C8: =A2A!C10 -> 14622436.76 | D8: =A2A!D10 -> 15958228.75 | E8: =A2A!E10 -> 16803879.53 | F8: =A2A!F10 -> 21303143 | G8: =A2A!G10 -> 20496864 | H8: =A2A!H10 -> 18118487 | I8: =A2A!I10 -> 20229311 | J8: =A2A!J10 -> 21321692 | K8: =A2A!K10 -> 22473063
A9: Community and public safety | C9: =SUM(C10:C14) -> 34536119.07 | D9: =SUM(D10:D14) -> 37047047.15 | E9: 26176120.38 | F9: 6655989 | G9: 6639422 | H9: 24601917 | I9: 6980229 | J9: 7357161 | K9: 7754449
A10: Community and social services | C10: =A2A!C16 -> 113987.89 | D10: =A2A!D16 -> 145801.64 | E10: =A2A!E16 -> 202799.72 | F10: =A2A!F16 -> 252942 | G10: =A2A!G16 -> 221111 | H10: =A2A!H16 -> 232851 | I10: =A2A!I16 -> 255142 | J10: =A2A!J16 -> 268920 | K10: =A2A!K16 -> 283443
A11: Sport and recreation | C11: =A2A!C25 -> 1077.31 | D11: =A2A!D25 -> 908.39 | E11: =A2A!E25 -> 579.35 | F11: =A2A!F25 -> 1124 | G11: =A2A!G25 -> 490 | H11: =A2A!H25 -> 1124 | I11: =A2A!I25 -> 1180 | J11: =A2A!J25 -> 1244 | K11: =A2A!K25 -> 1311
A12: Public safety | C12: =A2A!C26 -> 1953.36 | D12: =A2A!D26 -> 3769.13 | E12: =A2A!E26 -> 13847.47 | F12: =A2A!F26 -> 27691 | G12: =A2A!G26 -> 41625 | H12: =A2A!H26 -> 27691 | I12: =A2A!I26 -> 29075 | J12: =A2A!J26 -> 30644 | K12: =A2A!K26 -> 32298
A13: Housing | C13: =A2A!C32 -> 0 | D13: =A2A!D32 -> 0 | E13: =A2A!E32 -> 0 | F13: =A2A!F32 -> 0 | G13: =A2A!G32 -> 500 | H13: =A2A!H32 -> 0 | I13: =A2A!I32 -> 0 | J13: =A2A!J32 -> 0 | K13: =A2A!K32 -> 0
A14: Health | C14: =A2A!C33 -> 34419100.51 | D14: =A2A!D33 -> 36896567.99 | E14: =A2A!E33 -> 25958893.84 | F14: =A2A!F33 -> 6374232 | G14: =A2A!G33 -> 6375696 | H14: =A2A!H33 -> 24340251 | I14: =A2A!I33 -> 6694832 | J14: =A2A!J33 -> 7056353 | K14: =A2A!K33 -> 7437397
A15: Economic and environmental services | C15: =SUM(C16:C18) -> 49354530.38 | D15: =SUM(D16:D18) -> 85434047.33 | E15: 67113994.63 | F15: 84164852.92 | G15: 83255762 | H15: 67385834 | I15: 71341952 | J15: 75150242 | K15: 78346180
A16: Planning and development | C16: =A2A!C38 -> 30170.21 | D16: =A2A!D38 -> 25100965.92 | E16: =A2A!E38 -> 4945937.36 | F16: =A2A!F38 -> 18284473 | G16: =A2A!G38 -> 18266464 | H16: =A2A!H38 -> 5171631 | I16: =A2A!I38 -> 2208991 | J16: =A2A!J38 -> 2284104 | K16: =A2A!K38 -> 1545272
A17: Road transport | C17: =A2A!C42 -> 49323430.27 | D17: =A2A!D42 -> 60331677.66 | E17: =A2A!E42 -> 62167524.39 | F17: =A2A!F42 -> 64979313.92 | G17: =A2A!G42 -> 64987354 | H17: =A2A!H42 -> 62213137 | I17: =A2A!I42 -> 68231539 | J17: =A2A!J42 -> 71916039 | K17: =A2A!K42 -> 75799504
A18: Environmental protection | C18: =A2A!C48 -> 929.9 | D18: =A2A!D48 -> 1403.75 | E18: =A2A!E48 -> 532.88 | F18: =A2A!F48 -> 901066 | G18: =A2A!G48 -> 1944 | H18: =A2A!H48 -> 1066 | I18: =A2A!I48 -> 901422 | J18: =A2A!J48 -> 950099 | K18: =A2A!K48 -> 1001404
A19: Trading services | C19: =SUM(C20:C23) -> 0 | D19: =SUM(D20:D23) -> 0 | E19: 0 | F19: 0 | G19: 0 | H19: 0 | I19: 0 | J19: =SUM(J20:J23) -> 0 | K19: 0
A20: Electricity | C20: =A2A!C53 -> 0 | D20: =A2A!D53 -> 0 | E20: =A2A!E53 -> 0 | F20: =A2A!F53 -> 0 | G20: =A2A!G53 -> 0 | H20: =A2A!H53 -> 0 | I20: =A2A!I53 -> 0 | J20: =A2A!J53 -> 0 | K20: =A2A!K53 -> 0
A21: Water | C21: =A2A!C56 -> 0 | D21: =A2A!D56 -> 0 | E21: =A2A!E56 -> 0 | F21: =A2A!F56 -> 0 | G21: =A2A!G56 -> 0 | H21: =A2A!H56 -> 0 | I21: =A2A!I56 -> 0 | J21: =A2A!J56 -> 0 | K21: =A2A!K56 -> 0
A22: Waste water management | C22: =A2A!C59 -> 0 | D22: =A2A!D59 -> 0 | E22: =A2A!E59 -> 0 | F22: =A2A!F59 -> 0 | G22: =A2A!G59 -> 0 | H22: =A2A!H59 -> 0 | I22: =A2A!I59 -> 0 | J22: =A2A!J59 -> 0 | K22: =A2A!K59 -> 0
A23: Waste management | C23: =A2A!C63 -> 0 | D23: =A2A!D63 -> 0 | E23: =A2A!E63 -> 0 | F23: =A2A!F63 -> 0 | G23: =A2A!G63 -> 0 | H23: =A2A!H63 -> 0 | I23: =A2A!I63 -> 0 | J23: =A2A!J63 -> 0 | K23: =A2A!K63 -> 0
A24: Other | B24: 4 | C24: =A2A!C65 -> 0 | D24: =A2A!D65 -> 0 | E24: =A2A!E65 -> 0 | F24: =A2A!F65 -> 0 | G24: =A2A!G65 -> 0 | H24: =A2A!H65 -> 0 | I24: =A2A!I65 -> 0 | J24: =A2A!J65 -> 0 | K24: =A2A!K65 -> 0
A25: ="Total "&A4 -> Total Revenue - Standard | B25: 2 | C25: =C5+C9+C15+C19+C24 -> 361560426 | D25: =D5+D9+D15+D19+D24 -> 372563145.9 | E25: =E5+E9+E15+E19+E24 -> 341185744.6 | F25: 350567330.9 | G25: 368230825 | H25: 356392310 | I25: =I5+I9+I15+I19+I24 -> 348845663 | J25: 362516141 | K25: 381229840
A27: Expenditure - Standard
A28: =A5 -> Governance and administration | C28: =SUM(C29:C31) -> 300510945.6 | D28: =SUM(D29:D31) -> 188005520.6 | E28: 200360616.5 | F28: 182547918 | G28: 190744173 | H28: 201049038 | I28: 190580288 | J28: 201816880 | K28: 213720760
A29: =A6 -> Executive and council | C29: =A2A!C75 -> 39552201.14 | D29: =A2A!D75 -> 38456469.17 | E29: =A2A!E75 -> 42486896.69 | F29: =A2A!F75 -> 41740426 | G29: =A2A!G75 -> 47556152 | H29: =A2A!H75 -> 46961020 | I29: =A2A!I75 -> 46741311 | J29: =A2A!J75 -> 49590382 | K29: =A2A!K75 -> 52614113
A30: Budget and treasury office | C30: =A2A!C78 -> 144362843.1 | D30: =A2A!D78 -> 50186684.39 | E30: =A2A!E78 -> 56377127.91 | F30: =A2A!F78 -> 43629590 | G30: =A2A!G78 -> 43863099 | H30: =A2A!H78 -> 58287629 | I30: =A2A!I78 -> 49319335 | J30: =A2A!J78 -> 52100196 | K30: =A2A!K78 -> 55038751
A31: Corporate services | C31: =A2A!C79 -> 116595901.4 | D31: =A2A!D79 -> 99362367.06 | E31: =A2A!E79 -> 101496591.9 | F31: =A2A!F79 -> 97177902 | G31: =A2A!G79 -> 99324922 | H31: =A2A!H79 -> 95800389 | I31: =A2A!I79 -> 94519642.04 | J31: =A2A!J79 -> 100126302 | K31: =A2A!K79 -> 106067896
A32: Community and public safety | C32: =SUM(C33:C37) -> 94591867.18 | D32: =SUM(D33:D37) -> 91410048.63 | E32: 65547478.44 | F32: 58612984 | G32: 62958959 | H32: 63470813 | I32: 61182705.74 | J32: 64968145 | K32: 68988817
A33: Community and social services | C33: =A2A!C85 -> 16902643.47 | D33: =A2A!D85 -> 22549237.34 | E33: =A2A!E85 -> 26196711.78 | F33: =A2A!F85 -> 27616186 | G33: =A2A!G85 -> 27378731 | H33: =A2A!H85 -> 25021005 | I33: =A2A!I85 -> 27405621.74 | J33: =A2A!J85 -> 29123267 | K33: =A2A!K85 -> 30948879
A34: Sport and recreation | C34: =A2A!C94 -> 4709940.57 | D34: =A2A!D94 -> 349091.31 | E34: =A2A!E94 -> 393159.86 | F34: =A2A!F94 -> 532000 | G34: =A2A!G94 -> 399744 | H34: =A2A!H94 -> 412286 | I34: =A2A!I94 -> 292790 | J34: =A2A!J94 -> 308601 | K34: =A2A!K94 -> 325265
A35: Public safety | C35: =A2A!C95 -> 19940702.07 | D35: =A2A!D95 -> 18209355.33 | E35: =A2A!E95 -> 19503501.66 | F35: =A2A!F95 -> 19118630 | G35: =A2A!G95 -> 21931675 | H35: =A2A!H95 -> 18917873 | I35: =A2A!I95 -> 21831948 | J35: =A2A!J95 -> 23205651 | K35: =A2A!K95 -> 24665997
A36: Housing | C36: =A2A!C101 -> 0 | D36: =A2A!D101 -> 0 | E36: =A2A!E101 -> 0 | F36: =A2A!F101 -> 0 | G36: =A2A!G101 -> 2025673 | H36: =A2A!H101 -> 0 | I36: =A2A!I101 -> 0 | J36: =A2A!J101 -> 0 | K36: =A2A!K101 -> 0
A37: Health | C37: =A2A!C102 -> 53038581.07 | D37: =A2A!D102 -> 50302364.65 | E37: =A2A!E102 -> 19454105.14 | F37: =A2A!F102 -> 11346168 | G37: =A2A!G102 -> 11223136 | H37: =A2A!H102 -> 19119649 | I37: =A2A!I102 -> 11652346 | J37: =A2A!J102 -> 12330626 | K37: =A2A!K102 -> 13048676
A38: Economic and environmental services | C38: =SUM(C39:C41) -> 80802241.61 | D38: =SUM(D39:D41) -> 88722463.24 | E38: 88398247.01 | F38: 109226652 | G38: 108136322 | H38: 86585287 | I38: 97042281 | J38: 103782978 | K38: 108436011
A39: Planning and development | C39: =A2A!C107 -> 23374121.96 | D39: =A2A!D107 -> 24369400.06 | E39: =A2A!E107 -> 21902245.7 | F39: =A2A!F107 -> 38712230 | G39: =A2A!G107 -> 36708370 | H39: =A2A!H107 -> 21676002 | I39: =A2A!I107 -> 23574732 | J39: =A2A!J107 -> 25814519 | K39: =A2A!K107 -> 25689436
A40: Road transport | C40: =A2A!C111 -> 41579154.77 | D40: =A2A!D111 -> 44690915.1 | E40: =A2A!E111 -> 48213143.77 | F40: =A2A!F111 -> 48115332 | G40: =A2A!G111 -> 48915258 | H40: =A2A!H111 -> 46904866 | I40: =A2A!I111 -> 51429399 | J40: =A2A!J111 -> 54690323 | K40: =A2A!K111 -> 58158295
A41: Environmental protection | C41: =A2A!C117 -> 15848964.88 | D41: =A2A!D117 -> 19662148.08 | E41: =A2A!E117 -> 18282857.54 | F41: =A2A!F117 -> 22399090 | G41: =A2A!G117 -> 22512694 | H41: =A2A!H117 -> 18004419 | I41: =A2A!I117 -> 22038150 | J41: =A2A!J117 -> 23278136 | K41: =A2A!K117 -> 24588280
A42: Trading services | C42: =SUM(C43:C46) -> 0 | D42: =SUM(D43:D46) -> 0 | E42: 0 | F42: =SUM(F43:F46) -> 0 | G42: 0 | H42: 0 | I42: 0 | J42: 0 | K42: =SUM(K43:K46) -> 0
A43: Electricity | C43: =A2A!C122 -> 0 | D43: =A2A!D122 -> 0 | E43: =A2A!E122 -> 0 | F43: =A2A!F122 -> 0 | G43: =A2A!G122 -> 0 | H43: =A2A!H122 -> 0 | I43: =A2A!I122 -> 0 | J43: =A2A!J122 -> 0 | K43: =A2A!K122 -> 0
A44: Water | C44: =A2A!C125 -> 0 | D44: =A2A!D125 -> 0 | E44: =A2A!E125 -> 0 | F44: =A2A!F125 -> 0 | G44: =A2A!G125 -> 0 | H44: =A2A!H125 -> 0 | I44: =A2A!I125 -> 0 | J44: =A2A!J125 -> 0 | K44: =A2A!K125 -> 0
A45: Waste water management | C45: =A2A!C128 -> 0 | D45: =A2A!D128 -> 0 | E45: =A2A!E128 -> 0 | F45: =A2A!F128 -> 0 | G45: =A2A!G128 -> 0 | H45: =A2A!H128 -> 0 | I45: =A2A!I128 -> 0 | J45: =A2A!J128 -> 0 | K45: =A2A!K128 -> 0
A46: Waste management | C46: =A2A!C132 -> 0 | D46: =A2A!D132 -> 0 | E46: =A2A!E132 -> 0 | F46: =A2A!F132 -> 0 | G46: =A2A!G132 -> 0 | H46: =A2A!H132 -> 0 | I46: =A2A!I132 -> 0 | J46: =A2A!J132 -> 0 | K46: =A2A!K132 -> 0
A47: Other | B47: 4 | C47: =A2A!C134 -> 0 | D47: =A2A!D134 -> 0 | E47: =A2A!E134 -> 0 | F47: =A2A!F134 -> 0 | G47: =A2A!G134 -> 0 | H47: =A2A!H134 -> 0 | I47: =A2A!I134 -> 0 | J47: =A2A!J134 -> 0 | K47: =A2A!K134 -> 0
A48: ="Total "&A27 -> Total Expenditure - Standard | B48: 3 | C48: =C28+C32+C38+C42+C47 -> 475905054.4 | D48: =D28+D32+D38+D42+D47 -> 368138032.5 | E48: =E28+E32+E38+E42+E47 -> 354306342 | F48: =F28+F32+F38+F42+F47 -> 350387554 | G48: 361839454 | H48: 351105138 | I48: 348805274.8 | J48: 370568003 | K48: 391145588
A49: =result -> Surplus/(Deficit) for the year | C49: =C25-C48 -> -114344628.4 | D49: =D25-D48 -> 4425113.4 | E49: -13120597.4 | F49: 179776.92 | G49: 6391371 | H49: 5287172 | I49: 40388.22 | J49: -8051862 | K49: -9915748
A50: =head27a -> References
A51: 1. Government Finance Statistics Functions and Sub-functions are standardised to assist the compilation of national and international accounts for comparison purposes
A52: 2. Total Revenue by standard classification must reconcile to Total Operating Revenue shown in Budgeted Financial Performance (revenue and expenditure)
A53: 3. Total Expenditure by Standard Classification must reconcile to Total Operating Expenditure shown in Budgeted Financial Performance (revenue and expenditure)
A54: 4. All amounts must be classified under a standard classification (modified GFS). The GFS function 'Other' is only for Abbatoirs, Air Transport, Markets and Tourism - and if used must be supported by footnotes. Nothing else may be placed under 'Other'. Assign associate share to relevant classification
A57: check oprev balance | C57: =C25-'A4-FinPerf RE'!C60 -> 0 | D57: =D25-'A4-FinPerf RE'!D60 -> 0 | E57: =E25-'A4-FinPerf RE'!E60 -> 0.2400000095 | F57: =F25-'A4-FinPerf RE'!F60 -> 0 | G57: =G25-'A4-FinPerf RE'!G60 -> 0.07999998331 | H57: =H25-'A4-FinPerf RE'!H60 -> 0 | I57: =I25-'A4-FinPerf RE'!J60 -> 0 | J57: =J25-'A4-FinPerf RE'!K60 -> 0 | K57: =K25-'A4-FinPerf RE'!L60 -> 0
A58: check opexp balance | C58: =C48-'A4-FinPerf RE'!C36 -> 0 | D58: =D48-'A4-FinPerf RE'!D36 -> 0.0300001502 | E58: =E48-'A4-FinPerf RE'!E36 -> -1.01000005 | F58: =F48-'A4-FinPerf RE'!F36 -> 0 | G58: =G48-'A4-FinPerf RE'!G36 -> 0 | H58: =H48-'A4-FinPerf RE'!H36 -> 0 | I58: =I48-'A4-FinPerf RE'!J36 -> 0 | J58: =J48-'A4-FinPerf RE'!K36 -> 818000 | K58: =K48-'A4-FinPerf RE'!L36 -> 0

Sheet A2A
A1: =muni&" - "&Approve3 -> DC42 Sedibeng - Table A2 Budgeted Financial Performance (revenue and expenditure by standard classification)
A2: ="Standard Classification "&desc -> Standard Classification Description | B2: =head27 -> Ref | C2: =head1b -> 2010/11 | D2: =head1A -> 2011/12 | E2: =Head1 -> 2012/13 | F2: =Head2 -> Current Year 2013/14 | I2: =Head3 -> 2014/15 Medium Term Revenue & Expenditure Framework
A3: R thousand | B3: 1 | C3: =Head5 -> Audited Outcome | D3: =Head5 -> Audited Outcome | E3: =Head5 -> Audited Outcome | F3: =Head6 -> Original Budget | G3: =Head7 -> Adjusted Budget | H3: =Head8 -> Full Year Forecast | I3: =Head9 -> Budget Year 2014/15 | J3: =Head10 -> Budget Year +1 2015/16 | K3: =Head11 -> Budget Year +2 2016/17
A4: Revenue - Standard
A5: Municipal governance and administration | C5: =C6+C9+C10 -> 277669776.5 | D5: =D6+D9+D10 -> 250082051.4 | E5: 247895629.6 | F5: 259746489 | G5: 278335641 | H5: 264404559 | I5: 270523482 | J5: 280008738 | K5: 295129211
A6: Executive and council | C6: =SUM(C7:C8) -> 9958.71 | D6: =SUM(D7:D8) -> 22641.32 | E6: 13239.44 | F6: 24970 | G6: 29010 | H6: 24947 | I6: 26219 | J6: 27636 | K6: 29129
A7: Mayor and Council | C7: 8381.92 | D7: 21617.7 | E7: 12653.17 | F7: 23968 | G7: 29010 | H7: 23945 | I7: 25167 | J7: 26527 | K7: 27960
A8: Municipal Manager | C8: 1576.79 | D8: 1023.62 | E8: 586.27 | F8: 1002 | G8: 0 | H8: 1002 | I8: 1052 | J8: 1109 | K8: 1169
A9: Budget and treasury office | C9: 263037381 | D9: 234101181.3 | E9: 231078510.6 | F9: 238418376 | G9: 257809767 | H9: 246261125 | I9: 250267952 | J9: 258659410 | K9: 272627019
A10: Corporate services | C10: =SUM(C11:C14) -> 14622436.76 | D10: =SUM(D11:D14) -> 15958228.75 | E10: 16803879.53 | F10: 21303143 | G10: 20496864 | H10: 18118487 | I10: 20229311 | J10: 21321692 | K10: 22473063
A11: Human Resources | C11: 144349.17 | D11: 20419.21 | E11: 351734.15 | F11: 2214645 | G11: 2205266 | H11: 1037471 | I11: 930009 | J11: 980229 | K11: 1033161
A12: Information Technology | C12: 6499591.31 | D12: 6969429.88 | E12: 7250475.32 | F12: 7314683 | G12: 6478378 | H12: 6957177 | I12: 6747772 | J12: 7112152 | K12: 7496209
A13: Property Services | C13: 7968877.88 | D13: 8957765.95 | E13: 9193252.86 | F13: 11752138 | G13: 11797172 | H13: 10106423 | I13: 12528769 | J13: 13205322 | K13: 13918409
A14: Other Admin | C14: 9618.4 | D14: 10613.71 | E14: 8417.2 | F14: 21677 | G14: 16048 | H14: 17416 | I14: 22761 | J14: 23989 | K14: 25284
A15: Community and public safety | C15: =C16+C25+C26+C32+C33 -> 34536119.07 | D15: =D16+D25+D26+D32+D33 -> 37047047.15 | E15: 26176120.38 | F15: 6655989 | G15: 6639422 | H15: 24601917 | I15: 6980229 | J15: 7357161 | K15: 7754449
A16: Community and social services | C16: =SUM(C17:C24) -> 113987.89 | D16: =SUM(D17:D24) -> 145801.64 | E16: 202799.72 | F16: 252942 | G16: 221111 | H16: 232851 | I16: 255142 | J16: 268920 | K16: 283443
A17: Libraries and Archives | C17: 0 | D17: 0 | E17: 0 | F17: 0 | G17: 0 | H17: 0 | I17: 0 | J17: 0 | K17: 0
A18: Museums & Art Galleries etc | C18: 106058.41 | D18: 131448.24 | E18: 188382.33 | F18: 226848 | G18: 194529 | H18: 204293 | I18: 228425 | J18: 240761 | K18: 253763
A19: Community halls and Facilities | C19: 1251.46 | D19: 415 | E19: 646 | F19: 1292 | G19: 2856 | H19: 1292 | I19: 1357 | J19: 1430 | K19: 1507
A20: Cemeteries & Crematoriums | C20: 0 | D20: 0 | E20: 0 | F20: 0 | G20: 0 | H20: 0 | I20: 0 | J20: 0 | K20: 0
A21: Child Care | C21: 0 | D21: 0 | E21: 0 | F21: 0 | G21: 0 | H21: 0 | I21: 0 | J21: 0 | K21: 0
A22: Aged Care | C22: 0 | D22: 0 | E22: 0 | F22: 0 | G22: 0 | H22: 0 | I22: 0 | J22: 0 | K22: 0
A23: Other Community | C23: 715.21 | D23: 3922.8 | E23: 3230.58 | F23: 3859 | G23: 3368 | H23: 6323 | I23: 3370 | J23: 3552 | K23: 3744
A24: Other Social | C24: 5962.81 | D24: 10015.6 | E24: 10540.81 | F24: 20943 | G24: 20358 | H24: 20943 | I24: 21990 | J24: 23177 | K24: 24429
A25: Sport and recreation | C25: 1077.31 | D25: 908.39 | E25: 579.35 | F25: 1124 | G25: 490 | H25: 1124 | I25: 1180 | J25: 1244 | K25: 1311
A26: Public safety | C26: =SUM(C27:C31) -> 1953.36 | D26: =SUM(D27:D31) -> 3769.13 | E26: 13847.47 | F26: 27691 | G26: 41625 | H26: 27691 | I26: 29075 | J26: 30644 | K26: 32298
A27: Police | C27: 0 | D27: 0 | E27: 0 | F27: 0 | G27: 0 | H27: 0 | I27: 0 | J27: 0 | K27: 0
A28: Fire | C28: 934.43 | D28: 2095.01 | E28: 11532.24 | F28: 23065 | G28: 28775 | H28: 23065 | I28: 24218 | J28: 25525 | K28: 26903
A29: Civil Defence | C29: 0 | D29: 0 | E29: 0 | F29: 0 | G29: 0 | H29: 0 | I29: 0 | J29: 0 | K29: 0
A30: Street Lighting | C30: 0 | D30: 0 | E30: 0 | F30: 0 | G30: 0 | H30: 0 | I30: 0 | J30: 0 | K30: 0
A31: Other | C31: 1018.93 | D31: 1674.12 | E31: 2315.23 | F31: 4626 | G31: 12850 | H31: 4626 | I31: 4857 | J31: 5119 | K31: 5395
A32: Housing | C32: 0 | D32: 0 | E32: 0 | F32: 0 | G32: 500 | H32: 0 | I32: 0 | J32: 0 | K32: 0
A33: Health | C33: =SUM(C34:C36) -> 34419100.51 | D33: =SUM(D34:D36) -> 36896567.99 | E33: 25958893.84 | F33: 6374232 | G33: 6375696 | H33: 24340251 | I33: 6694832 | J33: 7056353 | K33: 7437397
A34: Clinics | C34: 228 | D34: 472.07 | E34: 205.71 | F34: 411 | G34: 254 | H34: 411 | I34: 432 | J34: 455 | K34: 480
A35: Ambulance | C35: 34417694.18 | D35: 35336063.73 | E35: 18266240.05 | F35: 0 | G35: 0 | H35: 18269019 | I35: 0 | J35: 0 | K35: 0
A36: Other | C36: 1178.33 | D36: 1560032.19 | E36: 7692448.08 | F36: 6373821 | G36: 6375442 | H36: 6070821 | I36: 6694400 | J36: 7055898 | K36: 7436917
A37: Economic and environmental services | C37: =C38+C42+C48 -> 49354530.38 | D37: =D38+D42+D48 -> 85434047.33 | E37: 67113994.63 | F37: 84164852.92 | G37: 83255762 | H37: 67385834 | I37: 71341952 | J37: 75150242 | K37: 78346180
A38: Planning and development | C38: =SUM(C39:C41) -> 30170.21 | D38: =SUM(D39:D41) -> 25100965.92 | E38: 4945937.36 | F38: 18284473 | G38: 18266464 | H38: 5171631 | I38: 2208991 | J38: 2284104 | K38: 1545272
A39: Economic Development/Planning | C39: 27763.63 | D39: 25100193.89 | E39: 4945091.02 | F39: 18282780 | G39: 18265570 | H39: 5169938 | I39: 2206913 | J39: 2281914 | K39: 1542964
A40: Town Planning/Building enforcement | C40: 2406.58 | D40: 772.03 | E40: 846.34 | F40: 1693 | G40: 894 | H40: 1693 | I40: 2078 | J40: 2190 | K40: 2308
A41: Licensing & Regulation | C41: 0 | D41: 0 | E41: 0 | F41: 0 | G41: 0 | H41: 0 | I41: 0 | J41: 0 | K41: 0
A42: Road transport | C42: =SUM(C43:C47) -> 49323430.27 | D42: =SUM(D43:D47) -> 60331677.66 | E42: 62167524.39 | F42: 64979313.92 | G42: 64987354 | H42: 62213137 | I42: 68231539 | J42: 71916039 | K42: 75799504
A43: Roads | C43: 0 | D43: 0 | E43: 0 | F43: 0 | G43: 0 | H43: 0 | I43: 0 | J43: 0 | K43: 0
A44: Public Buses | C44: 404 | D44: 2003.86 | E44: 2391.37 | F44: 4589 | G44: 4862 | H44: 4589 | I44: 4818 | J44: 5078 | K44: 5352
A45: Parking Garages | C45: 0 | D45: 0 | E45: 0 | F45: 0 | G45: 0 | H45: 0 | I45: 0 | J45: 0 | K45: 0
A46: Vehicle Licensing and Testing | C46: 49319802.03 | D46: 59610674.75 | E46: 62156431.61 | F46: 64963744.92 | G46: 64963096 | H46: 62191907 | I46: 68211932 | J46: 71895374 | K46: 75777723
A47: Other | C47: 3224.24 | D47: 718999.05 | E47: 8701.41 | F47: 10980 | G47: 19396 | H47: 16641 | I47: 14789 | J47: 15587 | K47: 16429
A48: Environmental protection | C48: =SUM(C49:C51) -> 929.9 | D48: =SUM(D49:D51) -> 1403.75 | E48: 532.88 | F48: 901066 | G48: 1944 | H48: 1066 | I48: 901422 | J48: 950099 | K48: 1001404
A49: Pollution Control | C49: 0 | D49: 0 | E49: 0 | F49: 0 | G49: 0 | H49: 0 | I49: 0 | J49: 0 | K49: 0
A50: Biodiversity & Landscape | C50: 0 | D50: 0 | E50: 0 | F50: 0 | G50: 0 | H50: 0 | I50: 0 | J50: 0 | K50: 0
A51: Other | C51: 929.9 | D51: 1403.75 | E51: 532.88 | F51: 901066 | G51: 1944 | H51: 1066 | I51: 901422 | J51: 950099 | K51: 1001404
A52: Trading services | C52: =C53+C56+C59+C63 -> 0 | D52: =D53+D56+D59+D63 -> 0 | E52: 0 | F52: 0 | G52: 0 | H52: 0 | I52: 0 | J52: 0 | K52: =K53+K56+K59+K63 -> 0
A53: Electricity | C53: =SUM(C54:C55) -> 0 | D53: =SUM(D54:D55) -> 0 | E53: 0 | F53: 0 | G53: 0 | H53: 0 | I53: 0 | J53: 0 | K53: 0
A54: Electricity Distribution
A55: Electricity Generation
A56: Water | C56: =SUM(C57:C58) -> 0 | D56: =SUM(D57:D58) -> 0 | E56: 0 | F56: 0 | G56: 0 | H56: 0 | I56: 0 | J56: 0 | K56: 0
A57: Water Distribution
A58: Water Storage
A59: Waste water management | C59: =SUM(C60:C62) -> 0 | D59: =SUM(D60:D62) -> 0 | E59: 0 | F59: 0 | G59: 0 | H59: 0 | I59: 0 | J59: 0 | K59: 0
A60: Sewerage
A61: Storm Water Management
A62: Public Toilets
A63: Waste management | C63: =SUM(C64) -> 0 | D63: =SUM(D64) -> 0 | E63: 0 | F63: 0 | G63: 0 | H63: 0 | I63: 0 | J63: 0 | K63: 0
A64: Solid Waste
A65: Other | C65: =SUM(C66:C70) -> 0 | D65: =SUM(D66:D70) -> 0 | E65: 0 | F65: 0 | G65: 0 | H65: 0 | I65: 0 | J65: 0 | K65: 0
A66: Air Transport
A67: Abattoirs
A68: Tourism
A69: Forestry
A70: Markets
A71: ="Total "&A4 -> Total Revenue - Standard | B71: 2 | C71: =C5+C15+C37+C52+C65 -> 361560426 | D71: =D5+D15+D37+D52+D65 -> 372563145.9 | E71: =E5+E15+E37+E52+E65 -> 341185744.6 | F71: 350567330.9 | G71: 368230825 | H71: 356392310 | I71: 348845663 | J71: 362516141 | K71: =K5+K15+K37+K52+K65 -> 381229840
A73: Expenditure - Standard
A74: =A5 -> Municipal governance and administration | C74: =C75+C78+C79 -> 300510945.6 | D74: 188005520.6 | E74: 200360616.5 | F74: 182547918 | G74: 190744173 | H74: 201049038 | I74: 190580288 | J74: 201816880 | K74: 213720760
A75: =A6 -> Executive and council | C75: =SUM(C76:C77) -> 39552201.14 | D75: 38456469.17 | E75: 42486896.69 | F75: 41740426 | G75: 47556152 | H75: 46961020 | I75: 46741311 | J75: 49590382 | K75: 52614113
A76: Mayor and Council | C76: 29423872.36 | D76: 28128102.29 | E76: 28429896.62 | F76: 28525640 | G76: 31341699 | H76: 28239479 | I76: 30486379 | J76: 32382817 | K76: 34397678
A77: Municipal Manager | C77: 10128328.78 | D77: 10328366.88 | E77: 14057000.07 | F77: 13214786 | G77: 16214453 | H77: 18721541 | I77: 16254932 | J77: 17207565 | K77: 18216435
A78: Budget and treasury office | C78: 144362843.1 | D78: 50186684.39 | E78: 56377127.91 | F78: 43629590 | G78: 43863099 | H78: 58287629 | I78: 49319335 | J78: 52100196 | K78: 55038751
A79: Corporate services | C79: =SUM(C80:C83) -> 116595901.4 | D79: 99362367.06 | E79: 101496591.9 | F79: 97177902 | G79: 99324922 | H79: 95800389 | I79: 94519642.04 | J79: 100126302 | K79: 106067896
A80: Human Resources | C80: 9952450 | D80: 7830922.41 | E80: 7871136.01 | F80: 9893117 | G80: 8776040 | H80: 8270337 | I80: 7555787 | J80: 8025050 | K80: 8523575
A81: Information Technology | C81: 18509692.16 | D81: 19933466.87 | E81: 20508547.04 | F81: 20967179 | G81: 21065699 | H81: 20309718 | I81: 21508784.04 | J81: 22814018 | K81: 24198934
A82: Property Services | C82: 70668582.82 | D82: 56791134.97 | E82: 57378044.85 | F82: 51134867 | G82: 51209127 | H82: 52846308 | I82: 48184181 | J82: 50976617 | K82: 53932046
A83: Other Admin | C83: 17465176.42 | D83: 14806842.81 | E83: 15738864.04 | F83: 15182739 | G83: 18274056 | H83: 14374026 | I83: 17270890 | J83: 18310617 | K83: 19413341
A84: Community and public safety | C84: =C85+C94+C95+C101+C102 -> 94591867.18 | D84: 91410048.63 | E84: 65547478.44 | F84: 58612984 | G84: 62958959 | H84: 63470813 | I84: 61182705.74 | J84: 64968145 | K84: 68988817
A85: Community and social services | C85: =SUM(C86:C93) -> 16902643.47 | D85: 22549237.34 | E85: 26196711.78 | F85: 27616186 | G85: 27378731 | H85: 25021005 | I85: 27405621.74 | J85: 29123267 | K85: 30948879
A86: Libraries and Archives | C86: 0 | D86: 0 | E86: 0 | F86: 0 | G86: 0 | H86: 0 | I86: 0 | J86: 0 | K86: 0
A87: Museums & Art Galleries etc | C87: 8757738.97 | D87: 13274482.01 | E87: 16322824.18 | F87: 17446964 | G87: 16989571 | H87: 15670207 | I87: 16874740 | J87: 17921849 | K87: 19034197
A88: Community halls and Facilities | C88: 1792002.08 | D88: 1829430.56 | E88: 1846084.98 | F88: 1908741 | G88: 1970739 | H88: 1653524 | I88: 1715647 | J88: 1825013 | K88: 1941356
A89: Cemeteries & Crematoriums | C89: 0 | D89: 0 | E89: 0 | F89: 0 | G89: 0 | H89: 0 | I89: 0 | J89: 0 | K89: 0
A90: Child Care | C90: 0 | D90: 0 | E90: 0 | F90: 0 | G90: 0 | H90: 0 | I90: 0 | J90: 0 | K90: 0
A91: Aged Care | C91: 0 | D91: 0 | E91: 0 | F91: 0 | G91: 0 | H91: 0 | I91: 0 | J91: 0 | K91: 0
A92: Other Community | C92: 2547608.95 | D92: 3245033.31 | E92: 3040600.44 | F92: 3282607 | G92: 3272308 | H92: 2953468 | I92: 3448780 | J92: 3667238 | K92: 3899554
A93: Other Social | C93: 3805293.47 | D93: 4200291.46 | E93: 4987202.18 | F93: 4977874 | G93: 5146113 | H93: 4743806 | I93: 5366454.74 | J93: 5709167 | K93: 6073772
A94: Sport and recreation | C94: 4709940.57 | D94: 349091.31 | E94: 393159.86 | F94: 532000 | G94: 399744 | H94: 412286 | I94: 292790 | J94: 308601 | K94: 325265
A95: Public safety | C95: =SUM(C96:C100) -> 19940702.07 | D95: 18209355.33 | E95: 19503501.66 | F95: 19118630 | G95: 21931675 | H95: 18917873 | I95: 21831948 | J95: 23205651 | K95: 24665997
A96: Police | C96: 0 | D96: 0 | E96: 0 | F96: 0 | G96: 0 | H96: 0 | I96: 0 | J96: 0 | K96: 0
A97: Fire | C97: 9030000.69 | D97: 8281595.69 | E97: 8708763.81 | F97: 8684193 | G97: 9344049 | H97: 8319348 | I97: 9522891 | J97: 10128258 | K97: 10772143
A98: Civil Defence | C98: 0 | D98: 0 | E98: 0 | F98: 0 | G98: 0 | H98: 0 | I98: 0 | J98: 0 | K98: 0
A99: Street Lighting | C99: 0 | D99: 0 | E99: 0 | F99: 0 | G99: 0 | H99: 0 | I99: 0 | J99: 0 | K99: 0
A100: Other | C100: 10910701.38 | D100: 9927759.64 | E100: 10794737.85 | F100: 10434437 | G100: 12587626 | H100: 10598525 | I100: 12309057 | J100: 13077393 | K100: 13893854
A101: Housing | C101: 0 | D101: 0 | E101: 0 | F101: 0 | G101: 2025673 | H101: 0 | I101: 0 | J101: 0 | K101: 0
A102: Health | C102: =SUM(C103:C105) -> 53038581.07 | D102: 50302364.65 | E102: 19454105.14 | F102: 11346168 | G102: 11223136 | H102: 19119649 | I102: 11652346 | J102: 12330626 | K102: 13048676
A103: Clinics | C103: 1427133.32 | D103: 1372255.73 | E103: 1475712.06 | F103: 1553528 | G103: 1553583 | H103: 1465230 | I103: 1600740 | J103: 1703026 | K103: 1811850
A104: Ambulance | C104: 49802650.49 | D104: 45589018.05 | E104: 9976211.31 | F104: 1498075 | G104: 1348930 | H104: 9723767 | I104: 1279560 | J104: 1361373 | K104: 1448419
A105: Other | C105: 1808797.26 | D105: 3341090.87 | E105: 8002181.77 | F105: 8294565 | G105: 8320623 | H105: 7930652 | I105: 8772046 | J105: 9266227 | K105: 9788407
A106: Economic and environmental services | C106: =C107+C111+C117 -> 80802241.61 | D106: 88722463.24 | E106: 88398247.01 | F106: 109226652 | G106: 108136322 | H106: 86585287 | I106: 97042281 | J106: 103782978 | K106: 108436011
A107: Planning and development | C107: =SUM(C108:C110) -> 23374121.96 | D107: 24369400.06 | E107: 21902245.7 | F107: 38712230 | G107: 36708370 | H107: 21676002 | I107: 23574732 | J107: 25814519 | K107: 25689436
A108: Economic Development/Planning | C108: 21226009.9 | D108: 22632080.93 | E108: 19953144.94 | F108: 36638654 | G108: 34843435 | H108: 19796928 | I108: =20790867+818000 -> 21608867 | J108: =22087127+818000 -> 22905127 | K108: 23464496
A109: Town Planning/Building enforcement | C109: 2148112.06 | D109: 1737319.13 | E109: 1949100.76 | F109: 2073576 | G109: 1864935 | H109: 1879074 | I109: 1965865 | J109: =2091392+818000 -> 2909392 | K109: 2224940
A110: Licensing & Regulation | C110: 0 | D110: 0 | E110: 0 | F110: 0 | G110: 0 | H110: 0 | I110: 0 | J110: 0 | K110: 0
A111: Road transport | C111: =SUM(C112:C116) -> 41579154.77 | D111: 44690915.1 | E111: 48213143.77 | F111: 48115332 | G111: 48915258 | H111: 46904866 | I111: 51429399 | J111: 54690323 | K111: 58158295
A112: Roads | C112: 0 | D112: 0 | E112: 0 | F112: 0 | G112: 0 | H112: 0 | I112: 0 | J112: 0 | K112: 0
A113: Public Buses | C113: 643548.51 | D113: 645040.47 | E113: 662295.99 | F113: 693911 | G113: 694390 | H113: 657850 | I113: 727346 | J113: 773792 | K113: 823206
A114: Parking Garages | C114: 0 | D114: 0 | E114: 0 | F114: 0 | G114: 0 | H114: 0 | I114: 0 | J114: 0 | K114: 0
A115: Vehicle Licensing and Testing | C115: 34793327.44 | D115: 38518282.71 | E115: 41775499.51 | F115: 42055071 | G115: 42946571 | H115: 40623940 | I115: 45145591 | J115: 48005727 | K115: 51047334
A116: Other | C116: 6142278.82 | D116: 5527591.92 | E116: 5775348.27 | F116: 5366350 | G116: 5274297 | H116: 5623076 | I116: 5556462 | J116: 5910804 | K116: 6287755
A117: Environmental protection | C117: =SUM(C118:C120) -> 15848964.88 | D117: 19662148.08 | E117: 18282857.54 | F117: 22399090 | G117: 22512694 | H117: 18004419 | I117: 22038150 | J117: 23278136 | K117: 24588280
A118: Pollution Control | C118: 0 | D118: 0 | E118: 0 | F118: 0 | G118: 0 | H118: 0 | I118: 0 | J118: 0 | K118: 0
A119: Biodiversity & Landscape | C119: 0 | D119: 0 | E119: 0 | F119: 0 | G119: 0 | H119: 0 | I119: 0 | J119: 0 | K119: 0
A120: Other | C120: 15848964.88 | D120: 19662148.08 | E120: 18282857.54 | F120: 22399090 | G120: 22512694 | H120: 18004419 | I120: 22038150 | J120: 23278136 | K120: 24588280
A121: Trading services | C121: =C122+C125+C128+C132 -> 0 | D121: =D122+D125+D128+D132 -> 0 | E121: 0 | F121: 0 | G121: 0 | H121: 0 | I121: 0 | J121: 0 | K121: 0
A122: Electricity | C122: =SUM(C123:C124) -> 0 | D122: 0 | E122: 0 | F122: 0 | G122: 0 | H122: 0 | I122: 0 | J122: 0 | K122: 0
A123: Electricity Distribution
A124: Electricity Generation
A125: Water | C125: =SUM(C126:C127) -> 0 | D125: 0 | E125: 0 | F125: 0 | G125: 0 | H125: 0 | I125: 0 | J125: 0 | K125: 0
A126: Water Distribution
A127: Water Storage
A128: Waste water management | C128: =SUM(C129:C131) -> 0 | D128: 0 | E128: 0 | F128: 0 | G128: 0 | H128: 0 | I128: 0 | J128: 0 | K128: 0
A129: Sewerage
A130: Storm Water Management
A131: Public Toilets
A132: Waste management | C132: =SUM(C133) -> 0 | D132: 0 | E132: 0 | F132: 0 | G132: 0 | H132: 0 | I132: 0 | J132: 0 | K132: 0
A133: Solid Waste
A134: Other | C134: =SUM(C135:C139) -> 0 | D134: 0 | E134: 0 | F134: 0 | G134: 0 | H134: 0 | I134: 0 | J134: 0 | K134: 0
A135: Air Transport
A136: Abattoirs
A137: Tourism
A138: Forestry
A139: =A70 -> Markets
A140: ="Total "&A73 -> Total Expenditure - Standard | B140: 3 | C140: =C74+C84+C106+C121+C134 -> 475905054.4 | D140: =D74+D84+D106+D121+D134 -> 368138032.5 | E140: =E74+E84+E106+E121+E134 -> 354306342 | F140: 350387554 | G140: 361839454 | H140: 351105138 | I140: 348805274.8 | J140: 370568003 | K140: =K74+K84+K106+K121+K134 -> 391145588
A141: =result -> Surplus/(Deficit) for the year | C141: =C71-C140 -> -114344628.4 | D141: 4425113.4 | E141: -13120597.4 | F141: 179776.92 | G141: 6391371 | H141: 5287172 | I141: 40388.22 | J141: -8051862 | K141: -9915748
A142: =head27a -> References
A143: 1. Government Finance Statistics Functions and Sub-functions are standardised to assist national and international accounts and comparison
A144: 2. Total Revenue by Standard Classification must reconcile to total operating revenue shown in Financial Performance (revenue and expenditure)
A145: 3. Total Expenditure by Standard Classification must reconcile to total operating expenditure shown in Financial Performance (revenue and expenditure)
A146: 4. All amounts must be classified under a Standard (modified GFS) classification. The GFS function 'Other' is only for Abbatoirs, Air Transport, Markets and Tourism - and if used must be supported by footnotes. Nothing else may be placed under 'Other'. Assign associate share to relevant classification
A149: check oprev balance | C149: =C71-'A4-FinPerf RE'!C60 -> 0 | D149: =D71-'A4-FinPerf RE'!D60 -> 0 | E149: =E71-'A4-FinPerf RE'!E60 -> 0.2400000095 | F149: =F71-'A4-FinPerf RE'!F60 -> 0 | G149: =G71-'A4-FinPerf RE'!G60 -> 0.07999998331 | H149: =H71-'A4-FinPerf RE'!H60 -> 0 | I149: =I71-'A4-FinPerf RE'!J60 -> 0 | J149: =J71-'A4-FinPerf RE'!K60 -> 0 | K149: =K71-'A4-FinPerf RE'!L60 -> 0
A150: check opexp balance | C150: =C140-'A4-FinPerf RE'!C36 -> 0 | D150: =D140-'A4-FinPerf RE'!D36 -> 0.0300001502 | E150: =E140-'A4-FinPerf RE'!E36 -> -1.01000005 | F150: =F140-'A4-FinPerf RE'!F36 -> 0 | G150: =G140-'A4-FinPerf RE'!G36 -> 0 | H150: =H140-'A4-FinPerf RE'!H36 -> 0 | I150: =I140-'A4-FinPerf RE'!J36 -> 0 | J150: =J140-'A4-FinPerf RE'!K36 -> 818000 | K150: =K140-'A4-FinPerf RE'!L36 -> 0

Sheet A3-FinPerf V
A1: =muni&" - "&Approve2 -> DC42 Sedibeng - Table A3 Budgeted Financial Performance (revenue and expenditure by municipal vote)
A2: =Vdesc -> Vote Description | B2: =head27 -> Ref | C2: =head1b -> 2010/11 | D2: =head1A -> 2011/12 | E2: =Head1 -> 2012/13 | F2: =Head2 -> Current Year 2013/14 | I2: =Head3 -> 2014/15 Medium Term Revenue & Expenditure Framework | L2: =Head4 -> LTFS
A3: R thousand | C3: =Head5 -> Audited Outcome | D3: =Head5 -> Audited Outcome | E3: =Head5 -> Audited Outcome | F3: =Head6 -> Original Budget | G3: =Head7 -> Adjusted Budget | H3: =Head8 -> Full Year Forecast | I3: =Head9 -> Budget Year 2014/15 | J3: =Head10 -> Budget Year +1 2015/16 | K3: =Head11 -> Budget Year +2 2016/17 | L3: =Head12 -> Forecast 2017/18 | M3: =Head13 -> Forecast 2018/19 | N3: =Head14 -> Forecast 2019/20 | O3: =Head15 -> Forecast 2020/21 | P3: =Head16 -> Forecast 2021/22 | Q3: =Head17 -> Forecast 2022/23 | R3: =Head18 -> Forecast 2023/24 | S3: =Head19 -> Forecast 2024/25 | T3: =Head20 -> Forecast 2025/26 | U3: =Head21 -> Forecast 2026/27 | V3: =Head22 -> Forecast 2027/28 | W3: =Head23 -> Forecast 2028/29
A4: Revenue by Vote | B4: 1
A5: =A3A!A5 -> Vote 1 - Executive and Council | C5: =A3A!C5 -> 8381.92 | D5: =A3A!D5 -> 21617.7 | E5: =A3A!E5 -> 12653.17 | F5: =A3A!F5 -> 23968 | G5: =A3A!G5 -> 29010 | H5: =A3A!H5 -> 23945 | I5: =A3A!I5 -> 25167 | J5: =A3A!J5 -> 26527 | K5: =A3A!K5 -> 27960
A6: =A3A!A16 -> Vote 2 - Finance & Administration | C6: =A3A!C16 -> 277661394.6 | D6: =A3A!D16 -> 250060433.7 | E6: =A3A!E16 -> 247882976.4 | F6: =A3A!F16 -> 259722521 | G6: =A3A!G16 -> 278306631 | H6: =A3A!H16 -> 264380614 | I6: =A3A!I16 -> 270498315 | J6: =A3A!J16 -> 279982211 | K6: =A3A!K16 -> 295101251
A7: =A3A!A27 -> Vote 3 - Transport, Infrastructure & Environment | C7: =A3A!C27 -> 49324360.17 | D7: =A3A!D27 -> 60333081.41 | E7: =A3A!E27 -> 62168057.27 | F7: =A3A!F27 -> 65880379.92 | G7: =A3A!G27 -> 64989298 | H7: =A3A!H27 -> 62214203 | I7: =A3A!I27 -> 69132961 | J7: =A3A!J27 -> 72866138 | K7: =A3A!K27 -> 76800908
A8: =A3A!A38 -> Vote 4 - Community & Social Services | C8: =A3A!C38 -> 34536119.07 | D8: =A3A!D38 -> 37047047.15 | E8: =A3A!E38 -> 26176120.38 | F8: =A3A!F38 -> 6655989 | G8: =A3A!G38 -> 6638922 | H8: =A3A!H38 -> 24601917 | I8: =A3A!I38 -> 6980229 | J8: =A3A!J38 -> 7357161 | K8: =A3A!K38 -> 7754449
A9: =A3A!A49 -> Vote 5 - Planning & Development | C9: =A3A!C49 -> 30170.21 | D9: =A3A!D49 -> 25100965.92 | E9: =A3A!E49 -> 4945937.36 | F9: =A3A!F49 -> 18284473 | G9: =A3A!G49 -> 18266964 | H9: =A3A!H49 -> 5171631 | I9: =A3A!I49 -> 2208991 | J9: =A3A!J49 -> 2284104 | K9: =A3A!K49 -> 1545272
A10: =A3A!A60 -> Vote 6 - | C10: =A3A!C60 -> 0 | D10: =A3A!D60 -> 0 | E10: =A3A!E60 -> 0 | F10: =A3A!F60 -> 0 | G10: =A3A!G60 -> 0 | H10: =A3A!H60 -> 0 | I10: =A3A!I60 -> 0 | J10: =A3A!J60 -> 0 | K10: =A3A!K60 -> 0
A11: =A3A!A71 -> Vote 7 - | C11: =A3A!C71 -> 0 | D11: =A3A!D71 -> 0 | E11: =A3A!E71 -> 0 | F11: =A3A!F71 -> 0 | G11: =A3A!G71 -> 0 | H11: =A3A!H71 -> 0 | I11: =A3A!I71 -> 0 | J11: =A3A!J71 -> 0 | K11: =A3A!K71 -> 0
A12: =A3A!A82 -> Vote 8 - | C12: =A3A!C82 -> 0 | D12: =A3A!D82 -> 0 | E12: =A3A!E82 -> 0 | F12: =A3A!F82 -> 0 | G12: =A3A!G82 -> 0 | H12: =A3A!H82 -> 0 | I12: =A3A!I82 -> 0 | J12: =A3A!J82 -> 0 | K12: =A3A!K82 -> 0
A13: =A3A!A93 -> Vote 9 - | C13: =A3A!C93 -> 0 | D13: =A3A!D93 -> 0 | E13: =A3A!E93 -> 0 | F13: =A3A!F93 -> 0 | G13: =A3A!G93 -> 0 | H13: =A3A!H93 -> 0 | I13: =A3A!I93 -> 0 | J13: =A3A!J93 -> 0 | K13: =A3A!K93 -> 0
A14: =A3A!A104 -> Vote 10 - | C14: =A3A!C104 -> 0 | D14: =A3A!D104 -> 0 | E14: =A3A!E104 -> 0 | F14: =A3A!F104 -> 0 | G14: =A3A!G104 -> 0 | H14: =A3A!H104 -> 0 | I14: =A3A!I104 -> 0 | J14: =A3A!J104 -> 0 | K14: =A3A!K104 -> 0
A15: =A3A!A115 -> Vote 11 - | C15: =A3A!C115 -> 0 | D15: =A3A!D115 -> 0 | E15: =A3A!E115 -> 0 | F15: =A3A!F115 -> 0 | G15: =A3A!G115 -> 0 | H15: =A3A!H115 -> 0 | I15: =A3A!I115 -> 0 | J15: =A3A!J115 -> 0 | K15: =A3A!K115 -> 0 | L15: =A5A!L115 -> 0
A16: =A3A!A126 -> Vote 12 - | C16: =A3A!C126 -> 0 | D16: =A3A!D126 -> 0 | E16: =A3A!E126 -> 0 | F16: =A3A!F126 -> 0 | G16: =A3A!G126 -> 0 | H16: =A3A!H126 -> 0 | I16: =A3A!I126 -> 0 | J16: =A3A!J126 -> 0 | K16: =A3A!K126 -> 0 | L16: =A5A!L126 -> 0
A17: =A3A!A137 -> Vote 13 - | C17: =A3A!C137 -> 0 | D17: =A3A!D137 -> 0 | E17: =A3A!E137 -> 0 | F17: =A3A!F137 -> 0 | G17: =A3A!G137 -> 0 | H17: =A3A!H137 -> 0 | I17: =A3A!I137 -> 0 | J17: =A3A!J137 -> 0 | K17: =A3A!K137 -> 0 | L17: =A5A!L137 -> 0
A18: =A3A!A148 -> Vote 14 - | C18: =A3A!C148 -> 0 | D18: =A3A!D148 -> 0 | E18: =A3A!E148 -> 0 | F18: =A3A!F148 -> 0 | G18: =A3A!G148 -> 0 | H18: =A3A!H148 -> 0 | I18: =A3A!I148 -> 0 | J18: =A3A!J148 -> 0 | K18: =A3A!K148 -> 0 | L18: =A5A!L148 -> 0
A19: =A3A!A159 -> Vote 15 - | C19: =A3A!C159 -> 0 | D19: =A3A!D159 -> 0 | E19: =A3A!E159 -> 0 | F19: =A3A!F159 -> 0 | G19: =A3A!G159 -> 0 | H19: =A3A!H159 -> 0 | I19: =A3A!I159 -> 0 | J19: =A3A!J159 -> 0 | K19: =A3A!K159 -> 0 | L19: =A5A!L159 -> 0
A20: Total Revenue by Vote | B20: 2 | C20: =SUM(C5:C19) -> 361560426 | D20: =SUM(D5:D19) -> 372563145.9 | E20: 341185744.6 | F20: 350567330.9 | G20: 368230825 | H20: 356392310 | I20: 348845663 | J20: 362516141 | K20: 381229840
A22: Expenditure by Vote to be appropriated | B22: 1
A23: =A3A!A173 -> Vote 1 - Executive and Council | C23: =A3A!C173 -> 29423872.36 | D23: =A3A!D173 -> 28128102.29 | E23: =A3A!E173 -> 28429896.62 | F23: =A3A!F173 -> 28525640 | G23: =A3A!G173 -> 31341699 | H23: =A3A!H173 -> 28239479 | I23: =A3A!I173 -> 30486379 | J23: =A3A!J173 -> 32382817 | K23: =A3A!K173 -> 34397678
A24: =A3A!A184 -> Vote 2 - Finance & Administration | C24: =A3A!C184 -> 271087073.2 | D24: =A3A!D184 -> 159877418.3 | E24: =A3A!E184 -> 171930719.9 | F24: =A3A!F184 -> 154022278 | G24: =A3A!G184 -> 159402474 | H24: =A3A!H184 -> 172809559 | I24: =A3A!I184 -> 160093909 | J24: =A3A!J184 -> 169434063 | K24: =A3A!K184 -> 179323082
A25: =A3A!A195 -> Vote 3 - Transport, Infrastructure & Environment | C25: =A3A!C195 -> 57428119.65 | D25: =A3A!D195 -> 64353063.18 | E25: =A3A!E195 -> 66496001.31 | F25: =A3A!F195 -> 70514422 | G25: =A3A!G195 -> 71427952 | H25: =A3A!H195 -> 64909285 | I25: =A3A!I195 -> 73467549 | J25: =A3A!J195 -> 77968459 | K25: =A3A!K195 -> 82746575
A26: =A3A!A206 -> Vote 4 - Community & Social Services | C26: =A3A!C206 -> 94591867.18 | D26: =A3A!D206 -> 91410048.63 | E26: =A3A!E206 -> 65547478.44 | F26: =A3A!F206 -> 58612984 | G26: =A3A!G206 -> 60933286 | H26: =A3A!H206 -> 63470813 | I26: =A3A!I206 -> 61182705.74 | J26: =A3A!J206 -> 64968145 | K26: =A3A!K206 -> 68988817
A27: =A3A!A217 -> Vote 5 - Planning & Development | C27: =A3A!C217 -> 23374121.96 | D27: =A3A!D217 -> 24369400.06 | E27: =A3A!E217 -> 21902245.7 | F27: =A3A!F217 -> 38712230 | G27: =A3A!G217 -> 38734043 | H27: =A3A!H217 -> 21676002 | I27: =A3A!I217 -> 23574732 | J27: =A3A!J217 -> 24996519 | K27: =A3A!K217 -> 25689436
A28: =A3A!A228 -> Vote 6 - | C28: =A3A!C228 -> 0 | D28: =A3A!D228 -> 0 | E28: =A3A!E228 -> 0 | F28: =A3A!F228 -> 0 | G28: =A3A!G228 -> 0 | H28: =A3A!H228 -> 0 | I28: =A3A!I228 -> 0 | J28: =A3A!J228 -> 0 | K28: =A3A!K228 -> 0
A29: =A3A!A239 -> Vote 7 - | C29: =A3A!C239 -> 0 | D29: =A3A!D239 -> 0 | E29: =A3A!E239 -> 0 | F29: =A3A!F239 -> 0 | G29: =A3A!G239 -> 0 | H29: =A3A!H239 -> 0 | I29: =A3A!I239 -> 0 | J29: =A3A!J239 -> 0 | K29: =A3A!K239 -> 0
A30: =A3A!A250 -> Vote 8 - | C30: =A3A!C250 -> 0 | D30: =A3A!D250 -> 0 | E30: =A3A!E250 -> 0 | F30: =A3A!F250 -> 0 | G30: =A3A!G250 -> 0 | H30: =A3A!H250 -> 0 | I30: =A3A!I250 -> 0 | J30: =A3A!J250 -> 0 | K30: =A3A!K250 -> 0
A31: =A3A!A261 -> Vote 9 - | C31: =A3A!C261 -> 0 | D31: =A3A!D261 -> 0 | E31: =A3A!E261 -> 0 | F31: =A3A!F261 -> 0 | G31: =A3A!G261 -> 0 | H31: =A3A!H261 -> 0 | I31: =A3A!I261 -> 0 | J31: =A3A!J261 -> 0 | K31: =A3A!K261 -> 0
A32: =A3A!A272 -> Vote 10 - | C32: =A3A!C272 -> 0 | D32: =A3A!D272 -> 0 | E32: =A3A!E272 -> 0 | F32: =A3A!F272 -> 0 | G32: =A3A!G272 -> 0 | H32: =A3A!H272 -> 0 | I32: =A3A!I272 -> 0 | J32: =A3A!J272 -> 0 | K32: =A3A!K272 -> 0
A33: =A3A!A283 -> Vote 11 - | C33: =A3A!C283 -> 0 | D33: =A3A!D283 -> 0 | E33: =A3A!E283 -> 0 | F33: =A3A!F283 -> 0 | G33: =A3A!G283 -> 0 | H33: =A3A!H283 -> 0 | I33: =A3A!I283 -> 0 | J33: =A3A!J283 -> 0 | K33: =A3A!K283 -> 0 | L33: =A3A!L284 -> 0
A34: =A3A!A294 -> Vote 12 - | C34: =A3A!C294 -> 0 | D34: =A3A!D294 -> 0 | E34: =A3A!E294 -> 0 | F34: =A3A!F294 -> 0 | G34: =A3A!G294 -> 0 | H34: =A3A!H294 -> 0 | I34: =A3A!I294 -> 0 | J34: =A3A!J294 -> 0 | K34: =A3A!K294 -> 0 | L34: =A3A!L295 -> 0
A35: =A3A!A305 -> Vote 13 - | C35: =A3A!C305 -> 0 | D35: =A3A!D305 -> 0 | E35: =A3A!E305 -> 0 | F35: =A3A!F305 -> 0 | G35: =A3A!G305 -> 0 | H35: =A3A!H305 -> 0 | I35: =A3A!I305 -> 0 | J35: =A3A!J305 -> 0 | K35: =A3A!K305 -> 0 | L35: =A3A!L306 -> 0
A36: =A3A!A316 -> Vote 14 - | C36: =A3A!C316 -> 0 | D36: =A3A!D316 -> 0 | E36: =A3A!E316 -> 0 | F36: =A3A!F316 -> 0 | G36: =A3A!G316 -> 0 | H36: =A3A!H316 -> 0 | I36: =A3A!I316 -> 0 | J36: =A3A!J316 -> 0 | K36: =A3A!K316 -> 0 | L36: =A3A!L317 -> 0
A37: =A3A!A327 -> Vote 15 - | C37: =A3A!C327 -> 0 | D37: =A3A!D327 -> 0 | E37: =A3A!E327 -> 0 | F37: =A3A!F327 -> 0 | G37: =A3A!G327 -> 0 | H37: =A3A!H327 -> 0 | I37: =A3A!I327 -> 0 | J37: =A3A!J327 -> 0 | K37: =A3A!K327 -> 0 | L37: =A3A!L328 -> 0
A38: Total Expenditure by Vote | B38: 2 | C38: =SUM(C23:C37) -> 475905054.4 | D38: =SUM(D23:D37) -> 368138032.5 | E38: 354306342 | F38: 350387554 | G38: 361839454 | H38: 351105138 | I38: 348805274.8 | J38: 369750003 | K38: 391145588 | L38: =SUM(L23:L29) -> 0 | M38: 0 | N38: 0 | O38: 0 | P38: 0 | Q38: 0 | R38: 0 | S38: 0 | T38: 0 | U38: 0 | V38: 0 | W38: 0
A39: =result -> Surplus/(Deficit) for the year | B39: 2 | C39: =C20-C38 -> -114344628.4 | D39: 4425113.4 | E39: -13120597.4 | F39: 179776.92 | G39: 6391371 | H39: 5287172 | I39: 40388.22 | J39: -7233862 | K39: -9915748 | L39: 0 | M39: 0 | N39: 0 | O39: 0 | P39: 0 | Q39: 0 | R39: 0 | S39: 0 | T39: 0 | U39: 0 | V39: 0 | W39: 0
A40: =head27a -> References
A41: 1. Insert 'Vote'; e.g. department, if different to standard classification structure
A42: 2. Must reconcile to Budgeted Financial Performance (revenue and expenditure)
A43: 3. Assign share in 'associate' to relevant Vote
A45: ="check "&A39 -> check Surplus/(Deficit) for the year | C45: =C39-A3A!C340 -> 0 | D45: =D39-A3A!D340 -> 0 | E45: =E39-A3A!E340 -> 0 | F45: =F39-A3A!F340 -> 0 | G45: =G39-A3A!G340 -> 0 | H45: =H39-A3A!H340 -> 0 | I45: =I39-A3A!I340 -> 0 | J45: =J39-A3A!J340 -> 0 | K45: =K39-A3A!K340 -> 0

Sheet A3A
A1: =muni&" - "&Approve2&"A" -> DC42 Sedibeng - Table A3 Budgeted Financial Performance (revenue and expenditure by municipal vote)A
A2: =Vdesc -> Vote Description | B2: =head27 -> Ref | C2: =head1b -> 2010/11 | D2: =head1A -> 2011/12 | E2: =Head1 -> 2012/13 | F2: =Head2 -> Current Year 2013/14 | I2: =Head3 -> 2014/15 Medium Term Revenue & Expenditure Framework | L2: =Head4 -> LTFS
A3: R thousand | C3: =Head5 -> Audited Outcome | D3: =Head5 -> Audited Outcome | E3: =Head5 -> Audited Outcome | F3: =Head6 -> Original Budget | G3: =Head7 -> Adjusted Budget | H3: =Head8 -> Full Year Forecast | I3: =Head9 -> Budget Year 2014/15 | J3: =Head10 -> Budget Year +1 2015/16 | K3: =Head11 -> Budget Year +2 2016/17 | L3: =Head12 -> Forecast 2017/18 | M3: =Head13 -> Forecast 2018/19 | N3: =Head14 -> Forecast 2019/20 | O3: =Head15 -> Forecast 2020/21 | P3: =Head16 -> Forecast 2021/22 | Q3: =Head17 -> Forecast 2022/23 | R3: =Head18 -> Forecast 2023/24 | S3: =Head19 -> Forecast 2024/25 | T3: =Head20 -> Forecast 2025/26 | U3: =Head21 -> Forecast 2026/27 | V3: =Head22 -> Forecast 2027/28 | W3: =Head23 -> Forecast 2028/29
A4: Revenue by Vote | B4: 1
A5: ='Org structure'!A2 -> Vote 1 - Executive and Council | C5: =SUM(C6:C15) -> 8381.92 | D5: =SUM(D6:D15) -> 21617.7 | E5: 12653.17 | F5: 23968 | G5: 29010 | H5: 23945 | I5: 25167 | J5: 26527 | K5: 27960
A6: ='Org structure'!E3 -> 1.1 - Mayoral Administration | C6: 814.49 | D6: 7101.62 | E6: 3161.49 | F6: 5600 | G6: 7482 | H6: 5577 | I6: 5880 | J6: 6198 | K6: 6533
A7: ='Org structure'!E4 -> 1.2 - Speaker's Office | C7: 4402.16 | D7: 5822.85 | E7: 3060.09 | F7: 5897 | G7: 7946 | H7: 5897 | I7: 6192 | J7: 6526 | K7: 6878
A8: ='Org structure'!E5 -> 1.3 - Mayoral Committee | C8: 332.93 | D8: 224.62 | E8: 538.6 | F8: 1077 | G8: 0 | H8: 1077 | I8: 1131 | J8: 1193 | K8: 1258
A9: ='Org structure'!E6 -> 1.4 - Other Councillors | C9: 0 | D9: 0 | E9: 0 | F9: 0 | G9: 0 | H9: 0 | I9: 0 | J9: 0 | K9: 0
A10: ='Org structure'!E7 -> 1.5 - Chief Whip's Office | C10: 2832.34 | D10: 8468.61 | E10: 5892.99 | F10: 11394 | G10: 13582 | H10: 11394 | I10: 11964 | J10: 12610 | K10: 13291
A11: ='Org structure'!E8 -> 0
A12: ='Org structure'!E9 -> 0
A13: ='Org structure'!E10 -> 0
A14: ='Org structure'!E11 -> 0
A15: ='Org structure'!E12 -> 0
A16: ='Org structure'!A3 -> Vote 2 - Finance & Administration | C16: =SUM(C17:C26) -> 277661394.6 | D16: =SUM(D17:D26) -> 250060433.7 | E16: 247882976.4 | F16: 259722521 | G16: 278306631 | H16: 264380614 | I16: 270498315 | J16: 279982211 | K16: 295101251
A17: ='Org structure'!E14 -> 2.1 - MMs Office | C17: 1576.79 | D17: 1023.62 | E17: 586.27 | F17: 1002 | G17: 0 | H17: 1002 | I17: 1052 | J17: 1109 | K17: 1169
A18: ='Org structure'!E15 -> 2.2 - Budget & Treasury | C18: 263037381 | D18: 234101181.3 | E18: 231078510.6 | F18: =238368376+50000 -> 238418376 | G18: 257809767 | H18: 246261125 | I18: 250267952 | J18: 258659410 | K18: 272627019
A19: ='Org structure'!E16 -> 2.3 - Corporate Services | C19: 14622436.76 | D19: 15958228.75 | E19: 16803879.53 | F19: 21303143 | G19: 20496864 | H19: 18118487 | I19: 20229311 | J19: 21321692 | K19: 22473063
A20: ='Org structure'!E17 -> 0
A21: ='Org structure'!E18 -> 0
A22: ='Org structure'!E19 -> 0
A23: ='Org structure'!E20 -> 0
A24: ='Org structure'!E21 -> 0
A25: ='Org structure'!E22 -> 0
A26: ='Org structure'!E23 -> 0
A27: ='Org structure'!A4 -> Vote 3 - Transport, Infrastructure & Environment | C27: =SUM(C28:C37) -> 49324360.17 | D27: 60333081.41 | E27: 62168057.27 | F27: 65880379.92 | G27: 64989298 | H27: 62214203 | I27: 69132961 | J27: 72866138 | K27: 76800908
A28: ='Org structure'!E25 -> 3.1 - Road Transport | C28: 49323430.27 | D28: 60331677.66 | E28: 62167524.39 | F28: 64979313.92 | G28: 64987354 | H28: 62213137 | I28: 68231539 | J28: 71916039 | K28: 75799504
A29: ='Org structure'!E26 -> 3.2 - Environment | C29: 929.9 | D29: 1403.75 | E29: 532.88 | F29: 901066 | G29: 1944 | H29: 1066 | I29: 901422 | J29: 950099 | K29: 1001404
A30: ='Org structure'!E27 -> 0
A31: ='Org structure'!E28 -> 0
A32: ='Org structure'!E29 -> 0
A33: ='Org structure'!E30 -> 0
A34: ='Org structure'!E31 -> 0
A35: ='Org structure'!E32 -> 0
A36: ='Org structure'!E33 -> 0
A37: ='Org structure'!E34 -> 0
A38: ='Org structure'!A5 -> Vote 4 - Community & Social Services | C38: =SUM(C39:C48) -> 34536119.07 | D38: 37047047.15 | E38: 26176120.38 | F38: 6655989 | G38: 6638922 | H38: 24601917 | I38: 6980229 | J38: 7357161 | K38: 7754449
A39: ='Org structure'!E36 -> 4.1 - Sport Heritage & Public Safety | C39: 108869.86 | D39: 137953.55 | E39: 194507.49 | F39: 236457 | G39: 211237 | H39: 216366 | I39: 237832 | J39: 250676 | K39: 264213
A40: ='Org structure'!E37 -> 4.2 - Social Development | C40: 7214.27 | D40: 10430.6 | E40: 11186.81 | F40: 22235 | G40: 23214 | H40: 22235 | I40: 23347 | J40: 24607 | K40: 25936
A41: ='Org structure'!E38 -> 4.5 - Health | C41: 1406.33 | D41: 1560504.26 | E41: 7692653.79 | F41: 6374232 | G41: 6375696 | H41: 6071232 | I41: 6694832 | J41: 7056353 | K41: 7437397
A42: ='Org structure'!E39 -> 4.4 - Disaster Management | C42: 34418628.61 | D42: 35338158.74 | E42: 18277772.29 | F42: 23065 | G42: 28775 | H42: 18292084 | I42: 24218 | J42: 25525 | K42: 26903
A43: ='Org structure'!E40 -> 0
A44: ='Org structure'!E41 -> 0
A45: ='Org structure'!E42 -> 0
A46: ='Org structure'!E43 -> 0
A47: ='Org structure'!E44 -> 0
A48: ='Org structure'!E45 -> 0
A49: ='Org structure'!A6 -> Vote 5 - Planning & Development | C49: =SUM(C50:C59) -> 30170.21 | D49: =SUM(D50:D59) -> 25100965.92 | E49: 4945937.36 | F49: 18284473 | G49: 18266964 | H49: 5171631 | I49: 2208991 | J49: 2284104 | K49: 1545272
A50: ='Org structure'!E47 -> 5.1 - Planning & Development | C50: 19886.32 | D50: 25099133.59 | E50: 4945397.94 | F50: 18283551 | G50: 18266464 | H50: 5170709 | I50: =1390023+818000 -> 2208023 | J50: =1465084+818000 -> 2283084 | K50: 1544197
A51: ='Org structure'!E48 -> 5.2 - Housing | C51: 10283.89 | D51: 1832.33 | E51: 539.42 | F51: 922 | G51: 500 | H51: 922 | I51: 968 | J51: 1020 | K51: 1075
A52: ='Org structure'!E49 -> 0
A53: ='Org structure'!E50 -> 0
A54: ='Org structure'!E51 -> 0
A55: ='Org structure'!E52 -> 0
A56: ='Org structure'!E53 -> 0
A57: ='Org structure'!E54 -> 0
A58: ='Org structure'!E55 -> 0
A59: ='Org structure'!E56 -> 0
A60: ='Org structure'!A7 -> Vote 6 - | C60: =SUM(C61:C70) -> 0 | D60: =SUM(D61:D70) -> 0 | E60: 0 | F60: 0 | G60: 0 | H60: 0 | I60: 0 | J60: 0 | K60: 0
A61: ='Org structure'!E58 -> 6.1 - [Name of sub-vote]
A62: ='Org structure'!E59 -> 0
A63: ='Org structure'!E60 -> 0
A64: ='Org structure'!E61 -> 0
A65: ='Org structure'!E62 -> 0
A66: ='Org structure'!E63 -> 0
A67: ='Org structure'!E64 -> 0
A68: ='Org structure'!E65 -> 0
A69: ='Org structure'!E66 -> 0
A70: ='Org structure'!E67 -> 0
A71: ='Org structure'!A8 -> Vote 7 - | C71: =SUM(C72:C81) -> 0 | D71: 0 | E71: 0 | F71: 0 | G71: 0 | H71: 0 | I71: 0 | J71: 0 | K71: 0
A72: ='Org structure'!E69 -> 7.1 - [Name of sub-vote]
A73: ='Org structure'!E70 -> 0
A74: ='Org structure'!E71 -> 0
A75: ='Org structure'!E72 -> 0
A76: ='Org structure'!E73 -> 0
A77: ='Org structure'!E74 -> 0
A78: ='Org structure'!E75 -> 0
A79: ='Org structure'!E76 -> 0
A80: ='Org structure'!E77 -> 0
A81: ='Org structure'!E78 -> 0
A82: ='Org structure'!A9 -> Vote 8 - | C82: =SUM(C83:C92) -> 0 | D82: =SUM(D83:D92) -> 0 | E82: 0 | F82: 0 | G82: 0 | H82: 0 | I82: 0 | J82: 0 | K82: 0
A83: ='Org structure'!E80 -> 8.1 - [Name of sub-vote]
A84: ='Org structure'!E81 -> 0
A85: ='Org structure'!E82 -> 0
A86: ='Org structure'!E83 -> 0
A87: ='Org structure'!E84 -> 0
A88: ='Org structure'!E85 -> 0
A89: ='Org structure'!E86 -> 0
A90: ='Org structure'!E87 -> 0
A91: ='Org structure'!E88 -> 0
A92: ='Org structure'!E89 -> 0
A93: ='Org structure'!A10 -> Vote 9 - | C93: =SUM(C94:C103) -> 0 | D93: =SUM(D94:D103) -> 0 | E93: 0 | F93: 0 | G93: 0 | H93: 0 | I93: 0 | J93: 0 | K93: 0
A94: ='Org structure'!E91 -> 9.1 - [Name of sub-vote]
A95: ='Org structure'!E92 -> 0
A96: ='Org structure'!E93 -> 0
A97: ='Org structure'!E94 -> 0
A98: ='Org structure'!E95 -> 0
A99: ='Org structure'!E96 -> 0
A100: ='Org structure'!E97 -> 0
A101: ='Org structure'!E98 -> 0
A102: ='Org structure'!E99 -> 0
A103: ='Org structure'!E100 -> 0
A104: ='Org structure'!A11 -> Vote 10 - | C104: =SUM(C105:C114) -> 0 | D104: =SUM(D105:D114) -> 0 | E104: 0 | F104: 0 | G104: 0 | H104: 0 | I104: 0 | J104: 0 | K104: 0
A105: ='Org structure'!E102 -> 10.1 - [Name of sub-vote]
A106: ='Org structure'!E103 -> 0
A107: ='Org structure'!E104 -> 0
A108: ='Org structure'!E105 -> 0
A109: ='Org structure'!E106 -> 0
A110: ='Org structure'!E107 -> 0
A111: ='Org structure'!E108 -> 0
A112: ='Org structure'!E109 -> 0
A113: ='Org structure'!E110 -> 0
A114: ='Org structure'!E111 -> 0
A115: ='Org structure'!A12 -> Vote 11 - | C115: =SUM(C116:C125) -> 0 | D115: =SUM(D116:D125) -> 0 | E115: 0 | F115: 0 | G115: 0 | H115: 0 | I115: 0 | J115: 0 | K115: 0
A116: ='Org structure'!E113 -> 11.1 - [Name of sub-vote]
A117: ='Org structure'!E114 -> 0
A118: ='Org structure'!E115 -> 0
A119: ='Org structure'!E116 -> 0
A120: ='Org structure'!E117 -> 0
A121: ='Org structure'!E118 -> 0
A122: ='Org structure'!E119 -> 0
A123: ='Org structure'!E120 -> 0
A124: ='Org structure'!E121 -> 0
A125: ='Org structure'!E122 -> 0
A126: ='Org structure'!A13 -> Vote 12 - | C126: =SUM(C127:C136) -> 0 | D126: =SUM(D127:D136) -> 0 | E126: 0 | F126: 0 | G126: 0 | H126: 0 | I126: 0 | J126: 0 | K126: 0
A127: ='Org structure'!E124 -> 12.1 - [Name of sub-vote]
A128: ='Org structure'!E125 -> 0
A129: ='Org structure'!E126 -> 0
A130: ='Org structure'!E127 -> 0
A131: ='Org structure'!E128 -> 0
A132: ='Org structure'!E129 -> 0
A133: ='Org structure'!E130 -> 0
A134: ='Org structure'!E131 -> 0
A135: ='Org structure'!E132 -> 0
A136: ='Org structure'!E133 -> 0
A137: ='Org structure'!A14 -> Vote 13 - | C137: =SUM(C138:C147) -> 0 | D137: =SUM(D138:D147) -> 0 | E137: 0 | F137: 0 | G137: 0 | H137: 0 | I137: 0 | J137: 0 | K137: 0
A138: ='Org structure'!E135 -> 13.1 - [Name of sub-vote]
A139: ='Org structure'!E136 -> 0
A140: ='Org structure'!E137 -> 0
A141: ='Org structure'!E138 -> 0
A142: ='Org structure'!E139 -> 0
A143: ='Org structure'!E140 -> 0
A144: ='Org structure'!E141 -> 0
A145: ='Org structure'!E142 -> 0
A146: ='Org structure'!E143 -> 0
A147: ='Org structure'!E144 -> 0
A148: ='Org structure'!A15 -> Vote 14 - | C148: =SUM(C149:C158) -> 0 | D148: =SUM(D149:D158) -> 0 | E148: 0 | F148: 0 | G148: 0 | H148: 0 | I148: 0 | J148: 0 | K148: 0
A149: ='Org structure'!E146 -> 14.1 - [Name of sub-vote]
A150: ='Org structure'!E147 -> 0
A151: ='Org structure'!E148 -> 0
A152: ='Org structure'!E149 -> 0
A153: ='Org structure'!E150 -> 0
A154: ='Org structure'!E151 -> 0
A155: ='Org structure'!E152 -> 0
A156: ='Org structure'!E153 -> 0
A157: ='Org structure'!E154 -> 0
A158: ='Org structure'!E155 -> 0
A159: ='Org structure'!A16 -> Vote 15 - | C159: =SUM(C160:C169) -> 0 | D159: =SUM(D160:D169) -> 0 | E159: 0 | F159: 0 | G159: 0 | H159: 0 | I159: 0 | J159: 0 | K159: 0
A160: ='Org structure'!E157 -> 15.1 - [Name of sub-vote]
A161: ='Org structure'!E158 -> 0
A162: ='Org structure'!E159 -> 0
A163: ='Org structure'!E160 -> 0
A164: ='Org structure'!E161 -> 0
A165: ='Org structure'!E162 -> 0
A166: ='Org structure'!E163 -> 0
A167: ='Org structure'!E164 -> 0
A168: ='Org structure'!E165 -> 0
A169: ='Org structure'!E166 -> 0
A170: Total Revenue by Vote | B170: 2 | C170: =C5+C16+C27+C38+C49+C60+C71+C82+C93+C104+C115+C126+C137+C148+C159 -> 361560426 | D170: =D5+D16+D27+D38+D49+D60+D71+D82+D93+D104+D115+D126+D137+D148+D159 -> 372563145.9 | E170: =E5+E16+E27+E38+E49+E60+E71+E82+E93+E104+E115+E126+E137+E148+E159 -> 341185744.6 | F170: 350567330.9 | G170: 368230825 | H170: 356392310 | I170: =I5+I16+I27+I38+I49+I60+I71+I82+I93+I104+I115+I126+I137+I148+I159 -> 348845663 | J170: 362516141 | K170: 381229840 | L170: =SUM(L78:L81) -> 0 | M170: 0 | N170: 0 | O170: 0 | P170: 0 | Q170: 0 | R170: 0 | S170: 0 | T170: 0 | U170: 0 | V170: 0 | W170: 0
A172: Expenditure by Vote | B172: 1
A173: =A5 -> Vote 1 - Executive and Council | C173: =SUM(C174:C183) -> 29423872.36 | D173: 28128102.29 | E173: 28429896.62 | F173: 28525640 | G173: 31341699 | H173: 28239479 | I173: 30486379 | J173: 32382817 | K173: 34397678
A174: =A6 -> 1.1 - Mayoral Administration | C174: 13264708.95 | D174: 11180968.49 | E174: 9235208.74 | F174: 8643862 | G174: 9982996 | H174: 8976082 | I174: 9239078 | J174: 9802194 | K174: 10399827
A175: 1.2 - Speaker's Office | C175: 6045432.31 | D175: 5148600.63 | E175: 7106561.5 | F175: 6959116 | G175: 8118252 | H175: 6642462 | I175: 7677650 | J175: 8157390 | K175: 8667203
A176: 1.3 - Mayoral Committee | C176: 4336165.78 | D176: 4795459.72 | E176: 4872952.29 | F176: 5414341 | G176: 5419994 | H176: 5103395 | I176: 5611657 | J176: 5967835 | K176: 6346657
A177: 1.4 - Other Councillors | C177: 2662196.2 | D177: 3106479.17 | E177: 2958336.83 | F177: 3017367 | G177: 3129359 | H177: 3408834 | I177: 3227471 | J177: 3433703 | K177: 3653115
A178: 1.5 - Chief Whip's Office | C178: 3115369.12 | D178: 3896594.28 | E178: 4256837.26 | F178: 4490954 | G178: 4691098 | H178: 4108706 | I178: 4730523 | J178: 5021695 | K178: 5330876
A179: 0
A180: 0
A181: 0
A182: 0
A183: 0
A184: =A16 -> Vote 2 - Finance & Administration | C184: =SUM(C185:C194) -> 271087073.2 | D184: =SUM(D185:D194) -> 159877418.3 | E184: =SUM(E185:E194) -> 171930719.9 | F184: 154022278 | G184: 159402474 | H184: 172809559 | I184: 160093909 | J184: 169434063 | K184: 179323082
A185: =A17 -> 2.1 - MMs Office | C185: 10128328.78 | D185: 10328366.88 | E185: 14057000.07 | F185: 13214786 | G185: 16214453 | H185: 18721541 | I185: 16254932 | J185: 17207565 | K185: 18216435
A186: 2.2 - Budget & Treasury | C186: 144362843.1 | D186: 50186684.39 | E186: 56377127.91 | F186: =43579590+50000 -> 43629590 | G186: 43863099 | H186: 58287629 | I186: 49319335 | J186: 52100196 | K186: 55038751
A187: 2.3 - Corporate Services | C187: 116595901.4 | D187: 99362367.06 | E187: 101496591.9 | F187: =96977902+200000 -> 97177902 | G187: 99324922 | H187: 95800389 | I187: 94519642.04 | J187: 100126302 | K187: 106067896
A188: 0
A189: 0
A190: 0
A191: 0
A192: 0
A193: 0
A194: 0
A195: =A27 -> Vote 3 - Transport, Infrastructure & Environment | C195: =SUM(C196:C205) -> 57428119.65 | D195: 64353063.18 | E195: 66496001.31 | F195: 70514422 | G195: 71427952 | H195: 64909285 | I195: 73467549 | J195: 77968459 | K195: 82746575
A196: 3.1 - Road Transport | C196: 41579154.77 | D196: 44690915.1 | E196: 48213143.77 | F196: 48089632 | G196: 48915258 | H196: 46904866 | I196: 51429399 | J196: 54690323 | K196: 58158295
A197: 3.2 - Environment | C197: 15848964.88 | D197: 19662148.08 | E197: 18282857.54 | F197: 22424790 | G197: 22512694 | H197: 18004419 | I197: 22038150 | J197: 23278136 | K197: 24588280
A198: 0
A199: 0
A200: 0
A201: 0
... 144 more rows

Sheet A4-FinPerf RE
A1: =muni&" - "&Approve4 -> DC42 Sedibeng - Table A4 Budgeted Financial Performance (revenue and expenditure)
A2: =desc -> Description | B2: =head27 -> Ref | C2: =head1b -> 2010/11 | D2: =head1A -> 2011/12 | E2: =Head1 -> 2012/13 | F2: =Head2 -> Current Year 2013/14 | J2: =Head3 -> 2014/15 Medium Term Revenue & Expenditure Framework | M2: =Head4 -> LTFS
A3: R thousand | B3: 1 | C3: =Head5 -> Audited Outcome | D3: =Head5 -> Audited Outcome | E3: =Head5 -> Audited Outcome | F3: =Head6 -> Original Budget | G3: =Head7 -> Adjusted Budget | H3: =Head8 -> Full Year Forecast | I3: =Head5b -> Pre-audit outcome | J3: =Head9 -> Budget Year 2014/15 | K3: =Head10 -> Budget Year +1 2015/16 | L3: =Head11 -> Budget Year +2 2016/17 | M3: =Head12 -> Forecast 2017/18 | N3: =Head13 -> Forecast 2018/19 | O3: =Head14 -> Forecast 2019/20 | P3: =Head15 -> Forecast 2020/21 | Q3: =Head16 -> Forecast 2021/22 | R3: =Head17 -> Forecast 2022/23 | S3: =Head18 -> Forecast 2023/24 | T3: =Head19 -> Forecast 2024/25 | U3: =Head20 -> Forecast 2025/26 | V3: =Head21 -> Forecast 2026/27 | W3: =Head22 -> Forecast 2027/28 | X3: =Head23 -> Forecast 2028/29
A4: Revenue By Source
A5: Property rates | B5: 2 | C5: ='SA1'!C9 -> 0 | D5: ='SA1'!D9 -> 0 | E5: ='SA1'!E9 -> 0 | F5: ='SA1'!F9 -> 0 | G5: ='SA1'!G9 -> 0 | H5: ='SA1'!H9 -> 0 | I5: ='SA1'!I9 -> 0 | J5: ='SA1'!J9 -> 0 | K5: ='SA1'!K9 -> 0 | L5: ='SA1'!L9 -> 0
A6: Property rates - penalties & collection charges
A7: Service charges - electricity revenue | B7: 2 | C7: ='SA1'!C14 -> 0 | D7: ='SA1'!D14 -> 0 | E7: ='SA1'!E14 -> 0 | F7: ='SA1'!F14 -> 0 | G7: ='SA1'!G14 -> 0 | H7: ='SA1'!H14 -> 0 | I7: ='SA1'!I14 -> 0 | J7: ='SA1'!J14 -> 0 | K7: ='SA1'!K14 -> 0 | L7: ='SA1'!L14 -> 0
A8: Service charges - water revenue | B8: 2 | C8: ='SA1'!C19 -> 0 | D8: ='SA1'!D19 -> 0 | E8: ='SA1'!E19 -> 0 | F8: ='SA1'!F19 -> 0 | G8: ='SA1'!G19 -> 0 | H8: ='SA1'!H19 -> 0 | I8: ='SA1'!I19 -> 0 | J8: ='SA1'!J19 -> 0 | K8: ='SA1'!K19 -> 0 | L8: ='SA1'!L19 -> 0
A9: Service charges - sanitation revenue | B9: 2 | C9: ='SA1'!C24 -> 0 | D9: ='SA1'!D24 -> 0 | E9: ='SA1'!E24 -> 0 | F9: ='SA1'!F24 -> 0 | G9: ='SA1'!G24 -> 0 | H9: ='SA1'!H24 -> 0 | I9: ='SA1'!I24 -> 0 | J9: ='SA1'!J24 -> 0 | K9: ='SA1'!K24 -> 0 | L9: ='SA1'!L24 -> 0
A10: Service charges - refuse revenue | B10: 2 | C10: ='SA1'!C30 -> 0 | D10: ='SA1'!D30 -> 0 | E10: ='SA1'!E30 -> 0 | F10: ='SA1'!F30 -> 0 | G10: ='SA1'!G30 -> 0 | H10: ='SA1'!H30 -> 0 | I10: ='SA1'!I30 -> 0 | J10: ='SA1'!J30 -> 0 | K10: ='SA1'!K30 -> 0 | L10: ='SA1'!L30 -> 0
A11: Service charges - other | C11: 0 | D11: 0 | E11: 0 | F11: 0 | G11: 0 | H11: 0 | I11: 0 | J11: 0 | K11: 0 | L11: 0
A12: Rental of facilities and equipment | C12: 7695108.35 | D12: 7799500.23 | E12: 7926621.41 | F12: 9103570 | G12: 9086102 | H12: 7495169 | I12: 4498796.72 | J12: 9533472 | K12: 10048279 | L12: 10590887
A13: Interest earned - external investments | C13: 6237002.66 | D13: 2221853.75 | E13: 2115594.95 | F13: 2060000 | G13: 2100084 | H13: 2059644 | I13: 1571122.81 | J13: 2199236 | K13: 2317995 | L13: 2443167
A14: Interest earned - outstanding debtors | C14: 0 | D14: 0 | E14: 0 | F14: 0 | G14: 0 | H14: 0 | I14: 0 | J14: 0 | K14: 0 | L14: 0
A15: Dividends received | C15: 0 | D15: 0 | E15: 0 | F15: 0 | G15: 0 | H15: 0 | I15: 0 | J15: 0 | K15: 0 | L15: 0
A16: Fines | C16: 0 | D16: 0 | E16: 0 | F16: 0 | G16: 0 | H16: 0 | I16: 0 | J16: 0 | K16: 0 | L16: 0
A17: Licences and permits | C17: 49309873.32 | D17: 59605707.87 | E17: 62151874.86 | F17: 65854801.92 | G17: 64954801.92 | H17: 62182230 | I17: 41837860.18 | J17: 69102542 | K17: 72834078 | L17: 76767118
A18: Agency services | C18: 6496536.05 | D18: 6963364.93 | E18: 7246453.47 | F18: 7307390 | G18: 6472322 | H18: 6949884 | I18: 5423777.77 | J18: 6740114 | K18: 7104080 | L18: 7487701
A19: Transfers recognised - operational | C19: 290229182.8 | D19: 292212987.3 | E19: 259626687.8 | F19: 260552000 | G19: 260552000 | H19: 273312566 | I19: 188312021.7 | J19: 251597000 | K19: 265139066 | L19: 278594404
A20: Other revenue | B20: 2 | C20: ='SA1'!C45 -> 1485631.02 | D20: ='SA1'!D45 -> 2598000.55 | E20: ='SA1'!E45 -> 2282472 | F20: ='SA1'!F45 -> 5589569 | G20: ='SA1'!G45 -> 24925515 | H20: ='SA1'!H45 -> 4437230 | I20: ='SA1'!I45 -> 1596205.74 | J20: ='SA1'!J45 -> 9585799 | K20: ='SA1'!K45 -> 4980418 | L20: ='SA1'!L45 -> 5249358
A21: Gains on disposal of PPE | C21: 107091.78 | D21: 1161731.22 | E21: -163960.12 | F21: 100000 | G21: 140000 | H21: -44413 | I21: -43284.38 | J21: 87500 | K21: 92225 | L21: 97205
A22: Total Revenue (excluding capital transfers and contributions) | C22: =SUM(C5:C21) -> 361560425.9 | D22: 372563145.9 | E22: 341185744.4 | F22: 350567330.9 | G22: 368230824.9 | H22: 356392310 | I22: 243196500.6 | J22: 348845663 | K22: 362516141 | L22: 381229840 | M22: 0 | N22: 0 | O22: 0 | P22: 0 | Q22: 0 | R22: 0 | S22: 0 | T22: 0 | U22: 0 | V22: 0 | W22: 0 | X22: 0
A24: Expenditure By Type
A25: Employee related costs | B25: 2 | C25: ='SA1'!C63 -> 232230972.2 | D25: ='SA1'!D63 -> 228392385.2 | E25: ='SA1'!E63 -> 202732800 | F25: ='SA1'!F63 -> 195544243 | G25: ='SA1'!G63 -> 200318025 | H25: ='SA1'!H63 -> 200762723 | I25: ='SA1'!I63 -> 151395750 | J25: ='SA1'!J63 -> 207216301 | K25: ='SA1'!K63 -> 220443580 | L25: ='SA1'!L63 -> 234515554
A26: Remuneration of councillors | C26: 8368653.98 | D26: 9407075.2 | E26: 10284043 | F26: 10579993 | G26: 10923348 | H26: 10662893 | I26: 7488781.74 | J26: 11580705 | K26: 12321876 | L26: 13110479
A27: Debt impairment | B27: 3 | C27: 37760.67 | D27: 93998.63 | E27: 125855 | F27: 0 | G27: 0 | H27: 0 | I27: 0 | J27: 0 | K27: 0 | L27: 0
A28: Depreciation & asset impairment | B28: 2 | C28: ='SA1'!C79 -> 17198677.76 | D28: ='SA1'!D79 -> 23602041 | E28: ='SA1'!E79 -> 26516627 | F28: ='SA1'!F79 -> 23265556 | G28: ='SA1'!G79 -> 23265556 | H28: ='SA1'!H79 -> 25402041 | I28: ='SA1'!I79 -> 25402041 | J28: ='SA1'!J79 -> 26766440 | K28: ='SA1'!K79 -> 28211828 | L28: ='SA1'!L79 -> 29735267
A29: Finance charges | C29: 0 | D29: 0 | E29: 0 | F29: 0 | G29: 0 | H29: 0 | I29: 0 | J29: 0 | K29: 0 | L29: 0
A30: Bulk purchases | B30: 2 | C30: ='SA1'!C84 -> 0 | D30: ='SA1'!D84 -> 0 | E30: ='SA1'!E84 -> 0 | F30: ='SA1'!F84 -> 0 | G30: ='SA1'!G84 -> 0 | H30: ='SA1'!H84 -> 0 | I30: ='SA1'!I84 -> 0 | J30: ='SA1'!J84 -> 0 | K30: ='SA1'!K84 -> 0 | L30: ='SA1'!L84 -> 0
A31: Other materials | B31: 8 | C31: 0 | D31: 0 | E31: 0 | F31: 0 | G31: 0 | H31: 0 | I31: 0 | J31: 0 | K31: 0 | L31: 0
A32: Contracted services | C32: ='SA1'!C123 -> 37072908.56 | D32: ='SA1'!D123 -> 42723076.81 | E32: ='SA1'!E123 -> 41315422 | F32: ='SA1'!F123 -> 39560241 | G32: ='SA1'!G123 -> 40004443 | H32: ='SA1'!H123 -> 39899001 | I32: ='SA1'!I123 -> 28456248.34 | J32: ='SA1'!J123 -> 35567208.04 | K32: ='SA1'!K123 -> 37487836 | L32: ='SA1'!L123 -> 39512180
A33: Transfers and grants | C33: ='SA1'!C89 -> 84710637.08 | D33: ='SA1'!D89 -> 250000 | E33: ='SA1'!E89 -> 5221646 | F33: ='SA1'!F89 -> 16013158 | G33: ='SA1'!G89 -> 16013158 | H33: ='SA1'!H89 -> 11853401 | I33: ='SA1'!I89 -> 0 | J33: ='SA1'!J89 -> 1365000 | K33: ='SA1'!K89 -> 1438710 | L33: ='SA1'!L89 -> 1516400
A34: Other expenditure | B34: 4, 5 | C34: ='SA1'!C153 -> 96285444.13 | D34: ='SA1'!D153 -> 63669455.65 | E34: ='SA1'!E153 -> 68109950 | F34: ='SA1'!F153 -> 65424363 | G34: ='SA1'!G153 -> 71244924 | H34: ='SA1'!H153 -> 62525079 | I34: ='SA1'!I153 -> 38221663.26 | J34: ='SA1'!J153 -> 66309620.74 | K34: ='SA1'!K153 -> 69846173 | L34: ='SA1'!L153 -> 72755708
A35: Loss on disposal of PPE | C35: 0 | D35: 0 | E35: 0 | F35: 0 | G35: 70000 | H35: 0 | I35: 0 | J35: 0 | K35: 0 | L35: 0
A36: Total Expenditure | C36: =SUM(C25:C35) -> 475905054.4 | D36: =SUM(D25:D35) -> 368138032.5 | E36: 354306343 | F36: 350387554 | G36: 361839454 | H36: 351105138 | I36: 250964484.4 | J36: 348805274.8 | K36: 369750003 | L36: 391145588 | M36: =SUM(M25:M35) -> 0 | N36: 0 | O36: 0 | P36: 0 | Q36: 0 | R36: 0 | S36: 0 | T36: 0 | U36: 0 | V36: 0 | W36: 0 | X36: 0
A38: Surplus/(Deficit) | C38: =C22-C36 -> -114344628.4 | D38: 4425113.43 | E38: -13120598.65 | F38: 179776.92 | G38: 6391370.92 | H38: 5287172 | I38: -7767983.81 | J38: 40388.22 | K38: -7233862 | L38: -9915748 | M38: =M22+M36 -> 0 | N38: 0 | O38: 0 | P38: 0 | Q38: 0 | R38: 0 | S38: 0 | T38: 0 | U38: 0 | V38: 0 | W38: 0 | X38: 0
A39: Transfers recognised - capital | C39: 0 | D39: 0 | E39: 0 | F39: 0 | G39: 0 | H39: 0 | I39: 0 | J39: 0 | K39: 0 | L39: 0
A40: Contributions recognised - capital | B40: 6 | C40: ='SA1'!C72 -> 0 | D40: ='SA1'!D72 -> 0 | E40: ='SA1'!E72 -> 0 | F40: ='SA1'!F72 -> 0 | G40: ='SA1'!G72 -> 0 | H40: ='SA1'!H72 -> 0 | I40: ='SA1'!I72 -> 0 | J40: ='SA1'!J72 -> 0 | K40: ='SA1'!K72 -> 0 | L40: ='SA1'!L72 -> 0
A41: Contributed assets | C41: 0 | D41: 0 | E41: 0 | F41: 0 | G41: 0 | H41: 0 | I41: 0 | J41: 0 | K41: 0 | L41: 0
A42: Surplus/(Deficit) after capital transfers & contributions | C42: =SUM(C38:C41) -> -114344628.4 | D42: 4425113.43 | E42: -13120598.65 | F42: 179776.92 | G42: 6391370.92 | H42: 5287172 | I42: -7767983.81 | J42: 40388.22 | K42: -7233862 | L42: -9915748
A43: Taxation | C43: 0 | D43: 0 | E43: 0 | F43: 0 | G43: 0 | H43: 0 | I43: 0 | J43: 0 | K43: 0 | L43: 0
A44: Surplus/(Deficit) after taxation | C44: =C42-C43 -> -114344628.4 | D44: 4425113.43 | E44: -13120598.65 | F44: 179776.92 | G44: 6391370.92 | H44: 5287172 | I44: -7767983.81 | J44: 40388.22 | K44: -7233862 | L44: -9915748
A45: Attributable to minorities | C45: 0 | D45: 0 | E45: 0 | F45: 0 | G45: 0 | H45: 0 | I45: 0 | J45: 0 | K45: 0 | L45: 0
A46: Surplus/(Deficit) attributable to municipality | C46: =SUM(C44:C45) -> -114344628.4 | D46: 4425113.43 | E46: -13120598.65 | F46: 179776.92 | G46: 6391370.92 | H46: 5287172 | I46: -7767983.81 | J46: 40388.22 | K46: -7233862 | L46: -9915748
A47: Share of surplus/ (deficit) of associate | B47: 7 | C47: 0 | D47: 0 | E47: 0 | F47: 0 | G47: 0 | H47: 0 | I47: 0 | J47: 0 | K47: 0 | L47: 0
A48: =result -> Surplus/(Deficit) for the year | C48: =SUM(C46:C47) -> -114344628.4 | D48: 4425113.43 | E48: -13120598.65 | F48: 179776.92 | G48: 6391370.92 | H48: 5287172 | I48: -7767983.81 | J48: 40388.22 | K48: -7233862 | L48: -9915748 | M48: =M26+M47 -> 0 | N48: 0 | O48: 0 | P48: 0 | Q48: 0 | R48: 0 | S48: 0 | T48: 0 | U48: 0 | V48: 0 | W48: 0 | X48: 0
A49: =head27a -> References
A50: 1. Classifications are revenue sources and expenditure type
A51: 2. Detail to be provided in Table SA1
A52: 3. Previously described as 'bad or doubtful debts' - amounts shown should reflect the change in the provision for debt impairment
A53: 4. Expenditure type components previously shown under repairs and maintenance should be allocated back to the originating expenditure group/item; e.g. employee costs
A54: 5. Repairs & maintenance detailed in Table A9 and Table SA34c
A55: 6. Contributions are funds provided by external organisations to assist with infrastructure development; e.g. developer contributions (detail to be provided in Table SA1)
A56: 7. Equity method
A57: 8. All materials not part of 'bulk' e.g road making materials, pipe, cable etc.
A58: check balance | C58: =C46-'A3-FinPerf V'!C39 -> 0 | D58: =D46-'A3-FinPerf V'!D39 -> 0.0300001502 | E58: =E46-'A3-FinPerf V'!E39 -> -1.250000119 | F58: =F46-'A3-FinPerf V'!F39 -> 0 | G58: =G46-'A3-FinPerf V'!G39 -> -0.07999998331 | H58: =H46-'A3-FinPerf V'!H39 -> 0 | J58: =J46-'A3-FinPerf V'!I39 -> -5.960464478e-08 | K58: =K46-'A3-FinPerf V'!J39 -> 0 | L58: =L46-'A3-FinPerf V'!K39 -> 0
A60: Total revenue | C60: =C22+SUM(C39:C41) -> 361560425.9 | D60: 372563145.9 | E60: 341185744.4 | F60: 350567330.9 | G60: 368230824.9 | H60: 356392310 | I60: 243196500.6 | J60: 348845663 | K60: 362516141 | L60: 381229840

Sheet A5-Capex
A1: =muni&" - "&Approve5 -> DC42 Sedibeng - Table A5 Budgeted Capital Expenditure by vote, standard classification and funding
A2: =Vdesc -> Vote Description | B2: =head27 -> Ref | C2: =head1b -> 2010/11 | D2: =head1A -> 2011/12 | E2: =Head1 -> 2012/13 | F2: =Head2 -> Current Year 2013/14 | J2: =Head3 -> 2014/15 Medium Term Revenue & Expenditure Framework
A3: R thousand | B3: 1 | C3: =Head5 -> Audited Outcome | D3: =Head5 -> Audited Outcome | E3: =Head5 -> Audited Outcome | F3: =Head6 -> Original Budget | G3: =Head7 -> Adjusted Budget | H3: =Head8 -> Full Year Forecast | I3: =Head5b -> Pre-audit outcome | J3: =Head9 -> Budget Year 2014/15 | K3: =Head10 -> Budget Year +1 2015/16 | L3: =Head11 -> Budget Year +2 2016/17
A4: Capital expenditure - Vote
A5: Multi-year expenditure to be appropriated | B5: 2
A6: =A5A!A6 -> Vote 1 - Executive and Council | C6: =A5A!C6 -> 0 | D6: =A5A!D6 -> 0 | E6: =A5A!E6 -> 0 | F6: =A5A!F6 -> 0 | G6: =A5A!G6 -> 0 | H6: =A5A!H6 -> 0 | I6: =A5A!I6 -> 0 | J6: =A5A!J6 -> 0 | K6: =A5A!K6 -> 0 | L6: =A5A!L6 -> 0
A7: =A5A!A17 -> Vote 2 - Finance & Administration | C7: =A5A!C17 -> 18718414 | D7: =A5A!D17 -> 12999500 | E7: =A5A!E17 -> 12918481 | F7: =A5A!F17 -> 11771053 | G7: =A5A!G17 -> 16671053 | H7: =A5A!H17 -> 13591996 | I7: =A5A!I17 -> 13591996 | J7: =A5A!J17 -> 13499996 | K7: =A5A!K17 -> 9297196 | L7: =A5A!L17 -> 3640512
A8: =A5A!A28 -> Vote 3 - Transport, Infrastructure & Environment | C8: =A5A!C28 -> 0 | D8: =A5A!D28 -> 0 | E8: =A5A!E28 -> 135663 | F8: =A5A!F28 -> 3631060 | G8: =A5A!G28 -> 3631060 | H8: =A5A!H28 -> 0 | I8: =A5A!I28 -> 0 | J8: =A5A!J28 -> 3737740 | K8: =A5A!K28 -> 3423118 | L8: =A5A!L28 -> 3607966
A9: =A5A!A39 -> Vote 4 - Community & Social Services | C9: =A5A!C39 -> 17246200 | D9: =A5A!D39 -> 2999999 | E9: =A5A!E39 -> 119858 | F9: =A5A!F39 -> 1300000 | G9: =A5A!G39 -> 1300000 | H9: =A5A!H39 -> 1300000 | I9: =A5A!I39 -> 5638000 | J9: =A5A!J39 -> 0 | K9: =A5A!K39 -> 0 | L9: =A5A!L39 -> 0
A10: =A5A!A50 -> Vote 5 - Planning & Development | C10: =A5A!C50 -> 0 | D10: =A5A!D50 -> 0 | E10: =A5A!E50 -> 101077 | F10: =A5A!F50 -> 1000000 | G10: =A5A!G50 -> 1000000 | H10: =A5A!H50 -> 0 | I10: =A5A!I50 -> 0 | J10: =A5A!J50 -> 0 | K10: =A5A!K50 -> 0 | L10: =A5A!L50 -> 0
A11: =A5A!A61 -> Vote 6 - | C11: =A5A!C61 -> 0 | D11: =A5A!D61 -> 0 | E11: =A5A!E61 -> 0 | F11: =A5A!F61 -> 0 | G11: =A5A!G61 -> 0 | H11: =A5A!H61 -> 0 | I11: =A5A!I61 -> 0 | J11: =A5A!J61 -> 0 | K11: =A5A!K61 -> 0 | L11: =A5A!L61 -> 0
A12: =A5A!A72 -> Vote 7 - | C12: =A5A!C72 -> 0 | D12: =A5A!D72 -> 0 | E12: =A5A!E72 -> 0 | F12: =A5A!F72 -> 0 | G12: =A5A!G72 -> 0 | H12: =A5A!H72 -> 0 | I12: =A5A!I72 -> 0 | J12: =A5A!J72 -> 0 | K12: =A5A!K72 -> 0 | L12: =A5A!L72 -> 0
A13: =A5A!A83 -> Vote 8 - | C13: =A5A!C83 -> 0 | D13: =A5A!D83 -> 0 | E13: =A5A!E83 -> 0 | F13: =A5A!F83 -> 0 | G13: =A5A!G83 -> 0 | H13: =A5A!H83 -> 0 | I13: =A5A!I83 -> 0 | J13: =A5A!J83 -> 0 | K13: =A5A!K83 -> 0 | L13: =A5A!L83 -> 0
A14: =A5A!A94 -> Vote 9 - | C14: =A5A!C94 -> 0 | D14: =A5A!D94 -> 0 | E14: =A5A!E94 -> 0 | F14: =A5A!F94 -> 0 | G14: =A5A!G94 -> 0 | H14: =A5A!H94 -> 0 | I14: =A5A!I94 -> 0 | J14: =A5A!J94 -> 0 | K14: =A5A!K94 -> 0 | L14: =A5A!L94 -> 0
A15: =A5A!A105 -> Vote 10 - | C15: =A5A!C105 -> 0 | D15: =A5A!D105 -> 0 | E15: =A5A!E105 -> 0 | F15: =A5A!F105 -> 0 | G15: =A5A!G105 -> 0 | H15: =A5A!H105 -> 0 | I15: =A5A!I105 -> 0 | J15: =A5A!J105 -> 0 | K15: =A5A!K105 -> 0 | L15: =A5A!L105 -> 0
A16: =A5A!A116 -> Vote 11 - | C16: =A5A!C116 -> 0 | D16: =A5A!D116 -> 0 | E16: =A5A!E116 -> 0 | F16: =A5A!F116 -> 0 | G16: =A5A!G116 -> 0 | H16: =A5A!H116 -> 0 | I16: =A5A!I116 -> 0 | J16: =A5A!J116 -> 0 | K16: =A5A!K116 -> 0 | L16: =A5A!L116 -> 0
A17: =A5A!A127 -> Vote 12 - | C17: =A5A!C127 -> 0 | D17: =A5A!D127 -> 0 | E17: =A5A!E127 -> 0 | F17: =A5A!F127 -> 0 | G17: =A5A!G127 -> 0 | H17: =A5A!H127 -> 0 | I17: =A5A!I127 -> 0 | J17: =A5A!J127 -> 0 | K17: =A5A!K127 -> 0 | L17: =A5A!L127 -> 0
A18: =A5A!A138 -> Vote 13 - | C18: =A5A!C138 -> 0 | D18: =A5A!D138 -> 0 | E18: =A5A!E138 -> 0 | F18: =A5A!F138 -> 0 | G18: =A5A!G138 -> 0 | H18: =A5A!H138 -> 0 | I18: =A5A!I138 -> 0 | J18: =A5A!J138 -> 0 | K18: =A5A!K138 -> 0 | L18: =A5A!L138 -> 0
A19: =A5A!A149 -> Vote 14 - | C19: =A5A!C149 -> 0 | D19: =A5A!D149 -> 0 | E19: =A5A!E149 -> 0 | F19: =A5A!F149 -> 0 | G19: =A5A!G149 -> 0 | H19: =A5A!H149 -> 0 | I19: =A5A!I149 -> 0 | J19: =A5A!J149 -> 0 | K19: =A5A!K149 -> 0 | L19: =A5A!L149 -> 0
A20: =A5A!A160 -> Vote 15 - | C20: =A5A!C160 -> 0 | D20: =A5A!D160 -> 0 | E20: =A5A!E160 -> 0 | F20: =A5A!F160 -> 0 | G20: =A5A!G160 -> 0 | H20: =A5A!H160 -> 0 | I20: =A5A!I160 -> 0 | J20: =A5A!J160 -> 0 | K20: =A5A!K160 -> 0 | L20: =A5A!L160 -> 0
A21: Capital multi-year expenditure sub-total | B21: 7 | C21: =SUM(C6:C20) -> 35964614 | D21: =SUM(D6:D20) -> 15999499 | E21: 13275079 | F21: 17702113 | G21: 22602113 | H21: =SUM(H6:H20) -> 14891996 | I21: 19229996 | J21: 17237736 | K21: 12720314 | L21: 7248478
A23: Single-year expenditure to be appropriated | B23: 2
A24: =A6 -> Vote 1 - Executive and Council | C24: =A5A!C175 -> 0 | D24: =A5A!D175 -> 0 | E24: =A5A!E175 -> 0 | F24: =A5A!F175 -> 0 | G24: =A5A!G175 -> 0 | H24: =A5A!H175 -> 0 | I24: =A5A!I175 -> 0 | J24: =A5A!J175 -> 0 | K24: =A5A!K175 -> 0 | L24: =A5A!L175 -> 0
A25: =A7 -> Vote 2 - Finance & Administration | C25: =A5A!C186 -> 0 | D25: =A5A!D186 -> 0 | E25: =A5A!E186 -> 0 | F25: =A5A!F186 -> 0 | G25: =A5A!G186 -> 0 | H25: =A5A!H186 -> 0 | I25: =A5A!I186 -> 0 | J25: =A5A!J186 -> 0 | K25: =A5A!K186 -> 0 | L25: =A5A!L186 -> 0
A26: Vote 3 - Transport, Infrastructure & Environment | C26: =A5A!C197 -> 0 | D26: =A5A!D197 -> 0 | E26: =A5A!E197 -> 0 | F26: =A5A!F197 -> 0 | G26: =A5A!G197 -> 0 | H26: =A5A!H197 -> 0 | I26: =A5A!I197 -> 0 | J26: =A5A!J197 -> 0 | K26: =A5A!K197 -> 0 | L26: =A5A!L197 -> 0
A27: Vote 4 - Community & Social Services | C27: =A5A!C208 -> 0 | D27: =A5A!D208 -> 0 | E27: =A5A!E208 -> 0 | F27: =A5A!F208 -> 0 | G27: =A5A!G208 -> 0 | H27: =A5A!H208 -> 0 | I27: =A5A!I208 -> 0 | J27: =A5A!J208 -> 0 | K27: =A5A!K208 -> 0 | L27: =A5A!L208 -> 0
A28: Vote 5 - Planning & Development | C28: =A5A!C219 -> 0 | D28: =A5A!D219 -> 0 | E28: =A5A!E219 -> 0 | F28: =A5A!F219 -> 0 | G28: =A5A!G219 -> 0 | H28: =A5A!H219 -> 0 | I28: =A5A!I219 -> 0 | J28: =A5A!J219 -> 0 | K28: =A5A!K219 -> 0 | L28: =A5A!L219 -> 0
A29: Vote 6 - | C29: =A5A!C230 -> 0 | D29: =A5A!D230 -> 0 | E29: =A5A!E230 -> 0 | F29: =A5A!F230 -> 0 | G29: =A5A!G230 -> 0 | H29: =A5A!H230 -> 0 | I29: =A5A!I230 -> 0 | J29: =A5A!J230 -> 0 | K29: =A5A!K230 -> 0 | L29: =A5A!L230 -> 0
A30: Vote 7 - | C30: =A5A!C241 -> 0 | D30: =A5A!D241 -> 0 | E30: =A5A!E241 -> 0 | F30: =A5A!F241 -> 0 | G30: =A5A!G241 -> 0 | H30: =A5A!H241 -> 0 | I30: =A5A!I241 -> 0 | J30: =A5A!J241 -> 0 | K30: =A5A!K241 -> 0 | L30: =A5A!L241 -> 0
A31: Vote 8 - | C31: =A5A!C252 -> 0 | D31: =A5A!D252 -> 0 | E31: =A5A!E252 -> 0 | F31: =A5A!F252 -> 0 | G31: =A5A!G252 -> 0 | H31: =A5A!H252 -> 0 | I31: =A5A!I252 -> 0 | J31: =A5A!J252 -> 0 | K31: =A5A!K252 -> 0 | L31: =A5A!L252 -> 0
A32: Vote 9 - | C32: =A5A!C263 -> 0 | D32: =A5A!D263 -> 0 | E32: =A5A!E263 -> 0 | F32: =A5A!F263 -> 0 | G32: =A5A!G263 -> 0 | H32: =A5A!H263 -> 0 | I32: =A5A!I263 -> 0 | J32: =A5A!J263 -> 0 | K32: =A5A!K263 -> 0 | L32: =A5A!L263 -> 0
A33: Vote 10 - | C33: =A5A!C274 -> 0 | D33: =A5A!D274 -> 0 | E33: =A5A!E274 -> 0 | F33: =A5A!F274 -> 0 | G33: =A5A!G274 -> 0 | H33: =A5A!H274 -> 0 | I33: =A5A!I274 -> 0 | J33: =A5A!J274 -> 0 | K33: =A5A!K274 -> 0 | L33: =A5A!L274 -> 0
A34: Vote 11 - | C34: =A5A!C285 -> 0 | D34: =A5A!D285 -> 0 | E34: =A5A!E285 -> 0 | F34: =A5A!F285 -> 0 | G34: =A5A!G285 -> 0 | H34: =A5A!H285 -> 0 | I34: =A5A!I285 -> 0 | J34: =A5A!J285 -> 0 | K34: =A5A!K285 -> 0 | L34: =A5A!L285 -> 0
A35: Vote 12 - | C35: =A5A!C296 -> 0 | D35: =A5A!D296 -> 0 | E35: =A5A!E296 -> 0 | F35: =A5A!F296 -> 0 | G35: =A5A!G296 -> 0 | H35: =A5A!H296 -> 0 | I35: =A5A!I296 -> 0 | J35: =A5A!J296 -> 0 | K35: =A5A!K296 -> 0 | L35: =A5A!L296 -> 0
A36: Vote 13 - | C36: =A5A!C307 -> 0 | D36: =A5A!D307 -> 0 | E36: =A5A!E307 -> 0 | F36: =A5A!F307 -> 0 | G36: =A5A!G307 -> 0 | H36: =A5A!H307 -> 0 | I36: =A5A!I307 -> 0 | J36: =A5A!J307 -> 0 | K36: =A5A!K307 -> 0 | L36: =A5A!L307 -> 0
A37: Vote 14 - | C37: =A5A!C318 -> 0 | D37: =A5A!D318 -> 0 | E37: =A5A!E318 -> 0 | F37: =A5A!F318 -> 0 | G37: =A5A!G318 -> 0 | H37: =A5A!H318 -> 0 | I37: =A5A!I318 -> 0 | J37: =A5A!J318 -> 0 | K37: =A5A!K318 -> 0 | L37: =A5A!L318 -> 0
A38: =A20 -> Vote 15 - | C38: =A5A!C329 -> 0 | D38: =A5A!D329 -> 0 | E38: =A5A!E329 -> 0 | F38: =A5A!F329 -> 0 | G38: =A5A!G329 -> 0 | H38: =A5A!H329 -> 0 | I38: =A5A!I329 -> 0 | J38: =A5A!J329 -> 0 | K38: =A5A!K329 -> 0 | L38: =A5A!L329 -> 0
A39: Capital single-year expenditure sub-total | C39: =SUM(C24:C38) -> 0 | D39: =SUM(D24:D38) -> 0 | E39: 0 | F39: 0 | G39: 0 | H39: 0 | I39: 0 | J39: 0 | K39: 0 | L39: 0
A40: Total Capital Expenditure - Vote | C40: =C39+C21 -> 35964614 | D40: =D39+D21 -> 15999499 | E40: 13275079 | F40: 17702113 | G40: 22602113 | H40: 14891996 | I40: 19229996 | J40: 17237736 | K40: 12720314 | L40: 7248478
A42: Capital Expenditure - Standard
A43: Governance and administration | C43: =SUM(C44:C46) -> 14170160 | D43: =SUM(D44:D46) -> 12999500 | E43: 12864123 | F43: 11771053 | G43: 16671053 | H43: 13591996 | I43: 13591996 | J43: 13499996 | K43: 9297196 | L43: 3640512
A44: Executive and council | C44: 1005298 | D44: 0 | E44: 165808 | F44: 0 | G44: 0 | H44: 0 | I44: 0 | J44: 0 | K44: 0 | L44: 0
A45: Budget and treasury office | D45: 0 | E45: 56949 | F45: 0 | G45: 0 | H45: 0 | I45: 0 | J45: 0 | K45: 0 | L45: 0
A46: Corporate services | C46: 13164862 | D46: 12999500 | E46: 12641366 | F46: 11771053 | G46: 16671053 | H46: 13591996 | I46: 13591996 | J46: 13499996 | K46: 9297196 | L46: 3640512
A47: Community and public safety | C47: =SUM(C48:C52) -> 17882131 | D47: =SUM(D48:D52) -> 2999999 | E47: 122358 | F47: 1300000 | G47: 1300000 | H47: 1300000 | I47: 5638000 | J47: 0 | K47: 0 | L47: 0
A48: Community and social services | C48: 451920 | D48: 0 | E48: 48660 | F48: 0 | G48: 0 | H48: 0 | I48: 0 | J48: 0 | K48: 0 | L48: 0
A49: Sport and recreation | C49: 0 | D49: 0 | E49: 0 | F49: 1300000 | G49: 1300000 | H49: 1300000 | I49: 5638000 | J49: 0 | K49: 0 | L49: 0
A50: Public safety | C50: 16944864 | D50: 2999999 | E50: 71198 | F50: 0 | G50: 0 | H50: 0 | I50: 0 | J50: 0 | K50: 0 | L50: 0
A51: Housing | C51: 15194 | D51: 0 | E51: 2500 | F51: 0 | G51: 0 | H51: 0 | I51: 0 | J51: 0 | K51: 0 | L51: 0
A52: Health | C52: 470153 | D52: 0 | E52: 0 | F52: 0 | G52: 0 | H52: 0 | I52: 0 | J52: 0 | K52: 0 | L52: 0
A53: Economic and environmental services | C53: =SUM(C54:C56) -> 1684418 | D53: =SUM(D54:D56) -> 0 | E53: 234240 | F53: 4631060 | G53: 4631060 | H53: 0 | I53: 0 | J53: 3737740 | K53: 3423118 | L53: 3607966
A54: Planning and development | C54: 1226738 | D54: 0 | E54: 98577 | F54: 1000000 | G54: 1000000 | H54: 0 | I54: 0 | J54: 0 | K54: 0 | L54: 0
A55: Road transport | C55: 446058 | D55: 0 | E55: 128208 | F55: 3141060 | G55: 3141060 | H55: 0 | I55: 0 | J55: 3247740 | K55: 3423118 | L55: 3607966
A56: Environmental protection | C56: 11622 | D56: 0 | E56: 7455 | F56: 490000 | G56: 490000 | H56: 0 | I56: 0 | J56: 490000 | K56: 0 | L56: 0
A57: Trading services | C57: =SUM(C58:C61) -> 0 | D57: =SUM(D58:D61) -> 0 | E57: 0 | F57: 0 | G57: 0 | H57: 0 | I57: 0 | J57: 0 | K57: 0 | L57: 0
A58: Electricity | C58: 0 | D58: 0 | E58: 0 | F58: 0 | G58: 0 | H58: 0 | I58: 0 | J58: 0 | K58: 0 | L58: 0
A59: Water | C59: 0 | D59: 0 | E59: 0 | F59: 0 | G59: 0 | H59: 0 | I59: 0 | J59: 0 | K59: 0 | L59: 0
A60: Waste water management | C60: 0 | D60: 0 | E60: 0 | F60: 0 | G60: 0 | H60: 0 | I60: 0 | J60: 0 | K60: 0 | L60: 0
A61: Waste management | C61: 0 | D61: 0 | E61: 0 | F61: 0 | G61: 0 | H61: 0 | I61: 0 | J61: 0 | K61: 0 | L61: 0
A62: Other | C62: 2227899 | D62: 0 | E62: 54358 | F62: 0 | G62: 0 | H62: 0 | I62: 0 | J62: 0 | K62: 0 | L62: 0
A63: Total Capital Expenditure - Standard | B63: 3 | C63: =C43+C47+C53+C57+C62 -> 35964608 | D63: =D43+D47+D53+D57+D62 -> 15999499 | E63: 13275079 | F63: 17702113 | G63: 22602113 | H63: 14891996 | I63: 19229996 | J63: 17237736 | K63: 12720314 | L63: =L43+L47+L53+L57+L62 -> 7248478
A65: Funded by:
A66: National Government | G66: 0 | H66: 0 | I66: 5638000
A67: Provincial Government | C67: 277086 | D67: 356086 | E67: 0 | F67: 0
A68: District Municipality
A69: Other transfers and grants
A70: Transfers recognised - capital | B70: 4 | C70: =SUM(C66:C69) -> 277086 | D70: 356086 | E70: 0 | F70: 0 | G70: 0 | H70: 0 | I70: 5638000 | J70: 0 | K70: 0 | L70: 0
A71: Public contributions & donations | B71: 5
A72: Borrowing | B72: 6
A73: Internally generated funds | C73: 35687528 | D73: 15643413 | E73: 13275079 | F73: 17702113 | G73: 22602113 | H73: 14891996 | I73: 13591996 | J73: 17237736 | K73: 12720314 | L73: 7248478
A74: Total Capital Funding | B74: 7 | C74: =SUM(C70:C73) -> 35964614 | D74: 15999499 | E74: 13275079 | F74: 17702113 | G74: 22602113 | H74: 14891996 | I74: 19229996 | J74: 17237736 | K74: 12720314 | L74: 7248478
A75: =head27a -> References
A76: 1. Municipalities may choose to appropriate for capital expenditure for three years or for one year (if one year appropriation projected expenditure required for yr2 and yr3).
A77: 2. Include capital component of PPP unitary payment. Note that capital transfers are only appropriated to municipalities for the budget year
A78: 3. Capital expenditure by standard classification must reconcile to the appropriations by vote
A79: 4. Must reconcile to supporting table SA20 and to Budgeted Financial Performance (revenue and expenditure)
A80: 5. Must reconcile to Budgeted Financial Performance (revenue and expenditure)
A81: 6. Include finance leases and PPP capital funding component of unitary payment - total borrowing/repayments to reconcile to changes in Table SA17
A82: 7. Total Capital Funding must balance with Total Capital Expenditure
A83: 8. Include any capitalised interest (MFMA section 46) as part of relevant capital budget
A85: check balance | C85: =C40-C74 -> 0 | D85: =D40-D74 -> 0 | E85: 0 | F85: 0 | G85: 0 | H85: 0 | I85: 0 | J85: 0 | K85: 0 | L85: 0

Sheet A5A
A1: =muni&" - "&Approve5 -> DC42 Sedibeng - Table A5 Budgeted Capital Expenditure by vote, standard classification and funding
A2: =Vdesc -> Vote Description | B2: =head27 -> Ref | C2: =head1b -> 2010/11 | D2: =head1A -> 2011/12 | E2: =Head1 -> 2012/13 | F2: =Head2 -> Current Year 2013/14 | J2: =Head3 -> 2014/15 Medium Term Revenue & Expenditure Framework | N2: Multi-year appropriation for 2012/13 in the 2011/12 Annual Budget | R2: Multi-year appropriation for 2013/14 in the 2011/12 Annual Budget | V2: New multi-year appropriations (funds for new and existing projects)
A3: R thousand | B3: 1 | C3: =Head5 -> Audited Outcome | D3: =Head5 -> Audited Outcome | E3: =Head5 -> Audited Outcome | F3: =Head6 -> Original Budget | G3: =Head7 -> Adjusted Budget | H3: =Head8 -> Full Year Forecast | I3: =Head5b -> Pre-audit outcome | J3: =Head9 -> Budget Year 2014/15 | K3: =Head10 -> Budget Year +1 2015/16 | L3: =Head11 -> Budget Year +2 2016/17 | N3: Appropriation for 2012/13 | O3: Adjustments in 2011/12 | P3: Downward adjustments for 2012/13 | Q3: Appropriation carried forward | R3: Appropriation for 2012/13 | S3: Adjustments in 2011/12 | T3: Downward adjustments for 2012/13 | U3: Appropriation carried forward | V3: =Head9 -> Budget Year 2014/15 | W3: =Head10 -> Budget Year +1 2015/16 | X3: =Head11 -> Budget Year +2 2016/17
A4: Capital expenditure - Municipal Vote
A5: Multi-year expenditure appropriation | B5: 2
A6: ='Org structure'!A2 -> Vote 1 - Executive and Council | C6: =SUM(C7:C16) -> 0 | D6: =SUM(D7:D16) -> 0 | E6: 0 | F6: 0 | G6: 0 | H6: 0 | I6: =SUM(I7:I16) -> 0 | J6: 0 | K6: 0 | L6: 0 | N6: =SUM(N7:N16) -> 0 | O6: 0 | P6: 0 | Q6: 0 | R6: 0 | S6: 0 | T6: 0 | U6: 0 | V6: =SUM(V7:V16) -> 0 | W6: =SUM(W7:W16) -> 0 | X6: =SUM(X7:X16) -> 0
A7: ='Org structure'!E3 -> 1.1 - Mayoral Administration | C7: 0 | D7: 0 | E7: 0 | F7: 0 | G7: 0 | H7: 0 | I7: 0 | J7: =Q7+V7 -> 0 | K7: =U7+W7 -> 0 | L7: =X7 -> 0 | Q7: =SUM(N7:P7) -> 0 | U7: =SUM(R7:T7) -> 0 | V7: 0 | W7: 0 | X7: 0
A8: ='Org structure'!E4 -> 1.2 - Speaker's Office | C8: 0 | D8: 0 | E8: 0 | F8: 0 | G8: 0 | H8: 0 | I8: 0 | J8: =Q8+V8 -> 0 | K8: =U8+W8 -> 0 | L8: =X8 -> 0 | Q8: =SUM(N8:P8) -> 0 | U8: =SUM(R8:T8) -> 0 | V8: 0 | W8: 0 | X8: 0
A9: ='Org structure'!E5 -> 1.3 - Mayoral Committee | C9: 0 | D9: 0 | E9: 0 | F9: 0 | G9: 0 | H9: 0 | I9: 0 | J9: =Q9+V9 -> 0 | K9: =U9+W9 -> 0 | L9: 0 | Q9: 0 | U9: 0
A10: ='Org structure'!E6 -> 1.4 - Other Councillors | C10: 0 | D10: 0 | E10: 0 | F10: 0 | G10: 0 | H10: 0 | I10: 0 | J10: 0 | K10: 0 | L10: 0 | Q10: 0 | U10: 0
A11: ='Org structure'!E7 -> 1.5 - Chief Whip's Office | C11: 0 | D11: 0 | E11: 0 | F11: 0 | G11: 0 | H11: 0 | I11: 0 | J11: 0 | K11: 0 | L11: =X11 -> 0 | Q11: 0 | U11: 0
A12: ='Org structure'!E8 -> 0 | J12: 0 | K12: 0 | L12: 0 | Q12: 0 | U12: 0
A13: ='Org structure'!E9 -> 0 | J13: 0 | K13: 0 | L13: 0 | Q13: 0 | U13: 0
A14: ='Org structure'!E10 -> 0 | J14: 0 | K14: 0 | L14: 0 | Q14: 0 | U14: 0
A15: ='Org structure'!E11 -> 0 | J15: 0 | K15: 0 | L15: 0 | Q15: 0 | U15: 0
A16: ='Org structure'!E12 -> 0 | J16: 0 | K16: 0 | L16: 0 | Q16: 0 | U16: 0
A17: ='Org structure'!A3 -> Vote 2 - Finance & Administration | C17: =SUM(C18:C27) -> 18718414 | D17: =SUM(D18:D27) -> 12999500 | E17: 12918481 | F17: 11771053 | G17: 16671053 | H17: 13591996 | I17: =SUM(I18:I27) -> 13591996 | J17: 13499996 | K17: 9297196 | L17: 3640512 | N17: =SUM(N18:N27) -> 0 | O17: 0 | P17: 0 | Q17: 0 | R17: 0 | S17: 0 | T17: 0 | U17: 0 | V17: 13499996 | W17: 9297196 | X17: 3640512
A18: ='Org structure'!E14 -> 2.1 - MMs Office | C18: 0 | D18: 0 | E18: 220166 | F18: 0 | G18: 0 | H18: 0 | I18: 0 | J18: =Q18+V18 -> 0 | K18: =U18+W18 -> 0 | L18: =X18 -> 0 | Q18: =SUM(N18:P18) -> 0 | U18: 0 | V18: 0 | W18: 0 | X18: 0
A19: ='Org structure'!E15 -> 2.2 - Budget & Treasury | C19: 0 | D19: 0 | E19: 56949 | F19: 0 | G19: 0 | H19: 0 | I19: 0 | J19: =Q19+V19 -> 0 | K19: =U19+W19 -> 0 | L19: 0 | Q19: 0 | U19: 0
A20: ='Org structure'!E16 -> 2.3 - Corporate Services | C20: 18718414 | D20: 12999500 | E20: 12641366 | F20: 11771053 | G20: 16671053 | H20: 13591996 | I20: 13591996 | J20: 13499996 | K20: 9297196 | L20: 3640512 | Q20: 0 | U20: 0 | V20: 13499996 | W20: 9297196 | X20: 3640512
A21: ='Org structure'!E17 -> 0 | J21: 0 | K21: =U21+W21 -> 0 | L21: 0 | Q21: 0 | U21: 0
A22: ='Org structure'!E18 -> 0 | J22: 0 | K22: 0 | L22: 0 | Q22: 0 | U22: 0
A23: ='Org structure'!E19 -> 0 | J23: 0 | K23: 0 | L23: 0 | Q23: 0 | U23: 0
A24: ='Org structure'!E20 -> 0 | J24: 0 | K24: 0 | L24: 0 | Q24: 0 | U24: 0
A25: ='Org structure'!E21 -> 0 | J25: 0 | K25: 0 | L25: 0 | Q25: 0 | U25: 0
A26: ='Org structure'!E22 -> 0 | J26: 0 | K26: 0 | L26: 0 | Q26: 0 | U26: 0
A27: ='Org structure'!E23 -> 0 | J27: 0 | K27: 0 | L27: 0 | Q27: 0 | U27: 0
A28: ='Org structure'!A4 -> Vote 3 - Transport, Infrastructure & Environment | C28: =SUM(C29:C38) -> 0 | D28: =SUM(D29:D38) -> 0 | E28: 135663 | F28: 3631060 | G28: 3631060 | H28: 0 | I28: =SUM(I29:I38) -> 0 | J28: 3737740 | K28: 3423118 | L28: 3607966 | N28: =SUM(N29:N38) -> 0 | O28: 0 | P28: 0 | Q28: 0 | R28: 0 | S28: 0 | T28: 0 | U28: 0 | V28: 3737740 | W28: 3423118 | X28: 3607966
A29: ='Org structure'!E25 -> 3.1 - Road Transport | C29: 0 | D29: 0 | E29: 128208 | F29: 3141060 | G29: 3141060 | H29: 0 | I29: 0 | J29: =Q29+V29 -> 3247740 | K29: =U29+W29 -> 3423118 | L29: =X29 -> 3607966 | Q29: =SUM(N29:P29) -> 0 | U29: 0 | V29: 3247740 | W29: 3423118 | X29: 3607966
A30: ='Org structure'!E26 -> 3.2 - Environment | C30: 0 | D30: 0 | E30: 7455 | F30: 490000 | G30: 490000 | H30: 0 | I30: 0 | J30: 490000 | K30: 0 | L30: 0 | Q30: 0 | U30: 0 | V30: 490000 | W30: 0 | X30: 0
A31: ='Org structure'!E27 -> 0 | J31: 0 | K31: 0 | L31: 0 | Q31: 0 | U31: =SUM(R31:T31) -> 0 | V31: 0 | W31: 0 | X31: 0
A32: ='Org structure'!E28 -> 0 | J32: 0 | K32: =U32+W32 -> 0 | L32: 0 | Q32: 0 | U32: 0 | V32: 0 | W32: 0 | X32: 0
A33: ='Org structure'!E29 -> 0 | J33: =Q33+V33 -> 0 | K33: 0 | L33: 0 | Q33: 0 | U33: 0
A34: ='Org structure'!E30 -> 0 | J34: 0 | K34: 0 | L34: 0 | Q34: 0 | U34: 0
A35: ='Org structure'!E31 -> 0 | J35: 0 | K35: 0 | L35: 0 | Q35: 0 | U35: 0
A36: ='Org structure'!E32 -> 0 | J36: 0 | K36: 0 | L36: 0 | Q36: 0 | U36: 0
A37: ='Org structure'!E33 -> 0 | J37: 0 | K37: 0 | L37: 0 | Q37: 0 | U37: 0
A38: ='Org structure'!E34 -> 0 | J38: 0 | K38: 0 | L38: 0 | Q38: 0 | U38: 0
A39: ='Org structure'!A5 -> Vote 4 - Community & Social Services | C39: =SUM(C40:C49) -> 17246200 | D39: =SUM(D40:D49) -> 2999999 | E39: 119858 | F39: 1300000 | G39: 1300000 | H39: 1300000 | I39: =SUM(I40:I49) -> 5638000 | J39: 0 | K39: 0 | L39: 0 | N39: =SUM(N40:N49) -> 0 | O39: 0 | P39: 0 | Q39: 0 | R39: 0 | S39: 0 | T39: 0 | U39: 0 | V39: 0 | W39: 0 | X39: 0
A40: ='Org structure'!E36 -> 4.1 - Sport Heritage & Public Safety | C40: 17246200 | D40: 2999999 | E40: 71198 | F40: 1300000 | G40: 1300000 | H40: 1300000 | I40: 5638000 | J40: =Q40+V40 -> 0 | K40: =U40+W40 -> 0 | L40: =X40 -> 0 | Q40: =SUM(N40:P40) -> 0 | U40: 0 | V40: 0 | W40: 0 | X40: 0
A41: ='Org structure'!E37 -> 4.2 - Social Development | C41: 0 | D41: 0 | E41: 48660 | F41: 0 | G41: 0 | H41: 0 | I41: 0 | J41: 0 | K41: 0 | L41: 0 | Q41: 0 | U41: 0 | V41: 0 | W41: 0 | X41: 0
A42: ='Org structure'!E38 -> 4.5 - Health | C42: 0 | D42: 0 | E42: 0 | F42: 0 | G42: 0 | H42: 0 | I42: 0 | J42: 0 | K42: 0 | L42: 0 | Q42: 0 | U42: 0
A43: ='Org structure'!E39 -> 4.4 - Disaster Management | C43: 0 | D43: 0 | E43: 0 | F43: 0 | G43: 0 | H43: 0 | I43: 0 | J43: 0 | K43: 0 | L43: 0 | Q43: 0 | U43: 0
A44: ='Org structure'!E40 -> 0 | J44: 0 | K44: 0 | L44: 0 | Q44: 0 | U44: 0
A45: ='Org structure'!E41 -> 0 | J45: 0 | K45: 0 | L45: 0 | Q45: 0 | U45: 0
A46: ='Org structure'!E42 -> 0 | J46: 0 | K46: 0 | L46: 0 | Q46: 0 | U46: 0
A47: ='Org structure'!E43 -> 0 | J47: 0 | K47: 0 | L47: 0 | Q47: 0 | U47: 0
A48: ='Org structure'!E44 -> 0 | J48: 0 | K48: 0 | L48: 0 | Q48: 0 | U48: 0
A49: ='Org structure'!E45 -> 0 | J49: 0 | K49: 0 | L49: 0 | Q49: 0 | U49: 0
A50: ='Org structure'!A6 -> Vote 5 - Planning & Development | C50: =SUM(C51:C60) -> 0 | D50: =SUM(D51:D60) -> 0 | E50: 101077 | F50: 1000000 | G50: 1000000 | H50: 0 | I50: =SUM(I51:I60) -> 0 | J50: 0 | K50: 0 | L50: 0 | N50: =SUM(N51:N60) -> 0 | O50: 0 | P50: 0 | Q50: 0 | R50: 0 | S50: 0 | T50: 0 | U50: 0 | V50: 0 | W50: 0 | X50: 0
A51: ='Org structure'!E47 -> 5.1 - Planning & Development | C51: 0 | D51: 0 | E51: 98577 | F51: 1000000 | G51: 1000000 | H51: 0 | I51: 0 | J51: =Q51+V51 -> 0 | K51: =U51+W51 -> 0 | L51: =X51 -> 0 | Q51: =SUM(N51:P51) -> 0 | U51: 0
A52: ='Org structure'!E48 -> 5.2 - Housing | C52: 0 | D52: 0 | E52: 2500 | F52: 0 | G52: 0 | H52: 0 | I52: 0 | J52: 0 | K52: 0 | L52: 0 | Q52: 0 | U52: 0
A53: ='Org structure'!E49 -> 0 | J53: 0 | K53: 0 | L53: 0 | Q53: 0 | U53: 0
A54: ='Org structure'!E50 -> 0 | J54: 0 | K54: 0 | L54: 0 | Q54: 0 | U54: 0
A55: ='Org structure'!E51 -> 0 | J55: 0 | K55: 0 | L55: 0 | Q55: 0 | U55: 0
A56: ='Org structure'!E52 -> 0 | J56: 0 | K56: 0 | L56: 0 | Q56: 0 | U56: 0
A57: ='Org structure'!E53 -> 0 | J57: 0 | K57: 0 | L57: 0 | Q57: 0 | U57: 0
A58: ='Org structure'!E54 -> 0 | J58: 0 | K58: 0 | L58: 0 | Q58: 0 | U58: 0
A59: ='Org structure'!E55 -> 0 | J59: 0 | K59: 0 | L59: 0 | Q59: 0 | U59: 0
A60: ='Org structure'!E56 -> 0 | J60: 0 | K60: 0 | L60: 0 | Q60: 0 | U60: 0
A61: ='Org structure'!A7 -> Vote 6 - | C61: =SUM(C62:C71) -> 0 | D61: =SUM(D62:D71) -> 0 | E61: 0 | F61: 0 | G61: 0 | H61: 0 | I61: =SUM(I62:I71) -> 0 | J61: 0 | K61: 0 | L61: 0 | N61: =SUM(N62:N71) -> 0 | O61: 0 | P61: 0 | Q61: 0 | R61: 0 | S61: 0 | T61: 0 | U61: 0 | V61: 0 | W61: 0 | X61: 0
A62: ='Org structure'!E58 -> 6.1 - [Name of sub-vote] | J62: =Q62+V62 -> 0 | K62: =U62+W62 -> 0 | L62: =X62 -> 0 | Q62: =SUM(N62:P62) -> 0 | U62: 0
A63: ='Org structure'!E59 -> 0 | J63: 0 | K63: 0 | L63: 0 | Q63: 0 | U63: 0
A64: ='Org structure'!E60 -> 0 | J64: 0 | K64: 0 | L64: 0 | Q64: 0 | U64: 0
A65: ='Org structure'!E61 -> 0 | J65: 0 | K65: 0 | L65: 0 | Q65: 0 | U65: 0
A66: ='Org structure'!E62 -> 0 | J66: 0 | K66: 0 | L66: 0 | Q66: 0 | U66: 0
A67: ='Org structure'!E63 -> 0 | J67: 0 | K67: 0 | L67: 0 | Q67: 0 | U67: 0
A68: ='Org structure'!E64 -> 0 | J68: 0 | K68: 0 | L68: 0 | Q68: 0 | U68: 0
A69: ='Org structure'!E65 -> 0 | J69: 0 | K69: 0 | L69: 0 | Q69: 0 | U69: 0
A70: ='Org structure'!E66 -> 0 | J70: 0 | K70: 0 | L70: 0 | Q70: 0 | U70: 0
A71: ='Org structure'!E67 -> 0 | J71: 0 | K71: 0 | L71: 0 | Q71: 0 | U71: 0
A72: ='Org structure'!A8 -> Vote 7 - | C72: =SUM(C73:C82) -> 0 | D72: 0 | E72: 0 | F72: 0 | G72: 0 | H72: 0 | I72: 0 | J72: 0 | K72: 0 | L72: 0 | N72: =SUM(N73:N82) -> 0 | O72: 0 | P72: 0 | Q72: 0 | R72: 0 | S72: 0 | T72: 0 | U72: 0 | V72: 0 | W72: 0 | X72: 0
A73: ='Org structure'!E69 -> 7.1 - [Name of sub-vote] | J73: =Q73+V73 -> 0 | K73: =U73+W73 -> 0 | L73: =X73 -> 0 | Q73: =SUM(N73:P73) -> 0 | U73: =SUM(R73:T73) -> 0
A74: ='Org structure'!E70 -> 0 | J74: 0 | K74: 0 | L74: 0 | Q74: 0 | U74: 0
A75: ='Org structure'!E71 -> 0 | J75: 0 | K75: 0 | L75: 0 | Q75: 0 | U75: 0
A76: ='Org structure'!E72 -> 0 | J76: 0 | K76: 0 | L76: 0 | Q76: 0 | U76: 0
A77: ='Org structure'!E73 -> 0 | J77: 0 | K77: 0 | L77: 0 | Q77: 0 | U77: 0
A78: ='Org structure'!E74 -> 0 | J78: 0 | K78: 0 | L78: 0 | Q78: 0 | U78: 0
A79: ='Org structure'!E75 -> 0 | J79: 0 | K79: 0 | L79: 0 | Q79: 0 | U79: 0
A80: ='Org structure'!E76 -> 0 | J80: 0 | K80: 0 | L80: 0 | Q80: 0 | U80: 0
A81: ='Org structure'!E77 -> 0 | J81: 0 | K81: 0 | L81: 0 | Q81: 0 | U81: 0
A82: ='Org structure'!E78 -> 0 | J82: 0 | K82: 0 | L82: 0 | Q82: 0 | U82: 0
A83: ='Org structure'!A9 -> Vote 8 - | C83: =SUM(C84:C93) -> 0 | D83: 0 | E83: 0 | F83: 0 | G83: 0 | H83: 0 | I83: 0 | J83: 0 | K83: 0 | L83: 0 | N83: =SUM(N84:N93) -> 0 | O83: 0 | P83: 0 | Q83: 0 | R83: 0 | S83: 0 | T83: 0 | U83: 0 | V83: 0 | W83: 0 | X83: 0
A84: ='Org structure'!E80 -> 8.1 - [Name of sub-vote] | J84: =Q84+V84 -> 0 | K84: =U84+W84 -> 0 | L84: =X84 -> 0 | Q84: =SUM(N84:P84) -> 0 | U84: 0
A85: ='Org structure'!E81 -> 0 | J85: 0 | K85: 0 | L85: 0 | Q85: 0 | U85: 0
A86: ='Org structure'!E82 -> 0 | J86: 0 | K86: 0 | L86: 0 | Q86: 0 | U86: 0
A87: ='Org structure'!E83 -> 0 | J87: 0 | K87: 0 | L87: 0 | Q87: 0 | U87: 0
A88: ='Org structure'!E84 -> 0 | J88: 0 | K88: 0 | L88: 0 | Q88: 0 | U88: 0
A89: ='Org structure'!E85 -> 0 | J89: 0 | K89: 0 | L89: 0 | Q89: 0 | U89: 0
A90: ='Org structure'!E86 -> 0 | J90: 0 | K90: 0 | L90: 0 | Q90: 0 | U90: 0
A91: ='Org structure'!E87 -> 0 | J91: 0 | K91: 0 | L91: 0 | Q91: 0 | U91: 0
A92: ='Org structure'!E88 -> 0 | J92: 0 | K92: 0 | L92: 0 | Q92: 0 | U92: 0
A93: ='Org structure'!E89 -> 0 | J93: 0 | K93: 0 | L93: 0 | Q93: 0 | U93: 0
A94: ='Org structure'!A10 -> Vote 9 - | C94: =SUM(C95:C104) -> 0 | D94: =SUM(D95:D104) -> 0 | E94: 0 | F94: 0 | G94: 0 | H94: 0 | I94: 0 | J94: 0 | K94: 0 | L94: 0 | N94: =SUM(N95:N104) -> 0 | O94: 0 | P94: 0 | Q94: 0 | R94: 0 | S94: 0 | T94: 0 | U94: 0 | V94: 0 | W94: 0 | X94: 0
A95: ='Org structure'!E91 -> 9.1 - [Name of sub-vote] | J95: =Q95+V95 -> 0 | K95: =U95+W95 -> 0 | L95: =X95 -> 0 | Q95: =SUM(N95:P95) -> 0 | U95: 0
A96: ='Org structure'!E92 -> 0 | J96: 0 | K96: 0 | L96: 0 | Q96: 0 | U96: 0
A97: ='Org structure'!E93 -> 0 | J97: 0 | K97: 0 | L97: 0 | Q97: 0 | U97: 0
A98: ='Org structure'!E94 -> 0 | J98: 0 | K98: 0 | L98: 0 | Q98: 0 | U98: 0
A99: ='Org structure'!E95 -> 0 | J99: 0 | K99: 0 | L99: 0 | Q99: 0 | U99: 0
A100: ='Org structure'!E96 -> 0 | J100: 0 | K100: 0 | L100: 0 | Q100: 0 | U100: 0
A101: ='Org structure'!E97 -> 0 | J101: 0 | K101: 0 | L101: 0 | Q101: 0 | U101: 0
A102: ='Org structure'!E98 -> 0 | J102: 0 | K102: 0 | L102: 0 | Q102: 0 | U102: 0
A103: ='Org structure'!E99 -> 0 | J103: 0 | K103: 0 | L103: 0 | Q103: 0 | U103: 0
A104: ='Org structure'!E100 -> 0 | J104: 0 | K104: 0 | L104: 0 | Q104: 0 | U104: 0
A105: ='Org structure'!A11 -> Vote 10 - | C105: =SUM(C106:C115) -> 0 | D105: =SUM(D106:D115) -> 0 | E105: 0 | F105: 0 | G105: 0 | H105: 0 | I105: 0 | J105: 0 | K105: 0 | L105: 0 | N105: =SUM(N106:N115) -> 0 | O105: 0 | P105: 0 | Q105: 0 | R105: 0 | S105: 0 | T105: 0 | U105: 0 | V105: 0 | W105: 0 | X105: 0
A106: ='Org structure'!E102 -> 10.1 - [Name of sub-vote] | J106: =Q106+V106 -> 0 | K106: =U106+W106 -> 0 | L106: =X106 -> 0 | Q106: =SUM(N106:P106) -> 0 | U106: 0
A107: ='Org structure'!E103 -> 0 | J107: 0 | K107: 0 | L107: 0 | Q107: 0 | U107: 0
A108: ='Org structure'!E104 -> 0 | J108: 0 | K108: 0 | L108: 0 | Q108: 0 | U108: 0
A109: ='Org structure'!E105 -> 0 | J109: 0 | K109: 0 | L109: 0 | Q109: 0 | U109: 0
A110: ='Org structure'!E106 -> 0 | J110: 0 | K110: 0 | L110: 0 | Q110: 0 | U110: 0
A111: ='Org structure'!E107 -> 0 | J111: 0 | K111: 0 | L111: 0 | Q111: 0 | U111: 0
A112: ='Org structure'!E108 -> 0 | J112: 0 | K112: 0 | L112: 0 | Q112: 0 | U112: 0
A113: ='Org structure'!E109 -> 0 | J113: 0 | K113: 0 | L113: 0 | Q113: 0 | U113: 0
A114: ='Org structure'!E110 -> 0 | J114: 0 | K114: 0 | L114: 0 | Q114: 0 | U114: 0
A115: ='Org structure'!E111 -> 0 | J115: 0 | K115: 0 | L115: 0 | Q115: 0 | U115: 0
A116: ='Org structure'!A12 -> Vote 11 - | C116: =SUM(C117:C126) -> 0 | D116: 0 | E116: 0 | F116: 0 | G116: 0 | H116: 0 | I116: 0 | J116: 0 | K116: 0 | L116: 0 | N116: =SUM(N117:N126) -> 0 | O116: 0 | P116: 0 | Q116: 0 | R116: 0 | S116: 0 | T116: 0 | U116: 0 | V116: 0 | W116: 0 | X116: 0
A117: ='Org structure'!E113 -> 11.1 - [Name of sub-vote] | J117: =Q117+V117 -> 0 | K117: =U117+W117 -> 0 | L117: =X117 -> 0 | Q117: =SUM(N117:P117) -> 0 | U117: 0
A118: ='Org structure'!E114 -> 0 | J118: 0 | K118: 0 | L118: 0 | Q118: 0 | U118: 0
A119: ='Org structure'!E115 -> 0 | J119: 0 | K119: 0 | L119: 0 | Q119: 0 | U119: 0
A120: ='Org structure'!E116 -> 0 | J120: 0 | K120: 0 | L120: 0 | Q120: 0 | U120: 0
A121: ='Org structure'!E117 -> 0 | J121: 0 | K121: 0 | L121: 0 | Q121: 0 | U121: 0
A122: ='Org structure'!E118 -> 0 | J122: 0 | K122: 0 | L122: 0 | Q122: 0 | U122: 0
A123: ='Org structure'!E119 -> 0 | J123: 0 | K123: 0 | L123: 0 | Q123: 0 | U123: 0
A124: ='Org structure'!E120 -> 0 | J124: 0 | K124: 0 | L124: 0 | Q124: 0 | U124: 0
A125: ='Org structure'!E121 -> 0 | J125: 0 | K125: 0 | L125: 0 | Q125: 0 | U125: 0
A126: ='Org structure'!E122 -> 0 | J126: 0 | K126: 0 | L126: 0 | Q126: 0 | U126: 0
A127: ='Org structure'!A13 -> Vote 12 - | C127: =SUM(C128:C137) -> 0 | D127: 0 | E127: 0 | F127: 0 | G127: 0 | H127: 0 | I127: 0 | J127: 0 | K127: 0 | L127: 0 | N127: =SUM(N128:N137) -> 0 | O127: 0 | P127: 0 | Q127: 0 | R127: 0 | S127: 0 | T127: 0 | U127: 0 | V127: 0 | W127: 0 | X127: 0
A128: ='Org structure'!E124 -> 12.1 - [Name of sub-vote] | J128: =Q128+V128 -> 0 | K128: =U128+W128 -> 0 | L128: =X128 -> 0 | Q128: =SUM(N128:P128) -> 0 | U128: 0
A129: ='Org structure'!E125 -> 0 | J129: 0 | K129: 0 | L129: 0 | Q129: 0 | U129: 0
A130: ='Org structure'!E126 -> 0 | J130: 0 | K130: 0 | L130: 0 | Q130: 0 | U130: 0
A131: ='Org structure'!E127 -> 0 | J131: 0 | K131: 0 | L131: 0 | Q131: 0 | U131: 0
A132: ='Org structure'!E128 -> 0 | J132: 0 | K132: 0 | L132: 0 | Q132: 0 | U132: 0
A133: ='Org structure'!E129 -> 0 | J133: =Q133+V133 -> 0 | K133: 0 | L133: 0 | Q133: 0 | U133: 0
A134: ='Org structure'!E130 -> 0 | J134: 0 | K134: 0 | L134: 0 | Q134: 0 | U134: 0
A135: ='Org structure'!E131 -> 0 | J135: 0 | K135: 0 | L135: 0 | Q135: 0 | U135: 0
A136: ='Org structure'!E132 -> 0 | J136: 0 | K136: 0 | L136: 0 | Q136: 0 | U136: =SUM(R136:T136) -> 0
A137: ='Org structure'!E133 -> 0 | J137: 0 | K137: 0 | L137: 0 | Q137: 0 | U137: 0
A138: ='Org structure'!A14 -> Vote 13 - | C138: =SUM(C139:C148) -> 0 | D138: 0 | E138: 0 | F138: 0 | G138: 0 | H138: 0 | I138: 0 | J138: 0 | K138: 0 | L138: 0 | N138: =SUM(N139:N148) -> 0 | O138: 0 | P138: 0 | Q138: 0 | R138: 0 | S138: 0 | T138: 0 | U138: 0 | V138: 0 | W138: 0 | X138: 0
A139: ='Org structure'!E135 -> 13.1 - [Name of sub-vote] | J139: =Q139+V139 -> 0 | K139: =U139+W139 -> 0 | L139: =X139 -> 0 | Q139: =SUM(N139:P139) -> 0 | U139: 0
A140: ='Org structure'!E136 -> 0 | J140: 0 | K140: 0 | L140: 0 | Q140: 0 | U140: 0
A141: ='Org structure'!E137 -> 0 | J141: 0 | K141: 0 | L141: 0 | Q141: 0 | U141: 0
A142: ='Org structure'!E138 -> 0 | J142: 0 | K142: 0 | L142: 0 | Q142: 0 | U142: 0
A143: ='Org structure'!E139 -> 0 | J143: 0 | K143: 0 | L143: 0 | Q143: 0 | U143: 0
A144: ='Org structure'!E140 -> 0 | J144: 0 | K144: 0 | L144: 0 | Q144: 0 | U144: 0
A145: ='Org structure'!E141 -> 0 | J145: 0 | K145: 0 | L145: 0 | Q145: 0 | U145: 0
A146: ='Org structure'!E142 -> 0 | J146: 0 | K146: 0 | L146: 0 | Q146: 0 | U146: 0
A147: ='Org structure'!E143 -> 0 | J147: 0 | K147: 0 | L147: 0 | Q147: 0 | U147: 0
A148: ='Org structure'!E144 -> 0 | J148: 0 | K148: 0 | L148: 0 | Q148: 0 | U148: 0
A149: ='Org structure'!A15 -> Vote 14 - | C149: =SUM(C150:C159) -> 0 | D149: 0 | E149: 0 | F149: 0 | G149: 0 | H149: 0 | I149: 0 | J149: 0 | K149: 0 | L149: 0 | N149: =SUM(N150:N159) -> 0 | O149: 0 | P149: 0 | Q149: 0 | R149: 0 | S149: 0 | T149: 0 | U149: 0 | V149: 0 | W149: 0 | X149: 0
A150: ='Org structure'!E146 -> 14.1 - [Name of sub-vote] | J150: =Q150+V150 -> 0 | K150: =U150+W150 -> 0 | L150: =X150 -> 0 | Q150: =SUM(N150:P150) -> 0 | U150: 0
A151: ='Org structure'!E147 -> 0 | J151: 0 | K151: 0 | L151: 0 | Q151: 0 | U151: 0
A152: ='Org structure'!E148 -> 0 | J152: 0 | K152: 0 | L152: 0 | Q152: 0 | U152: 0
A153: ='Org structure'!E149 -> 0 | J153: 0 | K153: 0 | L153: 0 | Q153: 0 | U153: 0
A154: ='Org structure'!E150 -> 0 | J154: 0 | K154: 0 | L154: 0 | Q154: 0 | U154: 0
A155: ='Org structure'!E151 -> 0 | J155: 0 | K155: 0 | L155: 0 | Q155: 0 | U155: 0
A156: ='Org structure'!E152 -> 0 | J156: 0 | K156: 0 | L156: 0 | Q156: 0 | U156: 0
A157: ='Org structure'!E153 -> 0 | J157: 0 | K157: 0 | L157: 0 | Q157: 0 | U157: 0
A158: ='Org structure'!E154 -> 0 | J158: 0 | K158: 0 | L158: 0 | Q158: 0 | U158: 0
A159: ='Org structure'!E155 -> 0 | J159: 0 | K159: 0 | L159: 0 | Q159: 0 | U159: 0
A160: ='Org structure'!A16 -> Vote 15 - | C160: =SUM(C161:C170) -> 0 | D160: 0 | E160: 0 | F160: 0 | G160: 0 | H160: 0 | I160: 0 | J160: 0 | K160: 0 | L160: 0 | N160: =SUM(N161:N170) -> 0 | O160: 0 | P160: 0 | Q160: 0 | R160: 0 | S160: 0 | T160: 0 | U160: 0 | V160: 0 | W160: 0 | X160: 0
A161: ='Org structure'!E157 -> 15.1 - [Name of sub-vote] | J161: =Q161+V161 -> 0 | K161: =U161+W161 -> 0 | L161: =X161 -> 0 | Q161: =SUM(N161:P161) -> 0 | U161: 0
A162: ='Org structure'!E158 -> 0 | J162: 0 | K162: 0 | L162: 0 | Q162: 0 | U162: 0
A163: ='Org structure'!E159 -> 0 | J163: 0 | K163: 0 | L163: 0 | Q163: 0 | U163: 0
A164: ='Org structure'!E160 -> 0 | J164: 0 | K164: 0 | L164: 0 | Q164: 0 | U164: 0
A165: ='Org structure'!E161 -> 0 | J165: 0 | K165: 0 | L165: 0 | Q165: 0 | U165: 0
A166: ='Org structure'!E162 -> 0 | J166: 0 | K166: 0 | L166: 0 | Q166: 0 | U166: 0
A167: ='Org structure'!E163 -> 0 | J167: 0 | K167: 0 | L167: 0 | Q167: 0 | U167: 0
A168: ='Org structure'!E164 -> 0 | J168: 0 | K168: 0 | L168: 0 | Q168: 0 | U168: 0
A169: ='Org structure'!E165 -> 0 | J169: 0 | K169: 0 | L169: 0 | Q169: 0 | U169: 0
A170: ='Org structure'!E166 -> 0 | J170: 0 | K170: 0 | L170: 0 | Q170: 0 | U170: 0
A171: Capital multi-year expenditure sub-total | C171: =C6+C17+C28+C39+C50+C61+C72+C83+C94+C105+C116+C127+C138+C149+C160 -> 35964614 | D171: =D6+D17+D28+D39+D50+D61+D72+D83+D94+D105+D116+D127+D138+D149+D160 -> 15999499 | E171: 13275079 | F171: 17702113 | G171: 22602113 | H171: 14891996 | I171: 19229996 | J171: 17237736 | K171: 12720314 | L171: 7248478 | N171: =N6+N17+N28+N39+N50+N61+N72+N83+N94+N105+N116+N127+N138+N149+N160 -> 0 | O171: 0 | P171: 0 | Q171: 0 | R171: 0 | S171: 0 | U171: 0 | V171: =V6+V17+V28+V39+V50+V61+V72+V83+V94+V105+V116+V127+V138+V149+V160 -> 17237736 | W171: =W6+W17+W28+W39+W50+W61+W72+W83+W94+W105+W116+W127+W138+W149+W160 -> 12720314 | X171: =X6+X17+X28+X39+X50+X61+X72+X83+X94+X105+X116+X127+X138+X149+X160 -> 7248478
A173: Capital expenditure - Municipal Vote
A174: Single-year expenditure appropriation | B174: 2
A175: =A6 -> Vote 1 - Executive and Council | C175: =SUM(C176:C185) -> 0 | D175: 0 | E175: 0 | F175: 0 | G175: 0 | H175: 0 | I175: 0 | J175: 0 | K175: 0 | L175: 0
A176: =A7 -> 1.1 - Mayoral Administration | C176: 0 | D176: 0 | E176: 0 | F176: 0 | G176: 0 | H176: 0 | I176: 0 | J176: 0 | K176: 0 | L176: 0
A177: 1.2 - Speaker's Office | C177: 0 | D177: 0 | E177: 0 | F177: 0 | G177: 0 | H177: 0 | I177: 0 | J177: 0 | K177: 0 | L177: 0
A178: 1.3 - Mayoral Committee | C178: 0 | D178: 0 | E178: 0 | F178: 0 | G178: 0 | H178: 0 | I178: 0 | J178: 0 | K178: 0 | L178: 0
A179: 1.4 - Other Councillors | C179: 0 | D179: 0 | E179: 0 | F179: 0 | G179: 0 | H179: 0 | I179: 0 | J179: 0 | K179: 0 | L179: 0
A180: 1.5 - Chief Whip's Office | C180: 0 | D180: 0 | E180: 0 | F180: 0 | G180: 0 | H180: 0 | I180: 0 | J180: 0 | K180: 0 | L180: 0
A181: 0
A182: 0
A183: 0
A184: 0
A185: 0
A186: Vote 2 - Finance & Administration | C186: =SUM(C187:C196) -> 0 | D186: 0 | E186: 0 | F186: 0 | G186: 0 | H186: 0 | I186: 0 | J186: 0 | K186: 0 | L186: 0
A187: 2.1 - MMs Office | C187: 0 | D187: 0 | E187: 0 | F187: 0 | G187: 0 | H187: 0 | I187: 0 | J187: 0 | K187: 0 | L187: 0
A188: 2.2 - Budget & Treasury | C188: 0 | D188: 0 | E188: 0 | F188: 0 | G188: 0 | H188: 0 | I188: 0 | J188: 0 | K188: 0 | L188: 0
A189: 2.3 - Corporate Services | C189: 0 | D189: 0 | E189: 0 | F189: 0 | G189: 0 | H189: 0 | I189: 0 | J189: 0 | K189: 0 | L189: 0
A190: 0
A191: 0
A192: 0
A193: 0
A194: 0
A195: 0
A196: 0
A197: Vote 3 - Transport, Infrastructure & Environment | C197: =SUM(C198:C207) -> 0 | D197: 0 | E197: 0 | F197: 0 | G197: 0 | H197: 0 | I197: 0 | J197: 0 | K197: 0 | L197: 0
A198: 3.1 - Road Transport | C198: 0 | D198: 0 | E198: 0 | F198: 0 | G198: 0 | H198: 0 | I198: 0 | J198: 0 | K198: 0 | L198: 0
A199: 3.2 - Environment | C199: 0 | D199: 0 | E199: 0 | F199: 0 | G199: 0 | H199: 0 | I199: 0 | J199: 0 | K199: 0 | L199: 0
A200: 0
A201: 0
... 140 more rows

Sheet A6-FinPos
A1: =muni&" - "&Approve6 -> DC42 Sedibeng - Table A6 Budgeted Financial Position
A2: =desc -> Description | B2: =head27 -> Ref | C2: =head1b -> 2010/11 | D2: =head1A -> 2011/12 | E2: =Head1 -> 2012/13 | F2: =Head2 -> Current Year 2013/14 | J2: =Head3 -> 2014/15 Medium Term Revenue & Expenditure Framework
A3: R thousand | C3: =Head5 -> Audited Outcome | D3: =Head5 -> Audited Outcome | E3: =Head5 -> Audited Outcome | F3: =Head6 -> Original Budget | G3: =Head7 -> Adjusted Budget | H3: =Head8 -> Full Year Forecast | I3: =Head5b -> Pre-audit outcome | J3: =Head9 -> Budget Year 2014/15 | K3: =Head10 -> Budget Year +1 2015/16 | L3: =Head11 -> Budget Year +2 2016/17
A4: ASSETS
A5: Current assets
A6: Cash | C6: 42428705.78 | D6: 12491995.26 | E6: 6915829 | F6: 33125000 | G6: 13970643 | H6: 11158146 | I6: 28251309.59 | J6: 33125000 | K6: 34946890.78 | L6: 36659288.43
A7: Call investment deposits | B7: 1 | C7: ='SA3'!C9 -> 0 | D7: ='SA3'!D9 -> 0 | E7: ='SA3'!E9 -> 0 | F7: ='SA3'!F9 -> 0 | G7: ='SA3'!G9 -> 0 | H7: ='SA3'!H9 -> 0 | I7: ='SA3'!I9 -> 0 | J7: ='SA3'!J9 -> 0 | K7: ='SA3'!K9 -> 0 | L7: ='SA3'!L9 -> 0
A8: Consumer debtors | B8: 1 | C8: ='SA3'!C14 -> 0 | D8: ='SA3'!D14 -> 5434493 | E8: ='SA3'!E14 -> 0 | F8: ='SA3'!F14 -> 0 | G8: ='SA3'!G14 -> 0 | H8: ='SA3'!H14 -> 0 | I8: ='SA3'!I14 -> 0 | J8: ='SA3'!J14 -> 0 | K8: ='SA3'!K14 -> 0 | L8: ='SA3'!L14 -> 0
A9: Other debtors | C9: 27480358 | D9: 33178703 | E9: 11480511 | F9: 43990203.48 | G9: 43990203.48 | H9: 32450935 | I9: 3035507.81 | J9: 43990203.48 | K9: 35893183.43 | L9: 32085147.91
A10: Current portion of long-term receivables | C10: 0 | D10: 0 | E10: 0 | F10: 0 | G10: 0 | H10: 0 | I10: 0 | J10: 0 | K10: 0 | L10: 0
A11: Inventory | B11: 2 | C11: 370013.47 | D11: 307521.87 | E11: 220090 | F11: 0 | G11: 0 | H11: 475475.13 | I11: -257417.08 | J11: 0 | K11: 0 | L11: 0
A12: Total current assets | C12: =SUM(C6:C11) -> 70279077.25 | D12: 51412713.13 | E12: 18616430 | F12: 77115203.48 | G12: 57960846.48 | H12: 44084556.13 | I12: 31029400.32 | J12: 77115203.48 | K12: 70840074.21 | L12: 68744436.34
A14: Non current assets
A15: Long-term receivables | C15: 0 | D15: 0 | E15: 0 | F15: 0 | G15: 0 | H15: 0 | I15: 0 | J15: 0 | K15: 0 | L15: 0
A16: Investments | C16: 0 | D16: 0 | E16: 0 | F16: 0 | G16: 0 | H16: 0 | I16: 0 | J16: 0 | K16: 0 | L16: 0
A17: Investment property | C17: 0 | D17: 0 | E17: 0 | F17: 0 | G17: 0 | H17: 0 | I17: 0 | J17: 0 | K17: 0 | L17: 0
A18: Investment in Associate | C18: 0 | D18: 0 | E18: 0 | F18: 0 | G18: 0 | H18: 0 | I18: 0 | J18: 0 | K18: 0 | L18: 0
A19: Property, plant and equipment | B19: 3 | C19: ='SA3'!C26 -> 192591723 | D19: ='SA3'!D26 -> 184233785 | E19: ='SA3'!E26 -> 177355663 | F19: ='SA3'!F26 -> 140406113 | G19: ='SA3'!G26 -> 145306113 | H19: ='SA3'!H26 -> 174503395 | I19: ='SA3'!I26 -> 174503395 | J19: ='SA3'!J26 -> 117140557 | K19: ='SA3'!K26 -> 99611397.06 | L19: ='SA3'!L26 -> 105632367.8
A20: Agricultural | C20: 0 | D20: 0 | E20: 0 | F20: 0 | G20: 0 | H20: 0 | I20: 0 | J20: 0 | K20: 0 | L20: 0
A21: Biological | C21: 0 | D21: 0 | E21: 0 | F21: 0 | G21: 0 | H21: 0 | I21: 0 | J21: 0 | K21: 0 | L21: 0
A22: Intangible | C22: 2319690.05 | D22: 1923053.93 | E22: 987106 | F22: 2320000 | G22: 2320000 | H22: 2320000 | I22: 2320000 | J22: 2320000 | K22: 2320000 | L22: 2433680
A23: Other non-current assets | C23: 0 | D23: 0 | E23: 0 | F23: 0 | G23: 0 | H23: 0 | I23: 0 | J23: 0 | K23: 0 | L23: 0
A24: Total non current assets | C24: =SUM(C15:C23) -> 194911413.1 | D24: =SUM(D15:D23) -> 186156838.9 | E24: =SUM(E15:E23) -> 178342769 | F24: 142726113 | G24: 147626113 | H24: 176823395 | I24: 176823395 | J24: 119460557 | K24: 101931397.1 | L24: 108066047.8
A25: TOTAL ASSETS | C25: =C12+C24 -> 265190490.3 | D25: =D12+D24 -> 237569552.1 | E25: =E12+E24 -> 196959199 | F25: =F12+F24 -> 219841316.5 | G25: 205586959.5 | H25: 220907951.1 | I25: 207852795.3 | J25: 196575760.5 | K25: 172771471.3 | L25: 176810484.1
A27: LIABILITIES
A28: Current liabilities
A29: Bank overdraft | B29: 1 | C29: 0 | D29: 0 | E29: 0 | F29: 0 | G29: 0 | H29: 0 | I29: 0 | J29: 0 | K29: 0 | L29: 0
A30: Borrowing | B30: 4 | C30: ='SA3'!C32 -> 0 | D30: ='SA3'!D32 -> 0 | E30: ='SA3'!E32 -> 0 | F30: ='SA3'!F32 -> 0 | G30: ='SA3'!G32 -> 0 | H30: ='SA3'!H32 -> 0 | I30: ='SA3'!I32 -> 0 | J30: ='SA3'!J32 -> 0 | K30: ='SA3'!K32 -> 0 | L30: ='SA3'!L32 -> 0
A31: Consumer deposits | C31: 0 | D31: 0 | E31: 0 | F31: 0 | G31: 0 | H31: 0 | I31: 0 | J31: 0 | K31: 0 | L31: 0
A32: Trade and other payables | B32: 4 | C32: ='SA3'!C38 -> 91676849.33 | D32: ='SA3'!D38 -> 59461599.58 | E32: ='SA3'!E38 -> 56919825 | F32: ='SA3'!F38 -> 64483000 | G32: ='SA3'!G38 -> 43492591 | H32: ='SA3'!H38 -> 42726130.13 | I32: ='SA3'!I38 -> 42726130.13 | J32: ='SA3'!J38 -> 64483000 | K32: ='SA3'!K38 -> 45405000 | L32: ='SA3'!L38 -> 47629845
A33: Provisions | C33: 1970950.71 | D33: 2755750.71 | E33: 1926700 | F33: 2027616.56 | G33: 2027616.877 | H33: 2026583 | I33: 2026583 | J33: 2027616.56 | K33: 2126969.771 | L33: 2231191.29
A34: Total current liabilities | C34: =SUM(C29:C33) -> 93647800.04 | D34: 62217350.29 | E34: 58846525 | F34: 66510616.56 | G34: 45520207.88 | H34: 44752713.13 | I34: 44752713.13 | J34: 66510616.56 | K34: 47531969.77 | L34: 49861036.29
A36: Non current liabilities
A37: Borrowing | C37: ='SA3'!C43 -> 0 | D37: ='SA3'!D43 -> 0 | E37: ='SA3'!E43 -> 0 | F37: ='SA3'!F43 -> 0 | G37: ='SA3'!G43 -> 0 | H37: ='SA3'!H43 -> 0 | I37: ='SA3'!I43 -> 0 | J37: ='SA3'!J43 -> 0 | K37: ='SA3'!K43 -> 0 | L37: ='SA3'!L43 -> 0
A38: Provisions | C38: ='SA3'!C50 -> 0 | D38: ='SA3'!D50 -> 0 | E38: ='SA3'!E50 -> 0 | F38: ='SA3'!F50 -> 0 | G38: ='SA3'!G50 -> 0 | H38: ='SA3'!H50 -> 0 | I38: ='SA3'!I50 -> 0 | J38: ='SA3'!J50 -> 0 | K38: ='SA3'!K50 -> 0 | L38: ='SA3'!L50 -> 0
A39: Total non current liabilities | C39: =SUM(C37:C38) -> 0 | D39: =SUM(D37:D38) -> 0 | E39: =SUM(E37:E38) -> 0 | F39: =SUM(F37:F38) -> 0 | G39: 0 | H39: 0 | I39: 0 | J39: 0 | K39: =SUM(K37:K38) -> 0 | L39: 0
A40: TOTAL LIABILITIES | C40: =C34+C39 -> 93647800.04 | D40: =D34+D39 -> 62217350.29 | E40: =E34+E39 -> 58846525 | F40: =F34+F39 -> 66510616.56 | G40: 45520207.88 | H40: 44752713.13 | I40: 44752713.13 | J40: 66510616.56 | K40: =K34+K39 -> 47531969.77 | L40: 49861036.29
A42: NET ASSETS | B42: 5 | C42: =C25-C40 -> 171542690.3 | D42: 175352201.8 | E42: 138112674 | F42: 153330699.9 | G42: 160066751.6 | H42: 176155238 | I42: 163100082.2 | J42: 130065143.9 | K42: 125239501.5 | L42: 126949447.8
A44: COMMUNITY WEALTH/EQUITY
A45: Accumulated Surplus/(Deficit) | C45: 168234940.1 | D45: 172660370.7 | E45: 135981982.4 | F45: 150521576.9 | G45: 157257629 | H45: 172847806 | I45: 159792650.2 | J45: 150521576.9 | K45: 145695934.5 | L45: 147405880.5
A46: Reserves | B46: 4 | C46: ='SA3'!C69 -> 3307432.33 | D46: ='SA3'!D69 -> 2691831.01 | E46: ='SA3'!E69 -> 2130690 | F46: ='SA3'!F69 -> 2809123 | G46: ='SA3'!G69 -> 2809123 | H46: ='SA3'!H69 -> 3307432 | I46: ='SA3'!I69 -> 3307432 | J46: ='SA3'!J69 -> 2809123 | K46: ='SA3'!K69 -> 2809123 | L46: ='SA3'!L69 -> 2809123
A47: Minorities' interests | C47: 0 | D47: 0 | E47: 0 | F47: 0 | G47: 0 | H47: 0 | I47: 0 | J47: 0 | K47: 0 | L47: 0
A48: TOTAL COMMUNITY WEALTH/EQUITY | B48: 5 | C48: =SUM(C45:C47) -> 171542372.4 | D48: =SUM(D45:D47) -> 175352201.8 | E48: 138112672.4 | F48: 153330699.9 | G48: 160066752 | H48: 176155238 | I48: 163100082.2 | J48: 153330699.9 | K48: 148505057.5 | L48: 150215003.5
A49: =head27a -> References
A50: 1. Detail to be provided in Table SA3
A51: 2. Include completed low cost housing to be transferred to beneficiaries within 12 months
A52: 3. Include 'Construction-work-in-progress' (disclosed separately in annual financial statements)
A53: 4. Detail to be provided in Table SA3. Includes reserves to be funded by statute.
A54: 5. Net assets must balance with Total Community Wealth/Equity
A55: check balance | C55: =C42-C48 -> 317.8899997 | D55: 0.009999901056 | E55: 1.649999976 | F55: 0 | G55: -0.3974931836 | H55: 0 | I55: 0 | J55: -23265556 | K55: -23265556.01 | L55: -23265555.65

Sheet A7-CFlow
A1: =muni&" - "&Approve7 -> DC42 Sedibeng - Table A7 Budgeted Cash Flows
A2: =desc -> Description | B2: =head27 -> Ref | C2: =head1b -> 2010/11 | D2: =head1A -> 2011/12 | E2: =Head1 -> 2012/13 | F2: =Head2 -> Current Year 2013/14 | J2: =Head3 -> 2014/15 Medium Term Revenue & Expenditure Framework
A3: R thousand | C3: =Head5 -> Audited Outcome | D3: =Head5 -> Audited Outcome | E3: =Head5 -> Audited Outcome | F3: =Head6 -> Original Budget | G3: =Head7 -> Adjusted Budget | H3: =Head8 -> Full Year Forecast | I3: =Head5b -> Pre-audit outcome | J3: =Head9 -> Budget Year 2014/15 | K3: =Head10 -> Budget Year +1 2015/16 | L3: =Head11 -> Budget Year +2 2016/17
A4: CASH FLOW FROM OPERATING ACTIVITIES
A5: Receipts
A6: Ratepayers and other | C6: 306462135 | D6: 62368547.85 | E6: 79607422 | F6: 87855330.92 | G6: 105438740.9 | H6: 118552095 | I6: 87808714.64 | J6: 87855330.92 | K6: 92335952.81 | L6: 96860414.44
A7: Government - operating | B7: 1 | C7: 278718934 | D7: 292212987.3 | E7: 259626687.8 | F7: 260552000 | G7: 260552000 | H7: 273312566 | I7: 188312021.7 | J7: 260552000 | K7: 248595000 | L7: 255347000
A8: Government - capital | B8: 1 | C8: 0 | D8: 0 | E8: 0 | F8: 0 | G8: 0 | H8: 0 | I8: 0 | J8: 0 | K8: 0 | L8: 0
A9: Interest | C9: 6237003 | D9: 2221853.75 | E9: 2115594.95 | F9: 2060000 | G9: 2100440 | H9: 2059644 | I9: 1571122.81 | J9: 2060000 | K9: 2165060 | L9: 2271147.94
A10: Dividends | C10: 0 | D10: 0 | E10: 0 | F10: 0 | G10: 0 | H10: 0 | I10: 0 | J10: 0 | K10: 0 | L10: 0
A11: Payments
A12: Suppliers and employees | C12: -545744980 | D12: -372188762.5 | E12: -328510945 | F12: -294834840 | G12: -322490740 | H12: -347037696 | I12: -295626872.9 | J12: -294834840 | K12: -333920641.3 | L12: -345053560.4
A13: Finance charges | C13: 0 | D13: 0 | E13: 0 | F13: 0 | G13: 0 | H13: 0 | I13: 0 | J13: 0 | K13: 0 | L13: 0
A14: Transfers and Grants | B14: 1 | C14: -85525748 | D14: -250000 | E14: -5221646.16 | F14: -16013158 | G14: -16013158 | H14: -11853401 | I14: 0 | J14: -16013158 | K14: 0 | L14: 0
A15: NET CASH FROM/(USED) OPERATING ACTIVITIES | C15: =SUM(C6:C10)+SUM(C12:C14) -> -39852656 | D15: =SUM(D6:D10)+SUM(D12:D14) -> -15635373.53 | E15: 7617113.57 | F15: 39619332.92 | G15: 29587282.92 | H15: 35033208.04 | I15: -17935013.69 | J15: 39619332.92 | K15: 9175371.51 | L15: 9425002.03
A17: CASH FLOWS FROM INVESTING ACTIVITIES
A18: Receipts
A19: Proceeds on disposal of PPE | C19: 273656 | D19: 1569273.66 | E19: 81798 | F19: 50000 | G19: 70000 | H19: -44413 | I19: -43284.38 | J19: 50000 | K19: 52550 | L19: 55124.95
A20: Decrease (Increase) in non-current debtors | C20: 0 | D20: 128255.22 | E20: 0 | F20: 0 | G20: 0 | H20: 0 | I20: 0 | J20: 0 | K20: 0 | L20: 0
A21: Decrease (increase) other non-current receivables | C21: 0 | D21: 0 | E21: 0 | F21: 0 | G21: 0 | H21: 0 | I21: 0 | J21: 0 | K21: 0 | L21: 0
A22: Decrease (increase) in non-current investments | C22: 0 | D22: 0 | E22: 0 | F22: 0 | G22: 0 | H22: 0 | I22: 0 | J22: 0 | K22: 0 | L22: 0
A23: Payments
A24: Capital assets | C24: -35964609.45 | D24: -15999499 | E24: -13275079 | F24: -17702113 | G24: -22602113 | H24: -19229996 | I24: -9264219.98 | J24: -17702113 | K24: -7405953 | L24: -7768845
A25: NET CASH FROM/(USED) INVESTING ACTIVITIES | C25: =SUM(C19:C22)+C24 -> -35690953.45 | D25: =SUM(D19:D22)+D24 -> -14301970.12 | E25: -13193281 | F25: -17652113 | G25: -22532113 | H25: -19274409 | I25: -9307504.36 | J25: -17652113 | K25: -7353403 | L25: -7713720.05
A27: CASH FLOWS FROM FINANCING ACTIVITIES
A28: Receipts
A29: Short term loans | C29: 0 | D29: 0 | E29: 0 | F29: 0 | G29: 0 | H29: 0 | I29: 0 | J29: 0 | K29: 0 | L29: 0
A30: Borrowing long term/refinancing | C30: 0 | D30: 0 | E30: 0 | F30: 0 | G30: 0 | H30: 0 | I30: 0 | J30: 0 | K30: 0 | L30: 0
A31: Increase (decrease) in consumer deposits | C31: 0 | D31: 0 | E31: 0 | F31: 0 | G31: 0 | H31: 0 | I31: 0 | J31: 0 | K31: 0 | L31: 0
A32: Payments
A33: Repayment of borrowing | C33: 0 | D33: 0 | E33: 0 | F33: 0 | G33: 0 | H33: 0 | I33: 0 | J33: 0 | K33: 0 | L33: 0
A34: NET CASH FROM/(USED) FINANCING ACTIVITIES | C34: =SUM(C29:C31)+C33 -> 0 | D34: =SUM(D29:D31)+D33 -> 0 | E34: 0 | F34: 0 | G34: 0 | H34: 0 | I34: 0 | J34: 0 | K34: 0 | L34: 0
A36: NET INCREASE/ (DECREASE) IN CASH HELD | C36: =C15+C25+C34 -> -75543609.45 | D36: =D15+D25+D34 -> -29937343.65 | E36: -5576167.43 | F36: 21967219.92 | G36: 7055169.92 | H36: 15758799.04 | I36: -27242518.05 | J36: 21967219.92 | K36: 1821968.51 | L36: 1711281.98
A37: Cash/cash equivalents at the year begin: | B37: 2 | C37: 117972949.5 | D37: =C38 -> 42429340.01 | E37: =D38 -> 12491996.36 | F37: 11158212.26 | G37: 6915829.26 | H37: 12491995.26 | I37: =G37 -> 6915829.26 | J37: 13970999.18 | K37: =J38 -> 35938219.1 | L37: =K38 -> 37760187.61
A38: Cash/cash equivalents at the year end: | B38: 2 | C38: =C36+C37 -> 42429340.01 | D38: =D36+D37 -> 12491996.36 | E38: =E36+E37 -> 6915828.93 | F38: =F36+F37 -> 33125432.18 | G38: 13970999.18 | H38: 28250794.3 | I38: -20326688.79 | J38: 35938219.1 | K38: 37760187.61 | L38: 39471469.59
A39: =head27a -> References
A40: 1. Local/District municipalities to include transfers from/to District/Local Municipalities
A41: 2. Cash equivalents includes investments with maturities of 3 months or less
A43: Total receipts | C43: =SUM(C6:C10)+SUM(C19:C21) -> 591691728 | D43: =SUM(D6:D10)+SUM(D19:D21) -> 358500917.8 | E43: 341431502.7 | F43: 350517330.9 | G43: 368161180.9 | H43: 393879892 | I43: 277648574.8 | J43: 350517330.9 | K43: 343148562.8 | L43: 354533687.3
A44: Total payments | C44: =SUM(C12:C14)+C24 -> -667235337.5 | D44: =SUM(D12:D14)+D24 -> -388438261.5 | E44: -347007670.2 | F44: -328550111 | G44: -361106011 | H44: -378121093 | I44: -304891092.8 | J44: -328550111 | K44: -341326594.3 | L44: -352822405.4
C45: =C43+C44 -> -75543609.45 | D45: =D43+D44 -> -29937343.65 | E45: -5576167.43 | F45: 21967219.92 | G45: 7055169.92 | H45: 15758799.04 | I45: -27242518.05 | J45: 21967219.92 | K45: 1821968.51 | L45: 1711281.98
A46: Borrowings & investments & c.deposits | C46: =C22+C30+C31 -> 0 | D46: =D22+D30+D31 -> 0 | E46: 0 | F46: 0 | G46: 0 | H46: 0 | I46: 0 | J46: 0 | K46: 0 | L46: 0
A47: =A33 -> Repayment of borrowing | C47: =C33 -> 0 | D47: =D33 -> 0 | E47: 0 | F47: 0 | G47: 0 | H47: 0 | I47: =I33 -> 0 | J47: 0 | K47: 0 | L47: 0
C48: =C45+C46+C47 -> -75543609.45 | D48: =D45+D46+D47 -> -29937343.65 | E48: -5576167.43 | F48: 21967219.92 | G48: 7055169.92 | H48: 15758799.04 | I48: -27242518.05 | J48: 21967219.92 | K48: 1821968.51 | L48: 1711281.98
C49: =C36-C48 -> 0 | D49: 0 | E49: 0 | F49: 0 | G49: 0 | H49: 0 | I49: 0 | J49: 0 | K49: 0 | L49: 1.210719347e-08

Sheet A8-ResRecon
A1: =muni&" - "&Approve8 -> DC42 Sedibeng - Table A8 Cash backed reserves/accumulated surplus reconciliation
A2: =desc -> Description | B2: =head27 -> Ref | C2: =head1b -> 2010/11 | D2: =head1A -> 2011/12 | E2: =Head1 -> 2012/13 | F2: =Head2 -> Current Year 2013/14 | J2: =Head3 -> 2014/15 Medium Term Revenue & Expenditure Framework
A3: R thousand | C3: =Head5 -> Audited Outcome | D3: =Head5 -> Audited Outcome | E3: =Head5 -> Audited Outcome | F3: =Head6 -> Original Budget | G3: =Head7 -> Adjusted Budget | H3: =Head8 -> Full Year Forecast | I3: =Head5b -> Pre-audit outcome | J3: =Head9 -> Budget Year 2014/15 | K3: =Head10 -> Budget Year +1 2015/16 | L3: =Head11 -> Budget Year +2 2016/17
A4: Cash and investments available
A5: =LEFT('A7-CFlow'!A38,37) -> Cash/cash equivalents at the year end | B5: 1 | C5: ='A7-CFlow'!C38 -> 42429340.01 | D5: ='A7-CFlow'!D38 -> 12491996.36 | E5: ='A7-CFlow'!E38 -> 6915828.93 | F5: ='A7-CFlow'!F38 -> 33125432.18 | G5: ='A7-CFlow'!G38 -> 13970999.18 | H5: ='A7-CFlow'!H38 -> 28250794.3 | I5: ='A7-CFlow'!I38 -> -20326688.79 | J5: ='A7-CFlow'!J38 -> 35938219.1 | K5: ='A7-CFlow'!K38 -> 37760187.61 | L5: ='A7-CFlow'!L38 -> 39471469.59
A6: Other current investments > 90 days | C6: ='A6-FinPos'!C6+'A6-FinPos'!C7-'A6-FinPos'!C29-'A8-ResRecon'!C5 -> -634.2300001 | D6: ='A6-FinPos'!D6+'A6-FinPos'!D7-'A6-FinPos'!D29-'A8-ResRecon'!D5 -> -1.100000005 | E6: ='A6-FinPos'!E6+'A6-FinPos'!E7-'A6-FinPos'!E29-'A8-ResRecon'!E5 -> 0.07000004873 | F6: ='A6-FinPos'!F6+'A6-FinPos'!F7-'A6-FinPos'!F29-'A8-ResRecon'!F5 -> -432.18 | G6: ='A6-FinPos'!G6+'A6-FinPos'!G7-'A6-FinPos'!G29-'A8-ResRecon'!G5 -> -356.18 | H6: ='A6-FinPos'!H6+'A6-FinPos'!H7-'A6-FinPos'!H29-'A8-ResRecon'!H5 -> -17092648.3 | I6: ='A6-FinPos'!I6+'A6-FinPos'!I7-'A6-FinPos'!I29-'A8-ResRecon'!I5 -> 48577998.38 | J6: ='A6-FinPos'!J6+'A6-FinPos'!J7-'A6-FinPos'!J29-'A8-ResRecon'!J5 -> -2813219.1 | K6: ='A6-FinPos'!K6+'A6-FinPos'!K7-'A6-FinPos'!K29-'A8-ResRecon'!K5 -> -2813296.825 | L6: ='A6-FinPos'!L6+'A6-FinPos'!L7-'A6-FinPos'!L29-'A8-ResRecon'!L5 -> -2812181.157
A7: ='A6-FinPos'!A14&" - "&'A6-FinPos'!A16 -> Non current assets - Investments | B7: 1 | C7: ='A6-FinPos'!C16 -> 0 | D7: ='A6-FinPos'!D16 -> 0 | E7: ='A6-FinPos'!E16 -> 0 | F7: ='A6-FinPos'!F16 -> 0 | G7: ='A6-FinPos'!G16 -> 0 | H7: ='A6-FinPos'!H16 -> 0 | I7: ='A6-FinPos'!I16 -> 0 | J7: ='A6-FinPos'!J16 -> 0 | K7: ='A6-FinPos'!K16 -> 0 | L7: ='A6-FinPos'!L16 -> 0
A8: Cash and investments available: | C8: =SUM(C5:C7) -> 42428705.78 | D8: =SUM(D5:D7) -> 12491995.26 | E8: 6915829 | F8: 33125000 | G8: 13970643 | H8: 11158146 | I8: 28251309.59 | J8: 33125000 | K8: 34946890.78 | L8: 36659288.43
A10: Application of cash and investments
A11: ='SA3'!A36 -> Unspent conditional transfers | C11: ='SA3'!C36 -> 33740052.28 | D11: ='SA3'!D36 -> 12793065.94 | E11: ='SA3'!E36 -> 9824678 | F11: ='SA3'!F36 -> 3000000 | G11: ='SA3'!G36 -> 3000000 | H11: ='SA3'!H36 -> 3000000 | I11: ='SA3'!I36 -> 3000000 | J11: ='SA3'!J36 -> 3000000 | K11: ='SA3'!K36 -> 3000000 | L11: ='SA3'!L36 -> 3147000
A12: Unspent borrowing | C12: ='SA17'!C67 -> 0 | D12: ='SA17'!D67 -> 0 | E12: ='SA17'!E67 -> 0 | F12: ='SA17'!F67 -> 0 | G12: ='SA17'!G67 -> 0 | H12: ='SA17'!H67 -> 0 | J12: ='SA17'!I67 -> 0 | K12: ='SA17'!J67 -> 0 | L12: ='SA17'!K67 -> 0
A13: Statutory requirements | B13: 2
A14: Other working capital requirements | B14: 3 | C14: =-C32 -> -71653202.95 | D14: =-D32 -> 15378533.64 | E14: 35614147 | F14: =-F32 -> 17493000 | G14: -3497409 | H14: -6606255.95 | I14: 35855744.05 | J14: 20785000 | K14: 7506000 | L14: 13434845
A15: Other provisions
A16: Long term investments committed | B16: 4 | C16: =C52 -> 0 | D16: =D52 -> 0 | E16: 0 | F16: 0 | G16: 0 | H16: 0 | I16: 0 | J16: 0 | K16: 0 | L16: 0
A17: Reserves to be backed by cash/investments | B17: 5
A18: ="Total "&A10&":" -> Total Application of cash and investments: | C18: =SUM(C11:C17) -> -37913150.67 | D18: =SUM(D11:D17) -> 28171599.58 | E18: 45438825 | F18: 20493000 | G18: -497409 | H18: -3606255.95 | I18: 38855744.05 | J18: 23785000 | K18: 10506000 | L18: 16581845
A19: Surplus(shortfall) | C19: =C8-C18 -> 80341856.45 | D19: =D8-D18 -> -15679604.32 | E19: -38522996 | F19: 12632000 | G19: 14468052 | H19: 14764401.95 | I19: -10604434.46 | J19: 9340000 | K19: 24440890.78 | L19: 20077443.43
A20: =head27a -> References
A21: 1. Must reconcile with Budgeted Cash Flows
A22: 2. For example: VAT, taxation
A23: 3. Council approval for policy required - include sufficient working capital (e.g. allowing for a % of current debtors > 90 days as uncollectable)
A24: 4. For example: sinking fund requirements for borrowing
A25: 5. Council approval required for each reserve created and basis of cash backing of reserves
A28: Other working capital requirements
A29: Debtors | C29: =IF(ISERROR(ROUND(C35*C36,-3)),0,(ROUND(C35*C36,-3))) -> 129590000 | D29: =IF(ISERROR(ROUND(D35*D36,-3)),0,(ROUND(D35*D36,-3))) -> 31290000 | E29: 11481000 | F29: 43990000 | G29: 43990000 | H29: 47458000 | I29: 4996000 | J29: 40698000 | K29: 34899000 | L29: 31048000
A31: Creditors due | C31: ='SA3'!C35 -> 57936797.05 | D31: ='SA3'!D35 -> 46668533.64 | E31: ='SA3'!E35 -> 47095147 | F31: ='SA3'!F35 -> 61483000 | G31: ='SA3'!G35 -> 40492591 | H31: ='SA3'!H35 -> 40851744.05 | I31: ='SA3'!I35 -> 40851744.05 | J31: ='SA3'!J35 -> 61483000 | K31: ='SA3'!K35 -> 42405000 | L31: ='SA3'!L35 -> 44482845
A32: Total | C32: =C29-C31 -> 71653202.95 | D32: =D29-D31 -> -15378533.64 | E32: -35614147 | F32: -17493000 | G32: 3497409 | H32: 6606255.95 | I32: -35855744.05 | J32: -20785000 | K32: -7506000 | L32: -13434845
A34: Debtors collection assumptions
A35: Balance outstanding - debtors | C35: ='A6-FinPos'!C8+'A6-FinPos'!C9+'A6-FinPos'!C15 -> 27480358 | D35: ='A6-FinPos'!D8+'A6-FinPos'!D9+'A6-FinPos'!D15 -> 38613196 | E35: ='A6-FinPos'!E8+'A6-FinPos'!E9+'A6-FinPos'!E15 -> 11480511 | F35: ='A6-FinPos'!F8+'A6-FinPos'!F9+'A6-FinPos'!F15 -> 43990203.48 | G35: ='A6-FinPos'!G8+'A6-FinPos'!G9+'A6-FinPos'!G15 -> 43990203.48 | H35: ='A6-FinPos'!H8+'A6-FinPos'!H9+'A6-FinPos'!H15 -> 32450935 | I35: ='A6-FinPos'!I8+'A6-FinPos'!I9+'A6-FinPos'!I15 -> 3035507.81 | J35: ='A6-FinPos'!J8+'A6-FinPos'!J9+'A6-FinPos'!J15 -> 43990203.48 | K35: ='A6-FinPos'!K8+'A6-FinPos'!K9+'A6-FinPos'!K15 -> 35893183.43 | L35: ='A6-FinPos'!L8+'A6-FinPos'!L9+'A6-FinPos'!L15 -> 32085147.91
A36: Estimate of debtors collection rate | C36: =IF(ISERROR('SA10'!D10),0,('SA10'!D10)) -> 4.715734433 | D36: =IF(ISERROR('SA10'!E10),0,('SA10'!E10)) -> 0.810332914 | E36: =IF(ISERROR('SA10'!F10),0,('SA10'!F10)) -> 1.000000003 | F36: =IF(ISERROR('SA10'!G10),0,('SA10'!G10)) -> 1 | G36: =IF(ISERROR('SA10'!H10),0,('SA10'!H10)) -> 1 | H36: =IF(ISERROR('SA10'!I10),0,('SA10'!I10)) -> 1.46244134 | I36: =IF(ISERROR('SA10'!J10),0,('SA10'!J10)) -> 1.645694218 | J36: =IF(ISERROR('SA10'!K10),0,('SA10'!K10)) -> 0.9251637335 | K36: =IF(ISERROR('SA10'!L10),0,('SA10'!L10)) -> 0.9722966272 | L36: =IF(ISERROR('SA10'!M10),0,('SA10'!M10)) -> 0.9676842251
K39: `
A40: =A16 -> Long term investments committed
A41: Balance (Insert description; eg sinking fund)
C52: =SUM(C41:C51) -> 0 | D52: =SUM(D41:D51) -> 0 | E52: 0 | F52: 0 | G52: 0 | H52: 0 | I52: 0 | J52: 0 | K52: 0 | L52: 0
A53: =A17 -> Reserves to be backed by cash/investments
A54: ='SA3'!A64 -> Housing Development Fund | C54: ='SA3'!C64 -> 0 | D54: ='SA3'!D64 -> 0 | E54: ='SA3'!E64 -> 0 | F54: ='SA3'!F64 -> 0 | G54: ='SA3'!G64 -> 0 | H54: ='SA3'!H64 -> 0 | I54: ='SA3'!I64 -> 0 | J54: ='SA3'!J64 -> 0 | K54: ='SA3'!K64 -> 0 | L54: ='SA3'!L64 -> 0
A55: ='SA3'!A65 -> Capital replacement
A56: ='SA3'!A66 -> Self-insurance
A57: Other (list)
C67: =SUM(C54:C65) -> 0 | D67: 0 | E67: 0 | F67: 0 | G67: 0 | H67: 0 | I67: 0 | J67: 0 | K67: 0 | L67: 0

Sheet A9-Asset
A1: =muni&" - "&Approve9 -> DC42 Sedibeng - Table A9 Asset Management
A2: =desc -> Description | B2: =head27 -> Ref | C2: =head1b -> 2010/11 | D2: =head1A -> 2011/12 | E2: =Head1 -> 2012/13 | F2: =Head2 -> Current Year 2013/14 | I2: =Head3 -> 2014/15 Medium Term Revenue & Expenditure Framework
A3: R thousand | C3: =Head5 -> Audited Outcome | D3: =Head5 -> Audited Outcome | E3: =Head5 -> Audited Outcome | F3: =Head6 -> Original Budget | G3: =Head7 -> Adjusted Budget | H3: =Head8 -> Full Year Forecast | I3: =Head9 -> Budget Year 2014/15 | J3: =Head10 -> Budget Year +1 2015/16 | K3: =Head11 -> Budget Year +2 2016/17
A4: CAPITAL EXPENDITURE
A5: Total New Assets | B5: 1 | C5: =SUM(C11:C18) -> 35964614.24 | D5: =SUM(D11:D18) -> 15999499.47 | E5: =SUM(E11:E18) -> 13275079 | F5: 17702113 | G5: 22602113 | H5: 19229996 | I5: 17702113 | J5: 7405952.703 | K5: 7768844.939
A6: Infrastructure - Road transport | C6: =SA34a!C7 -> 0 | D6: =SA34a!D7 -> 0 | E6: =SA34a!E7 -> 0 | F6: =SA34a!F7 -> 0 | G6: =SA34a!G7 -> 0 | H6: =SA34a!H7 -> 0 | I6: =SA34a!I7 -> 0 | J6: =SA34a!J7 -> 0 | K6: =SA34a!K7 -> 0
A7: Infrastructure - Electricity | C7: =SA34a!C10 -> 0 | D7: =SA34a!D10 -> 0 | E7: =SA34a!E10 -> 0 | F7: =SA34a!F10 -> 0 | G7: =SA34a!G10 -> 0 | H7: =SA34a!H10 -> 0 | I7: =SA34a!I10 -> 0 | J7: =SA34a!J10 -> 0 | K7: =SA34a!K10 -> 0
A8: Infrastructure - Water | C8: =SA34a!C14 -> 0 | D8: =SA34a!D14 -> 0 | E8: =SA34a!E14 -> 0 | F8: =SA34a!F14 -> 0 | G8: =SA34a!G14 -> 0 | H8: =SA34a!H14 -> 0 | I8: =SA34a!I14 -> 0 | J8: =SA34a!J14 -> 0 | K8: =SA34a!K14 -> 0
A9: Infrastructure - Sanitation | C9: =SA34a!C18 -> 0 | D9: =SA34a!D18 -> 0 | E9: =SA34a!E18 -> 0 | F9: =SA34a!F18 -> 0 | G9: =SA34a!G18 -> 0 | H9: =SA34a!H18 -> 0 | I9: =SA34a!I18 -> 0 | J9: =SA34a!J18 -> 0 | K9: =SA34a!K18 -> 0
A10: Infrastructure - Other | C10: =SA34a!C21 -> 17246200 | D10: =SA34a!D21 -> 2999999 | E10: =SA34a!E21 -> 17820 | F10: =SA34a!F21 -> 1300000 | G10: =SA34a!G21 -> 1300000 | H10: =SA34a!H21 -> 5638000 | I10: =SA34a!I21 -> 1300000 | J10: =SA34a!J21 -> 0 | K10: =SA34a!K21 -> 0
A11: Infrastructure | C11: =SUM(C6:C10) -> 17246200 | D11: =SUM(D6:D10) -> 2999999 | E11: =SUM(E6:E10) -> 17820 | F11: 1300000 | G11: 1300000 | H11: 5638000 | I11: 1300000 | J11: 0 | K11: 0
A12: =$A$42 -> Community | C12: =SA34a!C27 -> 0 | D12: =SA34a!D27 -> 0 | E12: =SA34a!E27 -> 0 | F12: =SA34a!F27 -> 0 | G12: =SA34a!G27 -> 0 | H12: =SA34a!H27 -> 0 | I12: =SA34a!I27 -> 0 | J12: =SA34a!J27 -> 0 | K12: =SA34a!K27 -> 0
A13: =$A$43 -> Heritage assets | C13: =SA34a!C43 -> 0 | D13: =SA34a!D43 -> 0 | E13: =SA34a!E43 -> 0 | F13: =SA34a!F43 -> 0 | G13: =SA34a!G43 -> 0 | H13: =SA34a!H43 -> 0 | I13: =SA34a!I43 -> 0 | J13: =SA34a!J43 -> 0 | K13: =SA34a!K43 -> 0
A14: =$A$44 -> Investment properties | C14: =SA34a!C47 -> 0 | D14: =SA34a!D47 -> 0 | E14: =SA34a!E47 -> 0 | F14: =SA34a!F47 -> 0 | G14: =SA34a!G47 -> 0 | H14: =SA34a!H47 -> 0 | I14: =SA34a!I47 -> 0 | J14: =SA34a!J47 -> 0 | K14: =SA34a!K47 -> 0
A15: =$A$45 -> Other assets | B15: 6 | C15: =SA34a!C51 -> 18472466 | D15: =SA34a!D51 -> 12135074 | E15: =SA34a!E51 -> 12804940 | F15: =SA34a!F51 -> 15402113 | G15: =SA34a!G51 -> 20302113 | H15: =SA34a!H51 -> 13591996 | I15: =SA34a!I51 -> 15402113 | J15: =SA34a!J51 -> 7405952.703 | K15: =SA34a!K51 -> 7768844.939
A16: Agricultural Assets | C16: =SA34a!C65 -> 0 | D16: =SA34a!D65 -> 0 | E16: =SA34a!E65 -> 0 | F16: =SA34a!F65 -> 0 | G16: =SA34a!G65 -> 0 | H16: =SA34a!H65 -> 0 | I16: =SA34a!I65 -> 0 | J16: =SA34a!J65 -> 0 | K16: =SA34a!K65 -> 0
A17: =SA34a!A69 -> Biological assets | C17: =SA34a!C69 -> 0 | D17: =SA34a!D69 -> 0 | E17: =SA34a!E69 -> 0 | F17: =SA34a!F69 -> 0 | G17: =SA34a!G69 -> 0 | H17: =SA34a!H69 -> 0 | I17: =SA34a!I69 -> 0 | J17: =SA34a!J69 -> 0 | K17: =SA34a!K69 -> 0
A18: =SA34a!A73 -> Intangibles | C18: =SA34a!C73 -> 245948.24 | D18: =SA34a!D73 -> 864426.47 | E18: =SA34a!E73 -> 452319 | F18: =SA34a!F73 -> 1000000 | G18: =SA34a!G73 -> 1000000 | H18: =SA34a!H73 -> 0 | I18: =SA34a!I73 -> 1000000 | J18: =SA34a!J73 -> 0 | K18: =SA34a!K73 -> 0
A20: Total Renewal of Existing Assets | B20: 2 | C20: =SUM(C26:C33) -> 0 | D20: =SUM(D26:D33) -> 0 | E20: =SUM(E26:E33) -> 0 | F20: 0 | G20: 0 | H20: 0 | I20: 0 | J20: 0 | K20: 0
A21: Infrastructure - Road transport | C21: =SA34b!C7 -> 0 | D21: =SA34b!D7 -> 0 | E21: =SA34b!E7 -> 0 | F21: =SA34b!F7 -> 0 | G21: =SA34b!G7 -> 0 | H21: =SA34b!H7 -> 0 | I21: =SA34b!I7 -> 0 | J21: =SA34b!J7 -> 0 | K21: =SA34b!K7 -> 0
A22: Infrastructure - Electricity | C22: =SA34b!C10 -> 0 | D22: =SA34b!D10 -> 0 | E22: =SA34b!E10 -> 0 | F22: =SA34b!F10 -> 0 | G22: =SA34b!G10 -> 0 | H22: =SA34b!H10 -> 0 | I22: =SA34b!I10 -> 0 | J22: =SA34b!J10 -> 0 | K22: =SA34b!K10 -> 0
A23: Infrastructure - Water | C23: =SA34b!C14 -> 0 | D23: =SA34b!D14 -> 0 | E23: =SA34b!E14 -> 0 | F23: =SA34b!F14 -> 0 | G23: =SA34b!G14 -> 0 | H23: =SA34b!H14 -> 0 | I23: =SA34b!I14 -> 0 | J23: =SA34b!J14 -> 0 | K23: =SA34b!K14 -> 0
A24: Infrastructure - Sanitation | C24: =SA34b!C18 -> 0 | D24: =SA34b!D18 -> 0 | E24: =SA34b!E18 -> 0 | F24: =SA34b!F18 -> 0 | G24: =SA34b!G18 -> 0 | H24: =SA34b!H18 -> 0 | I24: =SA34b!I18 -> 0 | J24: =SA34b!J18 -> 0 | K24: =SA34b!K18 -> 0
A25: Infrastructure - Other | C25: =SA34b!C21 -> 0 | D25: =SA34b!D21 -> 0 | E25: =SA34b!E21 -> 0 | F25: =SA34b!F21 -> 0 | G25: =SA34b!G21 -> 0 | H25: =SA34b!H21 -> 0 | I25: =SA34b!I21 -> 0 | J25: =SA34b!J21 -> 0 | K25: =SA34b!K21 -> 0
A26: =$A$11 -> Infrastructure | C26: =SUM(C21:C25) -> 0 | D26: =SUM(D21:D25) -> 0 | E26: =SUM(E21:E25) -> 0 | F26: 0 | G26: 0 | H26: 0 | I26: 0 | J26: 0 | K26: 0
A27: =A12 -> Community | C27: =SA34b!C27 -> 0 | D27: =SA34b!D27 -> 0 | E27: =SA34b!E27 -> 0 | F27: =SA34b!F27 -> 0 | G27: =SA34b!G27 -> 0 | H27: =SA34b!H27 -> 0 | I27: =SA34b!I27 -> 0 | J27: =SA34b!J27 -> 0 | K27: =SA34b!K27 -> 0
A28: =A13 -> Heritage assets | C28: =SA34b!C43 -> 0 | D28: =SA34b!D43 -> 0 | E28: =SA34b!E43 -> 0 | F28: =SA34b!F43 -> 0 | G28: =SA34b!G43 -> 0 | H28: =SA34b!H43 -> 0 | I28: =SA34b!I43 -> 0 | J28: =SA34b!J43 -> 0 | K28: =SA34b!K43 -> 0
A29: =A14 -> Investment properties | C29: =SA34b!C47 -> 0 | D29: =SA34b!D47 -> 0 | E29: =SA34b!E47 -> 0 | F29: =SA34b!F47 -> 0 | G29: =SA34b!G47 -> 0 | H29: =SA34b!H47 -> 0 | I29: =SA34b!I47 -> 0 | J29: =SA34b!J47 -> 0 | K29: =SA34b!K47 -> 0
A30: =A15 -> Other assets | B30: 6 | C30: =SA34b!C51 -> 0 | D30: =SA34b!D51 -> 0 | E30: =SA34b!E51 -> 0 | F30: =SA34b!F51 -> 0 | G30: =SA34b!G51 -> 0 | H30: =SA34b!H51 -> 0 | I30: =SA34b!I51 -> 0 | J30: =SA34b!J51 -> 0 | K30: =SA34b!K51 -> 0
A31: Agricultural Assets | C31: =SA34b!C65 -> 0 | D31: =SA34b!D65 -> 0 | E31: =SA34b!E65 -> 0 | F31: =SA34b!F65 -> 0 | G31: =SA34b!G65 -> 0 | H31: =SA34b!H65 -> 0 | I31: =SA34b!I65 -> 0 | J31: =SA34b!J65 -> 0 | K31: =SA34b!K65 -> 0
A32: =A17 -> Biological assets | C32: =SA34b!C69 -> 0 | D32: =SA34b!D69 -> 0 | E32: =SA34b!E69 -> 0 | F32: =SA34b!F69 -> 0 | G32: =SA34b!G69 -> 0 | H32: =SA34b!H69 -> 0 | I32: =SA34b!I69 -> 0 | J32: =SA34b!J69 -> 0 | K32: =SA34b!K69 -> 0
A33: =A18 -> Intangibles | C33: =SA34b!C73 -> 0 | D33: =SA34b!D73 -> 0 | E33: =SA34b!E73 -> 0 | F33: =SA34b!F73 -> 0 | G33: =SA34b!G73 -> 0 | H33: =SA34b!H73 -> 0 | I33: =SA34b!I73 -> 0 | J33: =SA34b!J73 -> 0 | K33: =SA34b!K73 -> 0
A35: Total Capital Expenditure | B35: 4
A36: Infrastructure - Road transport | C36: =C6+C21 -> 0 | D36: =D6+D21 -> 0 | E36: 0 | F36: 0 | G36: 0 | H36: 0 | I36: 0 | J36: 0 | K36: 0
A37: Infrastructure - Electricity | C37: =C7+C22 -> 0 | D37: =D7+D22 -> 0 | E37: 0 | F37: 0 | G37: 0 | H37: 0 | I37: 0 | J37: 0 | K37: 0
A38: Infrastructure - Water | C38: =C8+C23 -> 0 | D38: 0 | E38: 0 | F38: 0 | G38: 0 | H38: 0 | I38: 0 | J38: 0 | K38: 0
A39: Infrastructure - Sanitation | C39: =C9+C24 -> 0 | D39: =D9+D24 -> 0 | E39: =E9+E24 -> 0 | F39: 0 | G39: 0 | H39: 0 | I39: 0 | J39: 0 | K39: 0
A40: Infrastructure - Other | C40: =C10+C25 -> 17246200 | D40: 2999999 | E40: 17820 | F40: 1300000 | G40: 1300000 | H40: 5638000 | I40: 1300000 | J40: 0 | K40: 0
A41: =$A$11 -> Infrastructure | C41: =SUM(C36:C40) -> 17246200 | D41: =SUM(D36:D40) -> 2999999 | E41: 17820 | F41: 1300000 | G41: 1300000 | H41: 5638000 | I41: 1300000 | J41: 0 | K41: 0
A42: =SA34a!A27 -> Community | C42: =C12+C27 -> 0 | D42: =D12+D27 -> 0 | E42: 0 | F42: 0 | G42: 0 | H42: 0 | I42: 0 | J42: 0 | K42: 0
A43: =SA34a!A43 -> Heritage assets | C43: 0 | D43: =D13+D28 -> 0 | E43: 0 | F43: 0 | G43: 0 | H43: 0 | I43: 0 | J43: 0 | K43: 0
A44: =SA34a!A47 -> Investment properties | C44: 0 | D44: =D14+D29 -> 0 | E44: 0 | F44: 0 | G44: 0 | H44: 0 | I44: 0 | J44: 0 | K44: 0
A45: =SA34a!A51 -> Other assets | C45: 18472466 | D45: =D15+D30 -> 12135074 | E45: 12804940 | F45: 15402113 | G45: 20302113 | H45: 13591996 | I45: 15402113 | J45: 7405952.703 | K45: 7768844.939
A46: Agricultural Assets | C46: 0 | D46: =D16+D31 -> 0 | E46: 0 | F46: 0 | G46: 0 | H46: 0 | I46: 0 | J46: 0 | K46: 0
A47: =A32 -> Biological assets | C47: 0 | D47: =D17+D32 -> 0 | E47: 0 | F47: 0 | G47: 0 | H47: 0 | I47: 0 | J47: 0 | K47: 0
A48: =A33 -> Intangibles | C48: 245948.24 | D48: =D18+D33 -> 864426.47 | E48: 452319 | F48: 1000000 | G48: 1000000 | H48: 0 | I48: 1000000 | J48: 0 | K48: 0
A49: TOTAL CAPITAL EXPENDITURE - Asset class | B49: 2 | C49: =SUM(C41:C48) -> 35964614.24 | D49: 15999499.47 | E49: 13275079 | F49: 17702113 | G49: 22602113 | H49: 19229996 | I49: 17702113 | J49: 7405952.703 | K49: 7768844.939
A51: ASSET REGISTER SUMMARY - PPE (WDV) | B51: 5
A52: Infrastructure - Road transport
A53: Infrastructure - Electricity
A54: Infrastructure - Water
A55: Infrastructure - Sanitation
A56: Infrastructure - Other | C56: 54033310 | D56: 45928258 | E56: 37932285 | F56: 37975466 | G56: 37975466 | H56: 44677019 | I56: 37975466 | J56: 32279146 | K56: 27437275
A57: =A41 -> Infrastructure | C57: =SUM(C52:C56) -> 54033310 | D57: =SUM(D52:D56) -> 45928258 | E57: 37932285 | F57: 37975466 | G57: 37975466 | H57: 44677019 | I57: 37975466 | J57: 32279146 | K57: 27437275
A58: =A12 -> Community
A59: =A13 -> Heritage assets
A60: =A14 -> Investment properties | C60: ='A6-FinPos'!C17 -> 0 | D60: ='A6-FinPos'!D17 -> 0 | E60: ='A6-FinPos'!E17 -> 0 | F60: ='A6-FinPos'!F17 -> 0 | G60: ='A6-FinPos'!G17 -> 0 | H60: ='A6-FinPos'!H17 -> 0 | I60: ='A6-FinPos'!J17 -> 0 | J60: ='A6-FinPos'!K17 -> 0 | K60: ='A6-FinPos'!L17 -> 0
A61: =A15 -> Other assets | C61: 138558415 | D61: 138305527 | E61: 139423378 | F61: 102430647 | G61: 107330647 | H61: 129826376 | I61: 102430647 | J61: 90597807 | K61: 101460649
A62: Agricultural Assets | C62: ='A6-FinPos'!C20 -> 0 | D62: ='A6-FinPos'!D20 -> 0 | E62: ='A6-FinPos'!E20 -> 0 | F62: ='A6-FinPos'!F20 -> 0 | G62: ='A6-FinPos'!G20 -> 0 | H62: ='A6-FinPos'!H20 -> 0 | I62: ='A6-FinPos'!J20 -> 0 | J62: ='A6-FinPos'!K20 -> 0 | K62: ='A6-FinPos'!L20 -> 0
A63: =A17 -> Biological assets | C63: ='A6-FinPos'!C21 -> 0 | D63: ='A6-FinPos'!D21 -> 0 | E63: ='A6-FinPos'!E21 -> 0 | F63: ='A6-FinPos'!F21 -> 0 | G63: ='A6-FinPos'!G21 -> 0 | H63: ='A6-FinPos'!H21 -> 0 | I63: ='A6-FinPos'!J21 -> 0 | J63: ='A6-FinPos'!K21 -> 0 | K63: ='A6-FinPos'!L21 -> 0
A64: =A18 -> Intangibles | C64: ='A6-FinPos'!C22 -> 2319690.05 | D64: ='A6-FinPos'!D22 -> 1923053.93 | E64: ='A6-FinPos'!E22 -> 987106 | F64: ='A6-FinPos'!F22 -> 2320000 | G64: ='A6-FinPos'!G22 -> 2320000 | H64: ='A6-FinPos'!H22 -> 2320000 | I64: ='A6-FinPos'!J22 -> 2320000 | J64: ='A6-FinPos'!K22 -> 2320000 | K64: ='A6-FinPos'!L22 -> 2433680
A65: TOTAL ASSET REGISTER SUMMARY - PPE (WDV) | B65: 5 | C65: =SUM(C57:C64) -> 194911415.1 | D65: 186156838.9 | E65: 178342769 | F65: 142726113 | G65: 147626113 | H65: 176823395 | I65: 142726113 | J65: 125196953 | K65: 131331604
A67: EXPENDITURE OTHER ITEMS
A68: ='A4-FinPerf RE'!A28 -> Depreciation & asset impairment | C68: ='A4-FinPerf RE'!C28 -> 17198677.76 | D68: ='A4-FinPerf RE'!D28 -> 23602041 | E68: ='A4-FinPerf RE'!E28 -> 26516627 | F68: ='A4-FinPerf RE'!F28 -> 23265556 | G68: ='A4-FinPerf RE'!G28 -> 23265556 | H68: ='A4-FinPerf RE'!H28 -> 25402041 | I68: ='A4-FinPerf RE'!J28 -> 26766440 | J68: ='A4-FinPerf RE'!K28 -> 28211828 | K68: ='A4-FinPerf RE'!L28 -> 29735267
A69: Repairs and Maintenance by Asset Class | B69: 3 | C69: =SUM(C75:C79) -> 7864471 | D69: =SUM(D75:D79) -> 7877686 | E69: 6077486 | F69: 4729894 | G69: 4177276 | H69: 4177276 | I69: 4495894 | J69: 4620084.594 | K69: 4846468.739
A70: Infrastructure - Road transport | C70: =SA34c!C7 -> 0 | D70: =SA34c!D7 -> 0 | E70: =SA34c!E7 -> 0 | F70: =SA34c!F7 -> 0 | G70: =SA34c!G7 -> 0 | H70: =SA34c!H7 -> 0 | I70: =SA34c!I7 -> 0 | J70: =SA34c!J7 -> 0 | K70: =SA34c!K7 -> 0
A71: Infrastructure - Electricity | C71: =SA34c!C10 -> 0 | D71: =SA34c!D10 -> 0 | E71: =SA34c!E10 -> 0 | F71: =SA34c!F10 -> 0 | G71: =SA34c!G10 -> 0 | H71: =SA34c!H10 -> 0 | I71: =SA34c!I10 -> 0 | J71: =SA34c!J10 -> 0 | K71: =SA34c!K10 -> 0
A72: Infrastructure - Water | C72: =SA34c!C14 -> 0 | D72: =SA34c!D14 -> 0 | E72: =SA34c!E14 -> 0 | F72: =SA34c!F14 -> 0 | G72: =SA34c!G14 -> 0 | H72: =SA34c!H14 -> 0 | I72: =SA34c!I14 -> 0 | J72: =SA34c!J14 -> 0 | K72: =SA34c!K14 -> 0
A73: Infrastructure - Sanitation | C73: =SA34c!C18 -> 0 | D73: =SA34c!D18 -> 0 | E73: =SA34c!E18 -> 0 | F73: =SA34c!F18 -> 0 | G73: =SA34c!G18 -> 0 | H73: =SA34c!H18 -> 0 | I73: =SA34c!I18 -> 0 | J73: =SA34c!J18 -> 0 | K73: =SA34c!K18 -> 0
A74: Infrastructure - Other | C74: =SA34c!C21 -> 0 | D74: =SA34c!D21 -> 0 | E74: =SA34c!E21 -> 0 | F74: =SA34c!F21 -> 0 | G74: =SA34c!G21 -> 0 | H74: =SA34c!H21 -> 0 | I74: =SA34c!I21 -> 0 | J74: =SA34c!J21 -> 0 | K74: =SA34c!K21 -> 0
A75: =$A$11 -> Infrastructure | C75: =SUM(C70:C74) -> 0 | D75: =SUM(D70:D74) -> 0 | E75: 0 | F75: 0 | G75: 0 | H75: 0 | I75: 0 | J75: 0 | K75: 0
A76: =A12 -> Community | C76: =SA34c!C27 -> 0 | D76: =SA34c!D27 -> 0 | E76: =SA34c!E27 -> 0 | F76: =SA34c!F27 -> 0 | G76: =SA34c!G27 -> 0 | H76: =SA34c!H27 -> 0 | I76: =SA34c!I27 -> 0 | J76: =SA34c!J27 -> 0 | K76: =SA34c!K27 -> 0
A77: =A13 -> Heritage assets | C77: =SA34c!C43 -> 0 | D77: =SA34c!D43 -> 0 | E77: =SA34c!E43 -> 0 | F77: =SA34c!F43 -> 0 | G77: =SA34c!G43 -> 0 | H77: =SA34c!H43 -> 0 | I77: =SA34c!I43 -> 0 | J77: =SA34c!J43 -> 0 | K77: =SA34c!K43 -> 0
A78: =A14 -> Investment properties | C78: =SA34c!C47 -> 0 | D78: =SA34c!D47 -> 0 | E78: =SA34c!E47 -> 0 | F78: =SA34c!F47 -> 0 | G78: =SA34c!G47 -> 0 | H78: =SA34c!H47 -> 0 | I78: =SA34c!I47 -> 0 | J78: =SA34c!J47 -> 0 | K78: =SA34c!K47 -> 0
A79: =A15 -> Other assets | B79: 6, 7 | C79: =SA34c!C51+SA34c!C65+SA34c!C69+SA34c!C73 -> 7864471 | D79: =SA34c!D51+SA34c!D65+SA34c!D69+SA34c!D73 -> 7877686 | E79: =SA34c!E51+SA34c!E65+SA34c!E69+SA34c!E73 -> 6077486 | F79: =SA34c!F51+SA34c!F65+SA34c!F69+SA34c!F73 -> 4729894 | G79: =SA34c!G51+SA34c!G65+SA34c!G69+SA34c!G73 -> 4177276 | H79: =SA34c!H51+SA34c!H65+SA34c!H69+SA34c!H73 -> 4177276 | I79: =SA34c!I51+SA34c!I65+SA34c!I69+SA34c!I73 -> 4495894 | J79: =SA34c!J51+SA34c!J65+SA34c!J69+SA34c!J73 -> 4620084.594 | K79: =SA34c!K51+SA34c!K65+SA34c!K69+SA34c!K73 -> 4846468.739
A80: TOTAL EXPENDITURE OTHER ITEMS | C80: =SUM(C68:C69) -> 25063148.76 | D80: 31479727 | E80: 32594113 | F80: 27995450 | G80: 27442832 | H80: 29579317 | I80: 31262334 | J80: 32831912.59 | K80: 34581735.74
A82: Renewal of Existing Assets as % of total capex | C82: =IF(ISERROR(C20/C49),0,(C20/C49)) -> 0 | D82: =IF(ISERROR(D20/D49),0,(D20/D49)) -> 0 | E82: 0 | F82: 0 | G82: 0 | H82: 0 | I82: 0 | J82: 0 | K82: 0
A83: Renewal of Existing Assets as % of deprecn" | C83: =IF(ISERROR(C20/C68),0,(C20/C68)) -> 0 | D83: =IF(ISERROR(D20/D68),0,(D20/D68)) -> 0 | E83: 0 | F83: 0 | G83: 0 | H83: 0 | I83: 0 | J83: 0 | K83: 0
A84: R&M as a % of PPE | C84: =IF(ISERROR(ROUND(C69/'A6-FinPos'!C19,3)),0,(ROUND(C69/'A6-FinPos'!C19,3))) -> 0.041 | D84: =IF(ISERROR(ROUND(D69/'A6-FinPos'!D19,3)),0,(ROUND(D69/'A6-FinPos'!D19,3))) -> 0.043 | E84: =IF(ISERROR(ROUND(E69/'A6-FinPos'!E19,3)),0,(ROUND(E69/'A6-FinPos'!E19,3))) -> 0.034 | F84: =IF(ISERROR(ROUND(F69/'A6-FinPos'!F19,3)),0,(ROUND(F69/'A6-FinPos'!F19,3))) -> 0.034 | G84: =IF(ISERROR(ROUND(G69/'A6-FinPos'!G19,3)),0,(ROUND(G69/'A6-FinPos'!G19,3))) -> 0.029 | H84: =IF(ISERROR(ROUND(H69/'A6-FinPos'!H19,3)),0,(ROUND(H69/'A6-FinPos'!H19,3))) -> 0.024 | I84: =IF(ISERROR(ROUND(I69/'A6-FinPos'!J19,3)),0,(ROUND(I69/'A6-FinPos'!J19,3))) -> 0.038 | J84: =IF(ISERROR(ROUND(J69/'A6-FinPos'!K19,3)),0,(ROUND(J69/'A6-FinPos'!K19,3))) -> 0.046 | K84: =IF(ISERROR(ROUND(K69/'A6-FinPos'!L19,3)),0,(ROUND(K69/'A6-FinPos'!L19,3))) -> 0.046
A85: Renewal and R&M as a % of PPE | C85: =IF(ISERROR(ROUND((C20+C69)/C65,2)),0,(ROUND((C20+C69)/C65,2))) -> 0.04 | D85: =IF(ISERROR(ROUND((D20+D69)/D65,2)),0,(ROUND((D20+D69)/D65,2))) -> 0.04 | E85: 0.03 | F85: 0.03 | G85: 0.03 | H85: 0.02 | I85: 0.03 | J85: 0.04 | K85: 0.04
A87: =head27a -> References
A88: 1. Detail of new assets provided in Table SA34a
A89: 2. Detail of renewal of existing assets provided in Table SA34b
A90: 3. Detail of Repairs and Maintenance by Asset Class provided in Table SA34c
A91: 4. Must reconcile to total capital expenditure on Budgeted Capital Expenditure
A92: 5. Must reconcile to 'Budgeted Financial Position' (written down value)
A93: 6. Donated/contributed and assets funded by finance leases to be allocated to the respective category
A94: 7. Including repairs and maintenance to agricultural, biological and intangible assets
A95: Check balance to A6 | C95: =C65-'A6-FinPos'!C17-'A6-FinPos'!C19-'A6-FinPos'!C21-'A6-FinPos'!C22 -> 1.990000021 | D95: =D65-'A6-FinPos'!D17-'A6-FinPos'!D19-'A6-FinPos'!D21-'A6-FinPos'!D22 -> 0.009999997215 | E95: =E65-'A6-FinPos'!E17-'A6-FinPos'!E19-'A6-FinPos'!E21-'A6-FinPos'!E22 -> 0 | F95: =F65-'A6-FinPos'!F17-'A6-FinPos'!F19-'A6-FinPos'!F21-'A6-FinPos'!F22 -> 0 | G95: =G65-'A6-FinPos'!G17-'A6-FinPos'!G19-'A6-FinPos'!G21-'A6-FinPos'!G22 -> 0 | H95: =H65-'A6-FinPos'!H17-'A6-FinPos'!H19-'A6-FinPos'!H21-'A6-FinPos'!H22 -> 0 | I95: =I65-'A6-FinPos'!J17-'A6-FinPos'!J19-'A6-FinPos'!J21-'A6-FinPos'!J22 -> 23265556 | J95: =J65-'A6-FinPos'!K17-'A6-FinPos'!K19-'A6-FinPos'!K21-'A6-FinPos'!K22 -> 23265555.94 | K95: =K65-'A6-FinPos'!L17-'A6-FinPos'!L19-'A6-FinPos'!L21-'A6-FinPos'!L22 -> 23265556.24

Sheet A10-SerDel
A1: =muni&" - "&Approve10 -> DC42 Sedibeng - Table A10 Basic service delivery measurement
A2: =desc -> Description | B2: =head27 -> Ref | C2: =head1b -> 2010/11 | D2: =head1A -> 2011/12 | E2: =Head1 -> 2012/13 | F2: =Head2 -> Current Year 2013/14 | I2: =Head3 -> 2014/15 Medium Term Revenue & Expenditure Framework
C3: =Head5A -> Outcome | D3: =Head5A -> Outcome | E3: =Head5A -> Outcome | F3: =Head6 -> Original Budget | G3: =Head7 -> Adjusted Budget | H3: =Head8 -> Full Year Forecast | I3: =Head9 -> Budget Year 2014/15 | J3: =Head10 -> Budget Year +1 2015/16 | K3: =Head11 -> Budget Year +2 2016/17
A4: Household service targets | B4: 1
A5: Water:
A6: Piped water inside dwelling | C6: 0 | D6: 0 | E6: 0 | F6: 0 | G6: 0 | H6: 0 | I6: 0 | J6: 0 | K6: 0
A7: Piped water inside yard (but not in dwelling) | C7: 0 | D7: 0 | E7: 0 | F7: 0 | G7: 0 | H7: 0 | I7: 0 | J7: 0 | K7: 0
A8: Using public tap (at least min.service level) | B8: 2 | C8: 0 | D8: 0 | E8: 0 | F8: 0 | G8: 0 | H8: 0 | I8: 0 | J8: 0 | K8: 0
A9: Other water supply (at least min.service level) | B9: 4 | C9: 0 | D9: 0 | E9: 0 | F9: 0 | G9: 0 | H9: 0 | I9: 0 | J9: 0 | K9: 0
A10: Minimum Service Level and Above sub-total | C10: =SUM(C6:C9) -> 0 | D10: =SUM(D6:D9) -> 0 | E10: 0 | F10: 0 | G10: 0 | H10: 0 | I10: 0 | J10: 0 | K10: 0
A11: Using public tap (< min.service level) | B11: 3 | C11: 0 | D11: 0 | E11: 0 | F11: 0 | G11: 0 | H11: 0 | I11: 0 | J11: 0 | K11: 0
A12: Other water supply (< min.service level) | B12: =B9 -> 4 | C12: 0 | D12: 0 | E12: 0 | F12: 0 | G12: 0 | H12: 0 | I12: 0 | J12: 0 | K12: 0
A13: No water supply | C13: 0 | D13: 0 | E13: 0 | F13: 0 | G13: 0 | H13: 0 | I13: 0 | J13: 0 | K13: 0
A14: Below Minimum Service Level sub-total | C14: =SUM(C11:C13) -> 0 | D14: =SUM(D11:D13) -> 0 | E14: 0 | F14: 0 | G14: 0 | H14: 0 | I14: 0 | J14: 0 | K14: 0
A15: Total number of households | B15: 5 | C15: =C10+C14 -> 0 | D15: =D10+D14 -> 0 | E15: 0 | F15: 0 | G15: 0 | H15: 0 | I15: 0 | J15: 0 | K15: 0
A16: Sanitation/sewerage:
A17: Flush toilet (connected to sewerage) | C17: 0 | D17: 0 | E17: 0 | F17: 0 | G17: 0 | H17: 0 | I17: 0 | J17: 0 | K17: 0
A18: Flush toilet (with septic tank) | C18: 0 | D18: 0 | E18: 0 | F18: 0 | G18: 0 | H18: 0 | I18: 0 | J18: 0 | K18: 0
A19: Chemical toilet | C19: 0 | D19: 0 | E19: 0 | F19: 0 | G19: 0 | H19: 0 | I19: 0 | J19: 0 | K19: 0
A20: Pit toilet (ventilated) | C20: 0 | D20: 0 | E20: 0 | F20: 0 | G20: 0 | H20: 0 | I20: 0 | J20: 0 | K20: 0
A21: Other toilet provisions (> min.service level) | C21: 0 | D21: 0 | E21: 0 | F21: 0 | G21: 0 | H21: 0 | I21: 0 | J21: 0 | K21: 0
A22: =$A$10 -> Minimum Service Level and Above sub-total | C22: =SUM(C17:C21) -> 0 | D22: =SUM(D17:D21) -> 0 | E22: 0 | F22: 0 | G22: 0 | H22: 0 | I22: 0 | J22: 0 | K22: 0
A23: Bucket toilet | C23: 0 | D23: 0 | E23: 0 | F23: 0 | G23: 0 | H23: 0 | I23: 0 | J23: 0 | K23: 0
A24: Other toilet provisions (< min.service level) | C24: 0 | D24: 0 | E24: 0 | F24: 0 | G24: 0 | H24: 0 | I24: 0 | J24: 0 | K24: 0
A25: No toilet provisions | C25: 0 | D25: 0 | E25: 0 | F25: 0 | G25: 0 | H25: 0 | I25: 0 | J25: 0 | K25: 0
A26: =$A$14 -> Below Minimum Service Level sub-total | C26: =SUM(C23:C25) -> 0 | D26: =SUM(D23:D25) -> 0 | E26: 0 | F26: 0 | G26: 0 | H26: 0 | I26: 0 | J26: 0 | K26: 0
A27: =$A$15 -> Total number of households | B27: =$B$15 -> 5 | C27: =C22+C26 -> 0 | D27: =D22+D26 -> 0 | E27: 0 | F27: 0 | G27: 0 | H27: 0 | I27: 0 | J27: 0 | K27: 0
A28: Energy:
A29: Electricity (at least min.service level) | C29: 0 | D29: 0 | E29: 0 | F29: 0 | G29: 0 | H29: 0 | I29: 0 | J29: 0 | K29: 0
A30: Electricity - prepaid (min.service level) | C30: 0 | D30: 0 | E30: 0 | F30: 0 | G30: 0 | H30: 0 | I30: 0 | J30: 0 | K30: 0
A31: =$A$10 -> Minimum Service Level and Above sub-total | C31: =SUM(C29:C30) -> 0 | D31: =SUM(D29:D30) -> 0 | E31: 0 | F31: 0 | G31: 0 | H31: 0 | I31: 0 | J31: 0 | K31: 0
A32: Electricity (< min.service level) | C32: 0 | D32: 0 | E32: 0 | F32: 0 | G32: 0 | H32: 0 | I32: 0 | J32: 0 | K32: 0
A33: Electricity - prepaid (< min. service level) | C33: 0 | D33: 0 | E33: 0 | F33: 0 | G33: 0 | H33: 0 | I33: 0 | J33: 0 | K33: 0
A34: Other energy sources | C34: 0 | D34: 0 | E34: 0 | F34: 0 | G34: 0 | H34: 0 | I34: 0 | J34: 0 | K34: 0
A35: =$A$14 -> Below Minimum Service Level sub-total | C35: =SUM(C32:C34) -> 0 | D35: =SUM(D32:D34) -> 0 | E35: 0 | F35: 0 | G35: 0 | H35: 0 | I35: 0 | J35: 0 | K35: 0
A36: =$A$15 -> Total number of households | B36: =$B$15 -> 5 | C36: =C31+C35 -> 0 | D36: =D31+D35 -> 0 | E36: 0 | F36: 0 | G36: 0 | H36: 0 | I36: 0 | J36: 0 | K36: 0
A37: Refuse:
A38: Removed at least once a week | C38: 0 | D38: 0 | E38: 0 | F38: 0 | G38: 0 | H38: 0 | I38: 0 | J38: 0 | K38: 0
A39: =$A$10 -> Minimum Service Level and Above sub-total | C39: =SUM(C38) -> 0 | D39: =SUM(D38) -> 0 | E39: 0 | F39: 0 | G39: 0 | H39: 0 | I39: 0 | J39: 0 | K39: 0
A40: Removed less frequently than once a week | C40: 0 | D40: 0 | E40: 0 | F40: 0 | G40: 0 | H40: 0 | I40: 0 | J40: 0 | K40: 0
A41: Using communal refuse dump | C41: 0 | D41: 0 | E41: 0 | F41: 0 | G41: 0 | H41: 0 | I41: 0 | J41: 0 | K41: 0
A42: Using own refuse dump | C42: 0 | D42: 0 | E42: 0 | F42: 0 | G42: 0 | H42: 0 | I42: 0 | J42: 0 | K42: 0
A43: Other rubbish disposal | C43: 0 | D43: 0 | E43: 0 | F43: 0 | G43: 0 | H43: 0 | I43: 0 | J43: 0 | K43: 0
A44: No rubbish disposal | C44: 0 | D44: 0 | E44: 0 | F44: 0 | G44: 0 | H44: 0 | I44: 0 | J44: 0 | K44: 0
A45: =$A$14 -> Below Minimum Service Level sub-total | C45: =SUM(C40:C44) -> 0 | D45: 0 | E45: 0 | F45: 0 | G45: 0 | H45: 0 | I45: 0 | J45: 0 | K45: 0
A46: =$A$15 -> Total number of households | B46: =$B$15 -> 5 | C46: =C39+C45 -> 0 | D46: =D39+D45 -> 0 | E46: 0 | F46: 0 | G46: 0 | H46: 0 | I46: 0 | J46: 0 | K46: 0
A48: Households receiving Free Basic Service | B48: 7
A49: Water (6 kilolitres per household per month) | C49: 0 | D49: 0 | E49: 0 | F49: 0 | G49: 0 | H49: 0 | I49: 0 | J49: 0 | K49: 0
A50: Sanitation (free minimum level service) | C50: 0 | D50: 0 | E50: 0 | F50: 0 | G50: 0 | H50: 0 | I50: 0 | J50: 0 | K50: 0
A51: Electricity/other energy (50kwh per household per month) | C51: 0 | D51: 0 | E51: 0 | F51: 0 | G51: 0 | H51: 0 | I51: 0 | J51: 0 | K51: 0
A52: Refuse (removed at least once a week) | C52: 0 | D52: 0 | E52: 0 | F52: 0 | G52: 0 | H52: 0 | I52: 0 | J52: 0 | K52: 0
A54: Cost of Free Basic Services provided (R'000) | B54: 8 | C54: 0 | D54: 0 | E54: 0 | F54: 0 | G54: 0 | H54: 0 | I54: 0 | J54: 0 | K54: 0
A55: Water (6 kilolitres per household per month) | C55: 0 | D55: 0 | E55: 0 | F55: 0 | G55: 0 | H55: 0 | I55: 0 | J55: 0 | K55: 0
A56: Sanitation (free sanitation service) | C56: 0 | D56: 0 | E56: 0 | F56: 0 | G56: 0 | H56: 0 | I56: 0 | J56: 0 | K56: 0
A57: Electricity/other energy (50kwh per household per month) | C57: 0 | D57: 0 | E57: 0 | F57: 0 | G57: 0 | H57: 0 | I57: 0 | J57: 0 | K57: 0
A58: Refuse (removed once a week) | C58: 0 | D58: 0 | E58: 0 | F58: 0 | G58: 0 | H58: 0 | I58: 0 | J58: 0 | K58: 0
A59: Total cost of FBS provided (minimum social package) | C59: =SUM(C54:C58) -> 0 | D59: =SUM(D54:D58) -> 0 | E59: 0 | F59: 0 | G59: 0 | H59: 0 | I59: 0 | J59: 0 | K59: 0
A61: Highest level of free service provided
A62: Property rates (R value threshold) | C62: 0 | D62: 0 | E62: 0 | F62: 0 | G62: 0 | H62: 0 | I62: 0 | J62: 0 | K62: 0
A63: Water (kilolitres per household per month) | C63: 0 | D63: 0 | E63: 0 | F63: 0 | G63: 0 | H63: 0 | I63: 0 | J63: 0 | K63: 0
A64: Sanitation (kilolitres per household per month) | C64: 0 | D64: 0 | E64: 0 | F64: 0 | G64: 0 | H64: 0 | I64: 0 | J64: 0 | K64: 0
A65: Sanitation (Rand per household per month) | C65: 0 | D65: 0 | E65: 0 | F65: 0 | G65: 0 | H65: 0 | I65: 0 | J65: 0 | K65: 0
A66: Electricity (kwh per household per month) | C66: 0 | D66: 0 | E66: 0 | F66: 0 | G66: 0 | H66: 0 | I66: 0 | J66: 0 | K66: 0
A67: Refuse (average litres per week) | C67: 0 | D67: 0 | E67: 0 | F67: 0 | G67: 0 | H67: 0 | I67: 0 | J67: 0 | K67: 0
A68: Revenue cost of free services provided (R'000) | B68: 9
A69: Property rates (R15 000 threshold rebate) | C69: 0 | D69: 0 | E69: 0 | F69: 0 | G69: 0 | H69: 0 | I69: 0 | J69: 0 | K69: 0
A70: Property rates (other exemptions, reductions and rebates) | C70: 0 | D70: 0 | E70: 0 | F70: 0 | G70: 0 | H70: 0 | I70: 0 | J70: 0 | K70: 0
A71: Water | C71: 0 | D71: 0 | E71: 0 | F71: 0 | G71: 0 | H71: 0 | I71: 0 | J71: 0 | K71: 0
A72: Sanitation | C72: 0 | D72: 0 | E72: 0 | F72: 0 | G72: 0 | H72: 0 | I72: 0 | J72: 0 | K72: 0
A73: Electricity/other energy | C73: 0 | D73: 0 | E73: 0 | F73: 0 | G73: 0 | H73: 0 | I73: 0 | J73: 0 | K73: 0
A74: Refuse | C74: 0 | D74: 0 | E74: 0 | F74: 0 | G74: 0 | H74: 0 | I74: 0 | J74: 0 | K74: 0
A75: Municipal Housing - rental rebates | C75: 0 | D75: 0 | E75: 0 | F75: 0 | G75: 0 | H75: 0 | I75: 0 | J75: 0 | K75: 0
A76: Housing - top structure subsidies | B76: 6 | C76: 0 | D76: 0 | E76: 0 | F76: 0 | G76: 0 | H76: 0 | I76: 0 | J76: 0 | K76: 0
A77: Other | C77: 0 | D77: 0 | E77: 0 | F77: 0 | G77: 0 | H77: 0 | I77: 0 | J77: 0 | K77: 0
A78: Total revenue cost of free services provided (total social package) | C78: =SUM(C69:C77) -> 0 | D78: 0 | E78: 0 | F78: 0 | G78: 0 | H78: 0 | I78: 0 | J78: =SUM(J69:J77) -> 0 | K78: =SUM(K69:K77) -> 0
A79: =head27a -> References
A80: 1. Include services provided by another entity; e.g. Eskom
A81: 2. Stand distance <= 200m from dwelling
A82: 3. Stand distance > 200m from dwelling
A83: 4. Borehole, spring, rain-water tank etc.
A84: 5. Must agree to total number of households in municipal area
A85: 6. Include value of subsidy provided by municipality above provincial subsidy level
A86: 7. Show number of households receiving at least these levels of services completely free
A87: 8. Must reflect the cost to the municipality of providing the Free Basic Service
A88: 9. Reflect the cost to the municipality in terms of 'revenue foregone' of providing free services (note this will not equal 'Revenue Foregone' on SA1)
A91: Check (no. of households)
A92: Water | C92: =C15-'SA9'!E76 -> 0 | D92: =D15-'SA9'!F76 -> 0 | E92: =E15-'SA9'!G76 -> 0 | F92: =F15-'SA9'!H76 -> 0 | G92: =G15-'SA9'!I76 -> 0 | H92: =H15-'SA9'!J76 -> 0 | I92: =I15-'SA9'!K76 -> 0 | J92: =J15-'SA9'!L76 -> 0 | K92: =K15-'SA9'!M76 -> 0
A93: Sanitation | C93: =C27-'SA9'!E88 -> 0 | D93: =D27-'SA9'!F88 -> 0 | E93: =E27-'SA9'!G88 -> 0 | F93: =F27-'SA9'!H88 -> 0 | G93: =G27-'SA9'!I88 -> 0 | H93: =H27-'SA9'!J88 -> 0 | I93: =I27-'SA9'!K88 -> 0 | J93: =J27-'SA9'!L88 -> 0 | K93: =K27-'SA9'!M88 -> 0
A94: Energy | C94: =C36-'SA9'!E97 -> 0 | D94: =D36-'SA9'!F97 -> 0 | E94: =E36-'SA9'!G97 -> 0 | F94: =F36-'SA9'!H97 -> 0 | G94: =G36-'SA9'!I97 -> 0 | H94: =H36-'SA9'!J97 -> 0 | I94: =I36-'SA9'!K97 -> 0 | J94: =J36-'SA9'!L97 -> 0 | K94: =K36-'SA9'!M97 -> 0
A95: Refuse | C95: =C46-'SA9'!E107 -> 0 | D95: =D46-'SA9'!F107 -> 0 | E95: =E46-'SA9'!G107 -> 0 | F95: =F46-'SA9'!H107 -> 0 | G95: =G46-'SA9'!I107 -> 0 | H95: =H46-'SA9'!J107 -> 0 | I95: =I46-'SA9'!K107 -> 0 | J95: =J46-'SA9'!L107 -> 0 | K95: =K46-'SA9'!M107 -> 0

Sheet SA1
A1: =muni&" - "&TableA1 -> DC42 Sedibeng - Supporting Table SA1 Supportinging detail to 'Budgeted Financial Performance'
A2: =desc -> Description | B2: =head27 -> Ref | C2: =head1b -> 2010/11 | D2: =head1A -> 2011/12 | E2: =Head1 -> 2012/13 | F2: =Head2 -> Current Year 2013/14 | J2: =Head3 -> 2014/15 Medium Term Revenue & Expenditure Framework
C3: =Head5 -> Audited Outcome | D3: =Head5 -> Audited Outcome | E3: =Head5 -> Audited Outcome | F3: =Head6 -> Original Budget | G3: =Head7 -> Adjusted Budget | H3: =Head8 -> Full Year Forecast | I3: =Head5b -> Pre-audit outcome | J3: =Head9 -> Budget Year 2014/15 | K3: =Head10 -> Budget Year +1 2015/16 | L3: =Head11 -> Budget Year +2 2016/17
A4: R thousand
A5: REVENUE ITEMS:
A6: ='A4-FinPerf RE'!A5 -> Property rates | B6: 6
A7: Total Property Rates
A8: less Revenue Foregone
A9: Net Property Rates | C9: =C7-C8 -> 0 | D9: =D7-D8 -> 0 | E9: 0 | F9: 0 | G9: 0 | H9: 0 | I9: 0 | J9: 0 | K9: 0 | L9: 0
A11: ='A4-FinPerf RE'!A7 -> Service charges - electricity revenue | B11: 6
A12: ="Total "&A11 -> Total Service charges - electricity revenue
A13: =$A$8 -> less Revenue Foregone
A14: ="Net "& A11 -> Net Service charges - electricity revenue | C14: =C12-C13 -> 0 | D14: 0 | E14: 0 | F14: 0 | G14: 0 | H14: 0 | I14: 0 | J14: 0 | K14: 0 | L14: 0
A16: ='A4-FinPerf RE'!A8 -> Service charges - water revenue | B16: 6
A17: ="Total "&A16 -> Total Service charges - water revenue
A18: =$A$8 -> less Revenue Foregone
A19: ="Net "& A16 -> Net Service charges - water revenue | C19: =C17-C18 -> 0 | D19: 0 | E19: 0 | F19: 0 | G19: 0 | H19: 0 | I19: 0 | J19: 0 | K19: 0 | L19: 0
A21: ='A4-FinPerf RE'!A9 -> Service charges - sanitation revenue
A22: ="Total "&A21 -> Total Service charges - sanitation revenue
A23: =$A$8 -> less Revenue Foregone
A24: ="Net "& A21 -> Net Service charges - sanitation revenue | C24: =C22-C23 -> 0 | D24: 0 | E24: 0 | F24: 0 | G24: 0 | H24: 0 | I24: 0 | J24: 0 | K24: 0 | L24: 0
A26: ='A4-FinPerf RE'!A10 -> Service charges - refuse revenue | B26: 6
A27: Total refuse removal revenue
A28: Total landfill revenue
A29: =$A$8 -> less Revenue Foregone
A30: ="Net "& A26 -> Net Service charges - refuse revenue | C30: =SUM(C27:C28)-C29 -> 0 | D30: =SUM(D27:D28)-D29 -> 0 | E30: 0 | F30: 0 | G30: 0 | H30: 0 | I30: 0 | J30: 0 | K30: 0 | L30: 0
A32: Other Revenue by source
A33: List other revenue by source | C33: 1485631.02 | D33: 2598000.55 | E33: 2282472 | F33: 5589569 | G33: 24925515 | H33: 4437230 | I33: 1596205.74 | J33: 9585799 | K33: 4980418 | L33: 5249358
B44: 3
A45: Total 'Other' Revenue | B45: 1 | C45: =SUM(C33:C44) -> 1485631.02 | D45: =SUM(D33:D44) -> 2598000.55 | E45: 2282472 | F45: 5589569 | G45: 24925515 | H45: 4437230 | I45: 1596205.74 | J45: 9585799 | K45: 4980418 | L45: 5249358
A47: EXPENDITURE ITEMS:
A48: ='A4-FinPerf RE'!A25 -> Employee related costs
A49: Basic Salaries and Wages | B49: 2 | C49: 158073695.2 | D49: 158802454.8 | E49: 129783604.4 | F49: 128273859 | G49: 132172131 | H49: 142566886 | I49: 109172120.3 | J49: 146913561 | K49: 156315828 | L49: 166319832
A50: Pension and UIF Contributions | C50: 33001798.35 | D50: 34320042.8 | E50: 26089515.73 | F50: 29397025 | G50: 29354878 | H50: 30010703 | I50: 22940185.63 | J50: 32137882 | K50: 34176418 | L50: 36344437
A51: Medical Aid Contributions | C51: 11510204.15 | D51: 12566370.35 | E51: 9683831.46 | F51: 10702005 | G51: 10046413 | H51: 10555367 | I51: 8311445.59 | J51: 11719363 | K51: 12469400 | L51: 13267441
A52: Overtime | C52: 9073410.45 | D52: 5078430.19 | E52: 3625730.88 | F52: 2908840 | G52: 4405965 | H52: 2995030 | I52: 2531742.29 | J52: 4122203 | K52: 4386024 | L52: 4666728
A53: Performance Bonus | C53: 0 | D53: 0 | E53: 12211063.75 | F53: 9485815 | G53: 9226360 | H53: 0 | I53: 0 | J53: 0 | K53: 0 | L53: 0
A54: Motor Vehicle Allowance | C54: 13391026.16 | D54: 11967361.6 | E54: 9582281.89 | F54: 8890274 | G54: 9887711 | H54: 10904466 | I54: 7079932.03 | J54: 10374295 | K54: 11027181 | L54: 11721258
A55: Cellphone Allowance | C55: 1904083.31 | D55: 1820817.05 | E55: 0 | F55: 0 | G55: 0 | H55: 688413 | I55: 586387.07 | J55: 576329 | K55: 613215 | L55: 652461
A56: Housing Allowances | C56: 1133403.63 | D56: 1270591.04 | E56: 995969.16 | F56: 884830 | G56: 881990 | H56: 1041358 | I56: 773560.45 | J56: 872668 | K56: 928514 | L56: 987939
A57: Other benefits and allowances | C57: 499.92 | D57: 499.92 | E57: 6076596.96 | F57: 2891837 | G57: 2853739 | H57: 500 | I57: 376.7 | J57: 0 | K57: 0 | L57: 0
A58: Payments in lieu of leave | C58: 4142851.08 | D58: 2565817.42 | E58: 3842058.93 | F58: 1072108 | G58: 500000 | H58: 2000000 | I58: 0 | J58: 500000 | K58: 527000 | L58: 555458
A59: Long service awards | C59: 0 | D59: 0 | E59: 0 | G59: 0 | H59: 0 | I59: 0 | J59: 0 | K59: 0 | L59: 0
A60: Post-retirement benefit obligations | B60: 4 | C60: 0 | D60: 0 | E60: 842146.8 | F60: 1037650 | G60: 988838 | H60: 0 | I60: 0 | J60: 0 | K60: 0 | L60: 0
A61: sub-total | B61: 5 | C61: =SUM(C49:C60) -> 232230972.2 | D61: =SUM(D49:D60) -> 228392385.2 | E61: 202732800 | F61: 195544243 | G61: 200318025 | H61: 200762723 | I61: 151395750 | J61: 207216301 | K61: 220443580 | L61: 234515554
A62: Less: Employees costs capitalised to PPE
A63: ="Total "&A48 -> Total Employee related costs | B63: 1 | C63: =C61-C62 -> 232230972.2 | D63: =D61-D62 -> 228392385.2 | E63: 202732800 | F63: 195544243 | G63: 200318025 | H63: 200762723 | I63: 151395750 | J63: 207216301 | K63: 220443580 | L63: 234515554
A65: Contributions recognised - capital
A66: List contributions by contract | C66: 0 | D66: 0 | E66: 0 | F66: 0 | G66: 0 | H66: 0 | I66: 0 | J66: 0 | K66: 0 | L66: 0
A72: ="Total "&A65 -> Total Contributions recognised - capital | C72: =SUM(C66:C71) -> 0 | D72: 0 | E72: 0 | F72: 0 | G72: 0 | H72: 0 | I72: 0 | J72: 0 | K72: 0 | L72: 0
A74: ='A4-FinPerf RE'!A28 -> Depreciation & asset impairment
A75: Depreciation of Property, Plant & Equipment | C75: 16153659.05 | D75: 22340978.41 | E75: 25102464 | F75: 23265556 | G75: 23265556 | H75: 25402041 | I75: 25402041 | J75: 26766440 | K75: 28211828 | L75: 29735267
A76: Lease amortisation | C76: 1045018.71 | D76: 1261062.59 | E76: 1414163 | F76: 0 | G76: 0 | H76: 0 | I76: 0 | J76: 0 | K76: 0 | L76: 0
A77: Capital asset impairment | C77: 0 | D77: 0 | E77: 0 | F77: 0 | G77: 0 | H77: 0 | I77: 0 | J77: 0 | K77: 0 | L77: 0
A78: Depreciation resulting from revaluation of PPE | B78: 10 | C78: 0 | D78: 0 | E78: 0 | F78: 0 | G78: 0 | H78: 0 | I78: 0 | J78: 0 | K78: 0 | L78: 0
A79: ="Total "&LEFT(A74,35) -> Total Depreciation & asset impairment | B79: 1 | C79: =SUM(C75:C77)-C78 -> 17198677.76 | D79: =SUM(D75:D77)-D78 -> 23602041 | E79: 26516627 | F79: 23265556 | G79: 23265556 | H79: 25402041 | I79: 25402041 | J79: =SUM(J75:J77)-J78 -> 26766440 | K79: 28211828 | L79: 29735267
A81: ='A4-FinPerf RE'!A30 -> Bulk purchases
A82: Electricity Bulk Purchases | C82: 0 | D82: 0 | E82: 0 | F82: 0 | G82: 0 | H82: 0 | I82: 0 | J82: 0 | K82: 0 | L82: 0
A83: Water Bulk Purchases | C83: 0 | D83: 0 | E83: 0 | F83: 0 | G83: 0 | H83: 0 | I83: 0 | J83: 0 | K83: 0 | L83: 0
A84: Total bulk purchases | B84: 1 | C84: =SUM(C82:C83) -> 0 | D84: =SUM(D82:D83) -> 0 | E84: 0 | F84: 0 | G84: 0 | H84: 0 | I84: 0 | J84: 0 | K84: 0 | L84: 0
A86: Transfers and grants
A87: Cash transfers and grants | C87: ='SA21'!C34 -> 0 | D87: ='SA21'!D34 -> 0 | E87: ='SA21'!E34 -> 0 | F87: ='SA21'!F34 -> 0 | G87: ='SA21'!G34 -> 0 | H87: ='SA21'!H34 -> 0 | I87: ='SA21'!I34 -> 0 | J87: ='SA21'!J34 -> 0 | K87: ='SA21'!K34 -> 0 | L87: ='SA21'!L34 -> 0
A88: Non-cash transfers and grants | C88: ='SA21'!C65 -> 84710637.08 | D88: ='SA21'!D65 -> 250000 | E88: ='SA21'!E65 -> 5221646 | F88: ='SA21'!F65 -> 16013158 | G88: ='SA21'!G65 -> 16013158 | H88: ='SA21'!H65 -> 11853401 | I88: ='SA21'!I65 -> 0 | J88: ='SA21'!J65 -> 1365000 | K88: ='SA21'!K65 -> 1438710 | L88: ='SA21'!L65 -> 1516400
A89: Total transfers and grants | B89: 1 | C89: =SUM(C87:C88) -> 84710637.08 | D89: =SUM(D87:D88) -> 250000 | E89: 5221646 | F89: 16013158 | G89: 16013158 | H89: 11853401 | I89: 0 | J89: 1365000 | K89: 1438710 | L89: 1516400
A91: ='A4-FinPerf RE'!A32 -> Contracted services
A92: List services provided by contract | C92: 37072908.56 | D92: 42723076.81 | E92: 41315422 | F92: 39560241 | G92: 40004443 | H92: 39899001 | I92: 28456248.34 | J92: 35567208.04 | K92: 37487836 | L92: 39512180
A117: sub-total | B117: 1 | C117: =SUM(C92:C116) -> 37072908.56 | D117: 42723076.81 | E117: 41315422 | F117: 39560241 | G117: 40004443 | H117: 39899001 | I117: 28456248.34 | J117: 35567208.04 | K117: 37487836 | L117: 39512180
A118: Allocations to organs of state:
A119: Electricity | C119: 0 | D119: 0 | E119: 0 | F119: 0 | G119: 0 | H119: 0 | I119: 0 | J119: 0 | K119: 0 | L119: 0
A120: Water | C120: 0 | D120: 0 | E120: 0 | F120: 0 | G120: 0 | H120: 0 | I120: 0 | J120: 0 | K120: 0 | L120: 0
A121: Sanitation | C121: 0 | D121: 0 | E121: 0 | F121: 0 | G121: 0 | H121: 0 | I121: 0 | J121: 0 | K121: 0 | L121: 0
A122: Other | C122: 0 | D122: 0 | E122: 0 | F122: 0 | G122: 0 | H122: 0 | I122: 0 | J122: 0 | K122: 0 | L122: 0
A123: Total contracted services | C123: =SUM(C117:C122) -> 37072908.56 | D123: =SUM(D117:D122) -> 42723076.81 | E123: 41315422 | F123: 39560241 | G123: 40004443 | H123: 39899001 | I123: 28456248.34 | J123: 35567208.04 | K123: 37487836 | L123: 39512180
A125: Other Expenditure By Type
A126: Collection costs | C126: 140128.85 | D126: 8723.68 | E126: 0 | F126: 160540 | G126: 0 | H126: 142838 | I126: 76418.95 | J126: 1290000 | K126: 1359660 | L126: 1433082
A127: Contributions to 'other' provisions | C127: 681429.7 | D127: 0 | E127: 0 | F127: 0 | G127: 0 | H127: 0 | I127: 0 | J127: 0 | K127: 0 | L127: 0
A128: Consultant fees | C128: 6714995.22 | D128: 3034670.89 | E128: 2598399 | F128: 2166000 | G128: 4786271 | H128: 2083604 | I128: 1783572.79 | J128: 2548500 | K128: 2686119 | L128: 2831169
A129: Audit fees | C129: 2018761.64 | D129: 2925528.52 | E129: 2050167 | F129: 2250000 | G129: 2250000 | H129: 2400000 | I129: 1880943.72 | J129: 2250000 | K129: 2371500 | L129: 2499561
A130: General expenses | B130: 3 | C130: 78852442.95 | D130: 51623046.56 | E130: 58647755 | F130: 56351929 | G130: 59849771 | H130: 53721361 | I130: 31592971.8 | J130: 56248399.74 | K130: 59241646 | L130: 61578537
A131: Repair & maintenance | C131: 7877685.77 | D131: 6077486 | E131: 4813629 | F131: 4495894 | G131: 4358882 | H131: 4177276 | I131: 2887756 | J131: 3972721 | K131: 4187248 | L131: 4413359
A153: Total 'Other' Expenditure | B153: 1 | C153: =SUM(C126:C152) -> 96285444.13 | D153: =SUM(D126:D152) -> 63669455.65 | E153: 68109950 | F153: 65424363 | G153: 71244924 | H153: 62525079 | I153: 38221663.26 | J153: 66309620.74 | K153: 69846173 | L153: 72755708
A155: Repairs and Maintenance by Expenditure Item | B155: 8
A156: Employee related costs
A157: Other materials
A158: Contracted Services
A159: Other Expenditure | C159: 7877686 | D159: 6077486 | E159: 6077486 | F159: 4495894 | G159: 4177276 | H159: 4177276 | I159: 4177276 | J159: 3972721 | K159: 4187248 | L159: 4413359
A160: Total Repairs and Maintenance Expenditure | B160: 9 | C160: =SUM(C156:C159) -> 7877686 | D160: =SUM(D156:D159) -> 6077486 | E160: 6077486 | F160: 4495894 | G160: 4177276 | H160: 4177276 | I160: 4177276 | J160: 3972721 | K160: 4187248 | L160: 4413359
A162: check | C162: =C160-SA34c!C77 -> 13215 | D162: =D160-SA34c!D77 -> -1800200 | E162: =E160-SA34c!E77 -> 0 | F162: =F160-SA34c!F77 -> -234000 | G162: =G160-SA34c!G77 -> 0 | H162: =H160-SA34c!H77 -> 0 | J162: =J160-SA34c!I77 -> -523173 | K162: =K160-SA34c!J77 -> -432836.594 | L162: =L160-SA34c!K77 -> -433109.7391
A165: =head27a -> References
A166: 1. Must reconcile with 'Budgeted Financial Performance (Revenue and Expenditure)
A167: 2. Must reconcile to supporting documentation on staff salaries
A168: 3. Insert other categories where revenue or expenditure is of a material nature (list separate items until 'General expenses' is not > 10% of Total Expenditure)
A169: 4. Expenditure to meet any 'unfunded obligations'
A170: 5 This sub-total must agree with the total on SA22, but excluding councillor and board member items
A171: 6. Include a note for each revenue item that is affected by 'revenue foregone'
A172: 7. Special consideration may have to be given to including 'goodwill arising' or 'joint venture' budgets where circumstances require this (include separately under relevant notes)
A173: 8. Repairs and Maintenance is not a GRAP item. However to facilitate transparency, municipalities must provide a breakdown of the amounts included in the relevant GRAP items that will be spent on Repairs and Maintenance.
A174: 9. Must reconcile with Repairs and Maintenance by Asset Class (Total Repairs and Maintenance) on Table SA34c.
A175: 10. Only applicable to municipalities that have adopted the 'revaluation method' in GRAP 17. The aim is to prevent overstating 'depreciation and asset impairment'

Sheet SA2
A1: =muni&" - "&TableA2 -> DC42 Sedibeng - Supporting Table SA2 Matrix Financial Performance Budget (revenue source/expenditure type and dept.)
A2: =desc -> Description | B2: =head27 -> Ref | C2: ='A3-FinPerf V'!A5 -> Vote 1 - Executive and Council | D2: ='A3-FinPerf V'!A6 -> Vote 2 - Finance & Administration | E2: ='A3-FinPerf V'!A7 -> Vote 3 - Transport, Infrastructure & Environment | F2: ='A3-FinPerf V'!A8 -> Vote 4 - Community & Social Services | G2: ='A3-FinPerf V'!A9 -> Vote 5 - Planning & Development | H2: ='A3-FinPerf V'!A10 -> Vote 6 - | I2: ='A3-FinPerf V'!A11 -> Vote 7 - | J2: ='A3-FinPerf V'!A12 -> Vote 8 - | K2: ='A3-FinPerf V'!A13 -> Vote 9 - | L2: ='A3-FinPerf V'!A14 -> Vote 10 - | M2: ='A3-FinPerf V'!A15 -> Vote 11 - | N2: ='A3-FinPerf V'!A16 -> Vote 12 - | O2: ='A3-FinPerf V'!A17 -> Vote 13 - | P2: ='A3-FinPerf V'!A18 -> Vote 14 - | Q2: ='A3-FinPerf V'!A19 -> Vote 15 - | R2: Total
A3: R thousand | B3: 1 | C3: R'000 | D3: R'000 | E3: R'000 | F3: R'000 | G3: R'000 | H3: R'000 | Q3: R'000 | R3: R'000
A4: ='A4-FinPerf RE'!A4 -> Revenue By Source
A5: ='A4-FinPerf RE'!A5 -> Property rates | C5: 0 | D5: 0 | E5: 0 | F5: 0 | G5: 0 | H5: 0 | I5: 0 | J5: 0 | K5: 0 | L5: 0 | M5: 0 | N5: 0 | O5: 0 | P5: 0 | Q5: 0 | R5: =SUM(C5:Q5) -> 0
A6: ='A4-FinPerf RE'!A6 -> Property rates - penalties & collection charges | C6: 0 | D6: 0 | E6: 0 | F6: 0 | G6: 0 | H6: 0 | I6: 0 | J6: 0 | K6: 0 | L6: 0 | M6: 0 | N6: 0 | O6: 0 | P6: 0 | Q6: 0 | R6: =SUM(C6:Q6) -> 0
A7: ='A4-FinPerf RE'!A7 -> Service charges - electricity revenue | C7: 0 | D7: 0 | E7: 0 | F7: 0 | G7: 0 | H7: 0 | I7: 0 | J7: 0 | K7: 0 | L7: 0 | M7: 0 | N7: 0 | O7: 0 | P7: 0 | Q7: 0 | R7: 0
A8: ='A4-FinPerf RE'!A8 -> Service charges - water revenue | C8: 0 | D8: 0 | E8: 0 | F8: 0 | G8: 0 | H8: 0 | I8: 0 | J8: 0 | K8: 0 | L8: 0 | M8: 0 | N8: 0 | O8: 0 | P8: 0 | Q8: 0 | R8: 0
A9: ='A4-FinPerf RE'!A9 -> Service charges - sanitation revenue | C9: 0 | D9: 0 | E9: 0 | F9: 0 | G9: 0 | H9: 0 | I9: 0 | J9: 0 | K9: 0 | L9: 0 | M9: 0 | N9: 0 | O9: 0 | P9: 0 | Q9: 0 | R9: 0
A10: ='A4-FinPerf RE'!A10 -> Service charges - refuse revenue | C10: 0 | D10: 0 | E10: 0 | F10: 0 | G10: 0 | H10: 0 | I10: 0 | J10: 0 | K10: 0 | L10: 0 | M10: 0 | N10: 0 | O10: 0 | P10: 0 | Q10: 0 | R10: 0
A11: ='A4-FinPerf RE'!A11 -> Service charges - other | C11: 0 | D11: 0 | E11: 0 | F11: 0 | G11: 0 | H11: 0 | I11: 0 | J11: 0 | K11: 0 | L11: 0 | M11: 0 | N11: 0 | O11: 0 | P11: 0 | Q11: 0 | R11: 0
A12: ='A4-FinPerf RE'!A12 -> Rental of facilities and equipment | C12: 0 | D12: 8906982 | E12: 0 | F12: 196588 | G12: 0 | H12: 0 | I12: 0 | J12: 0 | K12: 0 | L12: 0 | M12: 0 | N12: 0 | O12: 0 | P12: 0 | Q12: 0 | R12: 9103570
A13: ='A4-FinPerf RE'!A13 -> Interest earned - external investments | C13: 0 | D13: 2060000 | E13: 0 | F13: 0 | G13: 0 | H13: 0 | I13: 0 | J13: 0 | K13: 0 | L13: 0 | M13: 0 | N13: 0 | O13: 0 | P13: 0 | Q13: 0 | R13: 2060000
A14: ='A4-FinPerf RE'!A14 -> Interest earned - outstanding debtors | C14: 0 | D14: 0 | E14: 0 | F14: 0 | G14: 0 | H14: 0 | I14: 0 | J14: 0 | K14: 0 | L14: 0 | M14: 0 | N14: 0 | O14: 0 | P14: 0 | Q14: 0 | R14: 0
A15: ='A4-FinPerf RE'!A15 -> Dividends received | C15: 0 | D15: 0 | E15: 0 | F15: 0 | G15: 0 | H15: 0 | I15: 0 | J15: 0 | K15: 0 | L15: 0 | M15: 0 | N15: 0 | O15: 0 | P15: 0 | Q15: 0 | R15: 0
A16: ='A4-FinPerf RE'!A16 -> Fines | C16: 0 | D16: 0 | E16: 0 | F16: 0 | G16: 0 | H16: 0 | I16: 0 | J16: 0 | K16: 0 | L16: 0 | M16: 0 | N16: 0 | O16: 0 | P16: 0 | Q16: 0 | R16: 0
A17: ='A4-FinPerf RE'!A17 -> Licences and permits | C17: 0 | D17: 0 | E17: 65854801.92 | F17: 0 | G17: 0 | H17: 0 | I17: 0 | J17: 0 | K17: 0 | L17: 0 | M17: 0 | N17: 0 | O17: 0 | P17: 0 | Q17: 0 | R17: 65854801.92
A18: ='A4-FinPerf RE'!A18 -> Agency services | C18: 0 | D18: 7307390 | E18: 0 | F18: 0 | G18: 0 | H18: 0 | I18: 0 | J18: 0 | K18: 0 | L18: 0 | M18: 0 | N18: 0 | O18: 0 | P18: 0 | Q18: 0 | R18: 7307390
A19: ='A4-FinPerf RE'!A20 -> Other revenue | C19: 23968 | D19: 5423149 | E19: 25578 | F19: 87401 | G19: 29473 | H19: 0 | I19: 0 | J19: 0 | K19: 0 | L19: 0 | M19: 0 | N19: 0 | O19: 0 | P19: 0 | Q19: 0 | R19: 5589569
A20: ='A4-FinPerf RE'!A19 -> Transfers recognised - operational | C20: 0 | D20: 235925000 | E20: 0 | F20: 6372000 | G20: 18255000 | H20: 0 | I20: 0 | J20: 0 | K20: 0 | L20: 0 | M20: 0 | N20: 0 | O20: 0 | P20: 0 | Q20: 0 | R20: 260552000
A21: ='A4-FinPerf RE'!A21 -> Gains on disposal of PPE | C21: 0 | D21: 100000 | E21: 0 | F21: 0 | G21: 0 | H21: 0 | I21: 0 | J21: 0 | K21: 0 | L21: 0 | M21: 0 | N21: 0 | O21: 0 | P21: 0 | Q21: 0 | R21: 100000
A22: ='A4-FinPerf RE'!A22 -> Total Revenue (excluding capital transfers and contributions) | C22: =SUM(C5:C21) -> 23968 | D22: 259722521 | E22: 65880379.92 | F22: 6655989 | G22: 18284473 | H22: 0 | I22: 0 | J22: 0 | K22: 0 | L22: 0 | M22: 0 | N22: 0 | O22: 0 | P22: 0 | Q22: 0 | R22: 350567330.9
A24: ='A4-FinPerf RE'!A24 -> Expenditure By Type
A25: ='A4-FinPerf RE'!A25 -> Employee related costs | C25: 11870944 | D25: 68793120 | E25: 49231656 | F25: 46070241 | G25: 19608282 | H25: 0 | I25: 0 | J25: 0 | K25: 0 | L25: 0 | M25: 0 | N25: 0 | O25: 0 | P25: 0 | Q25: 0 | R25: =SUM(C25:Q25) -> 195574243
A26: ='A4-FinPerf RE'!A26 -> Remuneration of councillors | C26: 10579993 | D26: 0 | E26: 0 | F26: 0 | G26: 0 | H26: 0 | I26: 0 | J26: 0 | K26: 0 | L26: 0 | M26: 0 | N26: 0 | O26: 0 | P26: 0 | Q26: 0 | R26: =SUM(C26:Q26) -> 10579993
A27: ='A4-FinPerf RE'!A27 -> Debt impairment | C27: 0 | D27: 0 | E27: 0 | F27: 0 | G27: 0 | H27: 0 | I27: 0 | J27: 0 | K27: 0 | L27: 0 | M27: 0 | N27: 0 | O27: 0 | P27: 0 | Q27: 0 | R27: 0
A28: ='A4-FinPerf RE'!A28 -> Depreciation & asset impairment | C28: 0 | D28: 23265556 | E28: 0 | F28: 0 | G28: 0 | H28: 0 | I28: 0 | J28: 0 | K28: 0 | L28: 0 | M28: 0 | N28: 0 | O28: 0 | P28: 0 | Q28: 0 | R28: 23265556
A29: ='A4-FinPerf RE'!A29 -> Finance charges | C29: 0 | D29: 0 | E29: 0 | F29: 0 | G29: 0 | H29: 0 | I29: 0 | J29: 0 | K29: 0 | L29: 0 | M29: 0 | N29: 0 | O29: 0 | P29: 0 | Q29: 0 | R29: 0
A30: ='A4-FinPerf RE'!A30 -> Bulk purchases | C30: 0 | D30: 0 | E30: 0 | F30: 0 | G30: 0 | H30: 0 | I30: 0 | J30: 0 | K30: 0 | L30: 0 | M30: 0 | N30: 0 | O30: 0 | P30: 0 | Q30: 0 | R30: 0
A31: ='A4-FinPerf RE'!A31 -> Other materials | C31: 0 | D31: 0 | E31: 0 | F31: 0 | G31: 0 | H31: 0 | I31: 0 | J31: 0 | K31: 0 | L31: 0 | M31: 0 | N31: 0 | O31: 0 | P31: 0 | Q31: 0 | R31: 0
A32: ='A4-FinPerf RE'!A32 -> Contracted services | C32: 0 | D32: 19877037 | E32: 18857204 | F32: 790000 | G32: 36000 | H32: 0 | I32: 0 | J32: 0 | K32: 0 | L32: 0 | M32: 0 | N32: 0 | O32: 0 | P32: 0 | Q32: 0 | R32: 39560241
A33: ='A4-FinPerf RE'!A33 -> Transfers and grants | C33: 0 | D33: 0 | E33: 0 | F33: 0 | G33: 16013158 | H33: 0 | I33: 0 | J33: 0 | K33: 0 | L33: 0 | M33: 0 | N33: 0 | O33: 0 | P33: 0 | Q33: 0 | R33: 16013158
A34: ='A4-FinPerf RE'!A34 -> Other expenditure | C34: 6074703 | D34: 42086565 | E34: 2425562 | F34: 11752743 | G34: 3054790 | H34: 0 | I34: 0 | J34: 0 | K34: 0 | L34: 0 | M34: 0 | N34: 0 | O34: 0 | P34: 0 | Q34: 0 | R34: 65394363
A35: ='A4-FinPerf RE'!A35 -> Loss on disposal of PPE | C35: 0 | D35: 0 | E35: 0 | F35: 0 | G35: 0 | H35: 0 | I35: 0 | J35: 0 | K35: 0 | L35: 0 | M35: 0 | N35: 0 | O35: 0 | P35: 0 | Q35: 0 | R35: 0
A36: Total Expenditure | C36: =SUM(C25:C35) -> 28525640 | D36: 154022278 | E36: 70514422 | F36: 58612984 | G36: 38712230 | H36: 0 | I36: 0 | J36: 0 | K36: 0 | L36: 0 | M36: 0 | N36: 0 | O36: 0 | P36: 0 | Q36: 0 | R36: 350387554
A38: ='A4-FinPerf RE'!A38 -> Surplus/(Deficit) | C38: =C22-C36 -> -28501672 | D38: 105700243 | E38: -4634042.08 | F38: -51956995 | G38: -20427757 | H38: 0 | I38: =I22-I36 -> 0 | J38: 0 | K38: 0 | L38: 0 | M38: 0 | N38: 0 | O38: 0 | P38: 0 | Q38: 0 | R38: =R22-R36 -> 179776.92
A39: ='A4-FinPerf RE'!A39 -> Transfers recognised - capital | C39: 0 | D39: 0 | E39: 0 | F39: 0 | G39: 0 | H39: 0 | I39: 0 | J39: 0 | K39: 0 | L39: 0 | M39: 0 | N39: 0 | O39: 0 | P39: 0 | Q39: 0 | R39: =SUM(C39:Q39) -> 0
A40: ='A4-FinPerf RE'!A40 -> Contributions recognised - capital | C40: 0 | D40: 0 | E40: 0 | F40: 0 | G40: 0 | H40: 0 | I40: 0 | J40: 0 | K40: 0 | L40: 0 | M40: 0 | N40: 0 | O40: 0 | P40: 0 | Q40: 0 | R40: =SUM(C40:Q40) -> 0
A41: ='A4-FinPerf RE'!A41 -> Contributed assets | C41: 0 | D41: 0 | E41: 0 | F41: 0 | G41: 0 | H41: 0 | I41: 0 | J41: 0 | K41: 0 | L41: 0 | M41: 0 | N41: 0 | O41: 0 | P41: 0 | Q41: 0 | R41: =SUM(C41:Q41) -> 0
A42: ='A4-FinPerf RE'!A42 -> Surplus/(Deficit) after capital transfers & contributions | C42: =SUM(C38:C41) -> -28501672 | D42: 105700243 | E42: -4634042.08 | F42: -51956995 | G42: -20427757 | H42: 0 | I42: 0 | J42: 0 | K42: 0 | L42: 0 | M42: 0 | N42: 0 | O42: 0 | P42: 0 | Q42: =SUM(Q38:Q41) -> 0 | R42: =SUM(R38:R41) -> 179776.92
A43: =head27a -> References
A44: 1. Departmental columns to be based on municipal organisation structure
A45: check balance | R45: ='A4-FinPerf RE'!J42-'SA2'!R42 -> -139388.7

Sheet SA3
A1: =muni&" - "&TableA3 -> DC42 Sedibeng - Supporting Table SA3 Supportinging detail to 'Budgeted Financial Position'
A2: =desc -> Description | B2: =head27 -> Ref | C2: =head1b -> 2010/11 | D2: =head1A -> 2011/12 | E2: =Head1 -> 2012/13 | F2: =Head2 -> Current Year 2013/14 | J2: =Head3 -> 2014/15 Medium Term Revenue & Expenditure Framework
C3: =Head5 -> Audited Outcome | D3: =Head5 -> Audited Outcome | E3: =Head5 -> Audited Outcome | F3: =Head6 -> Original Budget | G3: =Head7 -> Adjusted Budget | H3: =Head8 -> Full Year Forecast | I3: =Head5b -> Pre-audit outcome | J3: =Head9 -> Budget Year 2014/15 | K3: =Head10 -> Budget Year +1 2015/16 | L3: =Head11 -> Budget Year +2 2016/17
A4: R thousand
A5: ASSETS
A6: ='A6-FinPos'!A7 -> Call investment deposits
A7: Call deposits < 90 days | C7: 0 | D7: 0 | E7: 0 | F7: 0 | G7: 0 | H7: 0 | I7: 0 | J7: 0 | K7: 0 | L7: 0
A8: Other current investments > 90 days | C8: 0 | D8: 0 | E8: 0 | F8: 0 | G8: 0 | H8: 0 | I8: 0 | J8: 0 | K8: 0 | L8: 0
A9: ="Total "&A6 -> Total Call investment deposits | B9: 2 | C9: =SUM(C7:C8) -> 0 | D9: =SUM(D7:D8) -> 0 | E9: 0 | F9: 0 | G9: 0 | H9: 0 | I9: 0 | J9: 0 | K9: 0 | L9: 0
A11: ='A6-FinPos'!A8 -> Consumer debtors
A12: =A11 -> Consumer debtors | C12: 0 | D12: 5434493 | E12: 0 | F12: 0 | G12: 0 | H12: 0 | I12: 0 | J12: 0 | K12: 0 | L12: 0
A13: Less: Provision for debt impairment | C13: 0 | D13: 0 | E13: 0 | F13: 0 | G13: 0 | H13: 0 | I13: 0 | J13: 0 | K13: 0 | L13: 0
A14: ="Total "&A11 -> Total Consumer debtors | B14: 2 | C14: =SUM(C12:C13) -> 0 | D14: =SUM(D12:D13) -> 5434493 | E14: 0 | F14: =SUM(F12:F13) -> 0 | G14: 0 | H14: 0 | I14: 0 | J14: 0 | K14: 0 | L14: 0
A16: Debt impairment provision
A17: Balance at the beginning of the year
A18: Contributions to the provision | C18: 0 | D18: 0 | E18: 0 | F18: 0 | G18: 0 | H18: 0 | I18: 0 | J18: 0 | K18: 0 | L18: 0
A19: Bad debts written off
A20: Balance at end of year | C20: =SUM(C17:C19) -> 0 | D20: =SUM(D17:D19) -> 0 | E20: 0 | F20: 0 | G20: 0 | H20: 0 | I20: 0 | J20: 0 | K20: 0 | L20: 0
A22: ='A6-FinPos'!A19&" (PPE)" -> Property, plant and equipment (PPE)
A23: PPE at cost/valuation (excl. finance leases) | C23: 243417036.8 | D23: 253960763.6 | E23: 265163902 | F23: 255163478 | G23: 260063478 | H23: 265995204 | I23: 265995204 | J23: 255163478 | K23: 262086417.1 | L23: 293757639.8
A24: Leases recognised as PPE | B24: 3 | C24: 8.29459168e-10 | D24: 9.313225746e-10 | E24: 9.313225746e-10 | F24: 0 | G24: 0 | H24: 0 | I24: 0 | J24: 0 | K24: 0 | L24: 0
A25: Less: Accumulated depreciation | C25: 50825313.77 | D25: 69726978.65 | E25: 87808239 | F25: 114757365 | G25: 114757365 | H25: 91491809 | I25: 91491809 | J25: 138022921 | K25: 162475020 | L25: 188125272
A26: ="Total "&A22 -> Total Property, plant and equipment (PPE) | B26: 2 | C26: =SUM(C23:C24)-C25 -> 192591723 | D26: =SUM(D23:D24)-D25 -> 184233785 | E26: 177355663 | F26: 140406113 | G26: 145306113 | H26: 174503395 | I26: 174503395 | J26: 117140557 | K26: 99611397.06 | L26: 105632367.8
A28: LIABILITIES
A29: ='A6-FinPos'!A28&" - "&'A6-FinPos'!A30 -> Current liabilities - Borrowing
A30: Short term loans (other than bank overdraft) | C30: 0 | D30: 0 | E30: 0 | F30: 0 | G30: 0 | H30: 0 | I30: 0 | J30: 0 | K30: 0 | L30: 0
A31: Current portion of long-term liabilities | C31: 0 | D31: 0 | E31: 0 | F31: 0 | G31: 0 | H31: 0 | I31: 0 | J31: 0 | K31: 0 | L31: 0
A32: ="Total "&A29 -> Total Current liabilities - Borrowing | C32: =SUM(C30:C31) -> 0 | D32: =SUM(D30:D31) -> 0 | E32: 0 | F32: 0 | G32: 0 | H32: 0 | I32: 0 | J32: 0 | K32: 0 | L32: 0
A34: ='A6-FinPos'!A32 -> Trade and other payables
A35: Trade and other creditors | C35: 57936797.05 | D35: 46668533.64 | E35: 47095147 | F35: 61483000 | G35: 40492591 | H35: 40851744.05 | I35: 40851744.05 | J35: 61483000 | K35: 42405000 | L35: 44482845
A36: Unspent conditional transfers | C36: 33740052.28 | D36: 12793065.94 | E36: 9824678 | F36: 3000000 | G36: 3000000 | H36: 3000000 | I36: 3000000 | J36: 3000000 | K36: 3000000 | L36: 3147000
A37: VAT | C37: 0 | D37: 0 | E37: 0 | F37: 0 | G37: 0 | H37: -1125613.92 | I37: -1125613.92 | J37: 0 | K37: 0 | L37: 0
A38: ="Total "&A34 -> Total Trade and other payables | B38: 2 | C38: =SUM(C35:C37) -> 91676849.33 | D38: 59461599.58 | E38: 56919825 | F38: 64483000 | G38: 43492591 | H38: 42726130.13 | I38: 42726130.13 | J38: 64483000 | K38: 45405000 | L38: =SUM(L35:L37) -> 47629845
A40: ='A6-FinPos'!A36&" - "&'A6-FinPos'!A37 -> Non current liabilities - Borrowing
A41: Borrowing | B41: 4 | C41: 0 | D41: 0 | E41: 0 | F41: 0 | G41: 0 | H41: 0 | I41: 0 | J41: 0 | K41: 0 | L41: 0
A42: Finance leases (including PPP asset element) | C42: 0 | D42: 0 | E42: 0 | F42: 0 | G42: 0 | H42: 0 | I42: 0 | J42: 0 | K42: 0 | L42: 0
A43: ="Total "&A40 -> Total Non current liabilities - Borrowing | C43: =SUM(C41:C42) -> 0 | D43: =SUM(D41:D42) -> 0 | E43: 0 | F43: 0 | G43: 0 | H43: 0 | I43: 0 | J43: 0 | K43: 0 | L43: 0
A45: ='A6-FinPos'!A38&" - non-current" -> Provisions - non-current
A46: Retirement benefits | C46: 0 | D46: 0 | E46: 0 | F46: 0 | G46: 0 | H46: 0 | I46: 0 | J46: 0 | K46: 0 | L46: 0
A47: List other major provision items
A48: Refuse landfill site rehabilitation | C48: 0 | D48: 0 | E48: 0 | F48: 0 | G48: 0 | H48: 0 | I48: 0 | J48: 0 | K48: 0 | L48: 0
A49: Other | C49: 0 | D49: 0 | E49: 0 | F49: 0 | G49: 0 | H49: 0 | I49: 0 | J49: 0 | K49: 0 | L49: 0
A50: ="Total "&A45 -> Total Provisions - non-current | C50: =SUM(C46:C49) -> 0 | D50: 0 | E50: 0 | F50: 0 | G50: 0 | H50: 0 | I50: 0 | J50: 0 | K50: 0 | L50: 0
A52: CHANGES IN NET ASSETS
A53: ='A6-FinPos'!A45 -> Accumulated Surplus/(Deficit)
A54: =A53&" - opening balance" -> Accumulated Surplus/(Deficit) - opening balance | C54: 282579885.8 | D54: 168235257.3 | E54: 149102581 | F54: 150341800 | G54: 150341800 | H54: 167560634 | I54: 167560634 | J54: 150341800 | K54: 153712112 | L54: 161244005.5
A55: GRAP adjustments
A56: Restated balance | C56: =SUM(C54:C55) -> 282579885.8 | D56: =SUM(D54:D55) -> 168235257.3 | E56: =SUM(E54:E55) -> 149102581 | F56: =SUM(F54:F55) -> 150341800 | G56: 150341800 | H56: 167560634 | I56: 167560634 | J56: 150341800 | K56: 153712112 | L56: 161244005.5
A57: ='A4-FinPerf RE'!A38 -> Surplus/(Deficit) | C57: ='A4-FinPerf RE'!C46 -> -114344628.4 | D57: ='A4-FinPerf RE'!D46 -> 4425113.43 | E57: ='A4-FinPerf RE'!E46 -> -13120598.65 | F57: ='A4-FinPerf RE'!F46 -> 179776.92 | G57: ='A4-FinPerf RE'!G46 -> 6391370.92 | H57: ='A4-FinPerf RE'!H46 -> 5287172 | I57: ='A4-FinPerf RE'!I46 -> -7767983.81 | J57: ='A4-FinPerf RE'!J46 -> 40388.22 | K57: ='A4-FinPerf RE'!K46 -> -7233862 | L57: ='A4-FinPerf RE'!L46 -> -9915748
A58: Appropriations to Reserves | C58: 0 | D58: 0 | E58: 0 | F58: 0 | G58: 0 | H58: 0 | I58: 0 | J58: 0 | K58: 0 | L58: 0
A59: Transfers from Reserves | C59: 0 | D59: 0 | E59: 0 | F59: 0 | G59: 0 | H59: 0 | I59: 0 | J59: 0 | K59: 0 | L59: 0
A60: Depreciation offsets
A61: Other adjustments
A62: Accumulated Surplus/(Deficit) | B62: 1 | C62: =SUM(C56:C61) -> 168235257.3 | D62: =SUM(D56:D61) -> 172660370.7 | E62: =SUM(E56:E61) -> 135981982.4 | F62: 150521576.9 | G62: 156733170.9 | H62: 172847806 | I62: 159792650.2 | J62: 150382188.2 | K62: 146478250 | L62: 151328257.5
A63: Reserves
A64: Housing Development Fund | C64: 0 | D64: 0 | E64: 0 | F64: 0 | G64: 0 | H64: 0 | I64: 0 | J64: 0 | K64: 0 | L64: 0
A65: Capital replacement | C65: 0 | D65: 0 | E65: 0 | F65: 0 | G65: 0 | H65: 0 | I65: 0 | J65: 0 | K65: 0 | L65: 0
A66: Self-insurance | C66: 0 | D66: 0 | E66: 0 | F66: 0 | G66: 0 | H66: 0 | I66: 0 | J66: 0 | K66: 0 | L66: 0
A67: Other reserves | C67: 3307432.33 | D67: 2691831.01 | E67: 2130690 | F67: 2809123 | G67: 2809123 | H67: 3307432 | I67: 3307432 | J67: 2809123 | K67: 2809123 | L67: 2809123
A68: Revaluation | C68: 0 | D68: 0 | E68: 0 | F68: 0 | G68: 0 | H68: 0 | I68: 0 | J68: 0 | K68: 0 | L68: 0
A69: Total Reserves | B69: 2 | C69: =SUM(C64:C68) -> 3307432.33 | D69: 2691831.01 | E69: 2130690 | F69: 2809123 | G69: 2809123 | H69: 3307432 | I69: 3307432 | J69: 2809123 | K69: 2809123 | L69: 2809123
A70: ='A6-FinPos'!A48 -> TOTAL COMMUNITY WEALTH/EQUITY | B70: 2 | C70: =C62+C69 -> 171542689.6 | D70: 175352201.8 | E70: 138112672.4 | F70: 153330699.9 | G70: 159542293.9 | H70: 176155238 | I70: 163100082.2 | J70: 153191311.2 | K70: 149287373 | L70: 154137380.5
A72: Total capital expenditure includes expenditure on nationally significant priorities:
A73: Provision of basic services
A76: =head27a -> References
A77: ="1. Must reconcile with "&'Template names'!F103 -> 1. Must reconcile with Table A4 Budgeted Financial Performance (revenue and expenditure)
A78: ="2. Must reconcile with "&'Template names'!F105 -> 2. Must reconcile with Table A6 Budgeted Financial Position
A79: 3. Leases treated as assets to be depreciated as the same as purchased/constructed assets. Includes PPP asset element accounted for as finance leases
A80: 4. Borrowing must reconcile to Table A17
A81: check | C81: =C70-'A6-FinPos'!C48 -> 317.26 | D81: =D70-'A6-FinPos'!D48 -> 0 | E81: =E70-'A6-FinPos'!E48 -> 0 | F81: =F70-'A6-FinPos'!F48 -> 0 | G81: =G70-'A6-FinPos'!G48 -> -524458.08 | H81: =H70-'A6-FinPos'!H48 -> 0 | I81: =I70-'A6-FinPos'!I48 -> 0 | J81: =J70-'A6-FinPos'!J48 -> -139388.7 | K81: =K70-'A6-FinPos'!K48 -> 782315.49 | L81: =L70-'A6-FinPos'!L48 -> 3922377.02
C82: =TREND(D82:H82) -> 0 | D82: =TREND(E82:H82) -> 0 | E82: =E73 -> 0 | F82: =H73 -> 0 | G82: =J73 -> 0 | H82: =K73 -> 0 | I82: =L73 -> 0

Sheet SA4
A1: =muni&" - "&TableA4 -> DC42 Sedibeng - Supporting Table SA4 Reconciliation of IDP strategic objectives and budget (revenue)
A2: Strategic Objective | B2: Goal | C2: Goal Code | D2: =head27 -> Ref | E2: =head1b -> 2010/11 | F2: =head1A -> 2011/12 | G2: =Head1 -> 2012/13 | H2: =Head2 -> Current Year 2013/14 | K2: =Head3 -> 2014/15 Medium Term Revenue & Expenditure Framework
A3: R thousand | E3: =Head5 -> Audited Outcome | F3: =Head5 -> Audited Outcome | G3: =Head5 -> Audited Outcome | H3: =Head6 -> Original Budget | I3: =Head7 -> Adjusted Budget | J3: =Head8 -> Full Year Forecast | K3: =Head9 -> Budget Year 2014/15 | L3: =Head10 -> Budget Year +1 2015/16 | M3: =Head11 -> Budget Year +2 2016/17
A4: REINVENT THE ECONOMY | E4: 19886.32 | F4: 25099133.59 | G4: 4945397.94 | H4: 18283551 | I4: 18266464 | J4: 5170709 | K4: 2208023 | L4: 2283084 | M4: 1544197
A5: RENEW OUR COMMUNITY | E5: 10283.89 | F5: 1832.33 | G5: 539.42 | H5: 922 | I5: 500 | J5: 922 | K5: 968 | L5: 1020 | M5: 1075
A6: REVIVING THE ENVIRONMENT | E6: 929.9 | F6: 1403.75 | G6: 532.88 | H6: 901066 | I6: 1944 | J6: 1066 | K6: 901422 | L6: 950099 | M6: 1001404
A7: REINTEGRATING THE REGION | E7: 49323430.27 | F7: 60331677.66 | G7: 62167524.39 | H7: 64979313.92 | I7: 64987354 | J7: 62213137 | K7: 68231539 | L7: 71916039 | M7: 75799504
A8: RELEASING HUMAN POTENTIAL | E8: 49158555.83 | F8: 53005275.9 | G8: 42979999.91 | H8: 27959132 | I8: 27135786 | J8: 42720404 | K8: 27209540 | L8: 28678853 | M8: 30227512
A9: GOOD AND FINANCIAL SUSTAINABLE GOVERNANCE | E9: 263038957.8 | F9: 234102205 | G9: 231079096.9 | H9: 238419378 | I9: 257809767 | J9: 246262127 | K9: 250269004 | L9: 258660519 | M9: 272628188
A10: VIBRANT DEMOCRACY | E10: 8381.92 | F10: 21617.7 | G10: 12653.17 | H10: 23968 | I10: 29010 | J10: 23945 | K10: 25167 | L10: 26527 | M10: 27960
A21: Allocations to other priorities | D21: 2
A22: ='A4-FinPerf RE'!A22 -> Total Revenue (excluding capital transfers and contributions) | D22: 1 | E22: =SUM(E4:E21) -> 361560426 | F22: 372563145.9 | G22: 341185744.6 | H22: 350567330.9 | I22: 368230825 | J22: 356392310 | K22: 348845663 | L22: 362516141 | M22: 381229840
A23: =head27a -> References
A24: ="1. Total revenue must reconcile to "&'Template names'!F103 -> 1. Total revenue must reconcile to Table A4 Budgeted Financial Performance (revenue and expenditure)
A25: 2. Balance of allocations not directly linked to an IDP strategic objective
A26: check op revenue balance | E26: =E22-'A4-FinPerf RE'!C60 -> 0 | F26: =F22-'A4-FinPerf RE'!D60 -> 0 | G26: =G22-'A4-FinPerf RE'!E60 -> 0.2400000095 | H26: =H22-'A4-FinPerf RE'!F60 -> 0 | I26: =I22-'A4-FinPerf RE'!G60 -> 0.07999998331 | J26: =J22-'A4-FinPerf RE'!H60 -> 0 | K26: =K22-'A4-FinPerf RE'!J60 -> 0 | L26: =L22-'A4-FinPerf RE'!K60 -> 0 | M26: =M22-'A4-FinPerf RE'!L60 -> 0

Sheet SA5
A1: =muni&" - "&TableA5 -> DC42 Sedibeng - Supporting Table SA5 Reconciliation of IDP strategic objectives and budget (operating expenditure)
A2: Strategic Objective | B2: Goal | C2: Goal Code | D2: =head27 -> Ref | E2: =head1b -> 2010/11 | F2: =head1A -> 2011/12 | G2: =Head1 -> 2012/13 | H2: =Head2 -> Current Year 2013/14 | K2: =Head3 -> 2014/15 Medium Term Revenue & Expenditure Framework
A3: R thousand | E3: =Head5 -> Audited Outcome | F3: =Head5 -> Audited Outcome | G3: =Head5 -> Audited Outcome | H3: =Head6 -> Original Budget | I3: =Head7 -> Adjusted Budget | J3: =Head8 -> Full Year Forecast | K3: =Head9 -> Budget Year 2014/15 | L3: =Head10 -> Budget Year +1 2015/16 | M3: =Head11 -> Budget Year +2 2016/17
A13: REINVENT THE ECONOMY | B13: SPED less Housing | E13: 20258497.92 | F13: 22230380.52 | G13: 20006661.2 | H13: 36677007 | I13: 36708370 | J13: 19818070 | K13: 21429328 | L13: 22714086 | M13: 23261219
A14: RENEW OUR COMMUNITY | B14: Housing | E14: 3115624.04 | F14: 2139019.54 | G14: 1895584.5 | H14: 2035223 | I14: 2025673 | J14: 1857932 | K14: 2145404 | L14: 2282433 | M14: 2428217
A15: REVIVING THE ENVIRONMENT | B15: TIE: Environment | E15: 15848964.88 | F15: 19662148.08 | G15: 18282857.54 | H15: 22424790 | I15: 22512694 | J15: 18004419 | K15: 22038150 | L15: 23278136 | M15: 24588280
A16: REINTEGRATING THE REGION | B16: TIE | E16: 41579154.77 | F16: 44690915.1 | G16: 48213143.77 | H16: 48089632 | I16: 48915258 | J16: 46904866 | K16: 51429399 | L16: 54690323 | M16: 58158295
A17: RELEASING HUMAN POTENTIAL | B17: Corporate Services & CSS | E17: 211187768.6 | F17: 190772415.7 | G17: 167044070.4 | H17: 155790886 | I17: 160258208 | J17: 159271202 | K17: 155702347.8 | L17: 165094447 | M17: 175056713
A18: GOOD AND FINANCIAL SUSTAINABLE GOVERNANCE | B18: Finance | E18: 154491171.8 | F18: 60515051.27 | G18: 70434127.98 | H18: 56844376 | I18: 60077552 | J18: 77009170 | K18: 65574267 | L18: 69307761 | M18: 73255186
A19: VIBRANT DEMOCRACY | B19: PMT | E19: 29423872.36 | F19: 28128102.29 | G19: 28429896.62 | H19: 28525640 | I19: 31341699 | J19: 28239479 | K19: 30486379 | L19: 32382817 | M19: 34397678
A22: Allocations to other priorities
A23: ='A4-FinPerf RE'!A36 -> Total Expenditure | D23: 1 | E23: =SUM(E4:E22) -> 475905054.4 | F23: 368138032.5 | G23: 354306342 | H23: 350387554 | I23: 361839454 | J23: 351105138 | K23: 348805274.8 | L23: 369750003 | M23: 391145588
A24: =head27a -> References
A25: ="1. Total expenditure must reconcile to "&'Template names'!F103 -> 1. Total expenditure must reconcile to Table A4 Budgeted Financial Performance (revenue and expenditure)
A26: 2. Balance of allocations not directly linked to an IDP strategic objective
A27: check op expenditure balance | E27: =E23-'A4-FinPerf RE'!C36 -> 0 | F27: =F23-'A4-FinPerf RE'!D36 -> 0.0300000906 | G27: =G23-'A4-FinPerf RE'!E36 -> -1.01000011 | H27: =H23-'A4-FinPerf RE'!F36 -> 0 | I27: =I23-'A4-FinPerf RE'!G36 -> 0 | J27: =J23-'A4-FinPerf RE'!H36 -> 0 | K27: =K23-'A4-FinPerf RE'!J36 -> 0 | L27: =L23-'A4-FinPerf RE'!K36 -> 0 | M27: =M23-'A4-FinPerf RE'!L36 -> 0

Sheet SA6
A1: =muni&" - "&TableA6 -> DC42 Sedibeng - Supporting Table SA6 Reconciliation of IDP strategic objectives and budget (capital expenditure)
A2: Strategic Objective | B2: Goal | C2: Goal Code | D2: =head27 -> Ref | E2: =head1b -> 2010/11 | F2: =head1A -> 2011/12 | G2: =Head1 -> 2012/13 | H2: =Head2 -> Current Year 2013/14 | K2: =Head3 -> 2014/15 Medium Term Revenue & Expenditure Framework
A3: R thousand | E3: =Head5 -> Audited Outcome | F3: =Head5 -> Audited Outcome | G3: =Head5 -> Audited Outcome | H3: =Head6 -> Original Budget | I3: =Head7 -> Adjusted Budget | J3: =Head8 -> Full Year Forecast | K3: =Head9 -> Budget Year 2014/15 | L3: =Head10 -> Budget Year +1 2015/16 | M3: =Head11 -> Budget Year +2 2016/17
A4: REINVENT THE ECONOMY | B4: SPED less Housing | C4: A | E4: 1226738 | F4: 0 | G4: 98577 | H4: 1000000 | I4: 1000000 | J4: 0 | K4: 0 | L4: 0 | M4: 0
A5: RENEW OUR COMMUNITY | B5: Housing | C5: B
A6: REVIVING THE ENVIRONMENT | B6: TIE: Environment | C6: C | E6: 446058 | F6: 0 | G6: 128208 | H6: 3141060 | I6: 3141060 | J6: 0 | K6: 3247740 | L6: 3423118 | M6: 3607966
A7: REINTEGRATING THE REGION | B7: TIE | C7: D
A8: RELEASING HUMAN POTENTIAL | B8: Corporate Services & CSS | C8: E | E8: 31046993 | F8: 15999499 | G8: 12763724 | H8: 13071053 | I8: 17971053 | J8: 14891996 | K8: 13499996 | L8: 9297196 | M8: 3640512
A9: GOOD AND FINANCIAL SUSTAINABLE GOVERNANCE | B9: Finance | C9: F
A10: VIBRANT DEMOCRACY | B10: PMT | C10: G | E10: 1005298 | F10: 0 | G10: 165808 | H10: 0 | I10: 0 | J10: 0 | K10: 0 | L10: 0 | M10: 0
C11: H
C12: I
C13: J
C14: K
C15: L
C16: M
C17: N
C18: O
C19: P
A20: Allocations to other priorities | D20: 3
A21: Total Capital Expenditure | D21: 1 | E21: =SUM(E4:E20) -> 33725087 | F21: 15999499 | G21: 13156317 | H21: 17212113 | I21: 22112113 | J21: 14891996 | K21: 16747736 | L21: 12720314 | M21: 7248478
A22: =head27a -> References
A23: 1. Total capital expenditure must reconcile to Budgeted Capital Expenditure
A24: 2. Goal code must be used on Table SA36
A25: 3. Balance of allocations not directly linked to an IDP strategic objective
A26: check capital balance | E26: =E21-'A5-Capex'!C40 -> -2239527 | F26: =F21-'A5-Capex'!D40 -> 0 | G26: =G21-'A5-Capex'!E40 -> -118762 | H26: =H21-'A5-Capex'!F40 -> -490000 | I26: =I21-'A5-Capex'!G40 -> -490000 | J26: =J21-'A5-Capex'!H40 -> 0 | K26: =K21-'A5-Capex'!J40 -> -490000 | L26: =L21-'A5-Capex'!K40 -> 0 | M26: =M21-'A5-Capex'!L40 -> 0

Sheet SA7
A1: =muni&" - "&TableA7 -> DC42 Sedibeng - Supporting Table SA7 Measureable performance objectives
A2: Description | B2: Unit of measurement | C2: =head1b -> 2010/11 | D2: =head1A -> 2011/12 | E2: =Head1 -> 2012/13 | F2: =Head2 -> Current Year 2013/14 | I2: =Head3 -> 2014/15 Medium Term Revenue & Expenditure Framework
C3: =Head5 -> Audited Outcome | D3: =Head5 -> Audited Outcome | E3: =Head5 -> Audited Outcome | F3: =Head6 -> Original Budget | G3: =Head7 -> Adjusted Budget | H3: =Head8 -> Full Year Forecast | I3: =Head9 -> Budget Year 2014/15 | J3: =Head10 -> Budget Year +1 2015/16 | K3: =Head11 -> Budget Year +2 2016/17
A4: Vote 1 - vote name
A5: Function 1 - (name)
A6: Sub-function 1 - (name)
A7: Insert measure/s description
A9: Sub-function 2 - (name)
A10: Insert measure/s description
A12: Sub-function 3 - (name)
A13: Insert measure/s description
A15: Function 2 - (name)
A16: Sub-function 1 - (name)
A17: Insert measure/s description
A19: Sub-function 2 - (name)
A20: Insert measure/s description
A22: Sub-function 3 - (name)
A23: Insert measure/s description
A25: Vote 2 - vote name
A26: Function 1 - (name)
A27: Sub-function 1 - (name)
A28: Insert measure/s description
A30: Sub-function 2 - (name)
A31: Insert measure/s description
A33: Sub-function 3 - (name)
A34: Insert measure/s description
A36: Function 2 - (name)
A37: Sub-function 1 - (name)
A38: Insert measure/s description
A40: Sub-function 2 - (name)
A41: Insert measure/s description
A43: Sub-function 3 - (name)
A44: Insert measure/s description
A46: Vote 3 - vote name
A47: Function 1 - (name)
A48: Sub-function 1 - (name)
A49: Insert measure/s description
A51: Sub-function 2 - (name)
A52: Insert measure/s description
A54: Sub-function 3 - (name)
A55: Insert measure/s description
A57: Function 2 - (name)
A58: Sub-function 1 - (name)
A59: Insert measure/s description
A61: Sub-function 2 - (name)
A62: Insert measure/s description
A64: Sub-function 3 - (name)
A65: Insert measure/s description
A67: And so on for the rest of the Votes
A68: 1. Include a measurable performance objective for each revenue source (within a relevant function) and each vote (MFMA s17(3)(b))
A69: 2. Include all Basic Services performance targets from 'Basic Service Delivery' to ensure Table SA7 represents all strategic responsibilities
A70: 3. Only include prior year comparative information for individual measures where relevant activity occurred in that year/s
A72: =muni&" - "&"Entities measureable performance objectives" -> DC42 Sedibeng - Entities measureable performance objectives
A73: =A2 -> Description | B73: Unit of measurement | C73: =head1b -> 2010/11 | D73: =head1A -> 2011/12 | E73: =Head1 -> 2012/13 | F73: =Head2 -> Current Year 2013/14 | I73: =Head3 -> 2014/15 Medium Term Revenue & Expenditure Framework
C74: =Head5 -> Audited Outcome | D74: =Head5 -> Audited Outcome | E74: =Head5 -> Audited Outcome | F74: =Head6 -> Original Budget | G74: =Head7 -> Adjusted Budget | H74: =Head8 -> Full Year Forecast | I74: =Head9 -> Budget Year 2014/15 | J74: =Head10 -> Budget Year +1 2015/16 | K74: =Head11 -> Budget Year +2 2016/17
A75: Entity 1 - (name of entity)
A76: Insert measure/s description
A79: Entity 2 - (name of entity)
A80: =$A$10 -> Insert measure/s description
A83: Entity 3 - (name of entity)
A84: =$A$10 -> Insert measure/s description
A87: And so on for the rest of the Entities
A88: 1. Include a measurable performance objective as agreed with the parent municipality (MFMA s87(5)(d))
A89: 2. Only include prior year comparative information for individual measures where relevant activity occurred in that year/s

Sheet SA8
A1: =muni&" - "&TableA8 -> DC42 Sedibeng - Supporting Table SA8 Performance indicators and benchmarks
A2: Description of financial indicator | B2: Basis of calculation | C2: =head1b -> 2010/11 | D2: =head1A -> 2011/12 | E2: =Head1 -> 2012/13 | F2: =Head2 -> Current Year 2013/14 | J2: =Head3 -> 2014/15 Medium Term Revenue & Expenditure Framework
C3: =Head5 -> Audited Outcome | D3: =Head5 -> Audited Outcome | E3: =Head5 -> Audited Outcome | F3: =Head6 -> Original Budget | G3: =Head7 -> Adjusted Budget | H3: =Head8 -> Full Year Forecast | I3: =Head5b -> Pre-audit outcome | J3: =Head9 -> Budget Year 2014/15 | K3: =Head10 -> Budget Year +1 2015/16 | L3: =Head11 -> Budget Year +2 2016/17
A4: Borrowing Management
A6: Credit Rating
A7: Capital Charges to Operating Expenditure | B7: Interest & Principal Paid /Operating Expenditure | C7: =IF(ISERROR(('A4-FinPerf RE'!C29-'A7-CFlow'!C33)/'A4-FinPerf RE'!C36),0,(('A4-FinPerf RE'!C29-'A7-CFlow'!C33)/'A4-FinPerf RE'!C36)) -> 0 | D7: =IF(ISERROR(('A4-FinPerf RE'!D29-'A7-CFlow'!D33)/'A4-FinPerf RE'!D36),0,(('A4-FinPerf RE'!D29-'A7-CFlow'!D33)/'A4-FinPerf RE'!D36)) -> 0 | E7: =IF(ISERROR(('A4-FinPerf RE'!E29-'A7-CFlow'!E33)/'A4-FinPerf RE'!E36),0,(('A4-FinPerf RE'!E29-'A7-CFlow'!E33)/'A4-FinPerf RE'!E36)) -> 0 | F7: =IF(ISERROR(('A4-FinPerf RE'!F29-'A7-CFlow'!F33)/'A4-FinPerf RE'!F36),0,(('A4-FinPerf RE'!F29-'A7-CFlow'!F33)/'A4-FinPerf RE'!F36)) -> 0 | G7: =IF(ISERROR(('A4-FinPerf RE'!G29-'A7-CFlow'!G33)/'A4-FinPerf RE'!G36),0,(('A4-FinPerf RE'!G29-'A7-CFlow'!G33)/'A4-FinPerf RE'!G36)) -> 0 | H7: =IF(ISERROR(('A4-FinPerf RE'!H29-'A7-CFlow'!H33)/'A4-FinPerf RE'!H36),0,(('A4-FinPerf RE'!H29-'A7-CFlow'!H33)/'A4-FinPerf RE'!H36)) -> 0 | I7: =IF(ISERROR(('A4-FinPerf RE'!I29-'A7-CFlow'!I33)/'A4-FinPerf RE'!I36),0,(('A4-FinPerf RE'!I29-'A7-CFlow'!I33)/'A4-FinPerf RE'!I36)) -> 0 | J7: =IF(ISERROR(('A4-FinPerf RE'!J29-'A7-CFlow'!J33)/'A4-FinPerf RE'!J36),0,(('A4-FinPerf RE'!J29-'A7-CFlow'!J33)/'A4-FinPerf RE'!J36)) -> 0 | K7: =IF(ISERROR(('A4-FinPerf RE'!K29-'A7-CFlow'!K33)/'A4-FinPerf RE'!K36),0,(('A4-FinPerf RE'!K29-'A7-CFlow'!K33)/'A4-FinPerf RE'!K36)) -> 0 | L7: =IF(ISERROR(('A4-FinPerf RE'!L29-'A7-CFlow'!L33)/'A4-FinPerf RE'!L36),0,(('A4-FinPerf RE'!L29-'A7-CFlow'!L33)/'A4-FinPerf RE'!L36)) -> 0
A8: Capital Charges to Own Revenue | B8: Finance charges & Repayment of borrowing /Own Revenue | C8: =IF(ISERROR(('A4-FinPerf RE'!C29-'A7-CFlow'!C33)/('A4-FinPerf RE'!C22-'A4-FinPerf RE'!C19)),0,(('A4-FinPerf RE'!C29-'A7-CFlow'!C33)/('A4-FinPerf RE'!C22-'A4-FinPerf RE'!C19))) -> 0 | D8: =IF(ISERROR(('A4-FinPerf RE'!D29-'A7-CFlow'!D33)/('A4-FinPerf RE'!D22-'A4-FinPerf RE'!D19)),0,(('A4-FinPerf RE'!D29-'A7-CFlow'!D33)/('A4-FinPerf RE'!D22-'A4-FinPerf RE'!D19))) -> 0 | E8: =IF(ISERROR(('A4-FinPerf RE'!E29-'A7-CFlow'!E33)/('A4-FinPerf RE'!E22-'A4-FinPerf RE'!E19)),0,(('A4-FinPerf RE'!E29-'A7-CFlow'!E33)/('A4-FinPerf RE'!E22-'A4-FinPerf RE'!E19))) -> 0 | F8: =IF(ISERROR(('A4-FinPerf RE'!F29-'A7-CFlow'!F33)/('A4-FinPerf RE'!F22-'A4-FinPerf RE'!F19)),0,(('A4-FinPerf RE'!F29-'A7-CFlow'!F33)/('A4-FinPerf RE'!F22-'A4-FinPerf RE'!F19))) -> 0 | G8: =IF(ISERROR(('A4-FinPerf RE'!G29-'A7-CFlow'!G33)/('A4-FinPerf RE'!G22-'A4-FinPerf RE'!G19)),0,(('A4-FinPerf RE'!G29-'A7-CFlow'!G33)/('A4-FinPerf RE'!G22-'A4-FinPerf RE'!G19))) -> 0 | H8: =IF(ISERROR(('A4-FinPerf RE'!H29-'A7-CFlow'!H33)/('A4-FinPerf RE'!H22-'A4-FinPerf RE'!H19)),0,(('A4-FinPerf RE'!H29-'A7-CFlow'!H33)/('A4-FinPerf RE'!H22-'A4-FinPerf RE'!H19))) -> 0 | I8: =IF(ISERROR(('A4-FinPerf RE'!I29-'A7-CFlow'!I33)/('A4-FinPerf RE'!I22-'A4-FinPerf RE'!I19)),0,(('A4-FinPerf RE'!I29-'A7-CFlow'!I33)/('A4-FinPerf RE'!I22-'A4-FinPerf RE'!I19))) -> 0 | J8: =IF(ISERROR(('A4-FinPerf RE'!J29-'A7-CFlow'!J33)/('A4-FinPerf RE'!J22-'A4-FinPerf RE'!J19)),0,(('A4-FinPerf RE'!J29-'A7-CFlow'!J33)/('A4-FinPerf RE'!J22-'A4-FinPerf RE'!J19))) -> 0 | K8: =IF(ISERROR(('A4-FinPerf RE'!K29-'A7-CFlow'!K33)/('A4-FinPerf RE'!K22-'A4-FinPerf RE'!K19)),0,(('A4-FinPerf RE'!K29-'A7-CFlow'!K33)/('A4-FinPerf RE'!K22-'A4-FinPerf RE'!K19))) -> 0 | L8: =IF(ISERROR(('A4-FinPerf RE'!L29-'A7-CFlow'!L33)/('A4-FinPerf RE'!L22-'A4-FinPerf RE'!L19)),0,(('A4-FinPerf RE'!L29-'A7-CFlow'!L33)/('A4-FinPerf RE'!L22-'A4-FinPerf RE'!L19))) -> 0
A9: Borrowed funding of 'own' capital expenditure | B9: Borrowing/Capital expenditure excl. transfers and grants and contributions | C9: =IF(ISERROR(C49/C48),0,(C49/C48)) -> 0 | D9: =IF(ISERROR(D49/D48),0,(D49/D48)) -> 0 | E9: =IF(ISERROR(E49/E48),0,(E49/E48)) -> 0 | F9: 0 | G9: 0 | H9: 0 | I9: 0 | J9: 0 | K9: 0 | L9: 0
A10: Safety of Capital
A11: Gearing | B11: Long Term Borrowing/ Funds & Reserves | C11: =IF(ISERROR(('A6-FinPos'!C37/'A6-FinPos'!C46)),0,(('A6-FinPos'!C37/'A6-FinPos'!C46))) -> 0 | D11: =IF(ISERROR(('A6-FinPos'!D37/'A6-FinPos'!D46)),0,(('A6-FinPos'!D37/'A6-FinPos'!D46))) -> 0 | E11: =IF(ISERROR(('A6-FinPos'!E37/'A6-FinPos'!E46)),0,(('A6-FinPos'!E37/'A6-FinPos'!E46))) -> 0 | F11: =IF(ISERROR(('A6-FinPos'!F37/'A6-FinPos'!F46)),0,(('A6-FinPos'!F37/'A6-FinPos'!F46))) -> 0 | G11: =IF(ISERROR(('A6-FinPos'!G37/'A6-FinPos'!G46)),0,(('A6-FinPos'!G37/'A6-FinPos'!G46))) -> 0 | H11: =IF(ISERROR(('A6-FinPos'!H37/'A6-FinPos'!H46)),0,(('A6-FinPos'!H37/'A6-FinPos'!H46))) -> 0 | I11: =IF(ISERROR(('A6-FinPos'!I37/'A6-FinPos'!I46)),0,(('A6-FinPos'!I37/'A6-FinPos'!I46))) -> 0 | J11: =IF(ISERROR(('A6-FinPos'!J37/'A6-FinPos'!J46)),0,(('A6-FinPos'!J37/'A6-FinPos'!J46))) -> 0 | K11: =IF(ISERROR(('A6-FinPos'!K37/'A6-FinPos'!K46)),0,(('A6-FinPos'!K37/'A6-FinPos'!K46))) -> 0 | L11: =IF(ISERROR(('A6-FinPos'!L37/'A6-FinPos'!L46)),0,(('A6-FinPos'!L37/'A6-FinPos'!L46))) -> 0
A12: Liquidity
A13: Current Ratio | B13: Current assets/current liabilities | C13: =IF(ISERROR('A6-FinPos'!C12/'A6-FinPos'!C34),0,('A6-FinPos'!C12/'A6-FinPos'!C34)) -> 0.7504615935 | D13: =IF(ISERROR('A6-FinPos'!D12/'A6-FinPos'!D34),0,('A6-FinPos'!D12/'A6-FinPos'!D34)) -> 0.8263404483 | E13: =IF(ISERROR('A6-FinPos'!E12/'A6-FinPos'!E34),0,('A6-FinPos'!E12/'A6-FinPos'!E34)) -> 0.3163556387 | F13: =IF(ISERROR('A6-FinPos'!F12/'A6-FinPos'!F34),0,('A6-FinPos'!F12/'A6-FinPos'!F34)) -> 1.159442018 | G13: =IF(ISERROR('A6-FinPos'!G12/'A6-FinPos'!G34),0,('A6-FinPos'!G12/'A6-FinPos'!G34)) -> 1.273299248 | H13: =IF(ISERROR('A6-FinPos'!H12/'A6-FinPos'!H34),0,('A6-FinPos'!H12/'A6-FinPos'!H34)) -> 0.9850700225 | I13: =IF(ISERROR('A6-FinPos'!I12/'A6-FinPos'!I34),0,('A6-FinPos'!I12/'A6-FinPos'!I34)) -> 0.6933523836 | J13: =IF(ISERROR('A6-FinPos'!J12/'A6-FinPos'!J34),0,('A6-FinPos'!J12/'A6-FinPos'!J34)) -> 1.159442018 | K13: =IF(ISERROR('A6-FinPos'!K12/'A6-FinPos'!K34),0,('A6-FinPos'!K12/'A6-FinPos'!K34)) -> 1.490366895 | L13: =IF(ISERROR('A6-FinPos'!L12/'A6-FinPos'!L34),0,('A6-FinPos'!L12/'A6-FinPos'!L34)) -> 1.378720569
A14: Current Ratio adjusted for aged debtors | B14: Current assets less debtors > 90 days/current liabilities | C14: =IF(ISERROR(('A6-FinPos'!C12-'SA8'!C45)/'A6-FinPos'!C34),0,(('A6-FinPos'!C12-'SA8'!C45)/'A6-FinPos'!C34)) -> 0.7504615935 | D14: =IF(ISERROR(('A6-FinPos'!D12-'SA8'!D45)/'A6-FinPos'!D34),0,(('A6-FinPos'!D12-'SA8'!D45)/'A6-FinPos'!D34)) -> 0.8263404483 | E14: =IF(ISERROR(('A6-FinPos'!E12-'SA8'!E45)/'A6-FinPos'!E34),0,(('A6-FinPos'!E12-'SA8'!E45)/'A6-FinPos'!E34)) -> 0.3163556387 | F14: =IF(ISERROR(('A6-FinPos'!F12-'SA8'!F45)/'A6-FinPos'!F34),0,(('A6-FinPos'!F12-'SA8'!F45)/'A6-FinPos'!F34)) -> 1.159442018 | G14: =IF(ISERROR(('A6-FinPos'!G12-'SA8'!G45)/'A6-FinPos'!G34),0,(('A6-FinPos'!G12-'SA8'!G45)/'A6-FinPos'!G34)) -> 1.273299248 | H14: =IF(ISERROR(('A6-FinPos'!H12-'SA8'!H45)/'A6-FinPos'!H34),0,(('A6-FinPos'!H12-'SA8'!H45)/'A6-FinPos'!H34)) -> 0.9850700225 | I14: =IF(ISERROR(('A6-FinPos'!I12-'SA8'!I45)/'A6-FinPos'!I34),0,(('A6-FinPos'!I12-'SA8'!I45)/'A6-FinPos'!I34)) -> 0.6933523836 | J14: =IF(ISERROR(('A6-FinPos'!J12-'SA8'!J45)/'A6-FinPos'!J34),0,(('A6-FinPos'!J12-'SA8'!J45)/'A6-FinPos'!J34)) -> 1.159442018 | K14: =IF(ISERROR(('A6-FinPos'!K12-'SA8'!K45)/'A6-FinPos'!K34),0,(('A6-FinPos'!K12-'SA8'!K45)/'A6-FinPos'!K34)) -> 1.490366895 | L14: =IF(ISERROR(('A6-FinPos'!L12-'SA8'!L45)/'A6-FinPos'!L34),0,(('A6-FinPos'!L12-'SA8'!L45)/'A6-FinPos'!L34)) -> 1.378720569
A15: Liquidity Ratio | B15: Monetary Assets/Current Liabilities | C15: =IF(ISERROR(('A6-FinPos'!C6+'A6-FinPos'!C7)/'A6-FinPos'!C34),0,(('A6-FinPos'!C6+'A6-FinPos'!C7)/'A6-FinPos'!C34)) -> 0.4530667646 | D15: =IF(ISERROR(('A6-FinPos'!D6+'A6-FinPos'!D7)/'A6-FinPos'!D34),0,(('A6-FinPos'!D6+'A6-FinPos'!D7)/'A6-FinPos'!D34)) -> 0.2007799304 | E15: =IF(ISERROR(('A6-FinPos'!E6+'A6-FinPos'!E7)/'A6-FinPos'!E34),0,(('A6-FinPos'!E6+'A6-FinPos'!E7)/'A6-FinPos'!E34)) -> 0.1175231503 | F15: =IF(ISERROR(('A6-FinPos'!F6+'A6-FinPos'!F7)/'A6-FinPos'!F34),0,(('A6-FinPos'!F6+'A6-FinPos'!F7)/'A6-FinPos'!F34)) -> 0.4980407898 | G15: =IF(ISERROR(('A6-FinPos'!G6+'A6-FinPos'!G7)/'A6-FinPos'!G34),0,(('A6-FinPos'!G6+'A6-FinPos'!G7)/'A6-FinPos'!G34)) -> 0.3069107909 | H15: =IF(ISERROR(('A6-FinPos'!H6+'A6-FinPos'!H7)/'A6-FinPos'!H34),0,(('A6-FinPos'!H6+'A6-FinPos'!H7)/'A6-FinPos'!H34)) -> 0.2493289282 | I15: =IF(ISERROR(('A6-FinPos'!I6+'A6-FinPos'!I7)/'A6-FinPos'!I34),0,(('A6-FinPos'!I6+'A6-FinPos'!I7)/'A6-FinPos'!I34)) -> 0.6312759074 | J15: =IF(ISERROR(('A6-FinPos'!J6+'A6-FinPos'!J7)/'A6-FinPos'!J34),0,(('A6-FinPos'!J6+'A6-FinPos'!J7)/'A6-FinPos'!J34)) -> 0.4980407898 | K15: =IF(ISERROR(('A6-FinPos'!K6+'A6-FinPos'!K7)/'A6-FinPos'!K34),0,(('A6-FinPos'!K6+'A6-FinPos'!K7)/'A6-FinPos'!K34)) -> 0.7352291721 | L15: =IF(ISERROR(('A6-FinPos'!L6+'A6-FinPos'!L7)/'A6-FinPos'!L34),0,(('A6-FinPos'!L6+'A6-FinPos'!L7)/'A6-FinPos'!L34)) -> 0.7352291721
A16: Revenue Management
A17: Annual Debtors Collection Rate (Payment Level %) | B17: Last 12 Mths Receipts/Last 12 Mths Billing | D17: =IF(ISERROR(('A7-CFlow'!C6+'A7-CFlow'!C20+'A7-CFlow'!C21)/(SUM('A4-FinPerf RE'!C5:C12)+'A4-FinPerf RE'!C14+SUM('A4-FinPerf RE'!C16:C18)+'A4-FinPerf RE'!C20)),0,(('A7-CFlow'!C6+'A7-CFlow'!C20+'A7-CFlow'!C21)/(SUM('A4-FinPerf RE'!C5:C12)+'A4-FinPerf RE'!C14+SUM('A4-FinPerf RE'!C16:C18)+'A4-FinPerf RE'!C20))) -> 4.715734433 | E17: =IF(ISERROR(('A7-CFlow'!D6+'A7-CFlow'!D20+'A7-CFlow'!D21)/(SUM('A4-FinPerf RE'!D5:D12)+'A4-FinPerf RE'!D14+SUM('A4-FinPerf RE'!D16:D18)+'A4-FinPerf RE'!D20)),0,(('A7-CFlow'!D6+'A7-CFlow'!D20+'A7-CFlow'!D21)/(SUM('A4-FinPerf RE'!D5:D12)+'A4-FinPerf RE'!D14+SUM('A4-FinPerf RE'!D16:D18)+'A4-FinPerf RE'!D20))) -> 0.8119992896 | F17: =IF(ISERROR(('A7-CFlow'!E6+'A7-CFlow'!E20+'A7-CFlow'!E21)/(SUM('A4-FinPerf RE'!E5:E12)+'A4-FinPerf RE'!E14+SUM('A4-FinPerf RE'!E16:E18)+'A4-FinPerf RE'!E20)),0,(('A7-CFlow'!E6+'A7-CFlow'!E20+'A7-CFlow'!E21)/(SUM('A4-FinPerf RE'!E5:E12)+'A4-FinPerf RE'!E14+SUM('A4-FinPerf RE'!E16:E18)+'A4-FinPerf RE'!E20))) -> 1.000000003 | G17: =IF(ISERROR(('A7-CFlow'!F6+'A7-CFlow'!F20+'A7-CFlow'!F21)/(SUM('A4-FinPerf RE'!F5:F12)+'A4-FinPerf RE'!F14+SUM('A4-FinPerf RE'!F16:F18)+'A4-FinPerf RE'!F20)),0,(('A7-CFlow'!F6+'A7-CFlow'!F20+'A7-CFlow'!F21)/(SUM('A4-FinPerf RE'!F5:F12)+'A4-FinPerf RE'!F14+SUM('A4-FinPerf RE'!F16:F18)+'A4-FinPerf RE'!F20))) -> 1 | H17: =IF(ISERROR(('A7-CFlow'!G6+'A7-CFlow'!G20+'A7-CFlow'!G21)/(SUM('A4-FinPerf RE'!G5:G12)+'A4-FinPerf RE'!G14+SUM('A4-FinPerf RE'!G16:G18)+'A4-FinPerf RE'!G20)),0,(('A7-CFlow'!G6+'A7-CFlow'!G20+'A7-CFlow'!G21)/(SUM('A4-FinPerf RE'!G5:G12)+'A4-FinPerf RE'!G14+SUM('A4-FinPerf RE'!G16:G18)+'A4-FinPerf RE'!G20))) -> 1 | I17: =IF(ISERROR(('A7-CFlow'!H6+'A7-CFlow'!H20+'A7-CFlow'!H21)/(SUM('A4-FinPerf RE'!H5:H12)+'A4-FinPerf RE'!H14+SUM('A4-FinPerf RE'!H16:H18)+'A4-FinPerf RE'!H20)),0,(('A7-CFlow'!H6+'A7-CFlow'!H20+'A7-CFlow'!H21)/(SUM('A4-FinPerf RE'!H5:H12)+'A4-FinPerf RE'!H14+SUM('A4-FinPerf RE'!H16:H18)+'A4-FinPerf RE'!H20))) -> 1.46244134 | J17: =IF(ISERROR(('A7-CFlow'!I6+'A7-CFlow'!I20+'A7-CFlow'!I21)/(SUM('A4-FinPerf RE'!I5:I12)+'A4-FinPerf RE'!I14+SUM('A4-FinPerf RE'!I16:I18)+'A4-FinPerf RE'!I20)),0,(('A7-CFlow'!I6+'A7-CFlow'!I20+'A7-CFlow'!I21)/(SUM('A4-FinPerf RE'!I5:I12)+'A4-FinPerf RE'!I14+SUM('A4-FinPerf RE'!I16:I18)+'A4-FinPerf RE'!I20))) -> 1.645694218 | K17: =IF(ISERROR(('A7-CFlow'!J6+'A7-CFlow'!J20+'A7-CFlow'!J21)/(SUM('A4-FinPerf RE'!J5:J12)+'A4-FinPerf RE'!J14+SUM('A4-FinPerf RE'!J16:J18)+'A4-FinPerf RE'!J20)),0,(('A7-CFlow'!J6+'A7-CFlow'!J20+'A7-CFlow'!J21)/(SUM('A4-FinPerf RE'!J5:J12)+'A4-FinPerf RE'!J14+SUM('A4-FinPerf RE'!J16:J18)+'A4-FinPerf RE'!J20))) -> 0.9251637335 | L17: =IF(ISERROR(('A7-CFlow'!K6+'A7-CFlow'!K20+'A7-CFlow'!K21)/(SUM('A4-FinPerf RE'!K5:K12)+'A4-FinPerf RE'!K14+SUM('A4-FinPerf RE'!K16:K18)+'A4-FinPerf RE'!K20)),0,(('A7-CFlow'!K6+'A7-CFlow'!K20+'A7-CFlow'!K21)/(SUM('A4-FinPerf RE'!K5:K12)+'A4-FinPerf RE'!K14+SUM('A4-FinPerf RE'!K16:K18)+'A4-FinPerf RE'!K20))) -> 0.9722966272
A18: Current Debtors Collection Rate (Cash receipts % of Ratepayer & Other revenue) | C18: =IF(ISERROR(('A7-CFlow'!C6)/(SUM('A4-FinPerf RE'!C5:C12)+'A4-FinPerf RE'!C14+SUM('A4-FinPerf RE'!C16:C18)+'A4-FinPerf RE'!C20)),0,(('A7-CFlow'!C6)/(SUM('A4-FinPerf RE'!C5:C12)+'A4-FinPerf RE'!C14+SUM('A4-FinPerf RE'!C16:C18)+'A4-FinPerf RE'!C20))) -> 4.715734433 | D18: =IF(ISERROR(('A7-CFlow'!D6)/(SUM('A4-FinPerf RE'!D5:D12)+'A4-FinPerf RE'!D14+SUM('A4-FinPerf RE'!D16:D18)+'A4-FinPerf RE'!D20)),0,(('A7-CFlow'!D6)/(SUM('A4-FinPerf RE'!D5:D12)+'A4-FinPerf RE'!D14+SUM('A4-FinPerf RE'!D16:D18)+'A4-FinPerf RE'!D20))) -> 0.810332914 | E18: =IF(ISERROR(('A7-CFlow'!E6)/(SUM('A4-FinPerf RE'!E5:E12)+'A4-FinPerf RE'!E14+SUM('A4-FinPerf RE'!E16:E18)+'A4-FinPerf RE'!E20)),0,(('A7-CFlow'!E6)/(SUM('A4-FinPerf RE'!E5:E12)+'A4-FinPerf RE'!E14+SUM('A4-FinPerf RE'!E16:E18)+'A4-FinPerf RE'!E20))) -> 1.000000003 | F18: =IF(ISERROR(('A7-CFlow'!F6)/(SUM('A4-FinPerf RE'!F5:F12)+'A4-FinPerf RE'!F14+SUM('A4-FinPerf RE'!F16:F18)+'A4-FinPerf RE'!F20)),0,(('A7-CFlow'!F6)/(SUM('A4-FinPerf RE'!F5:F12)+'A4-FinPerf RE'!F14+SUM('A4-FinPerf RE'!F16:F18)+'A4-FinPerf RE'!F20))) -> 1 | G18: =IF(ISERROR(('A7-CFlow'!G6)/(SUM('A4-FinPerf RE'!G5:G12)+'A4-FinPerf RE'!G14+SUM('A4-FinPerf RE'!G16:G18)+'A4-FinPerf RE'!G20)),0,(('A7-CFlow'!G6)/(SUM('A4-FinPerf RE'!G5:G12)+'A4-FinPerf RE'!G14+SUM('A4-FinPerf RE'!G16:G18)+'A4-FinPerf RE'!G20))) -> 1 | H18: =IF(ISERROR(('A7-CFlow'!H6)/(SUM('A4-FinPerf RE'!H5:H12)+'A4-FinPerf RE'!H14+SUM('A4-FinPerf RE'!H16:H18)+'A4-FinPerf RE'!H20)),0,(('A7-CFlow'!H6)/(SUM('A4-FinPerf RE'!H5:H12)+'A4-FinPerf RE'!H14+SUM('A4-FinPerf RE'!H16:H18)+'A4-FinPerf RE'!H20))) -> 1.46244134 | I18: =IF(ISERROR(('A7-CFlow'!I6)/(SUM('A4-FinPerf RE'!I5:I12)+'A4-FinPerf RE'!I14+SUM('A4-FinPerf RE'!I16:I18)+'A4-FinPerf RE'!I20)),0,(('A7-CFlow'!I6)/(SUM('A4-FinPerf RE'!I5:I12)+'A4-FinPerf RE'!I14+SUM('A4-FinPerf RE'!I16:I18)+'A4-FinPerf RE'!I20))) -> 1.645694218 | J18: =IF(ISERROR(('A7-CFlow'!J6)/(SUM('A4-FinPerf RE'!J5:J12)+'A4-FinPerf RE'!J14+SUM('A4-FinPerf RE'!J16:J18)+'A4-FinPerf RE'!J20)),0,(('A7-CFlow'!J6)/(SUM('A4-FinPerf RE'!J5:J12)+'A4-FinPerf RE'!J14+SUM('A4-FinPerf RE'!J16:J18)+'A4-FinPerf RE'!J20))) -> 0.9251637335 | K18: =IF(ISERROR(('A7-CFlow'!K6)/(SUM('A4-FinPerf RE'!K5:K12)+'A4-FinPerf RE'!K14+SUM('A4-FinPerf RE'!K16:K18)+'A4-FinPerf RE'!K20)),0,(('A7-CFlow'!K6)/(SUM('A4-FinPerf RE'!K5:K12)+'A4-FinPerf RE'!K14+SUM('A4-FinPerf RE'!K16:K18)+'A4-FinPerf RE'!K20))) -> 0.9722966272 | L18: =IF(ISERROR(('A7-CFlow'!L6)/(SUM('A4-FinPerf RE'!L5:L12)+'A4-FinPerf RE'!L14+SUM('A4-FinPerf RE'!L16:L18)+'A4-FinPerf RE'!L20)),0,(('A7-CFlow'!L6)/(SUM('A4-FinPerf RE'!L5:L12)+'A4-FinPerf RE'!L14+SUM('A4-FinPerf RE'!L16:L18)+'A4-FinPerf RE'!L20))) -> 0.9676842251
A19: Outstanding Debtors to Revenue | B19: Total Outstanding Debtors to Annual Revenue | C19: =IF(ISERROR(('A6-FinPos'!C8+'A6-FinPos'!C9+'A6-FinPos'!C10+'A6-FinPos'!C15)/'A4-FinPerf RE'!C22),0,(('A6-FinPos'!C8+'A6-FinPos'!C9+'A6-FinPos'!C10+'A6-FinPos'!C15)/'A4-FinPerf RE'!C22)) -> 0.07600488335 | D19: =IF(ISERROR(('A6-FinPos'!D8+'A6-FinPos'!D9+'A6-FinPos'!D10+'A6-FinPos'!D15)/'A4-FinPerf RE'!D22),0,(('A6-FinPos'!D8+'A6-FinPos'!D9+'A6-FinPos'!D10+'A6-FinPos'!D15)/'A4-FinPerf RE'!D22)) -> 0.1036420173 | E19: =IF(ISERROR(('A6-FinPos'!E8+'A6-FinPos'!E9+'A6-FinPos'!E10+'A6-FinPos'!E15)/'A4-FinPerf RE'!E22),0,(('A6-FinPos'!E8+'A6-FinPos'!E9+'A6-FinPos'!E10+'A6-FinPos'!E15)/'A4-FinPerf RE'!E22)) -> 0.03364885899 | F19: =IF(ISERROR(('A6-FinPos'!F8+'A6-FinPos'!F9+'A6-FinPos'!F10+'A6-FinPos'!F15)/'A4-FinPerf RE'!F22),0,(('A6-FinPos'!F8+'A6-FinPos'!F9+'A6-FinPos'!F10+'A6-FinPos'!F15)/'A4-FinPerf RE'!F22)) -> 0.1254828947 | G19: =IF(ISERROR(('A6-FinPos'!G8+'A6-FinPos'!G9+'A6-FinPos'!G10+'A6-FinPos'!G15)/'A4-FinPerf RE'!G22),0,(('A6-FinPos'!G8+'A6-FinPos'!G9+'A6-FinPos'!G10+'A6-FinPos'!G15)/'A4-FinPerf RE'!G22)) -> 0.1194636638 | H19: =IF(ISERROR(('A6-FinPos'!H8+'A6-FinPos'!H9+'A6-FinPos'!H10+'A6-FinPos'!H15)/'A4-FinPerf RE'!H22),0,(('A6-FinPos'!H8+'A6-FinPos'!H9+'A6-FinPos'!H10+'A6-FinPos'!H15)/'A4-FinPerf RE'!H22)) -> 0.09105397083 | I19: =IF(ISERROR(('A6-FinPos'!I8+'A6-FinPos'!I9+'A6-FinPos'!I10+'A6-FinPos'!I15)/'A4-FinPerf RE'!I22),0,(('A6-FinPos'!I8+'A6-FinPos'!I9+'A6-FinPos'!I10+'A6-FinPos'!I15)/'A4-FinPerf RE'!I22)) -> 0.01248170843 | J19: =IF(ISERROR(('A6-FinPos'!J8+'A6-FinPos'!J9+'A6-FinPos'!J10+'A6-FinPos'!J15)/'A4-FinPerf RE'!J22),0,(('A6-FinPos'!J8+'A6-FinPos'!J9+'A6-FinPos'!J10+'A6-FinPos'!J15)/'A4-FinPerf RE'!J22)) -> 0.126102194 | K19: =IF(ISERROR(('A6-FinPos'!K8+'A6-FinPos'!K9+'A6-FinPos'!K10+'A6-FinPos'!K15)/'A4-FinPerf RE'!K22),0,(('A6-FinPos'!K8+'A6-FinPos'!K9+'A6-FinPos'!K10+'A6-FinPos'!K15)/'A4-FinPerf RE'!K22)) -> 0.09901126976 | L19: =IF(ISERROR(('A6-FinPos'!L8+'A6-FinPos'!L9+'A6-FinPos'!L10+'A6-FinPos'!L15)/'A4-FinPerf RE'!L22),0,(('A6-FinPos'!L8+'A6-FinPos'!L9+'A6-FinPos'!L10+'A6-FinPos'!L15)/'A4-FinPerf RE'!L22)) -> 0.0841622154
A20: Longstanding Debtors Recovered | B20: Debtors > 12 Mths Recovered/Total Debtors > 12 Months Old
A21: Creditors Management
A22: Creditors System Efficiency | B22: % of Creditors Paid Within Terms (within`MFMA' s 65(e))
A23: Creditors to Cash and Investments | C23: =IF(ISERROR('SA3'!C35/'A7-CFlow'!C38), 0, ('SA3'!C35/'A7-CFlow'!C38)) -> 1.365489 | D23: =IF(ISERROR('SA3'!D35/'A7-CFlow'!D38), 0, ('SA3'!D35/'A7-CFlow'!D38)) -> 3.735874739 | E23: =IF(ISERROR('SA3'!E35/'A7-CFlow'!E38), 0, ('SA3'!E35/'A7-CFlow'!E38)) -> 6.809761704 | F23: =IF(ISERROR('SA3'!F35/'A7-CFlow'!F38), 0, ('SA3'!F35/'A7-CFlow'!F38)) -> 1.85606635 | G23: =IF(ISERROR('SA3'!G35/'A7-CFlow'!G38), 0, ('SA3'!G35/'A7-CFlow'!G38)) -> 2.898331786 | H23: =IF(ISERROR('SA3'!H35/'A7-CFlow'!H38), 0, ('SA3'!H35/'A7-CFlow'!H38)) -> 1.446038777 | I23: =IF(ISERROR('SA3'!I35/'A7-CFlow'!I38), 0, ('SA3'!I35/'A7-CFlow'!I38)) -> -2.009758917 | J23: =IF(ISERROR('SA3'!J35/'A7-CFlow'!J38), 0, ('SA3'!J35/'A7-CFlow'!J38)) -> 1.710797072 | K23: =IF(ISERROR('SA3'!K35/'A7-CFlow'!K38), 0, ('SA3'!K35/'A7-CFlow'!K38)) -> 1.123008192 | L23: =IF(ISERROR('SA3'!L35/'A7-CFlow'!L38), 0, ('SA3'!L35/'A7-CFlow'!L38)) -> 1.126961967
A25: Other Indicators
A26: Electricity Distribution Losses (2) | B26: Total Volume Losses (kW)
B27: Total Cost of Losses (Rand '000)
B28: % Volume (units purchased and generated less units sold)/units purchased and generated
A29: Water Distribution Losses (2) | B29: Total Volume Losses (kℓ)
B30: Total Cost of Losses (Rand '000)
B31: % Volume (units purchased and generated less units sold)/units purchased and generated
A32: Employee costs | B32: Employee costs/(Total Revenue - capital revenue) | C32: =IF(ISERROR('A4-FinPerf RE'!C25/'A4-FinPerf RE'!C22),0,('A4-FinPerf RE'!C25/'A4-FinPerf RE'!C22)) -> 0.6423019655 | D32: =IF(ISERROR('A4-FinPerf RE'!D25/'A4-FinPerf RE'!D22),0,('A4-FinPerf RE'!D25/'A4-FinPerf RE'!D22)) -> 0.6130299996 | E32: =IF(ISERROR('A4-FinPerf RE'!E25/'A4-FinPerf RE'!E22),0,('A4-FinPerf RE'!E25/'A4-FinPerf RE'!E22)) -> 0.5942006762 | F32: =IF(ISERROR('A4-FinPerf RE'!F25/'A4-FinPerf RE'!F22),0,('A4-FinPerf RE'!F25/'A4-FinPerf RE'!F22)) -> 0.557793684 | G32: =IF(ISERROR('A4-FinPerf RE'!G25/'A4-FinPerf RE'!G22),0,('A4-FinPerf RE'!G25/'A4-FinPerf RE'!G22)) -> 0.544001239 | H32: =IF(ISERROR('A4-FinPerf RE'!H25/'A4-FinPerf RE'!H22),0,('A4-FinPerf RE'!H25/'A4-FinPerf RE'!H22)) -> 0.5633194583 | I32: =IF(ISERROR('A4-FinPerf RE'!I25/'A4-FinPerf RE'!I22),0,('A4-FinPerf RE'!I25/'A4-FinPerf RE'!I22)) -> 0.6225243771 | J32: =IF(ISERROR('A4-FinPerf RE'!J25/'A4-FinPerf RE'!J22),0,('A4-FinPerf RE'!J25/'A4-FinPerf RE'!J22)) -> 0.5940056678 | K32: =IF(ISERROR('A4-FinPerf RE'!K25/'A4-FinPerf RE'!K22),0,('A4-FinPerf RE'!K25/'A4-FinPerf RE'!K22)) -> 0.6080931442 | L32: =IF(ISERROR('A4-FinPerf RE'!L25/'A4-FinPerf RE'!L22),0,('A4-FinPerf RE'!L25/'A4-FinPerf RE'!L22)) -> 0.6151552932
